Workbook

Sheet ZABUMBÃO
A1: Ministério da Integração e do Desenvolvimento Regional
A2: Companhia de Desenvolvimento dos Vales do São Francisco e do Parnaíba
A4: PLANILHA ORÇAMENTÁRIA - ORÇAMENTO NÃO DESONERADO
A5: OBRA: | B5: =ZABUMBÃO!B5:F5 -> 0 | G5: BDI (serv.): | H5: ='BDI serv'!D23 -> 0.2321 | I5: Bancos de dados:
A6: LOCAL: | B6: Paramirim - BA | G6: BDI (forn.): | H6: ='BDI forn'!D23 -> 0.1469 | I6: JUL/25 - SINAPI
A7: DATA BASE: | B7: 2025-08-01 | E7: Encargos sociais - Horistas: | H7: ='Encargos Sociais'!E49 -> 1.1557 | I7: MAI/25 - ORSE
A8: PRAZO: | B8: 120 dias | E8: Encargos sociais - Mensalista: | H8: ='Encargos Sociais'!F49 -> 0.7129 | I8: JUN/25 - EMBASA
B9: Zabumbão | G9: Desconto: | H9: 0 | I9: ABR/2025 - SICRO3
A10: ITEM | B10: REFERÊNCIA | D10: DESCRIÇÃO | E10: UNID. | F10: QUANT. | G10: CUSTO UNITÁRIO | H10: PREÇO UNITÁRIO | I10: PREÇO TOTAL
B11: FONTE | C11: CÓDIGO
A12: 1 | D12: ADMINISTRAÇÃO DA OBRA | I12: =SUM(I13) -> 146355.36
A13: 1.1 | D13: Administração da Obra | I13: =SUM(I14:I14) -> 146355.36
A14: 1.1.1 | B14: PRÓPRIA | C14: CPU.01 | D14: =(VLOOKUP(C14,CPU!B1:C263,2,0)) -> Administração Local | E14: =(VLOOKUP(C14,CPU!B2:D$378,3,0)) -> mês | F14: 4 | G14: =TRUNC((1-$H$9)*(SUMIFS(CPU!$G:$G,CPU!$A:$A,ZABUMBÃO!$C14,CPU!$H:$H,"ss")+SUMIFS(CPU!$G:$G,CPU!$A:$A,ZABUMBÃO!$C14,CPU!$H:$H,"mdo")+SUMIF('Comp SINAPI BA 07-2025 Onerado'!B:B,ZABUMBÃO!C14,'Comp SINAPI BA 07-2025 Onerado'!E:E)+SUMIF('Ins SINAPI BA 07-2025 Onerado'!B:B,ZABUMBÃO!C14,'Ins SINAPI BA 07-2025 Onerado'!F:F)),2) -> 29696.33 | H14: =TRUNC(G14*(1+$H$5),2) -> 36588.84 | I14: =TRUNC(F14*H14,2) -> 146355.36 | K14: =_xlfn.ISFORMULA(I14) -> TRUE
K15: =_xlfn.ISFORMULA(I15) -> FALSE
A16: 2 | D16: SERVIÇOS PRELIMINARES | I16: =SUM(I17,I19,I21) -> 25977.73 | K16: TRUE
A17: 2.1 | D17: Mobilização e desmobilização | I17: =SUM(I18) -> 506.51 | K17: TRUE
A18: 2.1.1 | B18: PRÓPRIA | C18: CPU.02 | D18: =(VLOOKUP(C18,CPU!B5:C267,2,0)) -> Mobilização e desmobilização de instalação do canteiro | E18: =(VLOOKUP(C18,CPU!B2:D$378,3,0)) -> un | F18: 1 | G18: =TRUNC((1-$H$9)*(SUMIFS(CPU!$G:$G,CPU!$A:$A,ZABUMBÃO!$C18,CPU!$H:$H,"ss")+SUMIFS(CPU!$G:$G,CPU!$A:$A,ZABUMBÃO!$C18,CPU!$H:$H,"mdo")+SUMIF('Comp SINAPI BA 07-2025 Onerado'!B:B,ZABUMBÃO!C18,'Comp SINAPI BA 07-2025 Onerado'!E:E)+SUMIF('Ins SINAPI BA 07-2025 Onerado'!B:B,ZABUMBÃO!C18,'Ins SINAPI BA 07-2025 Onerado'!F:F)),2) -> 411.1 | H18: =TRUNC(G18*(1+$H$5),2) -> 506.51 | I18: =TRUNC(F18*H18,2) -> 506.51 | K18: TRUE
A19: 2.2 | D19: Canteiro de obras | I19: =SUM(I20) -> 24370.92 | K19: TRUE
A20: 2.2.1 | B20: PRÓPRIA | C20: CPU.03 | D20: =(VLOOKUP(C20,CPU!B7:C269,2,0)) -> Execução de canteiro de obras, inclusive, limpeza, refeitório, sanitários e central de formas | E20: =(VLOOKUP(C20,CPU!B2:D$378,3,0)) -> m2 | F20: 28.5 | G20: =TRUNC((1-$H$9)*(SUMIFS(CPU!$G:$G,CPU!$A:$A,ZABUMBÃO!$C20,CPU!$H:$H,"ss")+SUMIFS(CPU!$G:$G,CPU!$A:$A,ZABUMBÃO!$C20,CPU!$H:$H,"mdo")+SUMIF('Comp SINAPI BA 07-2025 Onerado'!B:B,ZABUMBÃO!C20,'Comp SINAPI BA 07-2025 Onerado'!E:E)+SUMIF('Ins SINAPI BA 07-2025 Onerado'!B:B,ZABUMBÃO!C20,'Ins SINAPI BA 07-2025 Onerado'!F:F)),2) -> 694.04 | H20: =TRUNC(G20*(1+$H$5),2) -> 855.12 | I20: =TRUNC(F20*H20,2) -> 24370.92 | K20: TRUE
A21: 2.3 | D21: Sinalização | I21: =SUM(I22:I22) -> 1100.3 | K21: TRUE
A22: 2.3.1 | B22: SINAPI | C22: 103689 | D22: =IF(J22="ca",VLOOKUP(C22,'Comp SINAPI BA 07-2025 Onerado'!$B$11:$C$9004,2,0),VLOOKUP(C22,'Ins SINAPI BA 07-2025 Onerado'!$B$10:$C$9004,2,0)) -> FORNECIMENTO E INSTALAÇÃO DE PLACA DE OBRA COM CHAPA GALVANIZADA E ESTRUTURA DE MADEIRA. AF_03/2022_PS | E22: =IF(J22="ca",VLOOKUP(C22,'Comp SINAPI BA 07-2025 Onerado'!$B$11:$D$9004,3,0),VLOOKUP(C22,'Ins SINAPI BA 07-2025 Onerado'!$B$11:$D$9004,3,0)) -> M2 | F22: 2 | G22: =TRUNC((1-$H$9)*(SUMIFS(CPU!$G:$G,CPU!$A:$A,ZABUMBÃO!$C22,CPU!$H:$H,"ss")+SUMIFS(CPU!$G:$G,CPU!$A:$A,ZABUMBÃO!$C22,CPU!$H:$H,"mdo")+SUMIF('Comp SINAPI BA 07-2025 Onerado'!B:B,ZABUMBÃO!C22,'Comp SINAPI BA 07-2025 Onerado'!E:E)+SUMIF('Ins SINAPI BA 07-2025 Onerado'!B:B,ZABUMBÃO!C22,'Ins SINAPI BA 07-2025 Onerado'!F:F)),2) -> 446.52 | H22: =TRUNC(G22*(1+$H$5),2) -> 550.15 | I22: =TRUNC(F22*H22,2) -> 1100.3 | J22: ca | K22: TRUE
K23: FALSE
A24: 3 | D24: CORTE DA VEGETAÇÃO E REMOÇÃO DAS RAIZES | I24: =SUM(I25) -> 83332.8 | K24: TRUE
A25: 3.1 | D25: Remoção da vegetação | I25: =SUM(I26:I27) -> 83332.8 | K25: TRUE
A26: 3.1.1 | B26: PRÓPRIA | C26: CPU.04 | D26: =(VLOOKUP(C26,CPU!B13:C275,2,0)) -> Limpeza de vegetação | E26: =(VLOOKUP(C26,CPU!B2:D$378,3,0)) -> m2 | F26: =52700 -> 52700 | G26: =TRUNC((1-$H$9)*(SUMIFS(CPU!$G:$G,CPU!$A:$A,ZABUMBÃO!$C26,CPU!$H:$H,"ss")+SUMIFS(CPU!$G:$G,CPU!$A:$A,ZABUMBÃO!$C26,CPU!$H:$H,"mdo")+SUMIF('Comp SINAPI BA 07-2025 Onerado'!B:B,ZABUMBÃO!C26,'Comp SINAPI BA 07-2025 Onerado'!E:E)+SUMIF('Ins SINAPI BA 07-2025 Onerado'!B:B,ZABUMBÃO!C26,'Ins SINAPI BA 07-2025 Onerado'!F:F)),2) -> 1.1 | H26: =TRUNC(G26*(1+$H$5),2) -> 1.35 | I26: =TRUNC(F26*H26,2) -> 71145 | K26: TRUE
A27: 3.1.2 | B27: PRÓPRIA | C27: CPU.05 | D27: =(VLOOKUP(C27,CPU!B14:C276,2,0)) -> Corte de tronco e remoção de raiz | E27: =(VLOOKUP(C27,CPU!B3:D$378,3,0)) -> un | F27: 30 | G27: =TRUNC((1-$H$9)*(SUMIFS(CPU!$G:$G,CPU!$A:$A,ZABUMBÃO!$C27,CPU!$H:$H,"ss")+SUMIFS(CPU!$G:$G,CPU!$A:$A,ZABUMBÃO!$C27,CPU!$H:$H,"mdo")+SUMIF('Comp SINAPI BA 07-2025 Onerado'!B:B,ZABUMBÃO!C27,'Comp SINAPI BA 07-2025 Onerado'!E:E)+SUMIF('Ins SINAPI BA 07-2025 Onerado'!B:B,ZABUMBÃO!C27,'Ins SINAPI BA 07-2025 Onerado'!F:F)),2) -> 329.73 | H27: =TRUNC(G27*(1+$H$5),2) -> 406.26 | I27: =TRUNC(F27*H27,2) -> 12187.8 | K27: TRUE
K28: FALSE
A29: 4 | D29: RECUPERAÇÃO DO TALUDE DE JUSANTE | I29: =SUM(I30) -> 16968.59 | K29: TRUE
A30: 4.1 | D30: Recomposição das Erosões (erosões e buracos nas ombreiras e taludes) | I30: =I31 -> 16968.59 | K30: TRUE
A31: 4.1.1 | B31: PRÓPRIA | C31: CPU.12 | D31: =(VLOOKUP(C31,CPU!B18:C280,2,0)) -> Recomposição das erosões, inclusive, regularização da superfície e reaterro | E31: =(VLOOKUP(C31,CPU!B4:D$378,3,0)) -> m3 | F31: 172.27 | G31: =TRUNC((1-$H$9)*(SUMIFS(CPU!$G:$G,CPU!$A:$A,ZABUMBÃO!$C31,CPU!$H:$H,"ss")+SUMIFS(CPU!$G:$G,CPU!$A:$A,ZABUMBÃO!$C31,CPU!$H:$H,"mdo")+SUMIF('Comp SINAPI BA 07-2025 Onerado'!B:B,ZABUMBÃO!C31,'Comp SINAPI BA 07-2025 Onerado'!E:E)+SUMIF('Ins SINAPI BA 07-2025 Onerado'!B:B,ZABUMBÃO!C31,'Ins SINAPI BA 07-2025 Onerado'!F:F)),2) -> 79.95 | H31: =TRUNC(G31*(1+$H$5),2) -> 98.5 | I31: =TRUNC(F31*H31,2) -> 16968.59 | K31: TRUE
K32: FALSE
A33: 5 | D33: REGULARIZAÇÃO E PAVIMENTAÇÃO DA CRISTA | I33: =SUM(I34,I36,I40) -> 176411.66 | K33: TRUE
A34: 5.1 | D34: Limpeza e Regularização da Crista | I34: =SUM(I35:I35) -> 12285.56 | K34: TRUE
A35: 5.1.1 | B35: PRÓPRIA | C35: CPU.13 | D35: =(VLOOKUP(C35,CPU!B10:C272,2,0)) -> Regularização e compactação da crista | E35: =(VLOOKUP(C35,CPU!B10:D272,3,0)) -> m2 | F35: 3026 | G35: =TRUNC((1-$H$9)*(SUMIFS(CPU!$G:$G,CPU!$A:$A,ZABUMBÃO!$C35,CPU!$H:$H,"ss")+SUMIFS(CPU!$G:$G,CPU!$A:$A,ZABUMBÃO!$C35,CPU!$H:$H,"mdo")+SUMIF('Comp SINAPI BA 07-2025 Onerado'!B:B,ZABUMBÃO!C35,'Comp SINAPI BA 07-2025 Onerado'!E:E)+SUMIF('Ins SINAPI BA 07-2025 Onerado'!B:B,ZABUMBÃO!C35,'Ins SINAPI BA 07-2025 Onerado'!F:F)),2) -> 3.3 | H35: =TRUNC(G35*(1+$H$5),2) -> 4.06 | I35: =TRUNC(F35*H35,2) -> 12285.56 | K35: TRUE
A36: 5.2 | D36: Instalação de meio-fio e sarjeta em ambos os lados da crista | I36: =SUM(I37:I39) -> 55946.6 | K36: TRUE
A37: 5.2.1 | B37: PRÓPRIA | C37: CPU.18 | D37: =(VLOOKUP(C37,CPU!B12:C274,2,0)) -> Demolição e remoção de guias e sarjetas e/ou canaletas | E37: =(VLOOKUP(C37,CPU!B12:D274,3,0)) -> m | F37: 356 | G37: =TRUNC((1-$H$9)*(SUMIFS(CPU!$G:$G,CPU!$A:$A,ZABUMBÃO!$C37,CPU!$H:$H,"ss")+SUMIFS(CPU!$G:$G,CPU!$A:$A,ZABUMBÃO!$C37,CPU!$H:$H,"mdo")+SUMIF('Comp SINAPI BA 07-2025 Onerado'!B:B,ZABUMBÃO!C37,'Comp SINAPI BA 07-2025 Onerado'!E:E)+SUMIF('Ins SINAPI BA 07-2025 Onerado'!B:B,ZABUMBÃO!C37,'Ins SINAPI BA 07-2025 Onerado'!F:F)),2) -> 24.49 | H37: =TRUNC(G37*(1+$H$5),2) -> 30.17 | I37: =TRUNC(F37*H37,2) -> 10740.52 | K37: TRUE
A38: 5.2.2 | B38: PRÓPRIA | C38: CPU.19 | D38: =(VLOOKUP(C38,CPU!B13:C275,2,0)) -> Fornecimento e Assentamento de Guia (meio-fio) Pré-fabricado, dimensões 100X15X13X30 Cm (Comprimento X Base Inferior X Base Superior X Altura) | E38: =(VLOOKUP(C38,CPU!B13:D275,3,0)) -> m | F38: 712 | G38: =TRUNC((1-$H$9)*(SUMIFS(CPU!$G:$G,CPU!$A:$A,ZABUMBÃO!$C38,CPU!$H:$H,"ss")+SUMIFS(CPU!$G:$G,CPU!$A:$A,ZABUMBÃO!$C38,CPU!$H:$H,"mdo")+SUMIF('Comp SINAPI BA 07-2025 Onerado'!B:B,ZABUMBÃO!C38,'Comp SINAPI BA 07-2025 Onerado'!E:E)+SUMIF('Ins SINAPI BA 07-2025 Onerado'!B:B,ZABUMBÃO!C38,'Ins SINAPI BA 07-2025 Onerado'!F:F)),2) -> 48.06 | H38: =TRUNC(G38*(1+$H$5),2) -> 59.21 | I38: =TRUNC(F38*H38,2) -> 42157.52 | K38: TRUE
A39: 5.2.3 | B39: PRÓPRIA | C39: CPU.09 | D39: =(VLOOKUP(C39,CPU!B14:C276,2,0)) -> Entrada para descida d’água tipo EDA 01 B | E39: =(VLOOKUP(C39,CPU!B14:D276,3,0)) -> un | F39: 8 | G39: =TRUNC((1-$H$9)*(SUMIFS(CPU!$G:$G,CPU!$A:$A,ZABUMBÃO!$C39,CPU!$H:$H,"ss")+SUMIFS(CPU!$G:$G,CPU!$A:$A,ZABUMBÃO!$C39,CPU!$H:$H,"mdo")+SUMIF('Comp SINAPI BA 07-2025 Onerado'!B:B,ZABUMBÃO!C39,'Comp SINAPI BA 07-2025 Onerado'!E:E)+SUMIF('Ins SINAPI BA 07-2025 Onerado'!B:B,ZABUMBÃO!C39,'Ins SINAPI BA 07-2025 Onerado'!F:F)),2) -> 309.29 | H39: =TRUNC(G39*(1+$H$5),2) -> 381.07 | I39: =TRUNC(F39*H39,2) -> 3048.56 | K39: TRUE
A40: 5.3 | D40: Pavimentação da Crista | I40: =SUM(I41:I41) -> 108179.5 | K40: TRUE
A41: 5.3.1 | B41: PRÓPRIA | C41: CPU.14 | D41: =(VLOOKUP(C41,CPU!B14:C276,2,0)) -> Execução de Revestimento com BGTC | E41: =(VLOOKUP(C41,CPU!B14:D276,3,0)) -> m3 | F41: 302.6 | G41: =TRUNC((1-$H$9)*(SUMIFS(CPU!$G:$G,CPU!$A:$A,ZABUMBÃO!$C41,CPU!$H:$H,"ss")+SUMIFS(CPU!$G:$G,CPU!$A:$A,ZABUMBÃO!$C41,CPU!$H:$H,"mdo")+SUMIF('Comp SINAPI BA 07-2025 Onerado'!B:B,ZABUMBÃO!C41,'Comp SINAPI BA 07-2025 Onerado'!E:E)+SUMIF('Ins SINAPI BA 07-2025 Onerado'!B:B,ZABUMBÃO!C41,'Ins SINAPI BA 07-2025 Onerado'!F:F)),2) -> 290.16 | H41: =TRUNC(G41*(1+$H$5),2) -> 357.5 | I41: =TRUNC(F41*H41,2) -> 108179.5 | K41: TRUE
K42: FALSE
A43: 6 | D43: MANUTENÇÃO NO TALUDE DE MONTANTE | I43: =SUM(I44) -> 725.72 | K43: TRUE
A44: 6.1 | D44: Preenchimento na abertura da saída d'água | I44: =SUM(I45:I45) -> 725.72 | K44: TRUE
A45: 6.1.1 | B45: PRÓPRIA | C45: CPU.06 | D45: =(VLOOKUP(C45,CPU!B24:C286,2,0)) -> Enrocamento c/ pedra de mão c/ fornecimento e assentamento | E45: =(VLOOKUP(C45,CPU!B24:D378,3,0)) -> m3 | F45: 4 | G45: =TRUNC((1-$H$9)*(SUMIFS(CPU!$G:$G,CPU!$A:$A,ZABUMBÃO!$C45,CPU!$H:$H,"ss")+SUMIFS(CPU!$G:$G,CPU!$A:$A,ZABUMBÃO!$C45,CPU!$H:$H,"mdo")+SUMIF('Comp SINAPI BA 07-2025 Onerado'!B:B,ZABUMBÃO!C45,'Comp SINAPI BA 07-2025 Onerado'!E:E)+SUMIF('Ins SINAPI BA 07-2025 Onerado'!B:B,ZABUMBÃO!C45,'Ins SINAPI BA 07-2025 Onerado'!F:F)),2) -> 147.26 | H45: =TRUNC(G45*(1+$H$5),2) -> 181.43 | I45: =TRUNC(F45*H45,2) -> 725.72 | K45: TRUE
K46: FALSE
A47: 7 | D47: RECUPERAÇÃO DA DRENAGEM SUPERFICIAL DO TALUDE DE JUSANTE | I47: =SUM(I48,I51,I54) -> 123343.94 | K47: TRUE
A48: 7.1 | D48: Canaleta para descida d'água | I48: =SUM(I49:I50) -> 58777.84 | K48: TRUE
A49: 7.1.1 | B49: PRÓPRIA | C49: CPU.18 | D49: =(VLOOKUP(C49,CPU!B17:C279,2,0)) -> Demolição e remoção de guias e sarjetas e/ou canaletas | E49: =(VLOOKUP(C49,CPU!B17:D279,3,0)) -> m | F49: 595 | G49: =TRUNC((1-$H$9)*(SUMIFS(CPU!$G:$G,CPU!$A:$A,ZABUMBÃO!$C49,CPU!$H:$H,"ss")+SUMIFS(CPU!$G:$G,CPU!$A:$A,ZABUMBÃO!$C49,CPU!$H:$H,"mdo")+SUMIF('Comp SINAPI BA 07-2025 Onerado'!B:B,ZABUMBÃO!C49,'Comp SINAPI BA 07-2025 Onerado'!E:E)+SUMIF('Ins SINAPI BA 07-2025 Onerado'!B:B,ZABUMBÃO!C49,'Ins SINAPI BA 07-2025 Onerado'!F:F)),2) -> 24.49 | H49: =TRUNC(G49*(1+$H$5),2) -> 30.17 | I49: =TRUNC(F49*H49,2) -> 17951.15 | K49: TRUE
A50: 7.1.2 | B50: PRÓPRIA | C50: CPU.07 | D50: =(VLOOKUP(C50,CPU!B18:C280,2,0)) -> Implantação de canaleta trapezoidal | E50: =(VLOOKUP(C50,CPU!B18:D280,3,0)) -> m | F50: 527 | G50: =TRUNC((1-$H$9)*(SUMIFS(CPU!$G:$G,CPU!$A:$A,ZABUMBÃO!$C50,CPU!$H:$H,"ss")+SUMIFS(CPU!$G:$G,CPU!$A:$A,ZABUMBÃO!$C50,CPU!$H:$H,"mdo")+SUMIF('Comp SINAPI BA 07-2025 Onerado'!B:B,ZABUMBÃO!C50,'Comp SINAPI BA 07-2025 Onerado'!E:E)+SUMIF('Ins SINAPI BA 07-2025 Onerado'!B:B,ZABUMBÃO!C50,'Ins SINAPI BA 07-2025 Onerado'!F:F)),2) -> 62.88 | H50: =TRUNC(G50*(1+$H$5),2) -> 77.47 | I50: =TRUNC(F50*H50,2) -> 40826.69 | K50: TRUE
A51: 7.2 | D51: Descida d'água | I51: =SUM(I52:I53) -> 62742.1 | K51: TRUE
A52: 7.2.1 | B52: PRÓPRIA | C52: CPU.08 | D52: =(VLOOKUP(C52,CPU!B20:C282,2,0)) -> Substituição de descida d’água tipo rápido para descida d'água de aterros em degraus - DAD 60-36 - areia e brita comerciais | E52: =(VLOOKUP(C52,CPU!B20:D378,3,0)) -> m | F52: 70 | G52: =TRUNC((1-$H$9)*(SUMIFS(CPU!$G:$G,CPU!$A:$A,ZABUMBÃO!$C52,CPU!$H:$H,"ss")+SUMIFS(CPU!$G:$G,CPU!$A:$A,ZABUMBÃO!$C52,CPU!$H:$H,"mdo")+SUMIF('Comp SINAPI BA 07-2025 Onerado'!B:B,ZABUMBÃO!C52,'Comp SINAPI BA 07-2025 Onerado'!E:E)+SUMIF('Ins SINAPI BA 07-2025 Onerado'!B:B,ZABUMBÃO!C52,'Ins SINAPI BA 07-2025 Onerado'!F:F)),2) -> 713.37 | H52: =TRUNC(G52*(1+$H$5),2) -> 878.94 | I52: =TRUNC(F52*H52,2) -> 61525.8 | K52: TRUE
A53: 7.2.2 | B53: PRÓPRIA | C53: CPU.17 | D53: =(VLOOKUP(C53,CPU!B22:C284,2,0)) -> Recuperação da descida d'água em degraus existentes | E53: =(VLOOKUP(C53,CPU!B22:D380,3,0)) -> m3 | F53: 1 | G53: =TRUNC((1-$H$9)*(SUMIFS(CPU!$G:$G,CPU!$A:$A,ZABUMBÃO!$C53,CPU!$H:$H,"ss")+SUMIFS(CPU!$G:$G,CPU!$A:$A,ZABUMBÃO!$C53,CPU!$H:$H,"mdo")+SUMIF('Comp SINAPI BA 07-2025 Onerado'!B:B,ZABUMBÃO!C53,'Comp SINAPI BA 07-2025 Onerado'!E:E)+SUMIF('Ins SINAPI BA 07-2025 Onerado'!B:B,ZABUMBÃO!C53,'Ins SINAPI BA 07-2025 Onerado'!F:F)),2) -> 987.18 | H53: =TRUNC(G53*(1+$H$5),2) -> 1216.3 | I53: =TRUNC(F53*H53,2) -> 1216.3 | K53: TRUE
A54: 7.3 | D54: Recuperação de Caixa de passagem | I54: =SUM(I55:I56) -> 1824 | K54: TRUE
A55: 7.3.1 | B55: PRÓPRIA | C55: CPU.11 | D55: =(VLOOKUP(C55,CPU!B22:C284,2,0)) -> Recuperação de Caixa de passagem em concreto | E55: =(VLOOKUP(C55,CPU!B22:D380,3,0)) -> m3 | F55: =0.05*1.2*0.8*4*4 -> 0.768 | G55: =TRUNC((1-$H$9)*(SUMIFS(CPU!$G:$G,CPU!$A:$A,ZABUMBÃO!$C55,CPU!$H:$H,"ss")+SUMIFS(CPU!$G:$G,CPU!$A:$A,ZABUMBÃO!$C55,CPU!$H:$H,"mdo")+SUMIF('Comp SINAPI BA 07-2025 Onerado'!B:B,ZABUMBÃO!C55,'Comp SINAPI BA 07-2025 Onerado'!E:E)+SUMIF('Ins SINAPI BA 07-2025 Onerado'!B:B,ZABUMBÃO!C55,'Ins SINAPI BA 07-2025 Onerado'!F:F)),2) -> 1036.73 | H55: =TRUNC(G55*(1+$H$5),2) -> 1277.35 | I55: =TRUNC(F55*H55,2) -> 981 | K55: TRUE
A56: 7.3.2 | B56: ORSE | C56: 6416 | D56: Tampa de concreto para caixas de passagem 1,00x1,00mx0,07m | E56: un | F56: 4 | G56: =TRUNC((1-$H$9)*171.05,2) -> 171.05 | H56: =TRUNC(G56*(1+$H$5),2) -> 210.75 | I56: =TRUNC(F56*H56,2) -> 843 | K56: TRUE
K57: FALSE
A58: 8 | D58: PROTEÇÃO SUPERFICIAL DO TALUDE DE JUSANTE | I58: =SUM(I59,I61) -> 47152.8 | K58: TRUE
A59: 8.1 | D59: Proteção vegetal | I59: =SUM(I60) -> 45288 | K59: TRUE
A60: 8.1.1 | B60: PRÓPRIA | C60: CPU.10 | D60: =(VLOOKUP(C60,CPU!B25:C289,2,0)) -> Plantio de vegetação para proteção de talude com hidrossemeadura, inclusive adubação e transporte | E60: =(VLOOKUP(C60,CPU!B25:D377,3,0)) -> m2 | F60: 5100 | G60: =TRUNC((1-$H$9)*(SUMIFS(CPU!$G:$G,CPU!$A:$A,ZABUMBÃO!$C60,CPU!$H:$H,"ss")+SUMIFS(CPU!$G:$G,CPU!$A:$A,ZABUMBÃO!$C60,CPU!$H:$H,"mdo")+SUMIF('Comp SINAPI BA 07-2025 Onerado'!B:B,ZABUMBÃO!C60,'Comp SINAPI BA 07-2025 Onerado'!E:E)+SUMIF('Ins SINAPI BA 07-2025 Onerado'!B:B,ZABUMBÃO!C60,'Ins SINAPI BA 07-2025 Onerado'!F:F)),2) -> 7.21 | H60: =TRUNC(G60*(1+$H$5),2) -> 8.88 | I60: =TRUNC(F60*H60,2) -> 45288 | K60: TRUE
A61: 8.2 | D61: Irrigação da hidrossemeadura | I61: =SUM(I62:I62) -> 1864.8 | K61: TRUE
A62: 8.2.1 | B62: PRÓPRIA | C62: CPU.25 | D62: =(VLOOKUP(C62,CPU!B30:C294,2,0)) -> Irrigação - inclusive transporte | E62: =(VLOOKUP(C62,CPU!B29:D389,3,0)) -> m3 | F62: =5*2*4 -> 40 | G62: =TRUNC((1-$H$9)*(SUMIFS(CPU!$G:$G,CPU!$A:$A,ZABUMBÃO!$C62,CPU!$H:$H,"ss")+SUMIFS(CPU!$G:$G,CPU!$A:$A,ZABUMBÃO!$C62,CPU!$H:$H,"mdo")+SUMIF('Comp SINAPI BA 07-2025 Onerado'!B:B,ZABUMBÃO!C62,'Comp SINAPI BA 07-2025 Onerado'!E:E)+SUMIF('Ins SINAPI BA 07-2025 Onerado'!B:B,ZABUMBÃO!C62,'Ins SINAPI BA 07-2025 Onerado'!F:F)),2) -> 37.84 | H62: =TRUNC(G62*(1+$H$5),2) -> 46.62 | I62: =TRUNC(F62*H62,2) -> 1864.8 | J62: ca | K62: TRUE
K63: FALSE
A64: 9 | D64: TRATAMENTO DE FISSURAS NO VERTEDOURO E MURO LATERAL | I64: =SUM(I65) -> 14973.5 | K64: TRUE
A65: 9.1 | D65: Tratamento nas fissuras | I65: =SUM(I66:I69) -> 14973.5 | K65: TRUE
A66: 9.1.1 | B66: PRÓPRIA | C66: CPU.15 | D66: =(VLOOKUP(C66,CPU!B34:C298,2,0)) -> Limpeza da superfície | E66: =(VLOOKUP(C66,CPU!B33:D393,3,0)) -> m2 | F66: 50 | G66: =TRUNC((1-$H$9)*(SUMIFS(CPU!$G:$G,CPU!$A:$A,ZABUMBÃO!$C66,CPU!$H:$H,"ss")+SUMIFS(CPU!$G:$G,CPU!$A:$A,ZABUMBÃO!$C66,CPU!$H:$H,"mdo")+SUMIF('Comp SINAPI BA 07-2025 Onerado'!B:B,ZABUMBÃO!C66,'Comp SINAPI BA 07-2025 Onerado'!E:E)+SUMIF('Ins SINAPI BA 07-2025 Onerado'!B:B,ZABUMBÃO!C66,'Ins SINAPI BA 07-2025 Onerado'!F:F)),2) -> 4.73 | H66: =TRUNC(G66*(1+$H$5),2) -> 5.82 | I66: =TRUNC(F66*H66,2) -> 291 | K66: TRUE
A67: 9.1.2 | B67: PRÓPRIA | C67: CPU.22 | D67: =(VLOOKUP(C67,CPU!B34:C298,2,0)) -> Selagem de fissuras com resina epóxi | E67: =(VLOOKUP(C67,CPU!B33:D393,3,0)) -> m | F67: 100 | G67: =TRUNC((1-$H$9)*(SUMIFS(CPU!$G:$G,CPU!$A:$A,ZABUMBÃO!$C67,CPU!$H:$H,"ss")+SUMIFS(CPU!$G:$G,CPU!$A:$A,ZABUMBÃO!$C67,CPU!$H:$H,"mdo")+SUMIF('Comp SINAPI BA 07-2025 Onerado'!B:B,ZABUMBÃO!C67,'Comp SINAPI BA 07-2025 Onerado'!E:E)+SUMIF('Ins SINAPI BA 07-2025 Onerado'!B:B,ZABUMBÃO!C67,'Ins SINAPI BA 07-2025 Onerado'!F:F)),2) -> 24.85 | H67: =TRUNC(G67*(1+$H$5),2) -> 30.61 | I67: =TRUNC(F67*H67,2) -> 3061 | K67: TRUE
A68: 9.1.3 | B68: PRÓPRIA | C68: CPU.23 | D68: =(VLOOKUP(C68,CPU!B34:C298,2,0)) -> Tratamento de fissuras secas com injeção de adesivo estrutural à base de resina epóxi de baixa viscosidade - fornecimento e aplicação mecanizada | E68: =(VLOOKUP(C68,CPU!B33:D393,3,0)) -> m | F68: 100 | G68: =TRUNC((1-$H$9)*(SUMIFS(CPU!$G:$G,CPU!$A:$A,ZABUMBÃO!$C68,CPU!$H:$H,"ss")+SUMIFS(CPU!$G:$G,CPU!$A:$A,ZABUMBÃO!$C68,CPU!$H:$H,"mdo")+SUMIF('Comp SINAPI BA 07-2025 Onerado'!B:B,ZABUMBÃO!C68,'Comp SINAPI BA 07-2025 Onerado'!E:E)+SUMIF('Ins SINAPI BA 07-2025 Onerado'!B:B,ZABUMBÃO!C68,'Ins SINAPI BA 07-2025 Onerado'!F:F)),2) -> 47.05 | H68: =TRUNC(G68*(1+$H$5),2) -> 57.97 | I68: =TRUNC(F68*H68,2) -> 5797 | K68: TRUE
A69: 9.1.4 | B69: PRÓPRIA | C69: CPU.24 | D69: =(VLOOKUP(C69,CPU!B35:C299,2,0)) -> Tratamento para impermeabilização de fissuras com injeção de poliuretano | E69: =(VLOOKUP(C69,CPU!B34:D394,3,0)) -> m | F69: 50 | G69: =TRUNC((1-$H$9)*(SUMIFS(CPU!$G:$G,CPU!$A:$A,ZABUMBÃO!$C69,CPU!$H:$H,"ss")+SUMIFS(CPU!$G:$G,CPU!$A:$A,ZABUMBÃO!$C69,CPU!$H:$H,"mdo")+SUMIF('Comp SINAPI BA 07-2025 Onerado'!B:B,ZABUMBÃO!C69,'Comp SINAPI BA 07-2025 Onerado'!E:E)+SUMIF('Ins SINAPI BA 07-2025 Onerado'!B:B,ZABUMBÃO!C69,'Ins SINAPI BA 07-2025 Onerado'!F:F)),2) -> 94.55 | H69: =TRUNC(G69*(1+$H$5),2) -> 116.49 | I69: =TRUNC(F69*H69,2) -> 5824.5 | K69: TRUE
K70: FALSE
A71: 10 | D71: RESTAURAÇÃO DE JUNTAS NO MURO LATERAL | I71: =SUM(I72) -> 3836.4 | K71: TRUE
A72: 10.1 | D72: Restauração das juntas | I72: =SUM(I73:I74) -> 3836.4 | K72: TRUE
A73: 10.1.1 | B73: PRÓPRIA | C73: CPU.15 | D73: =(VLOOKUP(C73,CPU!B28:C292,2,0)) -> Limpeza da superfície | E73: =(VLOOKUP(C73,CPU!B29:D389,3,0)) -> m2 | F73: 15 | G73: =TRUNC((1-$H$9)*(SUMIFS(CPU!$G:$G,CPU!$A:$A,ZABUMBÃO!$C73,CPU!$H:$H,"ss")+SUMIFS(CPU!$G:$G,CPU!$A:$A,ZABUMBÃO!$C73,CPU!$H:$H,"mdo")+SUMIF('Comp SINAPI BA 07-2025 Onerado'!B:B,ZABUMBÃO!C73,'Comp SINAPI BA 07-2025 Onerado'!E:E)+SUMIF('Ins SINAPI BA 07-2025 Onerado'!B:B,ZABUMBÃO!C73,'Ins SINAPI BA 07-2025 Onerado'!F:F)),2) -> 4.73 | H73: =TRUNC(G73*(1+$H$5),2) -> 5.82 | I73: =TRUNC(F73*H73,2) -> 87.3 | K73: TRUE
A74: 10.1.2 | B74: PRÓPRIA | C74: CPU.21 | D74: =(VLOOKUP(C74,CPU!B29:C293,2,0)) -> Tratamento De Junta De Dilatação | E74: =(VLOOKUP(C74,CPU!B30:D390,3,0)) -> m | F74: 30 | G74: =TRUNC((1-$H$9)*(SUMIFS(CPU!$G:$G,CPU!$A:$A,ZABUMBÃO!$C74,CPU!$H:$H,"ss")+SUMIFS(CPU!$G:$G,CPU!$A:$A,ZABUMBÃO!$C74,CPU!$H:$H,"mdo")+SUMIF('Comp SINAPI BA 07-2025 Onerado'!B:B,ZABUMBÃO!C74,'Comp SINAPI BA 07-2025 Onerado'!E:E)+SUMIF('Ins SINAPI BA 07-2025 Onerado'!B:B,ZABUMBÃO!C74,'Ins SINAPI BA 07-2025 Onerado'!F:F)),2) -> 101.43 | H74: =TRUNC(G74*(1+$H$5),2) -> 124.97 | I74: =TRUNC(F74*H74,2) -> 3749.1 | K74: TRUE
K75: FALSE
A76: 11 | D76: SERVIÇOS COMPLEMENTARES | I76: =SUM(I77) -> 2200.6 | K76: TRUE
A77: 11.1 | D77: Instalação de placas de aviso | I77: =SUM(I78:I78) -> 2200.6 | K77: TRUE
A78: 11.1.1 | B78: SINAPI | C78: 103689 | D78: =IF(J78="ca",VLOOKUP(C78,'Comp SINAPI BA 07-2025 Onerado'!$B$11:$C$9004,2,0),VLOOKUP(C78,'Ins SINAPI BA 07-2025 Onerado'!$B$10:$C$9004,2,0)) -> FORNECIMENTO E INSTALAÇÃO DE PLACA DE OBRA COM CHAPA GALVANIZADA E ESTRUTURA DE MADEIRA. AF_03/2022_PS | E78: =IF(J78="ca",VLOOKUP(C78,'Comp SINAPI BA 07-2025 Onerado'!$B$11:$D$9004,3,0),VLOOKUP(C78,'Ins SINAPI BA 07-2025 Onerado'!$B$11:$D$9004,3,0)) -> M2 | F78: 4 | G78: =TRUNC((1-$H$9)*(SUMIFS(CPU!$G:$G,CPU!$A:$A,ZABUMBÃO!$C78,CPU!$H:$H,"ss")+SUMIFS(CPU!$G:$G,CPU!$A:$A,ZABUMBÃO!$C78,CPU!$H:$H,"mdo")+SUMIF('Comp SINAPI BA 07-2025 Onerado'!B:B,ZABUMBÃO!C78,'Comp SINAPI BA 07-2025 Onerado'!E:E)+SUMIF('Ins SINAPI BA 07-2025 Onerado'!B:B,ZABUMBÃO!C78,'Ins SINAPI BA 07-2025 Onerado'!F:F)),2) -> 446.52 | H78: =TRUNC(G78*(1+$H$5),2) -> 550.15 | I78: =TRUNC(F78*H78,2) -> 2200.6 | J78: ca | K78: TRUE
K79: =_xlfn.ISFORMULA(I79) -> FALSE
A80: 12 | D80: FISCALIZAÇÃO E ACOMPANHAMENTO | I80: =SUM(I81) -> 2807.82 | K80: TRUE
A81: 12.1 | D81: Disponibilidade de veículo para apoio a fiscalização | I81: =SUM(I82) -> 2807.82 | K81: TRUE
A82: 12.1.1 | B82: PRÓPRIA | C82: CPU.20 | D82: =(VLOOKUP(C82,CPU!B47:C310,2,0)) -> Disponibilidade de veículo para apoio a fiscalização, inclusive combustível | E82: =(VLOOKUP(C82,CPU!B46:D405,3,0)) -> un | F82: =F14+2 -> 6 | G82: =TRUNC((1-$H$9)*(SUMIFS(CPU!$G:$G,CPU!$A:$A,ZABUMBÃO!$C82,CPU!$H:$H,"ss")+SUMIFS(CPU!$G:$G,CPU!$A:$A,ZABUMBÃO!$C82,CPU!$H:$H,"mdo")+SUMIF('Comp SINAPI BA 07-2025 Onerado'!B:B,ZABUMBÃO!C82,'Comp SINAPI BA 07-2025 Onerado'!E:E)+SUMIF('Ins SINAPI BA 07-2025 Onerado'!B:B,ZABUMBÃO!C82,'Ins SINAPI BA 07-2025 Onerado'!F:F)),2) -> 379.82 | H82: =TRUNC(G82*(1+$H$5),2) -> 467.97 | I82: =TRUNC(F82*H82,2) -> 2807.82 | K82: TRUE
K83: FALSE
D84: TOTAL (Custo): | I84: =TRUNC(SUMPRODUCT(F13:F82,G13:G82),2) -> 523023.47
D85: BDI e Encargos Sociais: | I85: =I86-I84 -> 121063.45
D86: TOTAL GERAL COM BDI: | I86: =SUM(I12,I16,I24,I29,I33,I43,I47,I58,I71,I64,I76,I80) -> 644086.92 | L86: =TRUNC(SUMPRODUCT(F13:F82,H13:H82),2) -> 644086.92

Sheet Cronograma Zabumbão
A1: Ministério da Integração e do Desenvolvimento Regional
A2: Companhia de Desenvolvimento dos Vales do São Francisco e do Parnaíba
A4: CRONOGRAMA FÍSICO-FINANCEIRO NÃO DESONERADO
A5: =ZABUMBÃO!A5 -> OBRA: | B5: =ZABUMBÃO!B5:F5 -> Execução de manutenção e recuperação na barragem de Zabumbão, localizada em Paramirim no estado da Bahia.
A6: =ZABUMBÃO!A6 -> LOCAL: | B6: =ZABUMBÃO!B6 -> Paramirim - BA
A7: =ZABUMBÃO!A7 -> DATA BASE: | B7: =ZABUMBÃO!B7 -> 2025-08-01
A8: =ZABUMBÃO!A8 -> PRAZO: | B8: =ZABUMBÃO!B8 -> 120 dias
B9: =ZABUMBÃO!B9 -> Zabumbão
A10: ITEM | B10: DESCRIÇÃO | C10: TOTAL POR ETAPA | D10: MESES | H10: TOTAL
D11: 1 | E11: 2 | F11: 3 | G11: 4
A12: 1 | B12: =VLOOKUP(A12,ZABUMBÃO!A:I,4) -> ADMINISTRAÇÃO DA OBRA | C12: =VLOOKUP(A12,ZABUMBÃO!A$10:I$1036,9) -> 146355.36 | D12: =$C12*D13 -> 25051.21794 | E12: =$C12*E13 -> 49740.34567 | F12: =$C12*F13 -> 48025.58768 | G12: =$C12*G13 -> 23538.20871 | H12: =SUM(D12:G12) -> 146355.36 | I12: R$
C13: =C12/C12 -> 1 | D13: =SUMIF($I$14:$I$35,"R$",D$14:D$35)/$C$36 -> 0.1711670686 | E13: =SUMIF($I$14:$I$35,"R$",E$14:E$35)/$C$36+D38-D13 -> 0.339860089 | F13: =SUMIF($I$14:$I$35,"R$",F$14:F$35)/$C$36+E38-E13 -> 0.3281436886 | G13: =1-SUM(D13:F13) -> 0.1608291538 | H13: =SUM(D13:G13) -> 1 | I13: %
A14: 2 | B14: =VLOOKUP(A14,ZABUMBÃO!A:I,4) -> SERVIÇOS PRELIMINARES | C14: =VLOOKUP(A14,ZABUMBÃO!A$10:I$1036,9) -> 25977.73 | D14: =$C14*D15 -> 25977.73 | H14: 25977.73 | I14: R$
C15: =C14/C14 -> 1 | D15: 1 | H15: 1 | I15: %
A16: 3 | B16: =VLOOKUP(A16,ZABUMBÃO!A:I,4) -> CORTE DA VEGETAÇÃO E REMOÇÃO DAS RAIZES | C16: =VLOOKUP(A16,ZABUMBÃO!A$10:I$1036,9) -> 83332.8 | D16: =$C16*D17 -> 83332.8 | H16: 83332.8 | I16: R$
C17: =C16/C16 -> 1 | D17: 1 | H17: 1 | I17: %
A18: 4 | B18: =VLOOKUP(A18,ZABUMBÃO!A:I,4) -> RECUPERAÇÃO DO TALUDE DE JUSANTE | C18: =VLOOKUP(A18,ZABUMBÃO!A$10:I$1036,9) -> 16968.59 | E18: =$C18*E19 -> 16968.59 | H18: 16968.59 | I18: R$
C19: =C18/C18 -> 1 | E19: 1 | H19: 1 | I19: %
A20: 5 | B20: =VLOOKUP(A20,ZABUMBÃO!A:I,4) -> REGULARIZAÇÃO E PAVIMENTAÇÃO DA CRISTA | C20: =VLOOKUP(A20,ZABUMBÃO!A$10:I$1036,9) -> 176411.66 | E20: =$C20*E21 -> 176411.66 | H20: 176411.66 | I20: R$
C21: =C20/C20 -> 1 | E21: 1 | H21: 1 | I21: %
A22: 6 | B22: =VLOOKUP(A22,ZABUMBÃO!A:I,4) -> MANUTENÇÃO NO TALUDE DE MONTANTE | C22: =VLOOKUP(A22,ZABUMBÃO!A$10:I$1036,9) -> 725.72 | F22: =$C22*F23 -> 725.72 | H22: 725.72 | I22: R$
C23: =C22/C22 -> 1 | F23: 1 | H23: 1 | I23: %
A24: 7 | B24: =VLOOKUP(A24,ZABUMBÃO!A:I,4) -> RECUPERAÇÃO DA DRENAGEM SUPERFICIAL DO TALUDE DE JUSANTE | C24: =VLOOKUP(A24,ZABUMBÃO!A$10:I$1036,9) -> 123343.94 | F24: =$C24*F25 -> 123343.94 | H24: 123343.94 | I24: R$
C25: =C24/C24 -> 1 | F25: 1 | H25: 1 | I25: %
A26: 8 | B26: =VLOOKUP(A26,ZABUMBÃO!A:I,4) -> PROTEÇÃO SUPERFICIAL DO TALUDE DE JUSANTE | C26: =VLOOKUP(A26,ZABUMBÃO!A$10:I$1036,9) -> 47152.8 | F26: =$C26*F27 -> 47152.8 | H26: =SUM(D26:G26) -> 47152.8 | I26: R$
C27: =C26/C26 -> 1 | F27: 1 | H27: 1 | I27: %
A28: 9 | B28: =VLOOKUP(A28,ZABUMBÃO!A:I,4) -> TRATAMENTO DE FISSURAS NO VERTEDOURO E MURO LATERAL | C28: =VLOOKUP(A28,ZABUMBÃO!A$10:I$1036,9) -> 14973.5 | F28: =$C28*F29 -> 14973.5 | H28: 14973.5 | I28: R$
C29: =C28/C28 -> 1 | F29: 1 | H29: 1 | I29: %
A30: 10 | B30: =VLOOKUP(A30,ZABUMBÃO!A:I,4) -> RESTAURAÇÃO DE JUNTAS NO MURO LATERAL | C30: =VLOOKUP(A30,ZABUMBÃO!A$10:I$1036,9) -> 3836.4 | G30: =$C30*G31 -> 3836.4 | H30: =SUM(D30:G30) -> 3836.4 | I30: R$
C31: =C30/C30 -> 1 | G31: 1 | H31: 1 | I31: %
A32: 11 | B32: =VLOOKUP(A32,ZABUMBÃO!A:I,4) -> SERVIÇOS COMPLEMENTARES | C32: =VLOOKUP(A32,ZABUMBÃO!A$10:I$1036,9) -> 2200.6 | G32: =$C32*G33 -> 2200.6 | H32: 2200.6 | I32: R$
C33: =C32/C32 -> 1 | G33: 1 | H33: 1 | I33: %
A34: 12 | B34: =VLOOKUP(A34,ZABUMBÃO!A:I,4) -> FISCALIZAÇÃO E ACOMPANHAMENTO | C34: =VLOOKUP(A34,ZABUMBÃO!A$10:I$1036,9) -> 2807.82 | D34: =$C34*D35 -> 935.94 | E34: =$C34*E35 -> 467.97 | F34: =$C34*F35 -> 467.97 | G34: =$C34*G35 -> 935.94 | H34: =SUM(D34:G34) -> 2807.82 | I34: R$
C35: =C34/C34 -> 1 | D35: =2/6 -> 0.3333333333 | E35: =1/6 -> 0.1666666667 | F35: =1/6 -> 0.1666666667 | G35: =2/6 -> 0.3333333333 | H35: 1 | I35: %
B36: VALOR TOTAL: | C36: =SUMIF($I$12:$I$35,"R$",C$12:C$35) -> 644086.92 | D36: 135297.6879 | E36: 243588.5657 | F36: 234689.5177 | G36: 30511.14871 | H36: 644086.92
B37: VALOR ACUMULADO: | D37: =D36 -> 135297.6879 | E37: =E36+D37 -> 378886.2536 | F37: =F36+E37 -> 613575.7713 | G37: =G36+F37 -> 644086.92 | H37: =H36 -> 644086.92 | M37: =IF(H37=ZABUMBÃO!I86,"ok","verificar") -> ok
B38: FÍSICO PARCIAL: | D38: =SUMIF($I$12:$I$35,"R$",D$12:D$35)/$C$36 -> 0.2100612258 | E38: =SUMIF($I$12:$I$35,"R$",E$12:E$35)/$C$36 -> 0.3781920702 | F38: =SUMIF($I$12:$I$35,"R$",F$12:F$35)/$C$36 -> 0.3643755375 | G38: =SUMIF($I$12:$I$35,"R$",G$12:G$35)/$C$36 -> 0.04737116647 | H38: =SUMIF($I$12:$I$35,"R$",H$12:H$35)/$C$36 -> 1
B39: AVANÇO FÍSICO: | D39: =D38 -> 0.2100612258 | E39: =E38+D39 -> 0.588253296 | F39: =F38+E39 -> 0.9526288335 | G39: 1

Sheet CPU
A1: Ministério da Integração e do Desenvolvimento Regional
A2: Companhia de Desenvolvimento dos Vales do São Francisco e do Parnaíba
A4: COMPOSIÇÕES DE PREÇOS UNITÁRIOS - ORÇAMENTO NÃO DESONERADO
A5: =ZABUMBÃO!A5 -> OBRA: | B5: =ZABUMBÃO!B5:F5 -> Execução de manutenção e recuperação na barragem de Zabumbão, localizada em Paramirim no estado da Bahia.
A6: =ZABUMBÃO!A6 -> LOCAL: | B6: =ZABUMBÃO!B6 -> Paramirim - BA
A7: =ZABUMBÃO!A7 -> DATA BASE: | B7: =ZABUMBÃO!B7 -> 2025-08-01
A8: =ZABUMBÃO!A8 -> PRAZO: | B8: =ZABUMBÃO!B8 -> 120 dias
A9: REFERÊNCIA | B9: CÓDIGO | C9: DESCRIÇÃO | D9: UNIDADE | E9: ÍNDICE | F9: CUSTO UNITÁRIO | G9: CUSTO TOTAL
B10: CPU.01 | C10: Administração Local | D10: mês | E10: 1 | G10: =SUM(G14,G13,G12,G11) -> 29696.33 | H10: S | J10: COMENTÁRIOS
A11: =B10 -> CPU.01 | C11: MATERIAL | G11: 0 | H11: ss
A12: =B10 -> CPU.01 | C12: EQUIPAMENTOS | G12: 0 | H12: ss
A13: =B10 -> CPU.01 | C13: SERVIÇOS | G13: 0 | H13: ss
A14: =B10 -> CPU.01 | C14: MÃO DE OBRA | G14: =SUM(G15:G17) -> 29696.33 | H14: mdo
A15: SINAPI | B15: 90778 | C15: =PROPER(IF(H15="i",VLOOKUP(B15,'Ins SINAPI BA 07-2025 Onerado'!$B$11:$F$50003,2,0),VLOOKUP(B15,'Comp SINAPI BA 07-2025 Onerado'!$B$11:$C$50004,2,0))) -> Engenheiro Civil De Obra Pleno Com Encargos Complementares | D15: =IF(H15="i",VLOOKUP(B15,'Ins SINAPI BA 07-2025 Onerado'!$B$11:$F$50003,2,0),VLOOKUP(B15,'Comp SINAPI BA 07-2025 Onerado'!$B$11:$H$50004,3,0)) -> H | E15: =1.5*5*4 -> 30 | F15: =IF(H15="i",VLOOKUP(B15,'Ins SINAPI BA 07-2025 Onerado'!$B$11:$F$50003,5,0),VLOOKUP(B15,'Comp SINAPI BA 07-2025 Onerado'!$B$11:$E$50004,4,0)) -> 135.07 | G15: =TRUNC(E15*F15,2) -> 4052.1 | H15: ca | I15: =_xlfn.ISFORMULA(F15) -> TRUE
A16: SINAPI | B16: 93572 | C16: =PROPER(IF(H16="i",VLOOKUP(B16,'Ins SINAPI BA 07-2025 Onerado'!$B$11:$F$50003,2,0),VLOOKUP(B16,'Comp SINAPI BA 07-2025 Onerado'!$B$11:$C$50004,2,0))) -> Encarregado Geral De Obras Com Encargos Complementares | D16: =IF(H16="i",VLOOKUP(B16,'Ins SINAPI BA 07-2025 Onerado'!$B$11:$F$50003,2,0),VLOOKUP(B16,'Comp SINAPI BA 07-2025 Onerado'!$B$11:$H$50004,3,0)) -> MES | E16: 0.8 | F16: =IF(H16="i",VLOOKUP(B16,'Ins SINAPI BA 07-2025 Onerado'!$B$11:$F$50003,5,0),VLOOKUP(B16,'Comp SINAPI BA 07-2025 Onerado'!$B$11:$E$50004,4,0)) -> 7155.34 | G16: =TRUNC(E16*F16,2) -> 5724.27 | H16: ca | I16: =_xlfn.ISFORMULA(F16) -> TRUE
A17: EMBASA | B17: 74.13.43 | C17: VIGIA - AN | D17: MES | E17: 4 | F17: 4979.99 | G17: 19919.96 | H17: ca | I17: FALSE | J17: considerando 4 vigias intercalando em dupla na jornada de 12/36
I18: FALSE
B19: CPU.02 | C19: Mobilização e desmobilização de instalação do canteiro | D19: un | E19: 1 | G19: =SUM(G25,G24,G21,G20) -> 411.1 | H19: S | I19: FALSE | J19: mobilização e desmobilização da SR a barragem | N19: 2 dias
A20: =B19 -> CPU.02 | C20: MATERIAL | G20: 0 | H20: ss | I20: FALSE
A21: =B19 -> CPU.02 | C21: EQUIPAMENTOS | G21: =SUM(G22:G23) -> 411.1 | H21: ss | I21: FALSE
A22: PRÓPRIA | B22: CODE | C22: Veículo para serviço tipo pick-up, cabine dupla - 2.0 16V 4x4 diesel Aut. | D22: dia | E22: 2 | F22: ='CPU-VEICULO_Serviços'!$C$11 -> 140.8112363 | G22: =TRUNC(E22*F22,2) -> 281.62 | H22: ca | I22: TRUE
A23: SINAPI | B23: 100946 | C23: =PROPER(IF(H23="i",VLOOKUP(B23,'Ins SINAPI BA 07-2025 Onerado'!$B$11:$F$50003,2,0),VLOOKUP(B23,'Comp SINAPI BA 07-2025 Onerado'!$B$11:$C$50004,2,0))) -> Transporte Com Caminhão Carroceria 9T, Em Via Urbana Em Revestimento Primário (Unidade: Txkm). Af_07/2020 | D23: =IF(H23="i",VLOOKUP(B23,'Ins SINAPI BA 07-2025 Onerado'!$B$11:$F$50003,2,0),VLOOKUP(B23,'Comp SINAPI BA 07-2025 Onerado'!$B$11:$H$50004,3,0)) -> TXKM | E23: ='Memorial de cálculo'!H18 -> 52 | F23: =IF(H23="i",VLOOKUP(B23,'Ins SINAPI BA 07-2025 Onerado'!$B$11:$F$50003,5,0),VLOOKUP(B23,'Comp SINAPI BA 07-2025 Onerado'!$B$11:$E$50004,4,0)) -> 2.49 | G23: =TRUNC(E23*F23,2) -> 129.48 | H23: ca | I23: TRUE | J23: considerando 5 toneladas de carga
A24: =B19 -> CPU.02 | C24: SERVIÇOS | G24: 0 | H24: ss | I24: FALSE
A25: =B19 -> CPU.02 | C25: MÃO DE OBRA | G25: 0 | H25: mdo | I25: FALSE
I26: FALSE
B27: CPU.03 | C27: Execução de canteiro de obras, inclusive, limpeza, refeitório, sanitários e central de formas | D27: m2 | E27: 1 | G27: =SUM(G36,G30,G29,G28) -> 694.04 | H27: S | I27: FALSE
A28: =B27 -> CPU.03 | C28: MATERIAL | G28: 0 | H28: ss | I28: FALSE
A29: =B27 -> CPU.03 | C29: EQUIPAMENTOS | G29: 0 | H29: ss | I29: FALSE
A30: =B27 -> CPU.03 | C30: SERVIÇOS | G30: =SUM(G31:G35) -> 694.04 | H30: ss | I30: FALSE
A31: SINAPI | B31: 98524 | C31: =PROPER(IF(H31="i",VLOOKUP(B31,'Ins SINAPI BA 07-2025 Onerado'!$B$11:$F$50003,2,0),VLOOKUP(B31,'Comp SINAPI BA 07-2025 Onerado'!$B$11:$C$50004,2,0))) -> Limpeza Manual De Vegetação Em Terreno Com Enxada. Af_03/2024 | D31: =IF(H31="i",VLOOKUP(B31,'Ins SINAPI BA 07-2025 Onerado'!$B$11:$F$50003,2,0),VLOOKUP(B31,'Comp SINAPI BA 07-2025 Onerado'!$B$11:$H$50004,3,0)) -> M2 | E31: 1 | F31: =IF(H31="i",VLOOKUP(B31,'Ins SINAPI BA 07-2025 Onerado'!$B$11:$F$50003,5,0),VLOOKUP(B31,'Comp SINAPI BA 07-2025 Onerado'!$B$11:$E$50004,4,0)) -> 5.19 | G31: =TRUNC(E31*F31,2) -> 5.19 | H31: ca | I31: TRUE
A32: PRÓPRIA | B32: 93210-ADAPTADO | C32: ='COMPOSICÕES MODIFICADAS'!D149 -> EXECUÇÃO DE REFEITÓRIO EM CANTEIRO DE OBRA EM CHAPA DE MADEIRA COMPENSADA, NÃO INCLUSO MOBILIÁRIO E EQUIPAMENTOS. AF_02/2016 | D32: m2 | E32: ='Memorial de cálculo'!H23/'Memorial de cálculo'!H22 -> 0.2631578947 | F32: ='COMPOSICÕES MODIFICADAS'!D154 -> 593.4355726 | G32: 156.16 | H32: ca | I32: TRUE
A33: PRÓPRIA | B33: 93212-ADAPTADO | C33: EXECUÇÃO DE SANITÁRIO E VESTIÁRIO EM CANTEIRO DE OBRA EM CHAPA DE MADEIRA COMPENSADA, NÃO INCLUSO MOBILIÁRIO. AF_02/2016 | D33: m2 | E33: ='Memorial de cálculo'!H24/'Memorial de cálculo'!H22 -> 0.3157894737 | F33: ='COMPOSICÕES MODIFICADAS'!D9 -> 979.9 | G33: 309.44 | H33: ca | I33: TRUE
A34: PRÓPRIA | B34: 93583-ADAPTADO | C34: ='COMPOSICÕES MODIFICADAS'!D109 -> EXECUÇÃO DE CENTRAL DE FÔRMAS, PRODUÇÃO DE ARGAMASSA OU CONCRETO EM CANTEIRO DE OBRA, NÃO INCLUSO MOBILIÁRIO E EQUIPAMENTOS. AF_04/2016 | D34: m2 | E34: ='Memorial de cálculo'!H25/'Memorial de cálculo'!H22 -> 0.4210526316 | F34: ='COMPOSICÕES MODIFICADAS'!D114 -> 501.97 | G34: 211.35 | H34: ca | I34: TRUE
A35: PRÓPRIA | B35: CODE | C35: Hospedagem | D35: un | E35: ='Memorial de cálculo'!D27*'Memorial de cálculo'!H27 -> 0.1394375 | F35: ='CPU HOSPEDAGEM'!C19 -> 85.34916667 | G35: 11.9 | H35: ca | I35: TRUE
A36: =B27 -> CPU.03 | C36: MÃO DE OBRA | G36: 0 | H36: mdo | I36: FALSE
I37: FALSE
B38: CPU.04 | C38: Limpeza de vegetação | D38: m2 | E38: 1 | G38: =SUM(G47,G41,G40,G39) -> 1.1 | H38: S | I38: FALSE
A39: =B38 -> CPU.04 | C39: MATERIAL | G39: 0 | H39: ss | I39: FALSE
A40: =B38 -> CPU.04 | C40: EQUIPAMENTOS | G40: 0 | H40: ss | I40: FALSE
A41: =B38 -> CPU.04 | C41: SERVIÇOS | G41: =SUM(G42:G46) -> 1.1 | H41: ss | I41: FALSE
A42: SINAPI | B42: 98524 | C42: =PROPER(IF(H42="i",VLOOKUP(B42,'Ins SINAPI BA 07-2025 Onerado'!$B$11:$F$50003,2,0),VLOOKUP(B42,'Comp SINAPI BA 07-2025 Onerado'!$B$11:$C$50004,2,0))) -> Limpeza Manual De Vegetação Em Terreno Com Enxada. Af_03/2024 | D42: =IF(H42="i",VLOOKUP(B42,'Ins SINAPI BA 07-2025 Onerado'!$B$11:$F$50003,2,0),VLOOKUP(B42,'Comp SINAPI BA 07-2025 Onerado'!$B$11:$H$50004,3,0)) -> M2 | E42: =1*0.1 -> 0.1 | F42: =IF(H42="i",VLOOKUP(B42,'Ins SINAPI BA 07-2025 Onerado'!$B$11:$F$50003,5,0),VLOOKUP(B42,'Comp SINAPI BA 07-2025 Onerado'!$B$11:$E$50004,4,0)) -> 5.19 | G42: =TRUNC(E42*F42,2) -> 0.51 | H42: ca | I42: TRUE | J42: 10% de roçada com enxada
A43: SICRO | B43: 4915776 | C43: Roçada com roçadeira costal | D43: ha | E43: =0.0001*0.9 -> 9e-05 | F43: 803.7 | G43: =TRUNC(E43*F43,2) -> 0.07 | H43: ca | I43: FALSE | J43: 90% de roçada com roçadeira
A44: PRÓPRIA | B44: CODE | C44: Hospedagem | D44: un | E44: ='Memorial de cálculo'!D31*'Memorial de cálculo'!H31+'Memorial de cálculo'!D32*'Memorial de cálculo'!H32 -> 0.002833333333 | F44: ='CPU HOSPEDAGEM'!C19 -> 85.34916667 | G44: 0.24 | H44: ca | I44: TRUE
A45: PRÓPRIA | B45: CODE | C45: Veículo para serviço tipo pick-up, cabine dupla - 2.0 16V 4x4 diesel Aut. | D45: dia | E45: =LARGE('Memorial de cálculo'!H31:H32,1) -> 0.000625 | F45: ='CPU-VEICULO_Serviços'!$C$11 -> 140.8112363 | G45: 0.08 | H45: ca | I45: TRUE
A46: SINAPI | B46: 93589 | C46: =PROPER(IF(H46="i",VLOOKUP(B46,'Ins SINAPI BA 07-2025 Onerado'!$B$11:$F$50003,2,0),VLOOKUP(B46,'Comp SINAPI BA 07-2025 Onerado'!$B$11:$C$50004,2,0))) -> Transporte Com Caminhão Basculante De 10 M³, Em Via Urbana Em Revestimento Primário (Unidade: M3Xkm). Af_07/2020 | D46: =IF(H46="i",VLOOKUP(B46,'Ins SINAPI BA 07-2025 Onerado'!$B$11:$F$50003,2,0),VLOOKUP(B46,'Comp SINAPI BA 07-2025 Onerado'!$B$11:$H$50004,3,0)) -> M3XKM | E46: =15*0.005 -> 0.075 | F46: =IF(H46="i",VLOOKUP(B46,'Ins SINAPI BA 07-2025 Onerado'!$B$11:$F$50003,5,0),VLOOKUP(B46,'Comp SINAPI BA 07-2025 Onerado'!$B$11:$E$50004,4,0)) -> 2.71 | G46: 0.2 | H46: ca | I46: TRUE | J46: considerando 5 mm de altura da vegetação e 15 km para bota-fora
A47: =B38 -> CPU.04 | C47: MÃO DE OBRA | G47: 0 | H47: mdo | I47: FALSE
I48: FALSE
B49: CPU.05 | C49: Corte de tronco e remoção de raiz | D49: un | E49: 1 | G49: =SUM(G60,G52,G51,G50) -> 329.73 | H49: S | I49: FALSE
A50: =B49 -> CPU.05 | C50: MATERIAL | G50: 0 | H50: ss | I50: FALSE
A51: =B49 -> CPU.05 | C51: EQUIPAMENTOS | G51: 0 | H51: ss | I51: FALSE
A52: =B49 -> CPU.05 | C52: SERVIÇOS | G52: =SUM(G53:G59) -> 329.73 | H52: ss | I52: FALSE
A53: SINAPI | B53: 98529 | C53: =PROPER(IF(H53="i",VLOOKUP(B53,'Ins SINAPI BA 07-2025 Onerado'!$B$11:$F$50003,2,0),VLOOKUP(B53,'Comp SINAPI BA 07-2025 Onerado'!$B$11:$C$50004,2,0))) -> Corte Raso E Recorte De Árvore Com Diâmetro De Tronco Maior Ou Igual A 0,20 M E Menor Que 0,40 M. Af_03/2024 | D53: =IF(H53="i",VLOOKUP(B53,'Ins SINAPI BA 07-2025 Onerado'!$B$11:$F$50003,2,0),VLOOKUP(B53,'Comp SINAPI BA 07-2025 Onerado'!$B$11:$H$50004,3,0)) -> UN | E53: 1 | F53: =IF(H53="i",VLOOKUP(B53,'Ins SINAPI BA 07-2025 Onerado'!$B$11:$F$50003,5,0),VLOOKUP(B53,'Comp SINAPI BA 07-2025 Onerado'!$B$11:$E$50004,4,0)) -> 82.02 | G53: =TRUNC(E53*F53,2) -> 82.02 | H53: ca | I53: TRUE
A54: SINAPI | B54: 98526 | C54: =PROPER(IF(H54="i",VLOOKUP(B54,'Ins SINAPI BA 07-2025 Onerado'!$B$11:$F$50003,2,0),VLOOKUP(B54,'Comp SINAPI BA 07-2025 Onerado'!$B$11:$C$50004,2,0))) -> Remoção De Raízes Remanescentes De Tronco De Árvore Com Diâmetro Maior Ou Igual A 0,20 M E Menor Que 0,40 M. Af_03/2024 | D54: =IF(H54="i",VLOOKUP(B54,'Ins SINAPI BA 07-2025 Onerado'!$B$11:$F$50003,2,0),VLOOKUP(B54,'Comp SINAPI BA 07-2025 Onerado'!$B$11:$H$50004,3,0)) -> UN | E54: 1 | F54: =IF(H54="i",VLOOKUP(B54,'Ins SINAPI BA 07-2025 Onerado'!$B$11:$F$50003,5,0),VLOOKUP(B54,'Comp SINAPI BA 07-2025 Onerado'!$B$11:$E$50004,4,0)) -> 150.46 | G54: 150.46 | H54: ca | I54: TRUE
A55: SINAPI | B55: 6081 | C55: =PROPER(IF(H55="i",VLOOKUP(B55,'Ins SINAPI BA 07-2025 Onerado'!$B$11:$F$50003,2,0),VLOOKUP(B55,'Comp SINAPI BA 07-2025 Onerado'!$G$11:$H$50004,2,0))) -> Argila Ou Barro Para Aterro/Reaterro (Com Transporte Ate 10 Km) | D55: =IF(H55="i",VLOOKUP(B55,'Ins SINAPI BA 07-2025 Onerado'!$B$11:$F$50003,3,0),VLOOKUP(B55,'Comp SINAPI BA 07-2025 Onerado'!$G$11:$H$50004,3,0)) -> M3 | E55: =0.5*0.5*1 -> 0.25 | F55: 54.26 | G55: 13.56 | H55: i | I55: FALSE | J55: considerando 0,25 m3 por árvore
A56: SINAPI | B56: 93382 | C56: =PROPER(IF(H56="i",VLOOKUP(B56,'Ins SINAPI BA 07-2025 Onerado'!$B$11:$F$50003,2,0),VLOOKUP(B56,'Comp SINAPI BA 07-2025 Onerado'!$B$11:$C$50004,2,0))) -> Reaterro Manual De Valas, Com Compactador De Solos De Percussão. Af_08/2023 | D56: =IF(H56="i",VLOOKUP(B56,'Ins SINAPI BA 07-2025 Onerado'!$B$11:$F$50003,2,0),VLOOKUP(B56,'Comp SINAPI BA 07-2025 Onerado'!$B$11:$H$50004,3,0)) -> M3 | E56: 0.25 | F56: =IF(H56="i",VLOOKUP(B56,'Ins SINAPI BA 07-2025 Onerado'!$B$11:$F$50003,5,0),VLOOKUP(B56,'Comp SINAPI BA 07-2025 Onerado'!$B$11:$E$50004,4,0)) -> 30.54 | G56: 7.63 | H56: ca | I56: TRUE
A57: PRÓPRIA | B57: CODE | C57: Hospedagem | D57: un | E57: ='Memorial de cálculo'!D36*'Memorial de cálculo'!H36+'Memorial de cálculo'!D37*'Memorial de cálculo'!H37 -> 0.41525 | F57: ='CPU HOSPEDAGEM'!C19 -> 85.34916667 | G57: 35.44 | H57: ca | I57: TRUE
A58: PRÓPRIA | B58: CODE | C58: Veículo para serviço tipo pick-up, cabine dupla - 2.0 16V 4x4 diesel Aut. | D58: dia | E58: =LARGE('Memorial de cálculo'!H36:H37,1) -> 0.1441875 | F58: ='CPU-VEICULO_Serviços'!$C$11 -> 140.8112363 | G58: 20.3 | H58: ca | I58: TRUE
A59: SINAPI | B59: 93589 | C59: =PROPER(IF(H59="i",VLOOKUP(B59,'Ins SINAPI BA 07-2025 Onerado'!$B$11:$F$50003,2,0),VLOOKUP(B59,'Comp SINAPI BA 07-2025 Onerado'!$B$11:$C$50004,2,0))) -> Transporte Com Caminhão Basculante De 10 M³, Em Via Urbana Em Revestimento Primário (Unidade: M3Xkm). Af_07/2020 | D59: =IF(H59="i",VLOOKUP(B59,'Ins SINAPI BA 07-2025 Onerado'!$B$11:$F$50003,2,0),VLOOKUP(B59,'Comp SINAPI BA 07-2025 Onerado'!$B$11:$H$50004,3,0)) -> M3XKM | E59: =15*0.5 -> 7.5 | F59: =IF(H59="i",VLOOKUP(B59,'Ins SINAPI BA 07-2025 Onerado'!$B$11:$F$50003,5,0),VLOOKUP(B59,'Comp SINAPI BA 07-2025 Onerado'!$B$11:$E$50004,4,0)) -> 2.71 | G59: 20.32 | H59: ca | I59: TRUE | J59: considerando 0,25 m3 por árvore e 15 km para bota-fora
A60: =B49 -> CPU.05 | C60: MÃO DE OBRA | G60: 0 | H60: mdo | I60: FALSE
I61: FALSE
I62: FALSE
B63: CPU.06 | C63: Enrocamento c/ pedra de mão c/ fornecimento e assentamento | D63: m3 | E63: 1 | G63: =SUM(G72,G67,G66,G64) -> 147.26 | H63: S | I63: FALSE
A64: =B63 -> CPU.06 | C64: MATERIAL | G64: =SUM(G65) -> 109.11 | H64: ss | I64: FALSE
A65: SINAPI | B65: 4730 | C65: =PROPER(IF(H65="i",VLOOKUP(B65,'Ins SINAPI BA 07-2025 Onerado'!$B$11:$F$50003,2,0),VLOOKUP(B65,'Comp SINAPI BA 07-2025 Onerado'!$G$11:$H$50004,2,0))) -> Pedra De Mao Ou Pedra Rachao Para Arrimo/Fundacao (Posto Pedreira/Fornecedor, Sem Frete) | D65: =IF(H65="i",VLOOKUP(B65,'Ins SINAPI BA 07-2025 Onerado'!$B$11:$F$50003,3,0),VLOOKUP(B65,'Comp SINAPI BA 07-2025 Onerado'!$G$11:$H$50004,3,0)) -> M3 | E65: 1 | F65: =IF(H65="i",VLOOKUP(B65,'Ins SINAPI BA 07-2025 Onerado'!$B$11:$F$50003,5,0),VLOOKUP(B65,'Comp SINAPI BA 07-2025 Onerado'!$G$11:$H$50004,5,0)) -> 109.11 | G65: =TRUNC(E65*F65,2) -> 109.11 | H65: i | I65: TRUE
A66: =B63 -> CPU.06 | C66: EQUIPAMENTOS | G66: 0 | H66: ss | I66: FALSE
A67: =B63 -> CPU.06 | C67: SERVIÇOS | G67: =SUM(G68:G71) -> 26.58 | H67: ss | I67: FALSE
A68: SINAPI | B68: 93592 | C68: =PROPER(IF(H68="i",VLOOKUP(B68,'Ins SINAPI BA 07-2025 Onerado'!$B$11:$F$50003,2,0),VLOOKUP(B68,'Comp SINAPI BA 07-2025 Onerado'!$B$11:$C$50004,2,0))) -> Transporte Com Caminhão Basculante De 14 M³, Em Via Urbana Em Revestimento Primário (Unidade: M3Xkm). Af_07/2020 | D68: =IF(H68="i",VLOOKUP(B68,'Ins SINAPI BA 07-2025 Onerado'!$B$11:$F$50003,2,0),VLOOKUP(B68,'Comp SINAPI BA 07-2025 Onerado'!$B$11:$H$50004,3,0)) -> M3XKM | E68: ='Memorial de cálculo'!H8 -> 5.2 | F68: =IF(H68="i",VLOOKUP(B68,'Ins SINAPI BA 07-2025 Onerado'!$B$11:$F$50003,5,0),VLOOKUP(B68,'Comp SINAPI BA 07-2025 Onerado'!$B$11:$E$50004,4,0)) -> 2.32 | G68: =TRUNC(E68*F68,2) -> 12.06 | H68: ca | I68: TRUE
A69: SINAPI | B69: 100979 | C69: =PROPER(IF(H69="i",VLOOKUP(B69,'Ins SINAPI BA 07-2025 Onerado'!$B$11:$F$50003,2,0),VLOOKUP(B69,'Comp SINAPI BA 07-2025 Onerado'!$B$11:$C$50004,2,0))) -> Carga, Manobra E Descarga De Solos E Materiais Granulares Em Caminhão Basculante 14 M³ - Carga Com Escavadeira Hidráulica (Caçamba De 1,20 M³ / 155 Hp) E Descarga Livre (Unidade: M3). Af_07/2020 | D69: =IF(H69="i",VLOOKUP(B69,'Ins SINAPI BA 07-2025 Onerado'!$B$11:$F$50003,2,0),VLOOKUP(B69,'Comp SINAPI BA 07-2025 Onerado'!$B$11:$H$50004,3,0)) -> M3 | E69: 1 | F69: =IF(H69="i",VLOOKUP(B69,'Ins SINAPI BA 07-2025 Onerado'!$B$11:$F$50003,5,0),VLOOKUP(B69,'Comp SINAPI BA 07-2025 Onerado'!$B$11:$E$50004,4,0)) -> 6.74 | G69: 6.74 | H69: ca | I69: TRUE
A70: PRÓPRIA | B70: CODE | C70: Hospedagem | D70: un | E70: ='Memorial de cálculo'!D41*'Memorial de cálculo'!H41+'Memorial de cálculo'!D42*'Memorial de cálculo'!H42 -> 0.05 | F70: ='CPU HOSPEDAGEM'!C19 -> 85.34916667 | G70: 4.26 | H70: ca | I70: TRUE
A71: PRÓPRIA | B71: CODE | C71: Veículo para serviço tipo pick-up, cabine dupla - 2.0 16V 4x4 diesel Aut. | D71: dia | E71: =LARGE('Memorial de cálculo'!H41:H42,1) -> 0.025 | F71: ='CPU-VEICULO_Serviços'!$C$11 -> 140.8112363 | G71: 3.52 | H71: ca | I71: TRUE
A72: =B63 -> CPU.06 | C72: MÃO DE OBRA | G72: =SUM(G73:G74) -> 11.57 | H72: mdo | I72: FALSE
A73: SINAPI | B73: 88309 | C73: =PROPER(IF(H73="i",VLOOKUP(B73,'Ins SINAPI BA 07-2025 Onerado'!$B$11:$F$50003,2,0),VLOOKUP(B73,'Comp SINAPI BA 07-2025 Onerado'!$B$11:$C$50004,2,0))) -> Pedreiro Com Encargos Complementares | D73: =IF(H73="i",VLOOKUP(B73,'Ins SINAPI BA 07-2025 Onerado'!$B$11:$F$50003,2,0),VLOOKUP(B73,'Comp SINAPI BA 07-2025 Onerado'!$B$11:$H$50004,3,0)) -> H | E73: 0.2 | F73: =IF(H73="i",VLOOKUP(B73,'Ins SINAPI BA 07-2025 Onerado'!$B$11:$F$50003,5,0),VLOOKUP(B73,'Comp SINAPI BA 07-2025 Onerado'!$B$11:$E$50004,4,0)) -> 33.52 | G73: 6.7 | H73: ca | I73: TRUE
A74: SINAPI | B74: 88316 | C74: =PROPER(IF(H74="i",VLOOKUP(B74,'Ins SINAPI BA 07-2025 Onerado'!$B$11:$F$50003,2,0),VLOOKUP(B74,'Comp SINAPI BA 07-2025 Onerado'!$B$11:$C$50004,2,0))) -> Servente Com Encargos Complementares | D74: =IF(H74="i",VLOOKUP(B74,'Ins SINAPI BA 07-2025 Onerado'!$B$11:$F$50003,2,0),VLOOKUP(B74,'Comp SINAPI BA 07-2025 Onerado'!$B$11:$H$50004,3,0)) -> H | E74: 0.2 | F74: =IF(H74="i",VLOOKUP(B74,'Ins SINAPI BA 07-2025 Onerado'!$B$11:$F$50003,5,0),VLOOKUP(B74,'Comp SINAPI BA 07-2025 Onerado'!$B$11:$E$50004,4,0)) -> 24.37 | G74: 4.87 | H74: ca | I74: TRUE
I75: FALSE
B76: CPU.07 | C76: Implantação de canaleta trapezoidal | D76: m | E76: 1 | G76: =SUM(G87,G79,G78,G77) -> 62.88 | H76: S | I76: FALSE
A77: =B76 -> CPU.07 | C77: MATERIAL | G77: 0 | H77: ss | I77: FALSE
A78: =B76 -> CPU.07 | C78: EQUIPAMENTOS | G78: 0 | H78: ss | I78: FALSE
A79: =B76 -> CPU.07 | C79: SERVIÇOS | G79: =SUM(G80:G86) -> 62.88 | H79: ss | I79: FALSE | J79: 527 | K79: =G79*J79 -> 33137.76
A80: SICRO | B80: 2004522 | C80: Escavação mecânica de vala trapezoidal ou triangular em material de 1ª categoria para drenagem superficial com retroescavadeira - 0,30 m² ≤ seção < 0,50 m² | D80: m³ | E80: =(0.3+0.9+0.16)*0.38/2 -> 0.2584 | F80: 11.48 | G80: =TRUNC(E80*F80,2) -> 2.96 | H80: ca | I80: =_xlfn.ISFORMULA(F80) -> FALSE | J80: 527 | K80: =G80*J80 -> 1559.92
A81: SICRO | B81: 4805754 | C81: Compactação manual com soquete vibratório | D81: m³ | E81: =(0.3+0.9+0.16)*0.38/2 -> 0.2584 | F81: 7 | G81: =TRUNC(E81*F81,2) -> 1.8 | I81: FALSE | J81: 527 | K81: =G81*J81 -> 948.6
A82: SICRO | B82: 1107892 | C82: Concreto fck = 20 MPa - confecção em betoneira e lançamento manual - areia e brita comerciais | D82: m³ | E82: =0.08*0.3+0.08*0.42*2 -> 0.0912 | F82: 485.36 | G82: 44.26 | H82: ca | I82: FALSE | J82: 527 | K82: 23325.02
A83: SICRO | B83: 3108022 | C83: Guia de madeira | D83: m | E83: 0.67 | F83: 5.58 | G83: 3.73 | H83: ca | I83: FALSE | J83: 527 | K83: 1965.71
A84: SICRO | B84: 1109669 | C84: Argamassa de cimento e areia 1:3 - confecção em betoneira e lançamento manual - areia comercial | D84: m³ | E84: 0.0001 | F84: 544.7 | G84: =TRUNC(E84*F84,2) -> 0.05 | H84: ca | I84: FALSE | J84: 527 | K84: 26.35
A85: PRÓPRIA | B85: CODE | C85: Hospedagem | D85: un | E85: ='Memorial de cálculo'!D46*'Memorial de cálculo'!H46+'Memorial de cálculo'!D47*'Memorial de cálculo'!H47+'Memorial de cálculo'!D48*'Memorial de cálculo'!H48+'Memorial de cálculo'!H49*'Memorial de cálculo'!H49+'Memorial de cálculo'!D50*'Memorial de cálculo'!H50+'Memorial de cálculo'!D51*'Memorial de cálculo'!H51+'Memorial de cálculo'!D52*'Memorial de cálculo'!H52+'Memorial de cálculo'!D53*'Memorial de cálculo'!H53 -> 0.08195835102 | F85: ='CPU HOSPEDAGEM'!C19 -> 85.34916667 | G85: 6.99 | H85: ca | I85: TRUE | J85: 527 | K85: 3683.73
A86: PRÓPRIA | B86: CODE | C86: Veículo para serviço tipo pick-up, cabine dupla - 2.0 16V 4x4 diesel Aut. | D86: dia | E86: =LARGE('Memorial de cálculo'!H46:H53,1) -> 0.02195220655 | F86: ='CPU-VEICULO_Serviços'!$C$11 -> 140.8112363 | G86: 3.09 | H86: ca | I86: TRUE | J86: 527 | K86: =G86*J86 -> 1628.43
A87: =B76 -> CPU.07 | C87: MÃO DE OBRA | G87: 0 | H87: mdo | I87: FALSE
I88: FALSE
B89: CPU.08 | C89: Substituição de descida d’água tipo rápido para descida d'água de aterros em degraus - DAD 60-36 - areia e brita comerciais | D89: m | E89: 1 | G89: =SUM(G96,G92,G91,G90) -> 713.37 | H89: S | I89: FALSE
A90: =B110 | C90: MATERIAL | G90: 0 | H90: ss | I90: FALSE
A91: =B89 -> CPU.08 | C91: EQUIPAMENTOS | G91: 0 | H91: ss | I91: FALSE
A92: =B89 -> CPU.08 | C92: SERVIÇOS | G92: =SUM(G93:G95) -> 713.37 | H92: ss | I92: FALSE | J92: 70 | K92: =G92*J92 -> 49935.9
A93: SICRO | B93: 2003407 | C93: Descida d'água de aterros em degraus - DAD 60-36 - areia e brita comerciais | D93: m | E93: 1 | F93: 700.16 | G93: =TRUNC(E93*F93,2) -> 700.16 | H93: ca | I93: FALSE | J93: 70 | K93: =G93*J93 -> 49011.2
A94: PRÓPRIA | B94: CODE | C94: Hospedagem | D94: un | E94: ='Memorial de cálculo'!D57*'Memorial de cálculo'!H57+'Memorial de cálculo'!D58*'Memorial de cálculo'!H58 -> 0.1036525927 | F94: ='CPU HOSPEDAGEM'!$C$19 -> 85.34916667 | G94: 8.84 | H94: ca | I94: TRUE | J94: 70 | K94: =G94*J94 -> 618.8
A95: PRÓPRIA | B95: CODE | C95: Veículo para serviço tipo pick-up, cabine dupla - 2.0 16V 4x4 diesel Aut. | D95: dia | E95: =LARGE('Memorial de cálculo'!H57:H58,1) -> 0.0310957778 | F95: ='CPU-VEICULO_Serviços'!$C$11 -> 140.8112363 | G95: 4.37 | H95: ca | I95: TRUE | J95: 70 | K95: 305.9
A96: =B89 -> CPU.08 | C96: MÃO DE OBRA | G96: 0 | H96: mdo | I96: FALSE
I97: FALSE
B98: CPU.09 | C98: Entrada para descida d’água tipo EDA 01 B | D98: un | E98: 1 | G98: =SUM(G103,G101,G100,G99) -> 309.29 | H98: S | I98: FALSE
A99: =B110 | C99: MATERIAL | G99: 0 | H99: ss | I99: FALSE
A100: =B98 -> CPU.09 | C100: EQUIPAMENTOS | G100: 0 | H100: ss | I100: FALSE
A101: =B98 -> CPU.09 | C101: SERVIÇOS | G101: =SUM(G102:G102) -> 309.29 | H101: ss | I101: FALSE
A102: SICRO | B102: 2003115 | C102: Entrada para descida d'água - EDA 01 B - areia e brita comerciais | D102: un | E102: 1 | F102: 309.29 | G102: =TRUNC(E102*F102,2) -> 309.29 | H102: ca | I102: FALSE
A103: =B98 -> CPU.09 | C103: MÃO DE OBRA | G103: 0 | H103: mdo | I103: FALSE
I104: FALSE
B105: CPU.10 | C105: Plantio de vegetação para proteção de talude com hidrossemeadura, inclusive adubação e transporte | D105: m2 | E105: 1 | G105: =SUM(G112,G108,G107,G106) -> 7.21 | H105: S | I105: FALSE
A106: =B120 | C106: MATERIAL | G106: 0 | H106: ss | I106: FALSE
A107: =B105 -> CPU.10 | C107: EQUIPAMENTOS | G107: 0 | H107: ss | I107: FALSE
A108: =B105 -> CPU.10 | C108: SERVIÇOS | G108: =SUM(G109:G111) -> 7.21 | H108: ss | I108: FALSE
A109: SICRO | B109: 4413905 | C109: Hidrossemeadura | D109: M2 | E109: 1 | F109: 6.9 | G109: =TRUNC(E109*F109,2) -> 6.9 | H109: ca | I109: FALSE
A110: PRÓPRIA | B110: CODE | C110: Hospedagem | D110: un | E110: ='Memorial de cálculo'!D71*'Memorial de cálculo'!H71 -> 0.002409638554 | F110: ='CPU HOSPEDAGEM'!C19 -> 85.34916667 | G110: 0.2 | H110: ca | I110: TRUE
A111: PRÓPRIA | B111: CODE | C111: Veículo para serviço tipo pick-up, cabine dupla - 2.0 16V 4x4 diesel Aut. | D111: dia | E111: =LARGE('Memorial de cálculo'!H71:H71,1) -> 0.0008032128514 | F111: ='CPU-VEICULO_Serviços'!$C$11 -> 140.8112363 | G111: 0.11 | H111: ca | I111: TRUE
A112: =B105 -> CPU.10 | C112: MÃO DE OBRA | G112: 0 | H112: mdo | I112: FALSE
I113: FALSE
B114: CPU.11 | C114: Recuperação de Caixa de passagem em concreto | D114: m3 | E114: 1 | G114: =SUM(G122,G117,G116,G115) -> 1036.73 | H114: S | I114: FALSE
A115: =B110 | C115: MATERIAL | G115: 0 | H115: ss | I115: FALSE
A116: =B114 -> CPU.11 | C116: EQUIPAMENTOS | G116: 0 | H116: ss | I116: FALSE
A117: =B114 -> CPU.11 | C117: SERVIÇOS | G117: =SUM(G118:G121) -> 1036.73 | H117: ss | I117: FALSE
A118: SINAPI | B118: 94964 | C118: =PROPER(IF(H118="i",VLOOKUP(B118,'Ins SINAPI BA 07-2025 Onerado'!$B$11:$F$50003,2,0),VLOOKUP(B118,'Comp SINAPI BA 07-2025 Onerado'!$B$11:$C$50004,2,0))) -> Concreto Fck = 20Mpa, Traço 1:2,7:3 (Em Massa Seca De Cimento/ Areia Média/ Brita 1) - Preparo Mecânico Com Betoneira 400 L. Af_05/2021 | D118: =IF(H118="i",VLOOKUP(B118,'Ins SINAPI BA 07-2025 Onerado'!$B$11:$F$50003,2,0),VLOOKUP(B118,'Comp SINAPI BA 07-2025 Onerado'!$B$11:$H$50004,3,0)) -> M3 | E118: 1 | F118: =IF(H118="i",VLOOKUP(B118,'Ins SINAPI BA 07-2025 Onerado'!$B$11:$F$50003,5,0),VLOOKUP(B118,'Comp SINAPI BA 07-2025 Onerado'!$B$11:$E$50004,4,0)) -> 561.42 | G118: =TRUNC(E118*F118,2) -> 561.42 | H118: ca | I118: TRUE
A119: SINAPI | B119: 92268 | C119: =PROPER(IF(H119="i",VLOOKUP(B119,'Ins SINAPI BA 07-2025 Onerado'!$B$11:$F$50003,2,0),VLOOKUP(B119,'Comp SINAPI BA 07-2025 Onerado'!$B$11:$C$50004,2,0))) -> Fabricação De Fôrma Para Lajes, Em Chapa De Madeira Compensada Plastificada, E = 18 Mm. Af_09/2020 | D119: =IF(H119="i",VLOOKUP(B119,'Ins SINAPI BA 07-2025 Onerado'!$B$11:$F$50003,2,0),VLOOKUP(B119,'Comp SINAPI BA 07-2025 Onerado'!$B$11:$H$50004,3,0)) -> M2 | E119: =1/0.05/4 -> 5 | F119: =IF(H119="i",VLOOKUP(B119,'Ins SINAPI BA 07-2025 Onerado'!$B$11:$F$50003,5,0),VLOOKUP(B119,'Comp SINAPI BA 07-2025 Onerado'!$B$11:$E$50004,4,0)) -> 81.07 | G119: =TRUNC(E119*F119,2) -> 405.35 | H119: ca | I119: TRUE
A120: PRÓPRIA | B120: CODE | C120: Hospedagem | D120: un | E120: ='Memorial de cálculo'!D75*'Memorial de cálculo'!H75+'Memorial de cálculo'!D76*'Memorial de cálculo'!H76+'Memorial de cálculo'!D78*'Memorial de cálculo'!H78+'Memorial de cálculo'!D79*'Memorial de cálculo'!H79 -> 0.417472875 | F120: ='CPU HOSPEDAGEM'!C19 -> 85.34916667 | G120: 35.63 | H120: ca | I120: TRUE
A121: PRÓPRIA | B121: CODE | C121: Veículo para serviço tipo pick-up, cabine dupla - 2.0 16V 4x4 diesel Aut. | D121: dia | E121: =LARGE('Memorial de cálculo'!H75:H79,1) -> 0.243830125 | F121: ='CPU-VEICULO_Serviços'!$C$11 -> 140.8112363 | G121: 34.33 | H121: ca | I121: TRUE
A122: =B114 -> CPU.11 | C122: MÃO DE OBRA | G122: 0 | H122: mdo | I122: FALSE
I123: FALSE
B124: CPU.12 | C124: Recomposição das erosões, inclusive, regularização da superfície e reaterro | D124: m3 | E124: 1 | G124: =SUM(G135,G128,G127,G125) -> 79.95 | H124: S | I124: FALSE
A125: =B124 -> CPU.12 | C125: MATERIAL | G125: =SUM(G126) -> 54.26 | H125: ss | I125: FALSE
A126: SINAPI | B126: 6081 | C126: =PROPER(IF(H126="i",VLOOKUP(B126,'Ins SINAPI BA 07-2025 Onerado'!$B$11:$F$50003,2,0),VLOOKUP(B126,'Comp SINAPI BA 07-2025 Onerado'!$G$11:$H$50004,2,0))) -> Argila Ou Barro Para Aterro/Reaterro (Com Transporte Ate 10 Km) | D126: =IF(H126="i",VLOOKUP(B126,'Ins SINAPI BA 07-2025 Onerado'!$B$11:$F$50003,3,0),VLOOKUP(B126,'Comp SINAPI BA 07-2025 Onerado'!$G$11:$H$50004,3,0)) -> M3 | E126: 1 | F126: 54.26 | G126: =TRUNC(E126*F126,2) -> 54.26 | H126: i | I126: FALSE
A127: =B124 -> CPU.12 | C127: EQUIPAMENTOS | G127: 0 | H127: ss | I127: FALSE
A128: =B124 -> CPU.12 | C128: SERVIÇOS | G128: =SUM(G129:G134) -> 25.69 | H128: ss | I128: FALSE
A129: SINAPI | B129: 101230 | C129: =PROPER(IF(H129="i",VLOOKUP(B129,'Ins SINAPI BA 07-2025 Onerado'!$B$11:$F$50003,2,0),VLOOKUP(B129,'Comp SINAPI BA 07-2025 Onerado'!$B$11:$C$50004,2,0))) -> Escavação Vertical Para Infraestrutura, Com Carga, Descarga E Transporte De Solo De 1ª Categoria, Com Escavadeira Hidráulica (Caçamba: 0,8 M³ / 111 Hp), Frota De 3 Caminhões Basculantes De 14 M³, Dmt Até 1 Km E Velocidade Média14 Km/H. Af_05/2020 | D129: =IF(H129="i",VLOOKUP(B129,'Ins SINAPI BA 07-2025 Onerado'!$B$11:$F$50003,2,0),VLOOKUP(B129,'Comp SINAPI BA 07-2025 Onerado'!$B$11:$H$50004,3,0)) -> M3 | E129: 0.1 | F129: =IF(H129="i",VLOOKUP(B129,'Ins SINAPI BA 07-2025 Onerado'!$B$11:$F$50003,5,0),VLOOKUP(B129,'Comp SINAPI BA 07-2025 Onerado'!$B$11:$E$50004,4,0)) -> 11.15 | G129: =TRUNC(E129*F129,2) -> 1.11 | H129: ca | I129: TRUE | J129: Preparação da superfície 10%
A130: SINAPI | B130: 100976 | C130: =PROPER(IF(H130="i",VLOOKUP(B130,'Ins SINAPI BA 07-2025 Onerado'!$B$11:$F$50003,2,0),VLOOKUP(B130,'Comp SINAPI BA 07-2025 Onerado'!$B$11:$C$50004,2,0))) -> Carga, Manobra E Descarga De Solos E Materiais Granulares Em Caminhão Basculante 18 M³ - Carga Com Pá Carregadeira (Caçamba De 1,7 A 2,8 M³ / 128 Hp) E Descarga Livre (Unidade: M3). Af_07/2020 | D130: =IF(H130="i",VLOOKUP(B130,'Ins SINAPI BA 07-2025 Onerado'!$B$11:$F$50003,2,0),VLOOKUP(B130,'Comp SINAPI BA 07-2025 Onerado'!$B$11:$H$50004,3,0)) -> M3 | E130: 1 | F130: =IF(H130="i",VLOOKUP(B130,'Ins SINAPI BA 07-2025 Onerado'!$B$11:$F$50003,5,0),VLOOKUP(B130,'Comp SINAPI BA 07-2025 Onerado'!$B$11:$E$50004,4,0)) -> 8.57 | G130: 8.57 | H130: ca | I130: TRUE
A131: SINAPI | B131: 100951 | C131: =PROPER(IF(H131="i",VLOOKUP(B131,'Ins SINAPI BA 07-2025 Onerado'!$B$11:$F$50003,2,0),VLOOKUP(B131,'Comp SINAPI BA 07-2025 Onerado'!$B$11:$C$50004,2,0))) -> Transporte Com Caminhão Carroceria Com Guindauto (Munck), Momento Máximo De Carga 11,7 Tm, Em Via Urbana Em Revestimento Primário (Unidade: Txkm). Af_07/2020 | D131: =IF(H131="i",VLOOKUP(B131,'Ins SINAPI BA 07-2025 Onerado'!$B$11:$F$50003,2,0),VLOOKUP(B131,'Comp SINAPI BA 07-2025 Onerado'!$B$11:$H$50004,3,0)) -> TXKM | E131: =2*(1.5*'Memorial de cálculo'!$H$8)/'Memorial de cálculo'!$I$81 -> 0.09055552331 | F131: =IF(H131="i",VLOOKUP(B131,'Ins SINAPI BA 07-2025 Onerado'!$B$11:$F$50003,5,0),VLOOKUP(B131,'Comp SINAPI BA 07-2025 Onerado'!$B$11:$E$50004,4,0)) -> 3.17 | G131: 0.28 | H131: ca | I131: TRUE | J131: Tonelada da máquina | L131: 1.5 | N131: (Ida e volta)
A132: SINAPI | B132: 96385 | C132: =PROPER(IF(H132="i",VLOOKUP(B132,'Ins SINAPI BA 07-2025 Onerado'!$B$11:$F$50003,2,0),VLOOKUP(B132,'Comp SINAPI BA 07-2025 Onerado'!$B$11:$C$50004,2,0))) -> Execução E Compactação De Corpo De Aterro De Aterro (95% De Energia Do Proctor Normal) Com Solo Predominantemente Argiloso Espessura 15 Cm - Exclusive Material, Escavação, Carga E Transporte. Af_09/2024 | D132: =IF(H132="i",VLOOKUP(B132,'Ins SINAPI BA 07-2025 Onerado'!$B$11:$F$50003,2,0),VLOOKUP(B132,'Comp SINAPI BA 07-2025 Onerado'!$B$11:$H$50004,3,0)) -> M3 | E132: 1 | F132: =IF(H132="i",VLOOKUP(B132,'Ins SINAPI BA 07-2025 Onerado'!$B$11:$F$50003,5,0),VLOOKUP(B132,'Comp SINAPI BA 07-2025 Onerado'!$B$11:$E$50004,4,0)) -> 13.59 | G132: 13.59 | H132: ca | I132: TRUE
A133: PRÓPRIA | B133: CODE | C133: Hospedagem | D133: un | E133: ='Memorial de cálculo'!D83*'Memorial de cálculo'!H83+'Memorial de cálculo'!D84*'Memorial de cálculo'!H84+'Memorial de cálculo'!D85*'Memorial de cálculo'!H85 -> 0.0153585375 | F133: ='CPU HOSPEDAGEM'!C19 -> 85.34916667 | G133: 1.31 | H133: ca | I133: TRUE
A134: PRÓPRIA | B134: CODE | C134: Veículo para serviço tipo pick-up, cabine dupla - 2.0 16V 4x4 diesel Aut. | D134: dia | E134: =LARGE('Memorial de cálculo'!H83:H85,1) -> 0.0059586125 | F134: ='CPU-VEICULO_Serviços'!$C$11 -> 140.8112363 | G134: 0.83 | H134: ca | I134: TRUE
A135: =B124 -> CPU.12 | C135: MÃO DE OBRA | G135: 0 | H135: mdo | I135: FALSE
I136: FALSE
B137: CPU.13 | C137: Regularização e compactação da crista | D137: m2 | E137: 1 | G137: =SUM(G144,G140,G139,G138) -> 3.3 | H137: S | I137: FALSE
A138: =B137 -> CPU.13 | C138: MATERIAL | G138: 0 | H138: ss | I138: FALSE
A139: =B137 -> CPU.13 | C139: EQUIPAMENTOS | G139: 0 | H139: ss | I139: FALSE
A140: =B137 -> CPU.13 | C140: SERVIÇOS | G140: =SUM(G141:G143) -> 3.3 | H140: ss | I140: FALSE
A141: SINAPI | B141: 100576 | C141: =PROPER(IF(H141="i",VLOOKUP(B141,'Ins SINAPI BA 07-2025 Onerado'!$B$11:$F$50003,2,0),VLOOKUP(B141,'Comp SINAPI BA 07-2025 Onerado'!$B$11:$C$50004,2,0))) -> Regularização E Compactação De Subleito De Solo Predominantemente Argiloso, Para Obras De Construção De Pavimentos. Af_09/2024 | D141: =IF(H141="i",VLOOKUP(B141,'Ins SINAPI BA 07-2025 Onerado'!$B$11:$F$50003,2,0),VLOOKUP(B141,'Comp SINAPI BA 07-2025 Onerado'!$B$11:$H$50004,3,0)) -> M2 | E141: 1 | F141: =IF(H141="i",VLOOKUP(B141,'Ins SINAPI BA 07-2025 Onerado'!$B$11:$F$50003,5,0),VLOOKUP(B141,'Comp SINAPI BA 07-2025 Onerado'!$B$11:$E$50004,4,0)) -> 3.14 | G141: =TRUNC(E141*F141,2) -> 3.14 | H141: ca | I141: TRUE
A142: PRÓPRIA | B142: CODE | C142: Hospedagem | D142: un | E142: ='Memorial de cálculo'!D89*'Memorial de cálculo'!H89 -> 0.0010769 | F142: ='CPU HOSPEDAGEM'!C19 -> 85.34916667 | G142: 0.09 | H142: ca | I142: TRUE
A143: PRÓPRIA | B143: CODE | C143: Veículo para serviço tipo pick-up, cabine dupla - 2.0 16V 4x4 diesel Aut. | D143: dia | E143: =LARGE('Memorial de cálculo'!H89,1) -> 0.00053845 | F143: ='CPU-VEICULO_Serviços'!$C$11 -> 140.8112363 | G143: 0.07 | H143: ca | I143: TRUE
A144: =B137 -> CPU.13 | C144: MÃO DE OBRA | G144: 0 | H144: mdo | I144: =_xlfn.ISFORMULA(F144) -> FALSE
I145: FALSE
B146: CPU.14 | C146: Execução de Revestimento com BGTC | D146: m3 | E146: 1 | G146: =SUM(G155,G149,G148,G147) -> 290.16 | H146: S | I146: FALSE
A147: =B146 -> CPU.14 | C147: MATERIAL | G147: 0 | H147: ss | I147: FALSE
A148: =B146 -> CPU.14 | C148: EQUIPAMENTOS | G148: 0 | H148: ss | I148: FALSE
A149: =B146 -> CPU.14 | C149: SERVIÇOS | G149: =SUM(G150:G154) -> 290.16 | H149: ss | I149: FALSE
A150: SINAPI | B150: 96397 | C150: =PROPER(IF(H150="i",VLOOKUP(B150,'Ins SINAPI BA 07-2025 Onerado'!$B$11:$F$50003,2,0),VLOOKUP(B150,'Comp SINAPI BA 07-2025 Onerado'!$B$11:$C$50004,2,0))) -> Construção De Base E Sub-Base Para Pavimentação De Brita Graduada Simples Tratada Com Cimento, Com Espessura De 15 Cm - Exclusive Carga E Transporte. Af_09/2024 | D150: =IF(H150="i",VLOOKUP(B150,'Ins SINAPI BA 07-2025 Onerado'!$B$11:$F$50003,2,0),VLOOKUP(B150,'Comp SINAPI BA 07-2025 Onerado'!$B$11:$H$50004,3,0)) -> M3 | E150: 1 | F150: =IF(H150="i",VLOOKUP(B150,'Ins SINAPI BA 07-2025 Onerado'!$B$11:$F$50003,5,0),VLOOKUP(B150,'Comp SINAPI BA 07-2025 Onerado'!$B$11:$E$50004,4,0)) -> 268.51 | G150: =TRUNC(E150*F150,2) -> 268.51 | H150: ca | I150: TRUE
A151: SINAPI | B151: 93592 | C151: =PROPER(IF(H151="i",VLOOKUP(B151,'Ins SINAPI BA 07-2025 Onerado'!$B$11:$F$50003,2,0),VLOOKUP(B151,'Comp SINAPI BA 07-2025 Onerado'!$B$11:$C$50004,2,0))) -> Transporte Com Caminhão Basculante De 14 M³, Em Via Urbana Em Revestimento Primário (Unidade: M3Xkm). Af_07/2020 | D151: =IF(H151="i",VLOOKUP(B151,'Ins SINAPI BA 07-2025 Onerado'!$B$11:$F$50003,2,0),VLOOKUP(B151,'Comp SINAPI BA 07-2025 Onerado'!$B$11:$H$50004,3,0)) -> M3XKM | E151: ='Memorial de cálculo'!$H$8 -> 5.2 | F151: =IF(H151="i",VLOOKUP(B151,'Ins SINAPI BA 07-2025 Onerado'!$B$11:$F$50003,5,0),VLOOKUP(B151,'Comp SINAPI BA 07-2025 Onerado'!$B$11:$E$50004,4,0)) -> 2.32 | G151: 12.06 | H151: ca | I151: TRUE
A152: SINAPI | B152: 100976 | C152: =PROPER(IF(H152="i",VLOOKUP(B152,'Ins SINAPI BA 07-2025 Onerado'!$B$11:$F$50003,2,0),VLOOKUP(B152,'Comp SINAPI BA 07-2025 Onerado'!$B$11:$C$50004,2,0))) -> Carga, Manobra E Descarga De Solos E Materiais Granulares Em Caminhão Basculante 18 M³ - Carga Com Pá Carregadeira (Caçamba De 1,7 A 2,8 M³ / 128 Hp) E Descarga Livre (Unidade: M3). Af_07/2020 | D152: =IF(H152="i",VLOOKUP(B152,'Ins SINAPI BA 07-2025 Onerado'!$B$11:$F$50003,2,0),VLOOKUP(B152,'Comp SINAPI BA 07-2025 Onerado'!$B$11:$H$50004,3,0)) -> M3 | E152: 1 | F152: =IF(H152="i",VLOOKUP(B152,'Ins SINAPI BA 07-2025 Onerado'!$B$11:$F$50003,5,0),VLOOKUP(B152,'Comp SINAPI BA 07-2025 Onerado'!$B$11:$E$50004,4,0)) -> 8.57 | G152: 8.57 | H152: ca | I152: TRUE
A153: PRÓPRIA | B153: CODE | C153: Hospedagem | D153: un | E153: ='Memorial de cálculo'!D93*'Memorial de cálculo'!H93 -> 0.004568675 | F153: ='CPU HOSPEDAGEM'!C19 -> 85.34916667 | G153: 0.38 | H153: ca | I153: TRUE
A154: PRÓPRIA | B154: CODE | C154: Veículo para serviço tipo pick-up, cabine dupla - 2.0 16V 4x4 diesel Aut. | D154: dia | E154: =LARGE('Memorial de cálculo'!H93,1) -> 0.004568675 | F154: ='CPU-VEICULO_Serviços'!$C$11 -> 140.8112363 | G154: 0.64 | H154: ca | I154: TRUE
A155: =B146 -> CPU.14 | C155: MÃO DE OBRA | G155: 0 | H155: mdo | I155: FALSE
I156: FALSE
B157: CPU.15 | C157: Limpeza da superfície | D157: m2 | E157: 1 | G157: =SUM(G164,G160,G159,G158) -> 4.73 | H157: S | I157: FALSE
A158: =B157 -> CPU.15 | C158: MATERIAL | G158: 0 | H158: ss | I158: FALSE
A159: =B157 -> CPU.15 | C159: EQUIPAMENTOS | G159: 0 | H159: ss | I159: FALSE
A160: =B157 -> CPU.15 | C160: SERVIÇOS | G160: =SUM(G161:G163) -> 4.73 | H160: ss | I160: FALSE
A161: SINAPI | B161: 99814 | C161: =PROPER(IF(H161="i",VLOOKUP(B161,'Ins SINAPI BA 07-2025 Onerado'!$B$11:$F$50003,2,0),VLOOKUP(B161,'Comp SINAPI BA 07-2025 Onerado'!$B$11:$C$50004,2,0))) -> Limpeza De Superfície Com Jato De Alta Pressão. Af_04/2019 | D161: =IF(H161="i",VLOOKUP(B161,'Ins SINAPI BA 07-2025 Onerado'!$B$11:$F$50003,2,0),VLOOKUP(B161,'Comp SINAPI BA 07-2025 Onerado'!$B$11:$H$50004,3,0)) -> M2 | E161: 1 | F161: =IF(H161="i",VLOOKUP(B161,'Ins SINAPI BA 07-2025 Onerado'!$B$11:$F$50003,5,0),VLOOKUP(B161,'Comp SINAPI BA 07-2025 Onerado'!$B$11:$E$50004,4,0)) -> 2.23 | G161: =TRUNC(E161*F161,2) -> 2.23 | H161: ca | I161: TRUE
A162: PRÓPRIA | B162: CODE | C162: Hospedagem | D162: un | E162: ='Memorial de cálculo'!D97*'Memorial de cálculo'!H97 -> 0.011125 | F162: ='CPU HOSPEDAGEM'!C19 -> 85.34916667 | G162: 0.94 | H162: ca | I162: TRUE
A163: PRÓPRIA | B163: CODE | C163: Veículo para serviço tipo pick-up, cabine dupla - 2.0 16V 4x4 diesel Aut. | D163: dia | E163: =LARGE('Memorial de cálculo'!H97,1) -> 0.011125 | F163: ='CPU-VEICULO_Serviços'!$C$11 -> 140.8112363 | G163: 1.56 | H163: ca | I163: TRUE
A164: =B157 -> CPU.15 | C164: MÃO DE OBRA | G164: 0 | H164: mdo | I164: FALSE
I165: FALSE
B166: CPU.17 | C166: Recuperação da descida d'água em degraus existentes | D166: m3 | E166: 1 | G166: =SUM(G170,G169,G168,G167) -> 987.18 | H166: S | I166: FALSE
A167: =B166 -> CPU.17 | C167: MATERIAL | G167: 0 | H167: ss | I167: FALSE
A168: =B166 -> CPU.17 | C168: EQUIPAMENTOS | G168: 0 | H168: ss | I168: FALSE
A169: =B166 -> CPU.17 | C169: SERVIÇOS | G169: 0 | H169: ss | I169: FALSE
A170: =B166 -> CPU.17 | C170: MÃO DE OBRA | G170: =SUM(G171:G173) -> 987.18 | H170: mdo | I170: FALSE
A171: SINAPI | B171: 88629 | C171: =PROPER(IF(H171="i",VLOOKUP(B171,'Ins SINAPI BA 07-2025 Onerado'!$B$11:$F$50003,2,0),VLOOKUP(B171,'Comp SINAPI BA 07-2025 Onerado'!$B$11:$C$50004,2,0))) -> Argamassa Traço 1:3 (Em Volume De Cimento E Areia Média Úmida), Preparo Manual. Af_08/2019 | D171: =IF(H171="i",VLOOKUP(B171,'Ins SINAPI BA 07-2025 Onerado'!$B$11:$F$50003,2,0),VLOOKUP(B171,'Comp SINAPI BA 07-2025 Onerado'!$B$11:$H$50004,3,0)) -> M3 | E171: 1 | F171: =IF(H171="i",VLOOKUP(B171,'Ins SINAPI BA 07-2025 Onerado'!$B$11:$F$50003,5,0),VLOOKUP(B171,'Comp SINAPI BA 07-2025 Onerado'!$B$11:$E$50004,4,0)) -> 744.91 | G171: =TRUNC(E171*F171,2) -> 744.91 | H171: ca | I171: TRUE
A172: PRÓPRIA | B172: CODE | C172: Hospedagem | D172: un | E172: ='Memorial de cálculo'!D101*'Memorial de cálculo'!H101 -> 1.07125 | F172: ='CPU HOSPEDAGEM'!C19 -> 85.34916667 | G172: =TRUNC(E172*F172,2) -> 91.43 | H172: ca | I172: TRUE
A173: PRÓPRIA | B173: CODE | C173: Veículo para serviço tipo pick-up, cabine dupla - 2.0 16V 4x4 diesel Aut. | D173: dia | E173: =LARGE('Memorial de cálculo'!H101,1) -> 1.07125 | F173: ='CPU-VEICULO_Serviços'!$C$11 -> 140.8112363 | G173: 150.84 | H173: ca | I173: TRUE
I174: FALSE
B175: CPU.18 | C175: Demolição e remoção de guias e sarjetas e/ou canaletas | D175: m | E175: 1 | G175: =SUM(G183,G178,G177,G176) -> 24.49 | H175: S | I175: FALSE
A176: =B175 -> CPU.18 | C176: MATERIAL | G176: 0 | H176: ss | I176: FALSE
A177: =B175 -> CPU.18 | C177: EQUIPAMENTOS | G177: 0 | H177: ss | I177: FALSE
A178: =B175 -> CPU.18 | C178: SERVIÇOS | G178: =SUM(G179:G182) -> 24.49 | H178: ss | I178: FALSE
A179: SINAPI | B179: 104796 | C179: =PROPER(IF(H179="i",VLOOKUP(B179,'Ins SINAPI BA 07-2025 Onerado'!$B$11:$F$50003,2,0),VLOOKUP(B179,'Comp SINAPI BA 07-2025 Onerado'!$B$11:$C$50004,2,0))) -> Demolição De Guias, Sarjetas Ou Sarjetões, De Forma Mecanizada, Sem Reaproveitamento. Af_09/2023 | D179: =IF(H179="i",VLOOKUP(B179,'Ins SINAPI BA 07-2025 Onerado'!$B$11:$F$50003,2,0),VLOOKUP(B179,'Comp SINAPI BA 07-2025 Onerado'!$B$11:$H$50004,3,0)) -> M | E179: 1 | F179: =IF(H179="i",VLOOKUP(B179,'Ins SINAPI BA 07-2025 Onerado'!$B$11:$F$50003,5,0),VLOOKUP(B179,'Comp SINAPI BA 07-2025 Onerado'!$B$11:$E$50004,4,0)) -> 17.4 | G179: =TRUNC(E179*F179,2) -> 17.4 | H179: ca | I179: TRUE
A180: SINAPI | B180: 93595 | C180: =PROPER(IF(H180="i",VLOOKUP(B180,'Ins SINAPI BA 07-2025 Onerado'!$B$11:$F$50003,2,0),VLOOKUP(B180,'Comp SINAPI BA 07-2025 Onerado'!$B$11:$C$50004,2,0))) -> Transporte Com Caminhão Basculante De 10 M³, Em Via Urbana Em Revestimento Primário (Unidade: Txkm). Af_07/2020 | D180: =IF(H180="i",VLOOKUP(B180,'Ins SINAPI BA 07-2025 Onerado'!$B$11:$F$50003,2,0),VLOOKUP(B180,'Comp SINAPI BA 07-2025 Onerado'!$B$11:$H$50004,3,0)) -> TXKM | E180: =0.052*15*2 -> 1.56 | F180: =IF(H180="i",VLOOKUP(B180,'Ins SINAPI BA 07-2025 Onerado'!$B$11:$F$50003,5,0),VLOOKUP(B180,'Comp SINAPI BA 07-2025 Onerado'!$B$11:$E$50004,4,0)) -> 1.83 | G180: =TRUNC(E180*F180,2) -> 2.85 | H180: ca | I180: TRUE | J180: 15 km de raio para diposição do RCD
A181: PRÓPRIA | B181: CODE | C181: Hospedagem | D181: un | E181: ='Memorial de cálculo'!D105*'Memorial de cálculo'!H105+'Memorial de cálculo'!D106*'Memorial de cálculo'!H106 -> 0.0316375 | F181: ='CPU HOSPEDAGEM'!C19 -> 85.34916667 | G181: 2.7 | H181: ca | I181: TRUE
A182: PRÓPRIA | B182: CODE | C182: Veículo para serviço tipo pick-up, cabine dupla - 2.0 16V 4x4 diesel Aut. | D182: dia | E182: =LARGE('Memorial de cálculo'!H105:H106,1) -> 0.01099375 | F182: ='CPU-VEICULO_Serviços'!$C$11 -> 140.8112363 | G182: =TRUNC(E182*F182,2) -> 1.54 | H182: ca | I182: TRUE
A183: =B175 -> CPU.18 | C183: MÃO DE OBRA | G183: 0 | H183: mdo | I183: FALSE
I184: FALSE
B185: CPU.19 | C185: Fornecimento e Assentamento de Guia (meio-fio) Pré-fabricado, dimensões 100X15X13X30 Cm (Comprimento X Base Inferior X Base Superior X Altura) | D185: m | E185: 1 | G185: =SUM(G193,G188,G187,G186) -> 48.06 | H185: S | I185: FALSE
A186: =B185 -> CPU.19 | C186: MATERIAL | G186: 0 | H186: ss | I186: FALSE
A187: =B185 -> CPU.19 | C187: EQUIPAMENTOS | G187: 0 | H187: ss | I187: FALSE
A188: =B185 -> CPU.19 | C188: SERVIÇOS | G188: =SUM(G189:G192) -> 48.06 | H188: ss | I188: FALSE
A189: SINAPI | B189: 94273 | C189: =PROPER(IF(H189="i",VLOOKUP(B189,'Ins SINAPI BA 07-2025 Onerado'!$B$11:$F$50003,2,0),VLOOKUP(B189,'Comp SINAPI BA 07-2025 Onerado'!$B$11:$C$50004,2,0))) -> Assentamento De Guia (Meio-Fio) Em Trecho Reto, Confeccionada Em Concreto Pré-Fabricado, Dimensões 100X15X13X30 Cm (Comprimento X Base Inferior X Base Superior X Altura). Af_01/2024 | D189: =IF(H189="i",VLOOKUP(B189,'Ins SINAPI BA 07-2025 Onerado'!$B$11:$F$50003,2,0),VLOOKUP(B189,'Comp SINAPI BA 07-2025 Onerado'!$B$11:$H$50004,3,0)) -> M | E189: 1 | F189: =IF(H189="i",VLOOKUP(B189,'Ins SINAPI BA 07-2025 Onerado'!$B$11:$F$50003,5,0),VLOOKUP(B189,'Comp SINAPI BA 07-2025 Onerado'!$B$11:$E$50004,4,0)) -> 41.2 | G189: =TRUNC(E189*F189,2) -> 41.2 | H189: ca | I189: TRUE
A190: SINAPI | B190: 93595 | C190: =PROPER(IF(H190="i",VLOOKUP(B190,'Ins SINAPI BA 07-2025 Onerado'!$B$11:$F$50003,2,0),VLOOKUP(B190,'Comp SINAPI BA 07-2025 Onerado'!$B$11:$C$50004,2,0))) -> Transporte Com Caminhão Basculante De 10 M³, Em Via Urbana Em Revestimento Primário (Unidade: Txkm). Af_07/2020 | D190: =IF(H190="i",VLOOKUP(B190,'Ins SINAPI BA 07-2025 Onerado'!$B$11:$F$50003,2,0),VLOOKUP(B190,'Comp SINAPI BA 07-2025 Onerado'!$B$11:$H$50004,3,0)) -> TXKM | E190: =('Memorial de cálculo'!$H$8)*0.067 -> 0.3484 | F190: =IF(H190="i",VLOOKUP(B190,'Ins SINAPI BA 07-2025 Onerado'!$B$11:$F$50003,5,0),VLOOKUP(B190,'Comp SINAPI BA 07-2025 Onerado'!$B$11:$E$50004,4,0)) -> 1.83 | G190: =TRUNC(E190*F190,2) -> 0.63 | H190: ca | I190: TRUE | J190: Transporte do meio-fio pré fabricado (PESO = 67 KG)
A191: PRÓPRIA | B191: CODE | C191: Hospedagem | D191: un | E191: ='Memorial de cálculo'!D110*'Memorial de cálculo'!H110+'Memorial de cálculo'!D111*'Memorial de cálculo'!H111 -> 0.0574 | F191: ='CPU HOSPEDAGEM'!C19 -> 85.34916667 | G191: =TRUNC(E191*F191,2) -> 4.89 | H191: ca | I191: TRUE
A192: PRÓPRIA | B192: CODE | C192: Veículo para serviço tipo pick-up, cabine dupla - 2.0 16V 4x4 diesel Aut. | D192: dia | E192: =LARGE('Memorial de cálculo'!H110:H111,1) -> 0.009566666667 | F192: ='CPU-VEICULO_Serviços'!$C$11 -> 140.8112363 | G192: =TRUNC(E192*F192,2) -> 1.34 | H192: ca | I192: TRUE
A193: =B185 -> CPU.19 | C193: MÃO DE OBRA | G193: 0 | H193: mdo | I193: FALSE
I194: FALSE
B195: CPU.20 | C195: Disponibilidade de veículo para apoio a fiscalização, inclusive combustível | D195: un | E195: 1 | G195: =SUM(G200,G198,G197,G196) -> 379.82 | H195: S | I195: FALSE
A196: =B195 -> CPU.20 | C196: MATERIAL | G196: 0 | H196: ss | I196: FALSE
A197: =B195 -> CPU.20 | C197: EQUIPAMENTOS | G197: 0 | H197: ss | I197: FALSE
A198: =B195 -> CPU.20 | C198: SERVIÇOS | G198: =SUM(G199) -> 379.82 | H198: ss | I198: FALSE
A199: PRÓPRIA | B199: CODE | C199: Veículo para fiscalização tipo pick-up, cabine dupla - 2.0 16V 4x4 diesel Aut. | D199: dia | E199: 1 | F199: ='CPU-VEICULO_Fiscalização'!$C$11 -> 379.8201933 | G199: =TRUNC(E199*F199,2) -> 379.82 | H199: ca | I199: =_xlfn.ISFORMULA(F199) -> TRUE
A200: =B195 -> CPU.20 | C200: MÃO DE OBRA | G200: 0 | H200: mdo | I200: FALSE
I201: FALSE
... 45 more rows

Sheet COMPOSICÕES MODIFICADAS
A3: Código | D3: 93212 ADAPTADO
A4: Descrição | D4: EXECUÇÃO DE SANITÁRIO E VESTIÁRIO EM CANTEIRO DE OBRA EM CHAPA DE MADEIRA COMPENSADA, NÃO INCLUSO MOBILIÁRIO. AF_02/2016
A5: Data | D5: 2025-06-01
A6: Estado | D6: Bahia
A7: Tipo | D7: CANT - CANTEIRO DE OBRAS
A8: Unidade | D8: m²
A9: Valor sem Desoneração | D9: =SUM(I12,I16,I20:I54,I58:I61,I65:I78,I85:I105) -> 979.9
A11: Natureza | B11: Fonte | C11: codigo | D11: Descrição | E11: Tipo | F11: Unidade | G11: Valor sem Desoneração | H11: Coeficiente | I11: Preço sem Desoneração
A12: C | B12: SINAPI | C12: 89173 | D12: (COMPOSIÇÃO REPRESENTATIVA) DO SERVIÇO DE EMBOÇO/MASSA ÚNICA, APLICADO MANUALMENTE, TRAÇO 1:2:8, EM BETONEIRA DE 400L, PAREDES INTERNAS, COM EXECUÇÃO DE TALISCAS, EDIFICAÇÃO HABITACIONAL UNIFAMILIAR (CASAS) E EDIFICAÇÃO PÚBLICA PADRÃO. AF_12/2014 - ADAPTADO | E12: REVE - REVESTIMENTO E TRATAMENTO DE SUPERFÍCIES | F12: m² | G12: =SUM(I13:I15) -> 45.22 | H12: 0.7679 | I12: =ROUND(G12*H12,2) -> 34.72
A13: C | B13: SINAPI | C13: 87531 | D13: =VLOOKUP(C13,'Comp SINAPI BA 07-2025 Onerado'!$B$11:$F$9696,2,FALSE) -> EMBOÇO, EM ARGAMASSA TRAÇO 1:2:8, PREPARO MECÂNICO, APLICADO MANUALMENTE EM PAREDES INTERNAS DE AMBIENTES COM ÁREA ENTRE 5M² E 10M², E = 17,5MM, COM TALISCAS. AF_03/2024 | E13: REVE - REVESTIMENTO E TRATAMENTO DE SUPERFÍCIES | F13: m² | G13: =VLOOKUP(C13,'Comp SINAPI BA 07-2025 Onerado'!$B$11:$F$9696,4,FALSE) -> 43.58 | H13: 0.154 | I13: =ROUND(G13*H13,2) -> 6.71 | K13: =_xlfn.ISFORMULA(G13) -> TRUE | L13: =_xlfn.ISFORMULA(I13) -> TRUE
A14: C | B14: SINAPI | C14: 87527 | D14: =VLOOKUP(C14,'Comp SINAPI BA 07-2025 Onerado'!$B$11:$F$9696,2,FALSE) -> EMBOÇO, EM ARGAMASSA TRAÇO 1:2:8, PREPARO MECÂNICO, APLICADO MANUALMENTE EM PAREDES INTERNAS DE AMBIENTES COM ÁREA MENOR QUE 5M², E =17,5MM, COM TALISCAS. AF_03/2024 | E14: REVE - REVESTIMENTO E TRATAMENTO DE SUPERFÍCIES | F14: m² | G14: =VLOOKUP(C14,'Comp SINAPI BA 07-2025 Onerado'!$B$11:$F$9696,4,FALSE) -> 48.66 | H14: 0.1121 | I14: =ROUND(G14*H14,2) -> 5.45 | K14: =_xlfn.ISFORMULA(G14) -> TRUE | L14: =_xlfn.ISFORMULA(I14) -> TRUE
A15: C | B15: SINAPI | C15: 87529 | D15: =VLOOKUP(C15,'Comp SINAPI BA 07-2025 Onerado'!$B$11:$F$9696,2,FALSE) -> MASSA ÚNICA, EM ARGAMASSA TRAÇO 1:2:8, PREPARO MECÂNICO, APLICADA MANUALMENTE EM PAREDES INTERNAS DE AMBIENTES COM ÁREA ENTRE 5M² E 10M², E = 17,5MM, COM TALISCAS. AF_03/2024 | E15: REVE - REVESTIMENTO E TRATAMENTO DE SUPERFÍCIES | F15: m² | G15: =VLOOKUP(C15,'Comp SINAPI BA 07-2025 Onerado'!$B$11:$F$9696,4,FALSE) -> 45.05 | H15: 0.7339 | I15: 33.06 | K15: TRUE | L15: TRUE
A16: C | B16: SINAPI | C16: 89171 | D16: (COMPOSIÇÃO REPRESENTATIVA) DO SERVIÇO DE REVESTIMENTO CERÂMICO PARA PISO COM PLACAS TIPO ESMALTADA EXTRA DE DIMENSÕES 35X35 CM, PARA EDIFICAÇÃO HABITACIONAL UNIFAMILIAR (CASA) E EDIFICAÇÃO PÚBLICA PADRÃO. AF_11/2014 - ADAPTADO | E16: PISO - PISOS | F16: m² | G16: =SUM(I17:I19) -> 50.14 | H16: 0.4628 | I16: 23.2 | K16: TRUE | L16: TRUE
A17: C | B17: SINAPI | C17: 87247 | D17: =VLOOKUP(C17,'Comp SINAPI BA 07-2025 Onerado'!$B$11:$F$9696,2,FALSE) -> REVESTIMENTO CERÂMICO PARA PISO COM PLACAS TIPO ESMALTADA DE DIMENSÕES 35X35 CM APLICADA EM AMBIENTES DE ÁREA ENTRE 5 M2 E 10 M2. AF_02/2023_PE | E17: PISO - PISOS | F17: m² | G17: =VLOOKUP(C17,'Comp SINAPI BA 07-2025 Onerado'!$B$11:$F$9696,4,FALSE) -> 54.97 | H17: 0.3365 | I17: =ROUND(G17*H17,2) -> 18.5 | K17: TRUE | L17: TRUE
A18: C | B18: SINAPI | C18: 87248 | D18: =VLOOKUP(C18,'Comp SINAPI BA 07-2025 Onerado'!$B$11:$F$9696,2,FALSE) -> REVESTIMENTO CERÂMICO PARA PISO COM PLACAS TIPO ESMALTADA DE DIMENSÕES 35X35 CM APLICADA EM AMBIENTES DE ÁREA MAIOR QUE 10 M2. AF_02/2023_PE | E18: PISO - PISOS | F18: m² | G18: =VLOOKUP(C18,'Comp SINAPI BA 07-2025 Onerado'!$B$11:$F$9696,4,FALSE) -> 46.31 | H18: 0.6087 | I18: =ROUND(G18*H18,2) -> 28.19 | K18: TRUE | L18: TRUE
A19: C | B19: SINAPI | C19: 87246 | D19: =VLOOKUP(C19,'Comp SINAPI BA 07-2025 Onerado'!$B$11:$F$9696,2,FALSE) -> REVESTIMENTO CERÂMICO PARA PISO COM PLACAS TIPO ESMALTADA DE DIMENSÕES 35X35 CM APLICADA EM AMBIENTES DE ÁREA MENOR QUE 5 M2. AF_02/2023_PE | E19: PISO - PISOS | F19: m² | G19: =VLOOKUP(C19,'Comp SINAPI BA 07-2025 Onerado'!$B$11:$F$9696,4,FALSE) -> 63.01 | H19: 0.0548 | I19: 3.45 | K19: TRUE | L19: TRUE
A20: C | B20: SINAPI | C20: 101165 | D20: =VLOOKUP(C20,'Comp SINAPI BA 07-2025 Onerado'!$B$11:$F$9696,2,FALSE) -> ALVENARIA DE EMBASAMENTO COM BLOCO ESTRUTURAL DE CONCRETO, DE 14X19X29CM E ARGAMASSA DE ASSENTAMENTO COM PREPARO EM BETONEIRA. AF_05/2020 | E20: FUES - FUNDAÇÕES E ESTRUTURAS | F20: m³ | G20: =VLOOKUP(C20,'Comp SINAPI BA 07-2025 Onerado'!$B$11:$F$9696,4,FALSE) -> 975.38 | H20: 0.0286 | I20: 27.9 | K20: TRUE | L20: TRUE
A21: C | B21: SINAPI | C21: 103328 | D21: =VLOOKUP(C21,'Comp SINAPI BA 07-2025 Onerado'!$B$11:$F$9696,2,FALSE) -> ALVENARIA DE VEDAÇÃO DE BLOCOS CERÂMICOS FURADOS NA HORIZONTAL DE 9X19X19 CM (ESPESSURA 9 CM) E ARGAMASSA DE ASSENTAMENTO COM PREPARO EM BETONEIRA. AF_12/2021 | E21: PARE - PAREDES/PAINEIS | F21: m² | G21: =VLOOKUP(C21,'Comp SINAPI BA 07-2025 Onerado'!$B$11:$F$9696,4,FALSE) -> 106.93 | H21: 0.4675 | I21: 49.99 | K21: TRUE | L21: TRUE
A22: C | B22: SINAPI | C22: 91924 | D22: =VLOOKUP(C22,'Comp SINAPI BA 07-2025 Onerado'!$B$11:$F$9696,2,FALSE) -> CABO DE COBRE FLEXÍVEL ISOLADO, 1,5 MM², ANTI-CHAMA 450/750 V, PARA CIRCUITOS TERMINAIS - FORNECIMENTO E INSTALAÇÃO. AF_03/2023 | E22: INEL - INSTALAÇÃO ELÉTRICA/ELETRIFICAÇÃO E ILUMINAÇÃO EXTERNA | F22: M | G22: =VLOOKUP(C22,'Comp SINAPI BA 07-2025 Onerado'!$B$11:$F$9696,4,FALSE) -> 3.26 | H22: 1.253 | I22: 4.08 | K22: TRUE | L22: TRUE
A23: C | B23: SINAPI | C23: 92981 | D23: CABO DE COBRE FLEXÍVEL ISOLADO, 16 MM², ANTI-CHAMA 450/750 V, PARA DISTRIBUIÇÃO - FORNECIMENTO E INSTALAÇÃO. AF_10/2020 | E23: INEL - INSTALAÇÃO ELÉTRICA/ELETRIFICAÇÃO E ILUMINAÇÃO EXTERNA | F23: M | G23: 16.65 | H23: 0.2611 | I23: 4.35 | K23: FALSE | L23: TRUE
A24: C | B24: SINAPI | C24: 91926 | D24: =VLOOKUP(C24,'Comp SINAPI BA 07-2025 Onerado'!$B$11:$F$9696,2,FALSE) -> CABO DE COBRE FLEXÍVEL ISOLADO, 2,5 MM², ANTI-CHAMA 450/750 V, PARA CIRCUITOS TERMINAIS - FORNECIMENTO E INSTALAÇÃO. AF_03/2023 | E24: INEL - INSTALAÇÃO ELÉTRICA/ELETRIFICAÇÃO E ILUMINAÇÃO EXTERNA | F24: M | G24: =VLOOKUP(C24,'Comp SINAPI BA 07-2025 Onerado'!$B$11:$F$9696,4,FALSE) -> 4.72 | H24: 0.4699 | I24: 2.22 | K24: TRUE | L24: TRUE
A25: C | B25: SINAPI | C25: 91928 | D25: =VLOOKUP(C25,'Comp SINAPI BA 07-2025 Onerado'!$B$11:$F$9696,2,FALSE) -> CABO DE COBRE FLEXÍVEL ISOLADO, 4 MM², ANTI-CHAMA 450/750 V, PARA CIRCUITOS TERMINAIS - FORNECIMENTO E INSTALAÇÃO. AF_03/2023 | E25: INEL - INSTALAÇÃO ELÉTRICA/ELETRIFICAÇÃO E ILUMINAÇÃO EXTERNA | F25: M | G25: =VLOOKUP(C25,'Comp SINAPI BA 07-2025 Onerado'!$B$11:$F$9696,4,FALSE) -> 7.27 | H25: 1.0442 | I25: 7.59 | K25: TRUE | L25: TRUE
A26: C | B26: SINAPI | C26: 97886 | D26: =VLOOKUP(C26,'Comp SINAPI BA 07-2025 Onerado'!$B$11:$F$9696,2,FALSE) -> CAIXA ENTERRADA ELÉTRICA RETANGULAR, EM ALVENARIA COM TIJOLOS CERÂMICOS MACIÇOS, FUNDO COM BRITA, DIMENSÕES INTERNAS: 0,3X0,3X0,3 M. AF_12/2020 | E26: INEL - INSTALAÇÃO ELÉTRICA/ELETRIFICAÇÃO E ILUMINAÇÃO EXTERNA | F26: UN | G26: =VLOOKUP(C26,'Comp SINAPI BA 07-2025 Onerado'!$B$11:$F$9696,4,FALSE) -> 186.01 | H26: 0.0522 | I26: 9.71 | K26: TRUE | L26: TRUE
A27: C | B27: SINAPI | C27: 97906 | D27: =VLOOKUP(C27,'Comp SINAPI BA 07-2025 Onerado'!$B$11:$F$9696,2,FALSE) -> CAIXA ENTERRADA HIDRÁULICA RETANGULAR, EM ALVENARIA COM BLOCOS DE CONCRETO, DIMENSÕES INTERNAS: 0,6X0,6X0,6 M PARA REDE DE ESGOTO. AF_12/2020 | E27: INHI - INSTALAÇÕES HIDROS SANITÁRIAS | F27: UN | G27: =VLOOKUP(C27,'Comp SINAPI BA 07-2025 Onerado'!$B$11:$F$9696,4,FALSE) -> 489.18 | H27: 0.0348 | I27: 17.02 | K27: TRUE | L27: TRUE
A28: C | B28: SINAPI | C28: 91937 | D28: =VLOOKUP(C28,'Comp SINAPI BA 07-2025 Onerado'!$B$11:$F$9696,2,FALSE) -> CAIXA OCTOGONAL 3" X 3", PVC, INSTALADA EM LAJE - FORNECIMENTO E INSTALAÇÃO. AF_03/2023 | E28: INEL - INSTALAÇÃO ELÉTRICA/ELETRIFICAÇÃO E ILUMINAÇÃO EXTERNA | F28: UN | G28: =VLOOKUP(C28,'Comp SINAPI BA 07-2025 Onerado'!$B$11:$F$9696,4,FALSE) -> 16.98 | H28: 0.1392 | I28: 2.36 | K28: TRUE | L28: TRUE
A29: C | B29: SINAPI | C29: 87903 | D29: =VLOOKUP(C29,'Comp SINAPI BA 07-2025 Onerado'!$B$11:$F$9696,2,FALSE) -> CHAPISCO APLICADO EM ALVENARIA (COM PRESENÇA DE VÃOS) E ESTRUTURAS DE CONCRETO DE FACHADA, COM ROLO PARA TEXTURA ACRÍLICA. ARGAMASSA INDUSTRIALIZADA COM PREPARO EM MISTURADOR 300 KG. AF_10/2022 | E29: REVE - REVESTIMENTO E TRATAMENTO DE SUPERFÍCIES | F29: m² | G29: =VLOOKUP(C29,'Comp SINAPI BA 07-2025 Onerado'!$B$11:$F$9696,4,FALSE) -> 13.06 | H29: 0.1681 | I29: 2.2 | K29: TRUE | L29: TRUE
A30: C | B30: SINAPI | C30: 87885 | D30: =VLOOKUP(C30,'Comp SINAPI BA 07-2025 Onerado'!$B$11:$F$9696,2,FALSE) -> CHAPISCO APLICADO NO TETO OU EM ALVENARIA E ESTRUTURA, COM ROLO PARA TEXTURA ACRÍLICA. ARGAMASSA INDUSTRIALIZADA COM PREPARO EM MISTURADOR 300 KG. AF_10/2022 | E30: REVE - REVESTIMENTO E TRATAMENTO DE SUPERFÍCIES | F30: m² | G30: =VLOOKUP(C30,'Comp SINAPI BA 07-2025 Onerado'!$B$11:$F$9696,4,FALSE) -> 10.24 | H30: 0.7679 | I30: 7.86 | K30: TRUE | L30: TRUE
A31: C | B31: SINAPI | C31: 90466 | D31: =VLOOKUP(C31,'Comp SINAPI BA 07-2025 Onerado'!$B$11:$F$9696,2,FALSE) -> CHUMBAMENTO LINEAR EM ALVENARIA PARA RAMAIS/DISTRIBUIÇÃO DE INSTALAÇÕES HIDRÁULICAS COM DIÂMETROS MENORES OU IGUAIS A 40 MM. AF_09/2023 | E31: INHI - INSTALAÇÕES HIDROS SANITÁRIAS | F31: M | G31: =VLOOKUP(C31,'Comp SINAPI BA 07-2025 Onerado'!$B$11:$F$9696,4,FALSE) -> 17.79 | H31: 0.0722 | I31: 1.28 | K31: TRUE | L31: TRUE
A32: C | B32: SINAPI | C32: 100860 | D32: =VLOOKUP(C32,'Comp SINAPI BA 07-2025 Onerado'!$B$11:$F$9696,2,FALSE) -> CHUVEIRO ELÉTRICO COMUM CORPO PLÁSTICO, TIPO DUCHA - FORNECIMENTO E INSTALAÇÃO. AF_01/2020 | E32: INHI - INSTALAÇÕES HIDROS SANITÁRIAS | F32: UN | G32: =VLOOKUP(C32,'Comp SINAPI BA 07-2025 Onerado'!$B$11:$F$9696,4,FALSE) -> 114.64 | H32: 0.0696 | I32: 7.98 | K32: TRUE | L32: TRUE
A33: C | B33: SINAPI | C33: 95805 | D33: =VLOOKUP(C33,'Comp SINAPI BA 07-2025 Onerado'!$B$11:$F$9696,2,FALSE) -> CONDULETE DE PVC, TIPO B, PARA ELETRODUTO DE PVC SOLDÁVEL DN 25 MM (3/4''), APARENTE - FORNECIMENTO E INSTALAÇÃO. AF_10/2022 | E33: INEL - INSTALAÇÃO ELÉTRICA/ELETRIFICAÇÃO E ILUMINAÇÃO EXTERNA | F33: UN | G33: =VLOOKUP(C33,'Comp SINAPI BA 07-2025 Onerado'!$B$11:$F$9696,4,FALSE) -> 23.54 | H33: 0.0174 | I33: 0.41 | K33: TRUE | L33: TRUE
A34: C | B34: SINAPI | C34: 95811 | D34: =VLOOKUP(C34,'Comp SINAPI BA 07-2025 Onerado'!$B$11:$F$9696,2,FALSE) -> CONDULETE DE PVC, TIPO LB, PARA ELETRODUTO DE PVC SOLDÁVEL DN 25 MM (3/4''), APARENTE - FORNECIMENTO E INSTALAÇÃO. AF_10/2022 | E34: INEL - INSTALAÇÃO ELÉTRICA/ELETRIFICAÇÃO E ILUMINAÇÃO EXTERNA | F34: UN | G34: =VLOOKUP(C34,'Comp SINAPI BA 07-2025 Onerado'!$B$11:$F$9696,4,FALSE) -> 19.12 | H34: 0.0522 | I34: 1 | K34: TRUE | L34: TRUE
A35: C | B35: SINAPI | C35: 91911 | D35: =VLOOKUP(C35,'Comp SINAPI BA 07-2025 Onerado'!$B$11:$F$9696,2,FALSE) -> CURVA 90 GRAUS PARA ELETRODUTO, PVC, ROSCÁVEL, DN 20 MM (1/2"), PARA CIRCUITOS TERMINAIS, INSTALADA EM PAREDE - FORNECIMENTO E INSTALAÇÃO. AF_03/2023 | E35: INEL - INSTALAÇÃO ELÉTRICA/ELETRIFICAÇÃO E ILUMINAÇÃO EXTERNA | F35: UN | G35: =VLOOKUP(C35,'Comp SINAPI BA 07-2025 Onerado'!$B$11:$F$9696,4,FALSE) -> 18.6 | H35: 0.0696 | I35: 1.29 | K35: TRUE | L35: TRUE
A36: C | B36: SINAPI | C36: 91890 | D36: =VLOOKUP(C36,'Comp SINAPI BA 07-2025 Onerado'!$B$11:$F$9696,2,FALSE) -> CURVA 90 GRAUS PARA ELETRODUTO, PVC, ROSCÁVEL, DN 25 MM (3/4"), PARA CIRCUITOS TERMINAIS, INSTALADA EM FORRO - FORNECIMENTO E INSTALAÇÃO. AF_03/2023 | E36: INEL - INSTALAÇÃO ELÉTRICA/ELETRIFICAÇÃO E ILUMINAÇÃO EXTERNA | F36: UN | G36: =VLOOKUP(C36,'Comp SINAPI BA 07-2025 Onerado'!$B$11:$F$9696,4,FALSE) -> 14.7 | H36: 0.0174 | I36: 0.26 | K36: TRUE | L36: TRUE
A37: C | B37: SINAPI | C37: 89748 | D37: =VLOOKUP(C37,'Comp SINAPI BA 07-2025 Onerado'!$B$11:$F$9696,2,FALSE) -> CURVA CURTA 90 GRAUS, PVC, SERIE NORMAL, ESGOTO PREDIAL, DN 100 MM, JUNTA ELÁSTICA, FORNECIDO E INSTALADO EM RAMAL DE DESCARGA OU RAMAL DE ESGOTO SANITÁRIO. AF_08/2022 | E37: INHI - INSTALAÇÕES HIDROS SANITÁRIAS | F37: UN | G37: =VLOOKUP(C37,'Comp SINAPI BA 07-2025 Onerado'!$B$11:$F$9696,4,FALSE) -> 40.3 | H37: 0.0522 | I37: 2.1 | K37: TRUE | L37: TRUE
A38: C | B38: SINAPI | C38: 101891 | D38: =VLOOKUP(C38,'Comp SINAPI BA 07-2025 Onerado'!$B$11:$F$9696,2,FALSE) -> DISJUNTOR MONOPOLAR TIPO NEMA, CORRENTE NOMINAL DE 35 ATÉ 50A - FORNECIMENTO E INSTALAÇÃO. AF_07/2025 | E38: INEL - INSTALAÇÃO ELÉTRICA/ELETRIFICAÇÃO E ILUMINAÇÃO EXTERNA | F38: UN | G38: =VLOOKUP(C38,'Comp SINAPI BA 07-2025 Onerado'!$B$11:$F$9696,4,FALSE) -> 27.5 | H38: 0.1044 | I38: 2.87 | K38: TRUE | L38: TRUE
A39: C | B39: SINAPI | C39: 91862 | D39: =VLOOKUP(C39,'Comp SINAPI BA 07-2025 Onerado'!$B$11:$F$9696,2,FALSE) -> ELETRODUTO RÍGIDO ROSCÁVEL, PVC, DN 20 MM (1/2"), PARA CIRCUITOS TERMINAIS, INSTALADO EM FORRO - FORNECIMENTO E INSTALAÇÃO. AF_03/2023 | E39: INEL - INSTALAÇÃO ELÉTRICA/ELETRIFICAÇÃO E ILUMINAÇÃO EXTERNA | F39: M | G39: =VLOOKUP(C39,'Comp SINAPI BA 07-2025 Onerado'!$B$11:$F$9696,4,FALSE) -> 9.77 | H39: 0.3307 | I39: 3.23 | K39: TRUE | L39: TRUE
A40: C | B40: SINAPI | C40: 91870 | D40: =VLOOKUP(C40,'Comp SINAPI BA 07-2025 Onerado'!$B$11:$F$9696,2,FALSE) -> ELETRODUTO RÍGIDO ROSCÁVEL, PVC, DN 20 MM (1/2"), PARA CIRCUITOS TERMINAIS, INSTALADO EM PAREDE - FORNECIMENTO E INSTALAÇÃO. AF_03/2023 | E40: INEL - INSTALAÇÃO ELÉTRICA/ELETRIFICAÇÃO E ILUMINAÇÃO EXTERNA | F40: M | G40: =VLOOKUP(C40,'Comp SINAPI BA 07-2025 Onerado'!$B$11:$F$9696,4,FALSE) -> 13.22 | H40: 0.1566 | I40: 2.07 | K40: TRUE | L40: TRUE
A41: C | B41: SINAPI | C41: 91863 | D41: =VLOOKUP(C41,'Comp SINAPI BA 07-2025 Onerado'!$B$11:$F$9696,2,FALSE) -> ELETRODUTO RÍGIDO ROSCÁVEL, PVC, DN 25 MM (3/4"), PARA CIRCUITOS TERMINAIS, INSTALADO EM FORRO - FORNECIMENTO E INSTALAÇÃO. AF_03/2023 | E41: INEL - INSTALAÇÃO ELÉTRICA/ELETRIFICAÇÃO E ILUMINAÇÃO EXTERNA | F41: M | G41: =VLOOKUP(C41,'Comp SINAPI BA 07-2025 Onerado'!$B$11:$F$9696,4,FALSE) -> 11.47 | H41: 0.1305 | I41: 1.5 | K41: TRUE | L41: TRUE
A42: C | B42: SINAPI | C42: 91871 | D42: =VLOOKUP(C42,'Comp SINAPI BA 07-2025 Onerado'!$B$11:$F$9696,2,FALSE) -> ELETRODUTO RÍGIDO ROSCÁVEL, PVC, DN 25 MM (3/4"), PARA CIRCUITOS TERMINAIS, INSTALADO EM PAREDE - FORNECIMENTO E INSTALAÇÃO. AF_03/2023 | E42: INEL - INSTALAÇÃO ELÉTRICA/ELETRIFICAÇÃO E ILUMINAÇÃO EXTERNA | F42: M | G42: =VLOOKUP(C42,'Comp SINAPI BA 07-2025 Onerado'!$B$11:$F$9696,4,FALSE) -> 14.92 | H42: 0.0261 | I42: 0.39 | K42: TRUE | L42: TRUE
A43: C | B43: SINAPI | C43: 87777 | D43: =VLOOKUP(C43,'Comp SINAPI BA 07-2025 Onerado'!$B$11:$F$9696,2,FALSE) -> EMBOÇO OU MASSA ÚNICA EM ARGAMASSA TRAÇO 1:2:8, PREPARO MANUAL, APLICADA MANUALMENTE EM PANOS DE FACHADA COM PRESENÇA DE VÃOS, ESPESSURA DE 25 MM. AF_08/2022 | E43: REVE - REVESTIMENTO E TRATAMENTO DE SUPERFÍCIES | F43: m² | G43: =VLOOKUP(C43,'Comp SINAPI BA 07-2025 Onerado'!$B$11:$F$9696,4,FALSE) -> 67.9 | H43: 0.1681 | I43: 11.41 | K43: TRUE | L43: TRUE
A44: C | B44: SINAPI | C44: 93358 | D44: =VLOOKUP(C44,'Comp SINAPI BA 07-2025 Onerado'!$B$11:$F$9696,2,FALSE) -> ESCAVAÇÃO MANUAL DE VALA. AF_09/2024 | E44: MOVT - MOVIMENTO DE TERRA | F44: m³ | G44: =VLOOKUP(C44,'Comp SINAPI BA 07-2025 Onerado'!$B$11:$F$9696,4,FALSE) -> 96.4 | H44: 0.0279 | I44: 2.69 | K44: TRUE | L44: TRUE
A45: C | B45: SINAPI | C45: 91305 | D45: =VLOOKUP(C45,'Comp SINAPI BA 07-2025 Onerado'!$B$11:$F$9696,2,FALSE) -> FECHADURA DE EMBUTIR PARA PORTA DE BANHEIRO, COMPLETA, ACABAMENTO PADRÃO POPULAR, INCLUSO EXECUÇÃO DE FURO - FORNECIMENTO E INSTALAÇÃO. AF_12/2019 | E45: ESQV - ESQUADRIAS/FERRAGENS/VIDROS | F45: UN | G45: =VLOOKUP(C45,'Comp SINAPI BA 07-2025 Onerado'!$B$11:$F$9696,4,FALSE) -> 121.43 | H45: 0.0522 | I45: 6.34 | K45: TRUE | L45: TRUE
A46: C | B46: SINAPI | C46: 91170 | D46: =VLOOKUP(C46,'Comp SINAPI BA 07-2025 Onerado'!$B$11:$F$9696,2,FALSE) -> FIXAÇÃO DE TUBOS HORIZONTAIS DE PVC ÁGUA, PVC ESGOTO, PVC ÁGUA PLUVIAL, CPVC, PPR, COBRE OU AÇO, DIÂMETROS MENORES OU IGUAIS A 40 MM, COM ABRAÇADEIRA METÁLICA RÍGIDA TIPO U PERFIL 1 1/4", FIXADA EM PERFILADO EM LAJE. AF_09/2023_PS | E46: INHI - INSTALAÇÕES HIDROS SANITÁRIAS | F46: M | G46: =VLOOKUP(C46,'Comp SINAPI BA 07-2025 Onerado'!$B$11:$F$9696,4,FALSE) -> 11.49 | H46: 0.4612 | I46: 5.3 | K46: TRUE | L46: TRUE
A47: C | B47: SINAPI | C47: 91173 | D47: =VLOOKUP(C47,'Comp SINAPI BA 07-2025 Onerado'!$B$11:$F$9696,2,FALSE) -> FIXAÇÃO DE TUBOS VERTICAIS DE PVC ÁGUA, PVC ESGOTO, PVC ÁGUA PLUVIAL, CPVC, PPR, COBRE OU AÇO, DIÂMETROS MENORES OU IGUAIS A 40 MM, COM ABRAÇADEIRA METÁLICA RÍGIDA TIPO U PERFIL 1 1/4", FIXADA EM PERFILADO EM PAREDE. AF_09/2023_PS | E47: INHI - INSTALAÇÕES HIDROS SANITÁRIAS | F47: M | G47: =VLOOKUP(C47,'Comp SINAPI BA 07-2025 Onerado'!$B$11:$F$9696,4,FALSE) -> 4.27 | H47: 0.1827 | I47: 0.78 | K47: TRUE | L47: TRUE
A48: C | B48: SINAPI | C48: 96985 | D48: =VLOOKUP(C48,'Comp SINAPI BA 07-2025 Onerado'!$B$11:$F$9696,2,FALSE) -> HASTE DE ATERRAMENTO, DIÂMETRO 5/8", COM 3 METROS - FORNECIMENTO E INSTALAÇÃO. AF_08/2023 | E48: INEL - INSTALAÇÃO ELÉTRICA/ELETRIFICAÇÃO E ILUMINAÇÃO EXTERNA | F48: UN | G48: =VLOOKUP(C48,'Comp SINAPI BA 07-2025 Onerado'!$B$11:$F$9696,4,FALSE) -> 89.11 | H48: 0.0522 | I48: 4.65 | K48: TRUE | L48: TRUE
A49: C | B49: SINAPI | C49: 91959 | D49: =VLOOKUP(C49,'Comp SINAPI BA 07-2025 Onerado'!$B$11:$F$9696,2,FALSE) -> INTERRUPTOR SIMPLES (2 MÓDULOS), 10A/250V, INCLUINDO SUPORTE E PLACA - FORNECIMENTO E INSTALAÇÃO. AF_03/2023 | E49: INEL - INSTALAÇÃO ELÉTRICA/ELETRIFICAÇÃO E ILUMINAÇÃO EXTERNA | F49: UN | G49: =VLOOKUP(C49,'Comp SINAPI BA 07-2025 Onerado'!$B$11:$F$9696,4,FALSE) -> 44.37 | H49: 0.0174 | I49: 0.77 | K49: TRUE | L49: TRUE
A50: C | B50: SINAPI | C50: 91967 | D50: =VLOOKUP(C50,'Comp SINAPI BA 07-2025 Onerado'!$B$11:$F$9696,2,FALSE) -> INTERRUPTOR SIMPLES (3 MÓDULOS), 10A/250V, INCLUINDO SUPORTE E PLACA - FORNECIMENTO E INSTALAÇÃO. AF_03/2023 | E50: INEL - INSTALAÇÃO ELÉTRICA/ELETRIFICAÇÃO E ILUMINAÇÃO EXTERNA | F50: UN | G50: =VLOOKUP(C50,'Comp SINAPI BA 07-2025 Onerado'!$B$11:$F$9696,4,FALSE) -> 59.35 | H50: 0.0174 | I50: 1.03 | K50: TRUE | L50: TRUE
A51: C | B51: SINAPI | C51: 94559 | D51: =VLOOKUP(C51,'Comp SINAPI BA 07-2025 Onerado'!$B$11:$F$9696,2,FALSE) -> JANELA DE AÇO TIPO BASCULANTE, PARA VIDROS (VIDROS NÃO INCLUSOS), BATENTE/ REQUADRO INCLUSO (6,5 A 14 CM), DIMENSÕES 60X60 CM, COM COM PINTURA ANTICORROSIVA, SEM ACABAMENTO, COM FERRAGENS, FIXAÇÃO COM ARGAMASSA, EXCLUSIVE CONTRAMARCO - FORNECIMENTO E INSTALAÇÃO. AF_11/2024 | E51: ESQV - ESQUADRIAS/FERRAGENS/VIDROS | F51: m² | G51: =VLOOKUP(C51,'Comp SINAPI BA 07-2025 Onerado'!$B$11:$F$9696,4,FALSE) -> 761.69 | H51: 0.0905 | I51: 68.93 | K51: TRUE | L51: TRUE
A52: C | B52: SINAPI | C52: 89724 | D52: =VLOOKUP(C52,'Comp SINAPI BA 07-2025 Onerado'!$B$11:$F$9696,2,FALSE) -> JOELHO 90 GRAUS, PVC, SERIE NORMAL, ESGOTO PREDIAL, DN 40 MM, JUNTA SOLDÁVEL, FORNECIDO E INSTALADO EM RAMAL DE DESCARGA OU RAMAL DE ESGOTO SANITÁRIO. AF_08/2022 | E52: INHI - INSTALAÇÕES HIDROS SANITÁRIAS | F52: UN | G52: =VLOOKUP(C52,'Comp SINAPI BA 07-2025 Onerado'!$B$11:$F$9696,4,FALSE) -> 10.74 | H52: 0.174 | I52: 1.87 | K52: TRUE | L52: TRUE
A53: C | B53: SINAPI | C53: 89731 | D53: =VLOOKUP(C53,'Comp SINAPI BA 07-2025 Onerado'!$B$11:$F$9696,2,FALSE) -> JOELHO 90 GRAUS, PVC, SERIE NORMAL, ESGOTO PREDIAL, DN 50 MM, JUNTA ELÁSTICA, FORNECIDO E INSTALADO EM RAMAL DE DESCARGA OU RAMAL DE ESGOTO SANITÁRIO. AF_08/2022 | E53: INHI - INSTALAÇÕES HIDROS SANITÁRIAS | F53: UN | G53: =VLOOKUP(C53,'Comp SINAPI BA 07-2025 Onerado'!$B$11:$F$9696,4,FALSE) -> 15.46 | H53: 0.0174 | I53: 0.27 | K53: TRUE | L53: TRUE
A54: C | B54: SINAPI | C54: 89970 | D54: KIT DE REGISTRO DE PRESSÃO BRUTO DE LATÃO ¾", INCLUSIVE CONEXÕES, ROSCÁVEL, INSTALADO EM RAMAL DE ÁGUA FRIA - FORNECIMENTO E INSTALAÇÃO. AF_12/2014 | E54: INHI - INSTALAÇÕES HIDROS SANITÁRIAS | F54: UN | G54: =SUM(I55:I57) -> 50.12 | H54: 0.0696 | I54: 3.49 | K54: TRUE | L54: TRUE
A55: C | B55: SINAPI | C55: 89383 | D55: =VLOOKUP(C55,'Comp SINAPI BA 07-2025 Onerado'!$B$11:$F$9696,2,FALSE) -> ADAPTADOR CURTO COM BOLSA E ROSCA PARA REGISTRO, PVC, SOLDÁVEL, DN 25MM X 3/4, INSTALADO EM RAMAL OU SUB-RAMAL DE ÁGUA - FORNECIMENTO E INSTALAÇÃO. AF_06/2022 | E55: INHI - INSTALAÇÕES HIDROS SANITÁRIAS | F55: UN | G55: =VLOOKUP(C55,'Comp SINAPI BA 07-2025 Onerado'!$B$11:$F$9696,4,FALSE) -> 7.08 | H55: 1 | I55: =ROUND(G55*H55,2) -> 7.08 | K55: TRUE | L55: TRUE
A56: C | B56: SINAPI | C56: 89385 | D56: =VLOOKUP(C56,'Comp SINAPI BA 07-2025 Onerado'!$B$11:$F$9696,2,FALSE) -> LUVA SOLDÁVEL E COM ROSCA, PVC, SOLDÁVEL, DN 25MM X 3/4, INSTALADO EM RAMAL OU SUB-RAMAL DE ÁGUA - FORNECIMENTO E INSTALAÇÃO. AF_06/2022 | E56: INHI - INSTALAÇÕES HIDROS SANITÁRIAS | F56: UN | G56: =VLOOKUP(C56,'Comp SINAPI BA 07-2025 Onerado'!$B$11:$F$9696,4,FALSE) -> 7.63 | H56: 1 | I56: =ROUND(G56*H56,2) -> 7.63 | K56: TRUE | L56: TRUE
A57: C | B57: SINAPI | C57: 89351 | D57: =VLOOKUP(C57,'Comp SINAPI BA 07-2025 Onerado'!$B$11:$F$9696,2,FALSE) -> REGISTRO DE PRESSÃO BRUTO, LATÃO, ROSCÁVEL, 3/4'' - FORNECIMENTO E INSTALAÇÃO. AF_08/2021 | E57: INHI - INSTALAÇÕES HIDROS SANITÁRIAS | F57: UN | G57: =VLOOKUP(C57,'Comp SINAPI BA 07-2025 Onerado'!$B$11:$F$9696,4,FALSE) -> 35.41 | H57: 1 | I57: 35.41 | K57: TRUE | L57: TRUE
A58: C | B58: SINAPI | C58: 95240 | D58: =VLOOKUP(C58,'Comp SINAPI BA 07-2025 Onerado'!$B$11:$F$9696,2,FALSE) -> LASTRO DE CONCRETO MAGRO, APLICADO EM PISOS, LAJES SOBRE SOLO OU RADIERS, ESPESSURA DE 3 CM. AF_01/2024 | E58: FUES - FUNDAÇÕES E ESTRUTURAS | F58: m² | G58: =VLOOKUP(C58,'Comp SINAPI BA 07-2025 Onerado'!$B$11:$F$9696,4,FALSE) -> 22.32 | H58: 0.0064 | I58: 0.14 | K58: TRUE | L58: TRUE
A59: C | B59: SINAPI | C59: 95241 | D59: =VLOOKUP(C59,'Comp SINAPI BA 07-2025 Onerado'!$B$11:$F$9696,2,FALSE) -> LASTRO DE CONCRETO MAGRO, APLICADO EM PISOS, LAJES SOBRE SOLO OU RADIERS, ESPESSURA DE 5 CM. AF_01/2024 | E59: FUES - FUNDAÇÕES E ESTRUTURAS | F59: m² | G59: =VLOOKUP(C59,'Comp SINAPI BA 07-2025 Onerado'!$B$11:$F$9696,4,FALSE) -> 42.86 | H59: 1.3328 | I59: 57.12 | K59: TRUE | L59: TRUE
A60: C | B60: SINAPI | C60: 86943 | D60: =VLOOKUP(C60,'Comp SINAPI BA 07-2025 Onerado'!$B$11:$F$9696,2,FALSE) -> LAVATÓRIO LOUÇA BRANCA SUSPENSO, 29,5 X 39CM OU EQUIVALENTE, PADRÃO POPULAR, INCLUSO SIFÃO FLEXÍVEL EM PVC, VÁLVULA E ENGATE FLEXÍVEL 30CM EM PLÁSTICO E TORNEIRA CROMADA DE MESA, PADRÃO POPULAR - FORNECIMENTO E INSTALAÇÃO. AF_01/2020 | E60: INHI - INSTALAÇÕES HIDROS SANITÁRIAS | F60: UN | G60: =VLOOKUP(C60,'Comp SINAPI BA 07-2025 Onerado'!$B$11:$F$9696,4,FALSE) -> 278.77 | H60: 0.0522 | I60: 14.55 | K60: TRUE | L60: TRUE
A61: C | B61: SINAPI | C61: 97586 | D61: LUMINÁRIA TIPO CALHA, DE SOBREPOR, COM 2 LÂMPADAS TUBULARES FLUORESCENTES DE 36 W, COM REATOR DE PARTIDA RÁPIDA - FORNECIMENTO E INSTALAÇÃO. AF_02/2020 | E61: INEL - INSTALAÇÃO ELÉTRICA/ELETRIFICAÇÃO E ILUMINAÇÃO EXTERNA | F61: UN | G61: =SUM(I62:I64) -> 224.27 | H61: 0.1392 | I61: 31.22 | K61: TRUE | L61: TRUE
A62: C | B62: SINAPI | C62: 88247 | D62: =VLOOKUP(C62,'Comp SINAPI BA 07-2025 Onerado'!$B$11:$F$9696,2,FALSE) -> AUXILIAR DE ELETRICISTA COM ENCARGOS COMPLEMENTARES | E62: SEDI - SERVIÇOS DIVERSOS | F62: H | G62: =VLOOKUP(C62,'Comp SINAPI BA 07-2025 Onerado'!$B$11:$F$9696,4,FALSE) -> 25.56 | H62: 0.1727 | I62: =ROUND(G62*H62,2) -> 4.41 | K62: TRUE | L62: TRUE
A63: C | B63: SINAPI | C63: 88264 | D63: =VLOOKUP(C63,'Comp SINAPI BA 07-2025 Onerado'!$B$11:$F$9696,2,FALSE) -> ELETRICISTA COM ENCARGOS COMPLEMENTARES | E63: SEDI - SERVIÇOS DIVERSOS | F63: H | G63: =VLOOKUP(C63,'Comp SINAPI BA 07-2025 Onerado'!$B$11:$F$9696,4,FALSE) -> 33.94 | H63: 0.4144 | I63: =ROUND(G63*H63,2) -> 14.06 | K63: TRUE | L63: TRUE
A64: I | B64: SINAPI | C64: 3780 | D64: =VLOOKUP(C64,'Ins SINAPI BA 07-2025 Onerado'!$B$11:$F$9696,2,FALSE) -> LUMINARIA DE SOBREPOR EM CHAPA DE ACO PARA 1 LAMPADA FLUORESCENTE DE *36* W, ALETADA, COMPLETA (LAMPADA E REATOR INCLUSOS) | E64: Material | F64: UN | G64: 102.9 | H64: 2 | I64: =ROUND(G64*H64,2) -> 205.8 | K64: FALSE | L64: TRUE
A65: C | B65: SINAPI | C65: 91882 | D65: =VLOOKUP(C65,'Comp SINAPI BA 07-2025 Onerado'!$B$11:$F$9696,2,FALSE) -> LUVA PARA ELETRODUTO, PVC, ROSCÁVEL, DN 20 MM (1/2"), PARA CIRCUITOS TERMINAIS, INSTALADA EM PAREDE - FORNECIMENTO E INSTALAÇÃO. AF_03/2023 | E65: INEL - INSTALAÇÃO ELÉTRICA/ELETRIFICAÇÃO E ILUMINAÇÃO EXTERNA | F65: UN | G65: =VLOOKUP(C65,'Comp SINAPI BA 07-2025 Onerado'!$B$11:$F$9696,4,FALSE) -> 11.48 | H65: 0.0348 | I65: 0.4 | K65: TRUE | L65: TRUE
A66: C | B66: SINAPI | C66: 91875 | D66: =VLOOKUP(C66,'Comp SINAPI BA 07-2025 Onerado'!$B$11:$F$9696,2,FALSE) -> LUVA PARA ELETRODUTO, PVC, ROSCÁVEL, DN 25 MM (3/4"), PARA CIRCUITOS TERMINAIS, INSTALADA EM FORRO - FORNECIMENTO E INSTALAÇÃO. AF_03/2023 | E66: INEL - INSTALAÇÃO ELÉTRICA/ELETRIFICAÇÃO E ILUMINAÇÃO EXTERNA | F66: UN | G66: =VLOOKUP(C66,'Comp SINAPI BA 07-2025 Onerado'!$B$11:$F$9696,4,FALSE) -> 9.2 | H66: 0.0348 | I66: 0.32 | K66: TRUE | L66: TRUE
A67: C | B67: SINAPI | C67: 87548 | D67: =VLOOKUP(C67,'Comp SINAPI BA 07-2025 Onerado'!$B$11:$F$9696,2,FALSE) -> MASSA ÚNICA, EM ARGAMASSA TRAÇO 1:2:8, PREPARO MANUAL, APLICADA MANUALMENTE EM PAREDES INTERNAS DE AMBIENTES COM ÁREA ENTRE 5M² E 10M², E = 10MM, COM TALISCAS. AF_03/2024 | E67: REVE - REVESTIMENTO E TRATAMENTO DE SUPERFÍCIES | F67: m² | G67: =VLOOKUP(C67,'Comp SINAPI BA 07-2025 Onerado'!$B$11:$F$9696,4,FALSE) -> 33.71 | H67: 0.1894 | I67: 6.38 | K67: TRUE | L67: TRUE
A68: C | B68: SINAPI | C68: 98445 | D68: =VLOOKUP(C68,'Comp SINAPI BA 07-2025 Onerado'!$B$11:$F$9696,2,FALSE) -> PAREDE DE MADEIRA COMPENSADA PARA CONSTRUÇÃO TEMPORÁRIA EM CHAPA SIMPLES, EXTERNA, COM ÁREA LÍQUIDA MAIOR OU IGUAL A 6 M², COM VÃO. AF_03/2024 | E68: CANT - CANTEIRO DE OBRAS | F68: m² | G68: =VLOOKUP(C68,'Comp SINAPI BA 07-2025 Onerado'!$B$11:$F$9696,4,FALSE) -> 118.79 | H68: 0.4081 | I68: 48.48 | K68: TRUE | L68: TRUE
A69: C | B69: SINAPI | C69: 98441 | D69: =VLOOKUP(C69,'Comp SINAPI BA 07-2025 Onerado'!$B$11:$F$9696,2,FALSE) -> PAREDE DE MADEIRA COMPENSADA PARA CONSTRUÇÃO TEMPORÁRIA EM CHAPA SIMPLES, EXTERNA, SEM VÃO. AF_03/2024 | E69: CANT - CANTEIRO DE OBRAS | F69: m² | G69: =VLOOKUP(C69,'Comp SINAPI BA 07-2025 Onerado'!$B$11:$F$9696,4,FALSE) -> 100.01 | H69: 0.2612 | I69: 26.12 | K69: TRUE | L69: TRUE
A70: C | B70: SINAPI | C70: 98446 | D70: =VLOOKUP(C70,'Comp SINAPI BA 07-2025 Onerado'!$B$11:$F$9696,2,FALSE) -> PAREDE DE MADEIRA COMPENSADA PARA CONSTRUÇÃO TEMPORÁRIA EM CHAPA SIMPLES, EXTERNA, COM ÁREA LÍQUIDA MENOR QUE 6 M², COM VÃO. AF_03/2024 | E70: CANT - CANTEIRO DE OBRAS | F70: m² | G70: =VLOOKUP(C70,'Comp SINAPI BA 07-2025 Onerado'!$B$11:$F$9696,4,FALSE) -> 153.47 | H70: 0.3182 | I70: 48.83 | K70: TRUE | L70: TRUE
A71: C | B71: SINAPI | C71: 98441 | D71: =VLOOKUP(C71,'Comp SINAPI BA 07-2025 Onerado'!$B$11:$F$9696,2,FALSE) -> PAREDE DE MADEIRA COMPENSADA PARA CONSTRUÇÃO TEMPORÁRIA EM CHAPA SIMPLES, EXTERNA, SEM VÃO. AF_03/2024 | E71: CANT - CANTEIRO DE OBRAS | F71: m² | G71: =VLOOKUP(C71,'Comp SINAPI BA 07-2025 Onerado'!$B$11:$F$9696,4,FALSE) -> 100.01 | H71: 0.3007 | I71: 30.07 | K71: TRUE | L71: TRUE
A72: C | B72: SINAPI | C72: 98447 | D72: =VLOOKUP(C72,'Comp SINAPI BA 07-2025 Onerado'!$B$11:$F$9696,2,FALSE) -> PAREDE DE MADEIRA COMPENSADA PARA CONSTRUÇÃO TEMPORÁRIA EM CHAPA SIMPLES, INTERNA, COM ÁREA LÍQUIDA MAIOR OU IGUAL A 6 M², COM VÃO. AF_03/2024 | E72: CANT - CANTEIRO DE OBRAS | F72: m² | G72: =VLOOKUP(C72,'Comp SINAPI BA 07-2025 Onerado'!$B$11:$F$9696,4,FALSE) -> 91.46 | H72: 0.1297 | I72: 11.86 | K72: TRUE | L72: TRUE
A73: C | B73: SINAPI | C73: 98443 | D73: =VLOOKUP(C73,'Comp SINAPI BA 07-2025 Onerado'!$B$11:$F$9696,2,FALSE) -> PAREDE DE MADEIRA COMPENSADA PARA CONSTRUÇÃO TEMPORÁRIA EM CHAPA SIMPLES, INTERNA, SEM VÃO. AF_03/2024 | E73: CANT - CANTEIRO DE OBRAS | F73: m² | G73: =VLOOKUP(C73,'Comp SINAPI BA 07-2025 Onerado'!$B$11:$F$9696,4,FALSE) -> 76.54 | H73: 0.083 | I73: 6.35 | K73: TRUE | L73: TRUE
A74: C | B74: SINAPI | C74: 98448 | D74: =VLOOKUP(C74,'Comp SINAPI BA 07-2025 Onerado'!$B$11:$F$9696,2,FALSE) -> PAREDE DE MADEIRA COMPENSADA PARA CONSTRUÇÃO TEMPORÁRIA EM CHAPA SIMPLES, INTERNA, COM ÁREA LÍQUIDA MENOR QUE 6 M², COM VÃO. AF_03/2024 | E74: CANT - CANTEIRO DE OBRAS | F74: m² | G74: =VLOOKUP(C74,'Comp SINAPI BA 07-2025 Onerado'!$B$11:$F$9696,4,FALSE) -> 119.3 | H74: 0.1011 | I74: 12.06 | K74: TRUE | L74: TRUE
A75: C | B75: SINAPI | C75: 98443 | D75: =VLOOKUP(C75,'Comp SINAPI BA 07-2025 Onerado'!$B$11:$F$9696,2,FALSE) -> PAREDE DE MADEIRA COMPENSADA PARA CONSTRUÇÃO TEMPORÁRIA EM CHAPA SIMPLES, INTERNA, SEM VÃO. AF_03/2024 | E75: CANT - CANTEIRO DE OBRAS | F75: m² | G75: =VLOOKUP(C75,'Comp SINAPI BA 07-2025 Onerado'!$B$11:$F$9696,4,FALSE) -> 76.54 | H75: 0.0956 | I75: 7.32 | K75: TRUE | L75: TRUE
A76: C | B76: SINAPI | C76: 88489 | D76: =VLOOKUP(C76,'Comp SINAPI BA 07-2025 Onerado'!$B$11:$F$9696,2,FALSE) -> PINTURA LÁTEX ACRÍLICA PREMIUM, APLICAÇÃO MANUAL EM PAREDES, DUAS DEMÃOS. AF_04/2023 | E76: PINT - PINTURAS | F76: m² | G76: =VLOOKUP(C76,'Comp SINAPI BA 07-2025 Onerado'!$B$11:$F$9696,4,FALSE) -> 13.96 | H76: 2.4442 | I76: =ROUND(G76*H76,2) -> 34.12 | K76: TRUE | L76: TRUE
A77: C | B77: SINAPI | C77: 98679 | D77: =VLOOKUP(C77,'Comp SINAPI BA 07-2025 Onerado'!$B$11:$F$9696,2,FALSE) -> PISO CIMENTADO, TRAÇO 1:3 (CIMENTO E AREIA), ACABAMENTO LISO, ESPESSURA 2,0 CM, PREPARO MECÂNICO DA ARGAMASSA. AF_09/2020 | E77: PISO - PISOS | F77: m² | G77: =VLOOKUP(C77,'Comp SINAPI BA 07-2025 Onerado'!$B$11:$F$9696,4,FALSE) -> 44.82 | H77: 0.5134 | I77: 23.01 | K77: TRUE | L77: TRUE
A78: C | B78: SINAPI | C78: 89957 | D78: PONTO DE CONSUMO TERMINAL DE ÁGUA FRIA (SUBRAMAL) COM TUBULAÇÃO DE PVC, DN 25 MM, INSTALADO EM RAMAL DE ÁGUA, INCLUSOS RASGO E CHUMBAMENTO EM ALVENARIA. AF_12/2014 (ADAPTADO) | E78: INHI - INSTALAÇÕES HIDROS SANITÁRIAS | F78: UN | G78: =SUM(I79:I84) -> 154.23 | H78: 0.174 | I78: 26.84 | K78: =_xlfn.ISFORMULA(G78) -> TRUE | L78: =_xlfn.ISFORMULA(I78) -> TRUE
A79: C | B79: SINAPI | C79: 90466 | D79: =VLOOKUP(C79,'Comp SINAPI BA 07-2025 Onerado'!$B$11:$F$9696,2,FALSE) -> CHUMBAMENTO LINEAR EM ALVENARIA PARA RAMAIS/DISTRIBUIÇÃO DE INSTALAÇÕES HIDRÁULICAS COM DIÂMETROS MENORES OU IGUAIS A 40 MM. AF_09/2023 | E79: Material | F79: M | G79: =VLOOKUP(C79,'Comp SINAPI BA 07-2025 Onerado'!$B$11:$F$9696,4,FALSE) -> 17.79 | H79: 2.14 | I79: 38.07 | K79: TRUE | L79: TRUE
A80: C | B80: SINAPI | C80: 89366 | D80: =VLOOKUP(C80,'Comp SINAPI BA 07-2025 Onerado'!$B$11:$F$9696,2,FALSE) -> JOELHO 90 GRAUS COM BUCHA DE LATÃO, PVC, SOLDÁVEL, DN 25MM, X 3/4 INSTALADO EM RAMAL OU SUB-RAMAL DE ÁGUA - FORNECIMENTO E INSTALAÇÃO. AF_06/2022 | E80: Material | F80: UN | G80: =VLOOKUP(C80,'Comp SINAPI BA 07-2025 Onerado'!$B$11:$F$9696,4,FALSE) -> 16.1 | H80: 1 | I80: 16.1 | K80: TRUE | L80: TRUE
A81: C | B81: SINAPI | C81: 89362 | D81: =VLOOKUP(C81,'Comp SINAPI BA 07-2025 Onerado'!$B$11:$F$9696,2,FALSE) -> JOELHO 90 GRAUS, PVC, SOLDÁVEL, DN 25MM, INSTALADO EM RAMAL OU SUB-RAMAL DE ÁGUA - FORNECIMENTO E INSTALAÇÃO. AF_06/2022 | E81: Material | F81: UN | G81: =VLOOKUP(C81,'Comp SINAPI BA 07-2025 Onerado'!$B$11:$F$9696,4,FALSE) -> 10.41 | H81: 1.18 | I81: 12.28 | K81: TRUE | L81: TRUE
A82: C | B82: SINAPI | C82: 90443 | D82: =VLOOKUP(C82,'Comp SINAPI BA 07-2025 Onerado'!$B$11:$F$9696,2,FALSE) -> RASGO LINEAR MANUAL EM ALVENARIA, PARA RAMAIS/ DISTRIBUIÇÃO DE INSTALAÇÕES HIDRÁULICAS, DIÂMETROS MENORES OU IGUAIS A 40 MM. AF_09/2023 | E82: Material | F82: M | G82: =VLOOKUP(C82,'Comp SINAPI BA 07-2025 Onerado'!$B$11:$F$9696,4,FALSE) -> 9.32 | H82: 2.14 | I82: 19.94 | K82: TRUE | L82: TRUE
A83: C | B83: SINAPI | C83: 89395 | D83: =VLOOKUP(C83,'Comp SINAPI BA 07-2025 Onerado'!$B$11:$F$9696,2,FALSE) -> TE, PVC, SOLDÁVEL, DN 25MM, INSTALADO EM RAMAL OU SUB-RAMAL DE ÁGUA - FORNECIMENTO E INSTALAÇÃO. AF_06/2022 | E83: Material | F83: UN | G83: =VLOOKUP(C83,'Comp SINAPI BA 07-2025 Onerado'!$B$11:$F$9696,4,FALSE) -> 14.26 | H83: 0.89 | I83: 12.69 | K83: TRUE | L83: TRUE
A84: C | B84: SINAPI | C84: 89356 | D84: =VLOOKUP(C84,'Comp SINAPI BA 07-2025 Onerado'!$B$11:$F$9696,2,FALSE) -> TUBO, PVC, SOLDÁVEL, DE 25MM, INSTALADO EM RAMAL OU SUB-RAMAL DE ÁGUA - FORNECIMENTO E INSTALAÇÃO. AF_06/2022 | E84: Material | F84: M | G84: =VLOOKUP(C84,'Comp SINAPI BA 07-2025 Onerado'!$B$11:$F$9696,4,FALSE) -> 25.77 | H84: 2.14 | I84: 55.15 | K84: TRUE | L84: TRUE
A85: C | B85: SINAPI | C85: 90822 | D85: =VLOOKUP(C85,'Comp SINAPI BA 07-2025 Onerado'!$B$11:$F$9696,2,FALSE) -> PORTA DE MADEIRA PARA PINTURA, SEMI-OCA (LEVE OU MÉDIA), 80X210CM, ESPESSURA DE 3,5CM, INCLUSO DOBRADIÇAS - FORNECIMENTO E INSTALAÇÃO. AF_12/2019 | E85: ESQV - ESQUADRIAS/FERRAGENS/VIDROS | F85: UN | G85: =VLOOKUP(C85,'Comp SINAPI BA 07-2025 Onerado'!$B$11:$F$9696,4,FALSE) -> 401.47 | H85: 0.0348 | I85: 13.97 | K85: TRUE | L85: TRUE
A86: C | B86: SINAPI | C86: 101876 | D86: =VLOOKUP(C86,'Comp SINAPI BA 07-2025 Onerado'!$B$11:$F$9696,2,FALSE) -> QUADRO DE DISTRIBUIÇÃO DE ENERGIA EM PVC, DE EMBUTIR, SEM BARRAMENTO, PARA 6 DISJUNTORES - FORNECIMENTO E INSTALAÇÃO. AF_07/2025 | E86: INEL - INSTALAÇÃO ELÉTRICA/ELETRIFICAÇÃO E ILUMINAÇÃO EXTERNA | F86: UN | G86: =VLOOKUP(C86,'Comp SINAPI BA 07-2025 Onerado'!$B$11:$F$9696,4,FALSE) -> 114.71 | H86: 0.0174 | I86: 2 | K86: TRUE | L86: TRUE
A87: C | B87: SINAPI | C87: 89709 | D87: =VLOOKUP(C87,'Comp SINAPI BA 07-2025 Onerado'!$B$11:$F$9696,2,FALSE) -> RALO SIFONADO, PVC, DN 100 X 40 MM, JUNTA SOLDÁVEL, FORNECIDO E INSTALADO EM RAMAL DE DESCARGA OU EM RAMAL DE ESGOTO SANITÁRIO. AF_08/2022 | E87: INHI - INSTALAÇÕES HIDROS SANITÁRIAS | F87: UN | G87: =VLOOKUP(C87,'Comp SINAPI BA 07-2025 Onerado'!$B$11:$F$9696,4,FALSE) -> 20.04 | H87: 0.0696 | I87: 1.39 | K87: TRUE | L87: TRUE
A88: C | B88: SINAPI | C88: 90443 | D88: =VLOOKUP(C88,'Comp SINAPI BA 07-2025 Onerado'!$B$11:$F$9696,2,FALSE) -> RASGO LINEAR MANUAL EM ALVENARIA, PARA RAMAIS/ DISTRIBUIÇÃO DE INSTALAÇÕES HIDRÁULICAS, DIÂMETROS MENORES OU IGUAIS A 40 MM. AF_09/2023 | E88: INHI - INSTALAÇÕES HIDROS SANITÁRIAS | F88: M | G88: =VLOOKUP(C88,'Comp SINAPI BA 07-2025 Onerado'!$B$11:$F$9696,4,FALSE) -> 9.32 | H88: 0.0722 | I88: 0.67 | K88: TRUE | L88: TRUE
A89: C | B89: SINAPI | C89: 93382 | D89: =VLOOKUP(C89,'Comp SINAPI BA 07-2025 Onerado'!$B$11:$F$9696,2,FALSE) -> REATERRO MANUAL DE VALAS, COM COMPACTADOR DE SOLOS DE PERCUSSÃO. AF_08/2023 | E89: MOVT - MOVIMENTO DE TERRA | F89: m³ | G89: =VLOOKUP(C89,'Comp SINAPI BA 07-2025 Onerado'!$B$11:$F$9696,4,FALSE) -> 30.54 | H89: 0.0072 | I89: 0.22 | K89: TRUE | L89: TRUE
A90: C | B90: SINAPI | C90: 89784 | D90: =VLOOKUP(C90,'Comp SINAPI BA 07-2025 Onerado'!$B$11:$F$9696,2,FALSE) -> TE, PVC, SERIE NORMAL, ESGOTO PREDIAL, DN 50 X 50 MM, JUNTA ELÁSTICA, FORNECIDO E INSTALADO EM RAMAL DE DESCARGA OU RAMAL DE ESGOTO SANITÁRIO. AF_08/2022 | E90: INHI - INSTALAÇÕES HIDROS SANITÁRIAS | F90: UN | G90: =VLOOKUP(C90,'Comp SINAPI BA 07-2025 Onerado'!$B$11:$F$9696,4,FALSE) -> 24.36 | H90: 0.0174 | I90: 0.42 | K90: TRUE | L90: TRUE
A91: C | B91: SINAPI | C91: 94210 | D91: =VLOOKUP(C91,'Comp SINAPI BA 07-2025 Onerado'!$B$11:$F$9696,2,FALSE) -> TELHAMENTO COM TELHA ONDULADA DE FIBROCIMENTO E = 6 MM, COM RECOBRIMENTO LATERAL DE 1 1/4 DE ONDA PARA TELHADO COM INCLINAÇÃO MÁXIMA DE 10°, COM ATÉ 2 ÁGUAS, INCLUSO IÇAMENTO. AF_07/2019 | E91: COBE - COBERTURA | F91: m² | G91: =VLOOKUP(C91,'Comp SINAPI BA 07-2025 Onerado'!$B$11:$F$9696,4,FALSE) -> 51.17 | H91: 1.3566 | I91: 69.42 | K91: TRUE | L91: TRUE
A92: C | B92: SINAPI | C92: 92000 | D92: =VLOOKUP(C92,'Comp SINAPI BA 07-2025 Onerado'!$B$11:$F$9696,2,FALSE) -> TOMADA BAIXA DE EMBUTIR (1 MÓDULO), 2P+T 10 A, INCLUINDO SUPORTE E PLACA - FORNECIMENTO E INSTALAÇÃO. AF_03/2023 | E92: INEL - INSTALAÇÃO ELÉTRICA/ELETRIFICAÇÃO E ILUMINAÇÃO EXTERNA | F92: UN | G92: =VLOOKUP(C92,'Comp SINAPI BA 07-2025 Onerado'!$B$11:$F$9696,4,FALSE) -> 30.66 | H92: 0.0348 | I92: 1.07 | K92: TRUE | L92: TRUE
A93: C | B93: SINAPI | C93: 92543 | D93: =VLOOKUP(C93,'Comp SINAPI BA 07-2025 Onerado'!$B$11:$F$9696,2,FALSE) -> TRAMA DE MADEIRA COMPOSTA POR TERÇAS PARA TELHADOS DE ATÉ 2 ÁGUAS PARA TELHA ONDULADA DE FIBROCIMENTO, METÁLICA, PLÁSTICA OU TERMOACÚSTICA, INCLUSO TRANSPORTE VERTICAL. AF_07/2019 | E93: COBE - COBERTURA | F93: m² | G93: =VLOOKUP(C93,'Comp SINAPI BA 07-2025 Onerado'!$B$11:$F$9696,4,FALSE) -> 24.29 | H93: 1.3566 | I93: 32.95 | K93: TRUE | L93: TRUE
A94: C | B94: SINAPI | C94: 89714 | D94: =VLOOKUP(C94,'Comp SINAPI BA 07-2025 Onerado'!$B$11:$F$9696,2,FALSE) -> TUBO PVC, SERIE NORMAL, ESGOTO PREDIAL, DN 100 MM, FORNECIDO E INSTALADO EM RAMAL DE DESCARGA OU RAMAL DE ESGOTO SANITÁRIO. AF_08/2022 | E94: INHI - INSTALAÇÕES HIDROS SANITÁRIAS | F94: M | G94: =VLOOKUP(C94,'Comp SINAPI BA 07-2025 Onerado'!$B$11:$F$9696,4,FALSE) -> 38.86 | H94: 0.047 | I94: 1.83 | K94: TRUE | L94: TRUE
A95: C | B95: SINAPI | C95: 89711 | D95: =VLOOKUP(C95,'Comp SINAPI BA 07-2025 Onerado'!$B$11:$F$9696,2,FALSE) -> TUBO PVC, SERIE NORMAL, ESGOTO PREDIAL, DN 40 MM, FORNECIDO E INSTALADO EM RAMAL DE DESCARGA OU RAMAL DE ESGOTO SANITÁRIO. AF_08/2022 | E95: INHI - INSTALAÇÕES HIDROS SANITÁRIAS | F95: M | G95: =VLOOKUP(C95,'Comp SINAPI BA 07-2025 Onerado'!$B$11:$F$9696,4,FALSE) -> 22.65 | H95: 0.1631 | I95: 3.69 | K95: TRUE | L95: TRUE
A96: C | B96: SINAPI | C96: 89712 | D96: =VLOOKUP(C96,'Comp SINAPI BA 07-2025 Onerado'!$B$11:$F$9696,2,FALSE) -> TUBO PVC, SERIE NORMAL, ESGOTO PREDIAL, DN 50 MM, FORNECIDO E INSTALADO EM RAMAL DE DESCARGA OU RAMAL DE ESGOTO SANITÁRIO. AF_08/2022 | E96: INHI - INSTALAÇÕES HIDROS SANITÁRIAS | F96: M | G96: =VLOOKUP(C96,'Comp SINAPI BA 07-2025 Onerado'!$B$11:$F$9696,4,FALSE) -> 27.9 | H96: 0.2235 | I96: 6.24 | K96: TRUE | L96: TRUE
A97: C | B97: SINAPI | C97: 86888 | D97: =VLOOKUP(C97,'Comp SINAPI BA 07-2025 Onerado'!$B$11:$F$9696,2,FALSE) -> VASO SANITÁRIO SIFONADO COM CAIXA ACOPLADA LOUÇA BRANCA - FORNECIMENTO E INSTALAÇÃO. AF_01/2020 | E97: INHI - INSTALAÇÕES HIDROS SANITÁRIAS | F97: UN | G97: =VLOOKUP(C97,'Comp SINAPI BA 07-2025 Onerado'!$B$11:$F$9696,4,FALSE) -> 510.32 | H97: 0.0522 | I97: 26.64 | K97: TRUE | L97: TRUE
A98: I | B98: SINAPI | C98: 11712 | D98: =VLOOKUP(C98,'Ins SINAPI BA 07-2025 Onerado'!$B$11:$F$9696,2,FALSE) -> CAIXA SIFONADA, PVC, 150 X 150 X 50 MM, COM GRELHA QUADRADA, BRANCA (NBR 5688) | E98: Material | F98: UN | G98: =VLOOKUP(C98,'Ins SINAPI BA 07-2025 Onerado'!$B$11:$F$9696,5,FALSE) -> 36.2 | H98: 0.0348 | I98: 1.26 | K98: TRUE | L98: TRUE
A99: I | B99: SINAPI | C99: 3080 | D99: =VLOOKUP(C99,'Ins SINAPI BA 07-2025 Onerado'!$B$11:$F$9696,2,FALSE) -> FECHADURA ESPELHO PARA PORTA EXTERNA, EM ACO INOX (MAQUINA, TESTA E CONTRA-TESTA) E EM ZAMAC (MACANETA, LINGUETA E TRINCOS) COM ACABAMENTO CROMADO, MAQUINA DE 40 MM, INCLUINDO CHAVE TIPO CILINDRO | E99: Material | F99: CJ | G99: =VLOOKUP(C99,'Ins SINAPI BA 07-2025 Onerado'!$B$11:$F$9696,5,FALSE) -> 78.2 | H99: 0.0348 | I99: 2.72 | K99: TRUE | L99: TRUE
A100: I | B100: SINAPI | C100: 11587 | D100: =VLOOKUP(C100,'Ins SINAPI BA 07-2025 Onerado'!$B$11:$F$9696,2,FALSE) -> FORRO DE PVC LISO, BRANCO, REGUA DE 10 CM, ESPESSURA APROXIMADA DE 8 MM (COM COLOCACAO / SEM ESTRUTURA METALICA) | E100: Material | F100: m² | G100: =VLOOKUP(C100,'Ins SINAPI BA 07-2025 Onerado'!$B$11:$F$9696,5,FALSE) -> 78.6 | H100: 0.9762 | I100: 76.73 | K100: TRUE | L100: TRUE
A101: I | B101: SINAPI | C101: 3659 | D101: =VLOOKUP(C101,'Ins SINAPI BA 07-2025 Onerado'!$B$11:$F$9696,2,FALSE) -> JUNCAO SIMPLES DE REDUCAO, PVC, DN 100 X 50 MM, SERIE NORMAL PARA ESGOTO PREDIAL | E101: Material | F101: UN | G101: =VLOOKUP(C101,'Ins SINAPI BA 07-2025 Onerado'!$B$11:$F$9696,5,FALSE) -> 15.88 | H101: 0.0174 | I101: 0.28 | K101: TRUE | L101: TRUE
A102: I | B102: SINAPI | C102: 3670 | D102: =VLOOKUP(C102,'Ins SINAPI BA 07-2025 Onerado'!$B$11:$F$9696,2,FALSE) -> JUNCAO SIMPLES, PVC, 45 GRAUS, DN 100 X 100 MM, SERIE NORMAL PARA ESGOTO PREDIAL | E102: Material | F102: UN | G102: =VLOOKUP(C102,'Ins SINAPI BA 07-2025 Onerado'!$B$11:$F$9696,5,FALSE) -> 20.39 | H102: 0.0348 | I102: 0.71 | K102: TRUE | L102: TRUE
A103: I | B103: SINAPI | C103: 11697 | D103: =VLOOKUP(C103,'Ins SINAPI BA 07-2025 Onerado'!$B$11:$F$9696,2,FALSE) -> MICTORIO COLETIVO ACO INOX (AISI 304), E = 0,8 MM, DE *100 X 40 X 30* CM (C X A X P) | E103: Material | F103: UN | G103: =VLOOKUP(C103,'Ins SINAPI BA 07-2025 Onerado'!$B$11:$F$9696,5,FALSE) -> 616.71 | H103: 0.0174 | I103: 10.73 | K103: TRUE | L103: TRUE
A104: I | B104: SINAPI | C104: 43777 | D104: =VLOOKUP(C104,'Ins SINAPI BA 07-2025 Onerado'!$B$11:$F$9696,2,FALSE) -> PORTA DE MADEIRA, FOLHA LEVE (NBR 15930), DE 600 X 2100 MM, E = 35 MM, NUCLEO COLMEIA, CAPA LISA EM HDF, ACABAMENTO MELAMINICO EM PADRAO MADEIRA | E104: Material | F104: UN | G104: =VLOOKUP(C104,'Ins SINAPI BA 07-2025 Onerado'!$B$11:$F$9696,5,FALSE) -> 247.81 | H104: 0.0447618 | I104: 11.09 | K104: TRUE | L104: TRUE
A105: I | B105: SINAPI | C105: 21112 | D105: =VLOOKUP(C105,'Ins SINAPI BA 07-2025 Onerado'!$B$11:$F$9696,2,FALSE) -> VALVULA DE DESCARGA EM METAL CROMADO PARA MICTORIO COM ACIONAMENTO POR PRESSAO E FECHAMENTO AUTOMATICO | E105: Material | F105: UN | G105: =VLOOKUP(C105,'Ins SINAPI BA 07-2025 Onerado'!$B$11:$F$9696,5,FALSE) -> 320.3 | H105: 0.0174 | I105: 5.57 | K105: TRUE | L105: TRUE
K106: FALSE | L106: FALSE
K107: FALSE | L107: FALSE
A108: Código | D108: 93583 ADAPTADO | K108: FALSE | L108: FALSE
A109: Descrição | D109: EXECUÇÃO DE CENTRAL DE FÔRMAS, PRODUÇÃO DE ARGAMASSA OU CONCRETO EM CANTEIRO DE OBRA, NÃO INCLUSO MOBILIÁRIO E EQUIPAMENTOS. AF_04/2016 | K109: FALSE | L109: FALSE
A110: Data | D110: 2025-06-01 | K110: FALSE | L110: FALSE
A111: Estado | D111: Bahia | K111: FALSE | L111: FALSE
A112: Tipo | D112: CANT - CANTEIRO DE OBRAS | K112: FALSE | L112: FALSE
A113: Unidade | D113: m² | K113: FALSE | L113: FALSE
A114: Valor sem Desoneração | D114: =SUM(I117:I131,I135:I145) -> 501.97 | K114: FALSE | L114: FALSE
K115: FALSE | L115: FALSE
A116: Natureza | B116: Fonte | C116: codigo | D116: Descrição | E116: Tipo | F116: Unidade | G116: Valor sem Desoneração | H116: Coeficiente | I116: Valor sem Desoneração | K116: FALSE | L116: FALSE
A117: C | B117: SINAPI | C117: 91924 | D117: =VLOOKUP(C117,'Comp SINAPI BA 07-2025 Onerado'!$B$11:$F$9696,2,FALSE) -> CABO DE COBRE FLEXÍVEL ISOLADO, 1,5 MM², ANTI-CHAMA 450/750 V, PARA CIRCUITOS TERMINAIS - FORNECIMENTO E INSTALAÇÃO. AF_03/2023 | E117: INEL - INSTALAÇÃO ELÉTRICA/ELETRIFICAÇÃO E ILUMINAÇÃO EXTERNA | F117: M | G117: =VLOOKUP(C117,'Comp SINAPI BA 07-2025 Onerado'!$B$11:$F$9696,4,FALSE) -> 3.26 | H117: 1,0821 | I117: =ROUND(G117*H117,2) -> 3.53 | K117: TRUE | L117: TRUE
A118: C | B118: SINAPI | C118: 92981 | D118: CABO DE COBRE FLEXÍVEL ISOLADO, 16 MM², ANTI-CHAMA 450/750 V, PARA DISTRIBUIÇÃO - FORNECIMENTO E INSTALAÇÃO. AF_10/2020 | E118: INEL - INSTALAÇÃO ELÉTRICA/ELETRIFICAÇÃO E ILUMINAÇÃO EXTERNA | F118: M | G118: 16.65 | H118: 0,4831 | I118: 8.04 | K118: FALSE | L118: TRUE
A119: C | B119: SINAPI | C119: 91926 | D119: =VLOOKUP(C119,'Comp SINAPI BA 07-2025 Onerado'!$B$11:$F$9696,2,FALSE) -> CABO DE COBRE FLEXÍVEL ISOLADO, 2,5 MM², ANTI-CHAMA 450/750 V, PARA CIRCUITOS TERMINAIS - FORNECIMENTO E INSTALAÇÃO. AF_03/2023 | E119: INEL - INSTALAÇÃO ELÉTRICA/ELETRIFICAÇÃO E ILUMINAÇÃO EXTERNA | F119: M | G119: =VLOOKUP(C119,'Comp SINAPI BA 07-2025 Onerado'!$B$11:$F$9696,4,FALSE) -> 4.72 | H119: 2,087 | I119: 9.85 | K119: TRUE | L119: TRUE
A120: C | B120: SINAPI | C120: 97886 | D120: =VLOOKUP(C120,'Comp SINAPI BA 07-2025 Onerado'!$B$11:$F$9696,2,FALSE) -> CAIXA ENTERRADA ELÉTRICA RETANGULAR, EM ALVENARIA COM TIJOLOS CERÂMICOS MACIÇOS, FUNDO COM BRITA, DIMENSÕES INTERNAS: 0,3X0,3X0,3 M. AF_12/2020 | E120: INEL - INSTALAÇÃO ELÉTRICA/ELETRIFICAÇÃO E ILUMINAÇÃO EXTERNA | F120: UN | G120: =VLOOKUP(C120,'Comp SINAPI BA 07-2025 Onerado'!$B$11:$F$9696,4,FALSE) -> 186.01 | H120: 0,0966 | I120: 17.97 | K120: TRUE | L120: TRUE
A121: C | B121: SINAPI | C121: 95805 | D121: =VLOOKUP(C121,'Comp SINAPI BA 07-2025 Onerado'!$B$11:$F$9696,2,FALSE) -> CONDULETE DE PVC, TIPO B, PARA ELETRODUTO DE PVC SOLDÁVEL DN 25 MM (3/4''), APARENTE - FORNECIMENTO E INSTALAÇÃO. AF_10/2022 | E121: INEL - INSTALAÇÃO ELÉTRICA/ELETRIFICAÇÃO E ILUMINAÇÃO EXTERNA | F121: UN | G121: =VLOOKUP(C121,'Comp SINAPI BA 07-2025 Onerado'!$B$11:$F$9696,4,FALSE) -> 23.54 | H121: 0,3865 | I121: 9.1 | K121: TRUE | L121: TRUE
A122: C | B122: SINAPI | C122: 101891 | D122: =VLOOKUP(C122,'Comp SINAPI BA 07-2025 Onerado'!$B$11:$F$9696,2,FALSE) -> DISJUNTOR MONOPOLAR TIPO NEMA, CORRENTE NOMINAL DE 35 ATÉ 50A - FORNECIMENTO E INSTALAÇÃO. AF_07/2025 | E122: INEL - INSTALAÇÃO ELÉTRICA/ELETRIFICAÇÃO E ILUMINAÇÃO EXTERNA | F122: UN | G122: =VLOOKUP(C122,'Comp SINAPI BA 07-2025 Onerado'!$B$11:$F$9696,4,FALSE) -> 27.5 | H122: 0,2899 | I122: 7.97 | K122: TRUE | L122: TRUE
A123: C | B123: SINAPI | C123: 91862 | D123: =VLOOKUP(C123,'Comp SINAPI BA 07-2025 Onerado'!$B$11:$F$9696,2,FALSE) -> ELETRODUTO RÍGIDO ROSCÁVEL, PVC, DN 20 MM (1/2"), PARA CIRCUITOS TERMINAIS, INSTALADO EM FORRO - FORNECIMENTO E INSTALAÇÃO. AF_03/2023 | E123: INEL - INSTALAÇÃO ELÉTRICA/ELETRIFICAÇÃO E ILUMINAÇÃO EXTERNA | F123: M | G123: =VLOOKUP(C123,'Comp SINAPI BA 07-2025 Onerado'!$B$11:$F$9696,4,FALSE) -> 9.77 | H123: 0,4251 | I123: 4.15 | K123: TRUE | L123: TRUE
A124: C | B124: SINAPI | C124: 91870 | D124: =VLOOKUP(C124,'Comp SINAPI BA 07-2025 Onerado'!$B$11:$F$9696,2,FALSE) -> ELETRODUTO RÍGIDO ROSCÁVEL, PVC, DN 20 MM (1/2"), PARA CIRCUITOS TERMINAIS, INSTALADO EM PAREDE - FORNECIMENTO E INSTALAÇÃO. AF_03/2023 | E124: INEL - INSTALAÇÃO ELÉTRICA/ELETRIFICAÇÃO E ILUMINAÇÃO EXTERNA | F124: M | G124: =VLOOKUP(C124,'Comp SINAPI BA 07-2025 Onerado'!$B$11:$F$9696,4,FALSE) -> 13.22 | H124: 0,4638 | I124: 6.13 | K124: TRUE | L124: TRUE
A125: C | B125: SINAPI | C125: 93358 | D125: =VLOOKUP(C125,'Comp SINAPI BA 07-2025 Onerado'!$B$11:$F$9696,2,FALSE) -> ESCAVAÇÃO MANUAL DE VALA. AF_09/2024 | E125: MOVT - MOVIMENTO DE TERRA | F125: m³ | G125: =VLOOKUP(C125,'Comp SINAPI BA 07-2025 Onerado'!$B$11:$F$9696,4,FALSE) -> 96.4 | H125: 0,0078 | I125: 0.75 | K125: TRUE | L125: TRUE
A126: C | B126: SINAPI | C126: 91170 | D126: =VLOOKUP(C126,'Comp SINAPI BA 07-2025 Onerado'!$B$11:$F$9696,2,FALSE) -> FIXAÇÃO DE TUBOS HORIZONTAIS DE PVC ÁGUA, PVC ESGOTO, PVC ÁGUA PLUVIAL, CPVC, PPR, COBRE OU AÇO, DIÂMETROS MENORES OU IGUAIS A 40 MM, COM ABRAÇADEIRA METÁLICA RÍGIDA TIPO U PERFIL 1 1/4", FIXADA EM PERFILADO EM LAJE. AF_09/2023_PS | E126: INHI - INSTALAÇÕES HIDROS SANITÁRIAS | F126: M | G126: =VLOOKUP(C126,'Comp SINAPI BA 07-2025 Onerado'!$B$11:$F$9696,4,FALSE) -> 11.49 | H126: 0,4251 | I126: 4.88 | K126: TRUE | L126: TRUE
A127: C | B127: SINAPI | C127: 91173 | D127: =VLOOKUP(C127,'Comp SINAPI BA 07-2025 Onerado'!$B$11:$F$9696,2,FALSE) -> FIXAÇÃO DE TUBOS VERTICAIS DE PVC ÁGUA, PVC ESGOTO, PVC ÁGUA PLUVIAL, CPVC, PPR, COBRE OU AÇO, DIÂMETROS MENORES OU IGUAIS A 40 MM, COM ABRAÇADEIRA METÁLICA RÍGIDA TIPO U PERFIL 1 1/4", FIXADA EM PERFILADO EM PAREDE. AF_09/2023_PS | E127: INHI - INSTALAÇÕES HIDROS SANITÁRIAS | F127: M | G127: =VLOOKUP(C127,'Comp SINAPI BA 07-2025 Onerado'!$B$11:$F$9696,4,FALSE) -> 4.27 | H127: 0,4638 | I127: 1.98 | K127: TRUE | L127: TRUE
A128: C | B128: SINAPI | C128: 96985 | D128: =VLOOKUP(C128,'Comp SINAPI BA 07-2025 Onerado'!$B$11:$F$9696,2,FALSE) -> HASTE DE ATERRAMENTO, DIÂMETRO 5/8", COM 3 METROS - FORNECIMENTO E INSTALAÇÃO. AF_08/2023 | E128: INEL - INSTALAÇÃO ELÉTRICA/ELETRIFICAÇÃO E ILUMINAÇÃO EXTERNA | F128: UN | G128: =VLOOKUP(C128,'Comp SINAPI BA 07-2025 Onerado'!$B$11:$F$9696,4,FALSE) -> 89.11 | H128: 0,0966 | I128: 8.61 | K128: TRUE | L128: TRUE
A129: C | B129: SINAPI | C129: 92023 | D129: =VLOOKUP(C129,'Comp SINAPI BA 07-2025 Onerado'!$B$11:$F$9696,2,FALSE) -> INTERRUPTOR SIMPLES (1 MÓDULO) COM 1 TOMADA DE EMBUTIR 2P+T 10 A, INCLUINDO SUPORTE E PLACA - FORNECIMENTO E INSTALAÇÃO. AF_03/2023 | E129: INEL - INSTALAÇÃO ELÉTRICA/ELETRIFICAÇÃO E ILUMINAÇÃO EXTERNA | F129: UN | G129: =VLOOKUP(C129,'Comp SINAPI BA 07-2025 Onerado'!$B$11:$F$9696,4,FALSE) -> 50.04 | H129: 0,0966 | I129: 4.83 | K129: TRUE | L129: TRUE
A130: C | B130: SINAPI | C130: 95241 | D130: =VLOOKUP(C130,'Comp SINAPI BA 07-2025 Onerado'!$B$11:$F$9696,2,FALSE) -> LASTRO DE CONCRETO MAGRO, APLICADO EM PISOS, LAJES SOBRE SOLO OU RADIERS, ESPESSURA DE 5 CM. AF_01/2024 | E130: FUES - FUNDAÇÕES E ESTRUTURAS | F130: m² | G130: =VLOOKUP(C130,'Comp SINAPI BA 07-2025 Onerado'!$B$11:$F$9696,4,FALSE) -> 42.86 | H130: 1,9256 | I130: 82.53 | K130: TRUE | L130: TRUE
A131: C | B131: SINAPI | C131: 97586 | D131: LUMINÁRIA TIPO CALHA, DE SOBREPOR, COM 2 LÂMPADAS TUBULARES FLUORESCENTES DE 36 W, COM REATOR DE PARTIDA RÁPIDA - FORNECIMENTO E INSTALAÇÃO. AF_02/2020 | E131: INEL - INSTALAÇÃO ELÉTRICA/ELETRIFICAÇÃO E ILUMINAÇÃO EXTERNA | F131: UN | G131: =SUM(I132:I134) -> 224.27 | H131: 0.1392 | I131: 31.22 | K131: TRUE | L131: TRUE
A132: C | B132: SINAPI | C132: 88247 | D132: =VLOOKUP(C132,'Comp SINAPI BA 07-2025 Onerado'!$B$11:$F$9696,2,FALSE) -> AUXILIAR DE ELETRICISTA COM ENCARGOS COMPLEMENTARES | E132: SEDI - SERVIÇOS DIVERSOS | F132: H | G132: =VLOOKUP(C132,'Comp SINAPI BA 07-2025 Onerado'!$B$11:$F$9696,4,FALSE) -> 25.56 | H132: 0.1727 | I132: 4.41 | K132: TRUE | L132: TRUE
A133: C | B133: SINAPI | C133: 88264 | D133: =VLOOKUP(C133,'Comp SINAPI BA 07-2025 Onerado'!$B$11:$F$9696,2,FALSE) -> ELETRICISTA COM ENCARGOS COMPLEMENTARES | E133: SEDI - SERVIÇOS DIVERSOS | F133: H | G133: =VLOOKUP(C133,'Comp SINAPI BA 07-2025 Onerado'!$B$11:$F$9696,4,FALSE) -> 33.94 | H133: 0.4144 | I133: 14.06 | K133: TRUE | L133: TRUE
A134: C | B134: SINAPI | C134: 3780 | D134: =VLOOKUP(C134,'Ins SINAPI BA 07-2025 Onerado'!$B$11:$F$9696,2,FALSE) -> LUMINARIA DE SOBREPOR EM CHAPA DE ACO PARA 1 LAMPADA FLUORESCENTE DE *36* W, ALETADA, COMPLETA (LAMPADA E REATOR INCLUSOS) | E134: Material | F134: UN | G134: =G64 -> 102.9 | H134: 2 | I134: 205.8 | K134: TRUE | L134: TRUE
A135: C | B135: SINAPI | C135: 98445 | D135: =VLOOKUP(C135,'Comp SINAPI BA 07-2025 Onerado'!$B$11:$F$9696,2,FALSE) -> PAREDE DE MADEIRA COMPENSADA PARA CONSTRUÇÃO TEMPORÁRIA EM CHAPA SIMPLES, EXTERNA, COM ÁREA LÍQUIDA MAIOR OU IGUAL A 6 M², COM VÃO. AF_03/2024 | E135: CANT - CANTEIRO DE OBRAS | F135: m² | G135: =VLOOKUP(C135,'Comp SINAPI BA 07-2025 Onerado'!$B$11:$F$9696,4,FALSE) -> 118.79 | H135: 0,1508 | I135: 17.91 | K135: TRUE | L135: TRUE
A136: C | B136: SINAPI | C136: 98441 | D136: =VLOOKUP(C136,'Comp SINAPI BA 07-2025 Onerado'!$B$11:$F$9696,2,FALSE) -> PAREDE DE MADEIRA COMPENSADA PARA CONSTRUÇÃO TEMPORÁRIA EM CHAPA SIMPLES, EXTERNA, SEM VÃO. AF_03/2024 | E136: CANT - CANTEIRO DE OBRAS | F136: m² | G136: =VLOOKUP(C136,'Comp SINAPI BA 07-2025 Onerado'!$B$11:$F$9696,4,FALSE) -> 100.01 | H136: 0,0966 | I136: 9.66 | K136: TRUE | L136: TRUE
A137: C | B137: SINAPI | C137: 98446 | D137: =VLOOKUP(C137,'Comp SINAPI BA 07-2025 Onerado'!$B$11:$F$9696,2,FALSE) -> PAREDE DE MADEIRA COMPENSADA PARA CONSTRUÇÃO TEMPORÁRIA EM CHAPA SIMPLES, EXTERNA, COM ÁREA LÍQUIDA MENOR QUE 6 M², COM VÃO. AF_03/2024 | E137: CANT - CANTEIRO DE OBRAS | F137: m² | G137: =VLOOKUP(C137,'Comp SINAPI BA 07-2025 Onerado'!$B$11:$F$9696,4,FALSE) -> 153.47 | H137: 0,1176 | I137: 18.05 | K137: TRUE | L137: TRUE
A138: C | B138: SINAPI | C138: 98441 | D138: =VLOOKUP(C138,'Comp SINAPI BA 07-2025 Onerado'!$B$11:$F$9696,2,FALSE) -> PAREDE DE MADEIRA COMPENSADA PARA CONSTRUÇÃO TEMPORÁRIA EM CHAPA SIMPLES, EXTERNA, SEM VÃO. AF_03/2024 | E138: CANT - CANTEIRO DE OBRAS | F138: m² | G138: =VLOOKUP(C138,'Comp SINAPI BA 07-2025 Onerado'!$B$11:$F$9696,4,FALSE) -> 100.01 | H138: 0.3007 | I138: 30.07 | K138: TRUE | L138: TRUE
A139: C | B139: SINAPI | C139: 88489 | D139: =VLOOKUP(C139,'Comp SINAPI BA 07-2025 Onerado'!$B$11:$F$9696,2,FALSE) -> PINTURA LÁTEX ACRÍLICA PREMIUM, APLICAÇÃO MANUAL EM PAREDES, DUAS DEMÃOS. AF_04/2023 | E139: PINT - PINTURAS | F139: m² | G139: =VLOOKUP(C139,'Comp SINAPI BA 07-2025 Onerado'!$B$11:$F$9696,4,FALSE) -> 13.96 | H139: 0,4761 | I139: 6.65 | K139: TRUE | L139: TRUE
A140: C | B140: SINAPI | C140: 101876 | D140: =VLOOKUP(C140,'Comp SINAPI BA 07-2025 Onerado'!$B$11:$F$9696,2,FALSE) -> QUADRO DE DISTRIBUIÇÃO DE ENERGIA EM PVC, DE EMBUTIR, SEM BARRAMENTO, PARA 6 DISJUNTORES - FORNECIMENTO E INSTALAÇÃO. AF_07/2025 | E140: INEL - INSTALAÇÃO ELÉTRICA/ELETRIFICAÇÃO E ILUMINAÇÃO EXTERNA | F140: UN | G140: =VLOOKUP(C140,'Comp SINAPI BA 07-2025 Onerado'!$B$11:$F$9696,4,FALSE) -> 114.71 | H140: 0,0966 | I140: 11.08 | K140: TRUE | L140: TRUE
A141: C | B141: SINAPI | C141: 94210 | D141: =VLOOKUP(C141,'Comp SINAPI BA 07-2025 Onerado'!$B$11:$F$9696,2,FALSE) -> TELHAMENTO COM TELHA ONDULADA DE FIBROCIMENTO E = 6 MM, COM RECOBRIMENTO LATERAL DE 1 1/4 DE ONDA PARA TELHADO COM INCLINAÇÃO MÁXIMA DE 10°, COM ATÉ 2 ÁGUAS, INCLUSO IÇAMENTO. AF_07/2019 | E141: COBE - COBERTURA | F141: m² | G141: =VLOOKUP(C141,'Comp SINAPI BA 07-2025 Onerado'!$B$11:$F$9696,4,FALSE) -> 51.17 | H141: 1,9256 | I141: 98.53 | K141: TRUE | L141: TRUE
A142: C | B142: SINAPI | C142: 92008 | D142: =VLOOKUP(C142,'Comp SINAPI BA 07-2025 Onerado'!$B$11:$F$9696,2,FALSE) -> TOMADA BAIXA DE EMBUTIR (2 MÓDULOS), 2P+T 10 A, INCLUINDO SUPORTE E PLACA - FORNECIMENTO E INSTALAÇÃO. AF_03/2023 | E142: INEL - INSTALAÇÃO ELÉTRICA/ELETRIFICAÇÃO E ILUMINAÇÃO EXTERNA | F142: UN | G142: =VLOOKUP(C142,'Comp SINAPI BA 07-2025 Onerado'!$B$11:$F$9696,4,FALSE) -> 46.84 | H142: 0,2899 | I142: 13.58 | K142: =_xlfn.ISFORMULA(G142) -> TRUE | L142: =_xlfn.ISFORMULA(I142) -> TRUE
A143: C | B143: SINAPI | C143: 92543 | D143: =VLOOKUP(C143,'Comp SINAPI BA 07-2025 Onerado'!$B$11:$F$9696,2,FALSE) -> TRAMA DE MADEIRA COMPOSTA POR TERÇAS PARA TELHADOS DE ATÉ 2 ÁGUAS PARA TELHA ONDULADA DE FIBROCIMENTO, METÁLICA, PLÁSTICA OU TERMOACÚSTICA, INCLUSO TRANSPORTE VERTICAL. AF_07/2019 | E143: COBE - COBERTURA | F143: m² | G143: =VLOOKUP(C143,'Comp SINAPI BA 07-2025 Onerado'!$B$11:$F$9696,4,FALSE) -> 24.29 | H143: 1,9256 | I143: 46.77 | K143: TRUE | L143: TRUE
A144: I | B144: SINAPI | C144: 10886 | D144: =VLOOKUP(C144,'Ins SINAPI BA 07-2025 Onerado'!$B$11:$F$9696,2,FALSE) -> EXTINTOR DE INCENDIO PORTATIL COM CARGA DE AGUA PRESSURIZADA DE 10 L, CLASSE A | E144: Material | F144: UN | G144: =VLOOKUP(C144,'Ins SINAPI BA 07-2025 Onerado'!$B$11:$F$9696,5,FALSE) -> 253.31 | H144: 0,0966 | I144: 24.47 | K144: TRUE | L144: TRUE
A145: I | B145: SINAPI | C145: 10891 | D145: =VLOOKUP(C145,'Ins SINAPI BA 07-2025 Onerado'!$B$11:$F$9696,2,FALSE) -> EXTINTOR DE INCENDIO PORTATIL COM CARGA DE PO QUIMICO SECO (PQS) DE 4 KG, CLASSE BC | E145: Material | F145: UN | G145: =VLOOKUP(C145,'Ins SINAPI BA 07-2025 Onerado'!$B$11:$F$9696,5,FALSE) -> 244.96 | H145: 0,0966 | I145: 23.66 | K145: TRUE | L145: TRUE
K146: FALSE | L146: FALSE
K147: FALSE | L147: FALSE
A148: Código | D148: 93210 ADAPTADO | K148: FALSE | L148: FALSE
A149: Descrição | D149: EXECUÇÃO DE REFEITÓRIO EM CANTEIRO DE OBRA EM CHAPA DE MADEIRA COMPENSADA, NÃO INCLUSO MOBILIÁRIO E EQUIPAMENTOS. AF_02/2016 | K149: FALSE | L149: FALSE
A150: Data | D150: 2025-06-01 | K150: FALSE | L150: FALSE
A151: Estado | D151: Bahia | K151: FALSE | L151: FALSE
A152: Tipo | D152: CANT - CANTEIRO DE OBRAS | K152: FALSE | L152: FALSE
A153: Unidade | D153: m² | K153: FALSE | L153: FALSE
A154: Valor sem Desoneração | D154: =SUM(I157:I179,I183:I188,I195:I208) -> 593.4355726 | K154: FALSE | L154: FALSE
K155: FALSE | L155: FALSE
A156: Natureza | B156: Fonte | C156: codigo | D156: Descrição | E156: Tipo | F156: Unidade | G156: Valor sem Desoneração | H156: Coeficiente | I156: Valor sem Desoneração | K156: FALSE | L156: FALSE
A157: C | B157: SINAPI | C157: 101165 | D157: =VLOOKUP(C157,'Comp SINAPI BA 07-2025 Onerado'!$B$11:$F$9696,2,FALSE) -> ALVENARIA DE EMBASAMENTO COM BLOCO ESTRUTURAL DE CONCRETO, DE 14X19X29CM E ARGAMASSA DE ASSENTAMENTO COM PREPARO EM BETONEIRA. AF_05/2020 | E157: FUES - FUNDAÇÕES E ESTRUTURAS | F157: m³ | G157: =VLOOKUP(C157,'Comp SINAPI BA 07-2025 Onerado'!$B$11:$F$9696,4,FALSE) -> 975.38 | H157: 0.04 | I157: =G157*H157 -> 39.0152 | K157: TRUE | L157: TRUE
A158: C | B158: SINAPI | C158: 86934 | D158: =VLOOKUP(C158,'Comp SINAPI BA 07-2025 Onerado'!$B$11:$F$9696,2,FALSE) -> BANCADA DE MÁRMORE SINTÉTICO 120 X 60CM, COM CUBA INTEGRADA, INCLUSO SIFÃO TIPO FLEXÍVEL EM PVC, VÁLVULA EM PLÁSTICO CROMADO TIPO AMERICANA E TORNEIRA CROMADA LONGA, DE PAREDE, PADRÃO POPULAR - FORNECIMENTO E INSTALAÇÃO. AF_01/2020 | E158: INHI - INSTALAÇÕES HIDROS SANITÁRIAS | F158: UN | G158: =VLOOKUP(C158,'Comp SINAPI BA 07-2025 Onerado'!$B$11:$F$9696,4,FALSE) -> 431.28 | H158: 0.0268 | I158: =G158*H158 -> 11.558304 | K158: TRUE | L158: TRUE
A159: C | B159: SINAPI | C159: 91924 | D159: =VLOOKUP(C159,'Comp SINAPI BA 07-2025 Onerado'!$B$11:$F$9696,2,FALSE) -> CABO DE COBRE FLEXÍVEL ISOLADO, 1,5 MM², ANTI-CHAMA 450/750 V, PARA CIRCUITOS TERMINAIS - FORNECIMENTO E INSTALAÇÃO. AF_03/2023 | E159: INEL - INSTALAÇÃO ELÉTRICA/ELETRIFICAÇÃO E ILUMINAÇÃO EXTERNA | F159: M | G159: =VLOOKUP(C159,'Comp SINAPI BA 07-2025 Onerado'!$B$11:$F$9696,4,FALSE) -> 3.26 | H159: 0.8591 | I159: 2.800666 | K159: TRUE | L159: TRUE
A160: C | B160: SINAPI | C160: 91926 | D160: =VLOOKUP(C160,'Comp SINAPI BA 07-2025 Onerado'!$B$11:$F$9696,2,FALSE) -> CABO DE COBRE FLEXÍVEL ISOLADO, 2,5 MM², ANTI-CHAMA 450/750 V, PARA CIRCUITOS TERMINAIS - FORNECIMENTO E INSTALAÇÃO. AF_03/2023 | E160: INEL - INSTALAÇÃO ELÉTRICA/ELETRIFICAÇÃO E ILUMINAÇÃO EXTERNA | F160: M | G160: =VLOOKUP(C160,'Comp SINAPI BA 07-2025 Onerado'!$B$11:$F$9696,4,FALSE) -> 4.72 | H160: 2.5503 | I160: 12.037416 | K160: TRUE | L160: TRUE
A161: C | B161: SINAPI | C161: 98102 | D161: =VLOOKUP(C161,'Comp SINAPI BA 07-2025 Onerado'!$B$11:$F$9696,2,FALSE) -> CAIXA DE GORDURA SIMPLES, CIRCULAR, EM CONCRETO PRÉ-MOLDADO, DIÂMETRO INTERNO = 0,4 M, ALTURA INTERNA = 0,4 M. AF_12/2020 | E161: INHI - INSTALAÇÕES HIDROS SANITÁRIAS | F161: UN | G161: =VLOOKUP(C161,'Comp SINAPI BA 07-2025 Onerado'!$B$11:$F$9696,4,FALSE) -> 181.56 | H161: 0.0268 | I161: 4.865808 | K161: TRUE | L161: TRUE
A162: C | B162: SINAPI | C162: 97906 | D162: =VLOOKUP(C162,'Comp SINAPI BA 07-2025 Onerado'!$B$11:$F$9696,2,FALSE) -> CAIXA ENTERRADA HIDRÁULICA RETANGULAR, EM ALVENARIA COM BLOCOS DE CONCRETO, DIMENSÕES INTERNAS: 0,6X0,6X0,6 M PARA REDE DE ESGOTO. AF_12/2020 | E162: INHI - INSTALAÇÕES HIDROS SANITÁRIAS | F162: UN | G162: =VLOOKUP(C162,'Comp SINAPI BA 07-2025 Onerado'!$B$11:$F$9696,4,FALSE) -> 489.18 | H162: 0.0268 | I162: 13.110024 | K162: TRUE | L162: TRUE
A163: C | B163: SINAPI | C163: 91937 | D163: =VLOOKUP(C163,'Comp SINAPI BA 07-2025 Onerado'!$B$11:$F$9696,2,FALSE) -> CAIXA OCTOGONAL 3" X 3", PVC, INSTALADA EM LAJE - FORNECIMENTO E INSTALAÇÃO. AF_03/2023 | E163: INEL - INSTALAÇÃO ELÉTRICA/ELETRIFICAÇÃO E ILUMINAÇÃO EXTERNA | F163: UN | G163: =VLOOKUP(C163,'Comp SINAPI BA 07-2025 Onerado'!$B$11:$F$9696,4,FALSE) -> 16.98 | H163: 0.1611 | I163: 2.735478 | K163: TRUE | L163: TRUE
A164: C | B164: SINAPI | C164: 88262 | D164: =VLOOKUP(C164,'Comp SINAPI BA 07-2025 Onerado'!$B$11:$F$9696,2,FALSE) -> CARPINTEIRO DE FORMAS COM ENCARGOS COMPLEMENTARES | E164: SEDI - SERVIÇOS DIVERSOS | F164: H | G164: =VLOOKUP(C164,'Comp SINAPI BA 07-2025 Onerado'!$B$11:$F$9696,4,FALSE) -> 33.07 | H164: 1.1155 | I164: 36.889585 | K164: TRUE | L164: TRUE
A165: C | B165: SINAPI | C165: 95805 | D165: =VLOOKUP(C165,'Comp SINAPI BA 07-2025 Onerado'!$B$11:$F$9696,2,FALSE) -> CONDULETE DE PVC, TIPO B, PARA ELETRODUTO DE PVC SOLDÁVEL DN 25 MM (3/4''), APARENTE - FORNECIMENTO E INSTALAÇÃO. AF_10/2022 | E165: INEL - INSTALAÇÃO ELÉTRICA/ELETRIFICAÇÃO E ILUMINAÇÃO EXTERNA | F165: UN | G165: =VLOOKUP(C165,'Comp SINAPI BA 07-2025 Onerado'!$B$11:$F$9696,4,FALSE) -> 23.54 | H165: 0.1879 | I165: 4.423166 | K165: TRUE | L165: TRUE
A166: C | B166: SINAPI | C166: 95811 | D166: =VLOOKUP(C166,'Comp SINAPI BA 07-2025 Onerado'!$B$11:$F$9696,2,FALSE) -> CONDULETE DE PVC, TIPO LB, PARA ELETRODUTO DE PVC SOLDÁVEL DN 25 MM (3/4''), APARENTE - FORNECIMENTO E INSTALAÇÃO. AF_10/2022 | E166: INEL - INSTALAÇÃO ELÉTRICA/ELETRIFICAÇÃO E ILUMINAÇÃO EXTERNA | F166: UN | G166: =VLOOKUP(C166,'Comp SINAPI BA 07-2025 Onerado'!$B$11:$F$9696,4,FALSE) -> 19.12 | H166: 0.0268 | I166: 0.512416 | K166: TRUE | L166: TRUE
A167: C | B167: SINAPI | C167: 91911 | D167: =VLOOKUP(C167,'Comp SINAPI BA 07-2025 Onerado'!$B$11:$F$9696,2,FALSE) -> CURVA 90 GRAUS PARA ELETRODUTO, PVC, ROSCÁVEL, DN 20 MM (1/2"), PARA CIRCUITOS TERMINAIS, INSTALADA EM PAREDE - FORNECIMENTO E INSTALAÇÃO. AF_03/2023 | E167: INEL - INSTALAÇÃO ELÉTRICA/ELETRIFICAÇÃO E ILUMINAÇÃO EXTERNA | F167: UN | G167: =VLOOKUP(C167,'Comp SINAPI BA 07-2025 Onerado'!$B$11:$F$9696,4,FALSE) -> 18.6 | H167: 0.1074 | I167: 1.99764 | K167: TRUE | L167: TRUE
A168: C | B168: SINAPI | C168: 101891 | D168: =VLOOKUP(C168,'Comp SINAPI BA 07-2025 Onerado'!$B$11:$F$9696,2,FALSE) -> DISJUNTOR MONOPOLAR TIPO NEMA, CORRENTE NOMINAL DE 35 ATÉ 50A - FORNECIMENTO E INSTALAÇÃO. AF_07/2025 | E168: INEL - INSTALAÇÃO ELÉTRICA/ELETRIFICAÇÃO E ILUMINAÇÃO EXTERNA | F168: UN | G168: =VLOOKUP(C168,'Comp SINAPI BA 07-2025 Onerado'!$B$11:$F$9696,4,FALSE) -> 27.5 | H168: 0.1074 | I168: 2.9535 | K168: TRUE | L168: TRUE
A169: C | B169: SINAPI | C169: 91862 | D169: =VLOOKUP(C169,'Comp SINAPI BA 07-2025 Onerado'!$B$11:$F$9696,2,FALSE) -> ELETRODUTO RÍGIDO ROSCÁVEL, PVC, DN 20 MM (1/2"), PARA CIRCUITOS TERMINAIS, INSTALADO EM FORRO - FORNECIMENTO E INSTALAÇÃO. AF_03/2023 | E169: INEL - INSTALAÇÃO ELÉTRICA/ELETRIFICAÇÃO E ILUMINAÇÃO EXTERNA | F169: M | G169: =VLOOKUP(C169,'Comp SINAPI BA 07-2025 Onerado'!$B$11:$F$9696,4,FALSE) -> 9.77 | H169: 0.3221 | I169: 3.146917 | K169: TRUE | L169: TRUE
A170: C | B170: SINAPI | C170: 91870 | D170: =VLOOKUP(C170,'Comp SINAPI BA 07-2025 Onerado'!$B$11:$F$9696,2,FALSE) -> ELETRODUTO RÍGIDO ROSCÁVEL, PVC, DN 20 MM (1/2"), PARA CIRCUITOS TERMINAIS, INSTALADO EM PAREDE - FORNECIMENTO E INSTALAÇÃO. AF_03/2023 | E170: INEL - INSTALAÇÃO ELÉTRICA/ELETRIFICAÇÃO E ILUMINAÇÃO EXTERNA | F170: M | G170: =VLOOKUP(C170,'Comp SINAPI BA 07-2025 Onerado'!$B$11:$F$9696,4,FALSE) -> 13.22 | H170: 0.5369 | I170: 7.097818 | K170: TRUE | L170: TRUE
A171: C | B171: SINAPI | C171: 93358 | D171: =VLOOKUP(C171,'Comp SINAPI BA 07-2025 Onerado'!$B$11:$F$9696,2,FALSE) -> ESCAVAÇÃO MANUAL DE VALA. AF_09/2024 | E171: MOVT - MOVIMENTO DE TERRA | F171: m³ | G171: =VLOOKUP(C171,'Comp SINAPI BA 07-2025 Onerado'!$B$11:$F$9696,4,FALSE) -> 96.4 | H171: 0.039 | I171: 3.7596 | K171: TRUE | L171: TRUE
A172: C | B172: SINAPI | C172: 91170 | D172: =VLOOKUP(C172,'Comp SINAPI BA 07-2025 Onerado'!$B$11:$F$9696,2,FALSE) -> FIXAÇÃO DE TUBOS HORIZONTAIS DE PVC ÁGUA, PVC ESGOTO, PVC ÁGUA PLUVIAL, CPVC, PPR, COBRE OU AÇO, DIÂMETROS MENORES OU IGUAIS A 40 MM, COM ABRAÇADEIRA METÁLICA RÍGIDA TIPO U PERFIL 1 1/4", FIXADA EM PERFILADO EM LAJE. AF_09/2023_PS | E172: INHI - INSTALAÇÕES HIDROS SANITÁRIAS | F172: M | G172: =VLOOKUP(C172,'Comp SINAPI BA 07-2025 Onerado'!$B$11:$F$9696,4,FALSE) -> 11.49 | H172: 0.3221 | I172: 3.700929 | K172: TRUE | L172: TRUE
A173: C | B173: SINAPI | C173: 91173 | D173: =VLOOKUP(C173,'Comp SINAPI BA 07-2025 Onerado'!$B$11:$F$9696,2,FALSE) -> FIXAÇÃO DE TUBOS VERTICAIS DE PVC ÁGUA, PVC ESGOTO, PVC ÁGUA PLUVIAL, CPVC, PPR, COBRE OU AÇO, DIÂMETROS MENORES OU IGUAIS A 40 MM, COM ABRAÇADEIRA METÁLICA RÍGIDA TIPO U PERFIL 1 1/4", FIXADA EM PERFILADO EM PAREDE. AF_09/2023_PS | E173: INHI - INSTALAÇÕES HIDROS SANITÁRIAS | F173: M | G173: =VLOOKUP(C173,'Comp SINAPI BA 07-2025 Onerado'!$B$11:$F$9696,4,FALSE) -> 4.27 | H173: 0.5369 | I173: 2.292563 | K173: TRUE | L173: TRUE
A174: C | B174: SINAPI | C174: 92023 | D174: =VLOOKUP(C174,'Comp SINAPI BA 07-2025 Onerado'!$B$11:$F$9696,2,FALSE) -> INTERRUPTOR SIMPLES (1 MÓDULO) COM 1 TOMADA DE EMBUTIR 2P+T 10 A, INCLUINDO SUPORTE E PLACA - FORNECIMENTO E INSTALAÇÃO. AF_03/2023 | E174: INEL - INSTALAÇÃO ELÉTRICA/ELETRIFICAÇÃO E ILUMINAÇÃO EXTERNA | F174: UN | G174: =VLOOKUP(C174,'Comp SINAPI BA 07-2025 Onerado'!$B$11:$F$9696,4,FALSE) -> 50.04 | H174: 0.0268 | I174: 1.341072 | K174: TRUE | L174: TRUE
A175: C | B175: SINAPI | C175: 89724 | D175: =VLOOKUP(C175,'Comp SINAPI BA 07-2025 Onerado'!$B$11:$F$9696,2,FALSE) -> JOELHO 90 GRAUS, PVC, SERIE NORMAL, ESGOTO PREDIAL, DN 40 MM, JUNTA SOLDÁVEL, FORNECIDO E INSTALADO EM RAMAL DE DESCARGA OU RAMAL DE ESGOTO SANITÁRIO. AF_08/2022 | E175: INHI - INSTALAÇÕES HIDROS SANITÁRIAS | F175: UN | G175: =VLOOKUP(C175,'Comp SINAPI BA 07-2025 Onerado'!$B$11:$F$9696,4,FALSE) -> 10.74 | H175: 0.0537 | I175: 0.576738 | K175: TRUE | L175: TRUE
A176: C | B176: SINAPI | C176: 95240 | D176: =VLOOKUP(C176,'Comp SINAPI BA 07-2025 Onerado'!$B$11:$F$9696,2,FALSE) -> LASTRO DE CONCRETO MAGRO, APLICADO EM PISOS, LAJES SOBRE SOLO OU RADIERS, ESPESSURA DE 3 CM. AF_01/2024 | E176: FUES - FUNDAÇÕES E ESTRUTURAS | F176: m² | G176: =VLOOKUP(C176,'Comp SINAPI BA 07-2025 Onerado'!$B$11:$F$9696,4,FALSE) -> 22.32 | H176: 0.009 | I176: 0.20088 | K176: TRUE | L176: TRUE
A177: C | B177: SINAPI | C177: 95241 | D177: =VLOOKUP(C177,'Comp SINAPI BA 07-2025 Onerado'!$B$11:$F$9696,2,FALSE) -> LASTRO DE CONCRETO MAGRO, APLICADO EM PISOS, LAJES SOBRE SOLO OU RADIERS, ESPESSURA DE 5 CM. AF_01/2024 | E177: FUES - FUNDAÇÕES E ESTRUTURAS | F177: m² | G177: =VLOOKUP(C177,'Comp SINAPI BA 07-2025 Onerado'!$B$11:$F$9696,4,FALSE) -> 42.86 | H177: 1.451 | I177: 62.18986 | K177: TRUE | L177: TRUE
A178: C | B178: SINAPI | C178: 86943 | D178: =VLOOKUP(C178,'Comp SINAPI BA 07-2025 Onerado'!$B$11:$F$9696,2,FALSE) -> LAVATÓRIO LOUÇA BRANCA SUSPENSO, 29,5 X 39CM OU EQUIVALENTE, PADRÃO POPULAR, INCLUSO SIFÃO FLEXÍVEL EM PVC, VÁLVULA E ENGATE FLEXÍVEL 30CM EM PLÁSTICO E TORNEIRA CROMADA DE MESA, PADRÃO POPULAR - FORNECIMENTO E INSTALAÇÃO. AF_01/2020 | E178: INHI - INSTALAÇÕES HIDROS SANITÁRIAS | F178: UN | G178: =VLOOKUP(C178,'Comp SINAPI BA 07-2025 Onerado'!$B$11:$F$9696,4,FALSE) -> 278.77 | H178: 0.0268 | I178: 7.471036 | K178: TRUE | L178: TRUE
A179: C | B179: SINAPI | C179: 97586 | D179: LUMINÁRIA TIPO CALHA, DE SOBREPOR, COM 2 LÂMPADAS TUBULARES FLUORESCENTES DE 36 W, COM REATOR DE PARTIDA RÁPIDA - FORNECIMENTO E INSTALAÇÃO. AF_02/2020 ADAPTADA | E179: INEL - INSTALAÇÃO ELÉTRICA/ELETRIFICAÇÃO E ILUMINAÇÃO EXTERNA | F179: UN | G179: =SUM(I180:I182) -> 121.378948 | H179: 0.1611 | I179: 19.55414852 | K179: TRUE | L179: TRUE
A180: C | B180: SINAPI | C180: 88247 | D180: =VLOOKUP(C180,'Comp SINAPI BA 07-2025 Onerado'!$B$11:$F$9696,2,FALSE) -> AUXILIAR DE ELETRICISTA COM ENCARGOS COMPLEMENTARES | E180: SEDI - SERVIÇOS DIVERSOS | F180: H | G180: =VLOOKUP(C180,'Comp SINAPI BA 07-2025 Onerado'!$B$11:$F$9696,4,FALSE) -> 25.56 | H180: 0.1727 | I180: 4.414212 | K180: TRUE | L180: TRUE
A181: C | B181: SINAPI | C181: 88264 | D181: =VLOOKUP(C181,'Comp SINAPI BA 07-2025 Onerado'!$B$11:$F$9696,2,FALSE) -> ELETRICISTA COM ENCARGOS COMPLEMENTARES | E181: SEDI - SERVIÇOS DIVERSOS | F181: H | G181: =VLOOKUP(C181,'Comp SINAPI BA 07-2025 Onerado'!$B$11:$F$9696,4,FALSE) -> 33.94 | H181: 0.4144 | I181: 14.064736 | K181: TRUE | L181: TRUE
A182: C | B182: SINAPI | C182: 3780 | D182: =VLOOKUP(C182,'Ins SINAPI BA 07-2025 Onerado'!$B$11:$F$9696,2,FALSE) -> LUMINARIA DE SOBREPOR EM CHAPA DE ACO PARA 1 LAMPADA FLUORESCENTE DE *36* W, ALETADA, COMPLETA (LAMPADA E REATOR INCLUSOS) | E182: Material | F182: UN | G182: =G134 -> 102.9 | H182: 1 | I182: 102.9 | K182: TRUE | L182: TRUE
A183: C | B183: SINAPI | C183: 98445 | D183: =VLOOKUP(C183,'Comp SINAPI BA 07-2025 Onerado'!$B$11:$F$9696,2,FALSE) -> PAREDE DE MADEIRA COMPENSADA PARA CONSTRUÇÃO TEMPORÁRIA EM CHAPA SIMPLES, EXTERNA, COM ÁREA LÍQUIDA MAIOR OU IGUAL A 6 M², COM VÃO. AF_03/2024 | E183: CANT - CANTEIRO DE OBRAS | F183: m² | G183: =VLOOKUP(C183,'Comp SINAPI BA 07-2025 Onerado'!$B$11:$F$9696,4,FALSE) -> 118.79 | H183: 0.2264 | I183: 26.894056 | K183: TRUE | L183: TRUE
A184: C | B184: SINAPI | C184: 98441 | D184: =VLOOKUP(C184,'Comp SINAPI BA 07-2025 Onerado'!$B$11:$F$9696,2,FALSE) -> PAREDE DE MADEIRA COMPENSADA PARA CONSTRUÇÃO TEMPORÁRIA EM CHAPA SIMPLES, EXTERNA, SEM VÃO. AF_03/2024 | E184: CANT - CANTEIRO DE OBRAS | F184: m² | G184: =VLOOKUP(C184,'Comp SINAPI BA 07-2025 Onerado'!$B$11:$F$9696,4,FALSE) -> 100.01 | H184: 0.1449 | I184: 14.491449 | K184: TRUE | L184: TRUE
A185: C | B185: SINAPI | C185: 98446 | D185: =VLOOKUP(C185,'Comp SINAPI BA 07-2025 Onerado'!$B$11:$F$9696,2,FALSE) -> PAREDE DE MADEIRA COMPENSADA PARA CONSTRUÇÃO TEMPORÁRIA EM CHAPA SIMPLES, EXTERNA, COM ÁREA LÍQUIDA MENOR QUE 6 M², COM VÃO. AF_03/2024 | E185: CANT - CANTEIRO DE OBRAS | F185: m² | G185: =VLOOKUP(C185,'Comp SINAPI BA 07-2025 Onerado'!$B$11:$F$9696,4,FALSE) -> 153.47 | H185: 0.1765 | I185: 27.087455 | K185: TRUE | L185: TRUE
A186: C | B186: SINAPI | C186: 98441 | D186: =VLOOKUP(C186,'Comp SINAPI BA 07-2025 Onerado'!$B$11:$F$9696,2,FALSE) -> PAREDE DE MADEIRA COMPENSADA PARA CONSTRUÇÃO TEMPORÁRIA EM CHAPA SIMPLES, EXTERNA, SEM VÃO. AF_03/2024 | E186: CANT - CANTEIRO DE OBRAS | F186: m² | G186: =VLOOKUP(C186,'Comp SINAPI BA 07-2025 Onerado'!$B$11:$F$9696,4,FALSE) -> 100.01 | H186: 0.1668 | I186: 16.681668 | K186: TRUE | L186: TRUE
A187: C | B187: SINAPI | C187: 88489 | D187: =VLOOKUP(C187,'Comp SINAPI BA 07-2025 Onerado'!$B$11:$F$9696,2,FALSE) -> PINTURA LÁTEX ACRÍLICA PREMIUM, APLICAÇÃO MANUAL EM PAREDES, DUAS DEMÃOS. AF_04/2023 | E187: PINT - PINTURAS | F187: m² | G187: =VLOOKUP(C187,'Comp SINAPI BA 07-2025 Onerado'!$B$11:$F$9696,4,FALSE) -> 13.96 | H187: 1.4293 | I187: 19.953028 | K187: TRUE | L187: TRUE
A188: C | B188: SINAPI | C188: 89957 | D188: PONTO DE CONSUMO TERMINAL DE ÁGUA FRIA (SUBRAMAL) COM TUBULAÇÃO DE PVC, DN 25 MM, INSTALADO EM RAMAL DE ÁGUA, INCLUSOS RASGO E CHUMBAMENTO EM ALVENARIA. AF_12/2014 ATUALIZADA | E188: INHI - INSTALAÇÕES HIDROS SANITÁRIAS | F188: UN | G188: =SUM(I189:I194) -> 154.2384 | H188: 0.0537 | I188: 8.28260208 | K188: TRUE | L188: TRUE
A189: C | B189: SINAPI | C189: 90466 | D189: =VLOOKUP(C189,'Comp SINAPI BA 07-2025 Onerado'!$B$11:$F$9696,2,FALSE) -> CHUMBAMENTO LINEAR EM ALVENARIA PARA RAMAIS/DISTRIBUIÇÃO DE INSTALAÇÕES HIDRÁULICAS COM DIÂMETROS MENORES OU IGUAIS A 40 MM. AF_09/2023 | E189: INHI - INSTALAÇÕES HIDROS SANITÁRIAS | F189: M | G189: =VLOOKUP(C189,'Comp SINAPI BA 07-2025 Onerado'!$B$11:$F$9696,4,FALSE) -> 17.79 | H189: 2.14 | I189: 38.0706 | K189: TRUE | L189: TRUE
A190: C | B190: SINAPI | C190: 89366 | D190: =VLOOKUP(C190,'Comp SINAPI BA 07-2025 Onerado'!$B$11:$F$9696,2,FALSE) -> JOELHO 90 GRAUS COM BUCHA DE LATÃO, PVC, SOLDÁVEL, DN 25MM, X 3/4 INSTALADO EM RAMAL OU SUB-RAMAL DE ÁGUA - FORNECIMENTO E INSTALAÇÃO. AF_06/2022 | E190: INHI - INSTALAÇÕES HIDROS SANITÁRIAS | F190: UN | G190: =VLOOKUP(C190,'Comp SINAPI BA 07-2025 Onerado'!$B$11:$F$9696,4,FALSE) -> 16.1 | H190: 1 | I190: 16.1 | K190: TRUE | L190: TRUE
A191: C | B191: SINAPI | C191: 89362 | D191: =VLOOKUP(C191,'Comp SINAPI BA 07-2025 Onerado'!$B$11:$F$9696,2,FALSE) -> JOELHO 90 GRAUS, PVC, SOLDÁVEL, DN 25MM, INSTALADO EM RAMAL OU SUB-RAMAL DE ÁGUA - FORNECIMENTO E INSTALAÇÃO. AF_06/2022 | E191: INHI - INSTALAÇÕES HIDROS SANITÁRIAS | F191: UN | G191: =VLOOKUP(C191,'Comp SINAPI BA 07-2025 Onerado'!$B$11:$F$9696,4,FALSE) -> 10.41 | H191: 1.18 | I191: 12.2838 | K191: TRUE | L191: TRUE
A192: C | B192: SINAPI | C192: 90443 | D192: =VLOOKUP(C192,'Comp SINAPI BA 07-2025 Onerado'!$B$11:$F$9696,2,FALSE) -> RASGO LINEAR MANUAL EM ALVENARIA, PARA RAMAIS/ DISTRIBUIÇÃO DE INSTALAÇÕES HIDRÁULICAS, DIÂMETROS MENORES OU IGUAIS A 40 MM. AF_09/2023 | E192: INHI - INSTALAÇÕES HIDROS SANITÁRIAS | F192: M | G192: =VLOOKUP(C192,'Comp SINAPI BA 07-2025 Onerado'!$B$11:$F$9696,4,FALSE) -> 9.32 | H192: 2.14 | I192: 19.9448 | K192: TRUE | L192: TRUE
A193: C | B193: SINAPI | C193: 89395 | D193: =VLOOKUP(C193,'Comp SINAPI BA 07-2025 Onerado'!$B$11:$F$9696,2,FALSE) -> TE, PVC, SOLDÁVEL, DN 25MM, INSTALADO EM RAMAL OU SUB-RAMAL DE ÁGUA - FORNECIMENTO E INSTALAÇÃO. AF_06/2022 | E193: INHI - INSTALAÇÕES HIDROS SANITÁRIAS | F193: UN | G193: =VLOOKUP(C193,'Comp SINAPI BA 07-2025 Onerado'!$B$11:$F$9696,4,FALSE) -> 14.26 | H193: 0.89 | I193: 12.6914 | K193: TRUE | L193: TRUE
A194: C | B194: SINAPI | C194: 89356 | D194: =VLOOKUP(C194,'Comp SINAPI BA 07-2025 Onerado'!$B$11:$F$9696,2,FALSE) -> TUBO, PVC, SOLDÁVEL, DE 25MM, INSTALADO EM RAMAL OU SUB-RAMAL DE ÁGUA - FORNECIMENTO E INSTALAÇÃO. AF_06/2022 | E194: INHI - INSTALAÇÕES HIDROS SANITÁRIAS | F194: M | G194: =VLOOKUP(C194,'Comp SINAPI BA 07-2025 Onerado'!$B$11:$F$9696,4,FALSE) -> 25.77 | H194: 2.14 | I194: 55.1478 | K194: TRUE | L194: TRUE
A195: C | B195: SINAPI | C195: 90822 | D195: =VLOOKUP(C195,'Comp SINAPI BA 07-2025 Onerado'!$B$11:$F$9696,2,FALSE) -> PORTA DE MADEIRA PARA PINTURA, SEMI-OCA (LEVE OU MÉDIA), 80X210CM, ESPESSURA DE 3,5CM, INCLUSO DOBRADIÇAS - FORNECIMENTO E INSTALAÇÃO. AF_12/2019 | E195: ESQV - ESQUADRIAS/FERRAGENS/VIDROS | F195: UN | G195: =VLOOKUP(C195,'Comp SINAPI BA 07-2025 Onerado'!$B$11:$F$9696,4,FALSE) -> 401.47 | H195: 0.0268 | I195: 10.759396 | K195: TRUE | L195: TRUE
A196: C | B196: SINAPI | C196: 101876 | D196: =VLOOKUP(C196,'Comp SINAPI BA 07-2025 Onerado'!$B$11:$F$9696,2,FALSE) -> QUADRO DE DISTRIBUIÇÃO DE ENERGIA EM PVC, DE EMBUTIR, SEM BARRAMENTO, PARA 6 DISJUNTORES - FORNECIMENTO E INSTALAÇÃO. AF_07/2025 | E196: INEL - INSTALAÇÃO ELÉTRICA/ELETRIFICAÇÃO E ILUMINAÇÃO EXTERNA | F196: UN | G196: =VLOOKUP(C196,'Comp SINAPI BA 07-2025 Onerado'!$B$11:$F$9696,4,FALSE) -> 114.71 | H196: 0.0268 | I196: 3.074228 | K196: TRUE | L196: TRUE
A197: C | B197: SINAPI | C197: 93382 | D197: =VLOOKUP(C197,'Comp SINAPI BA 07-2025 Onerado'!$B$11:$F$9696,2,FALSE) -> REATERRO MANUAL DE VALAS, COM COMPACTADOR DE SOLOS DE PERCUSSÃO. AF_08/2023 | E197: MOVT - MOVIMENTO DE TERRA | F197: m³ | G197: =VLOOKUP(C197,'Comp SINAPI BA 07-2025 Onerado'!$B$11:$F$9696,4,FALSE) -> 30.54 | H197: 0.01 | I197: 0.3054 | K197: TRUE | L197: TRUE
A198: C | B198: SINAPI | C198: 94210 | D198: =VLOOKUP(C198,'Comp SINAPI BA 07-2025 Onerado'!$B$11:$F$9696,2,FALSE) -> TELHAMENTO COM TELHA ONDULADA DE FIBROCIMENTO E = 6 MM, COM RECOBRIMENTO LATERAL DE 1 1/4 DE ONDA PARA TELHADO COM INCLINAÇÃO MÁXIMA DE 10°, COM ATÉ 2 ÁGUAS, INCLUSO IÇAMENTO. AF_07/2019 | E198: COBE - COBERTURA | F198: m² | G198: =VLOOKUP(C198,'Comp SINAPI BA 07-2025 Onerado'!$B$11:$F$9696,4,FALSE) -> 51.17 | H198: 1.451 | I198: 74.24767 | K198: TRUE | L198: TRUE
A199: C | B199: SINAPI | C199: 92000 | D199: =VLOOKUP(C199,'Comp SINAPI BA 07-2025 Onerado'!$B$11:$F$9696,2,FALSE) -> TOMADA BAIXA DE EMBUTIR (1 MÓDULO), 2P+T 10 A, INCLUINDO SUPORTE E PLACA - FORNECIMENTO E INSTALAÇÃO. AF_03/2023 | E199: INEL - INSTALAÇÃO ELÉTRICA/ELETRIFICAÇÃO E ILUMINAÇÃO EXTERNA | F199: UN | G199: =VLOOKUP(C199,'Comp SINAPI BA 07-2025 Onerado'!$B$11:$F$9696,4,FALSE) -> 30.66 | H199: 0.0268 | I199: 0.821688 | K199: TRUE | L199: TRUE
A200: C | B200: SINAPI | C200: 92008 | D200: =VLOOKUP(C200,'Comp SINAPI BA 07-2025 Onerado'!$B$11:$F$9696,2,FALSE) -> TOMADA BAIXA DE EMBUTIR (2 MÓDULOS), 2P+T 10 A, INCLUINDO SUPORTE E PLACA - FORNECIMENTO E INSTALAÇÃO. AF_03/2023 | E200: INEL - INSTALAÇÃO ELÉTRICA/ELETRIFICAÇÃO E ILUMINAÇÃO EXTERNA | F200: UN | G200: =VLOOKUP(C200,'Comp SINAPI BA 07-2025 Onerado'!$B$11:$F$9696,4,FALSE) -> 46.84 | H200: 0.1342 | I200: 6.285928 | K200: TRUE | L200: TRUE
A201: C | B201: SINAPI | C201: 92543 | D201: =VLOOKUP(C201,'Comp SINAPI BA 07-2025 Onerado'!$B$11:$F$9696,2,FALSE) -> TRAMA DE MADEIRA COMPOSTA POR TERÇAS PARA TELHADOS DE ATÉ 2 ÁGUAS PARA TELHA ONDULADA DE FIBROCIMENTO, METÁLICA, PLÁSTICA OU TERMOACÚSTICA, INCLUSO TRANSPORTE VERTICAL. AF_07/2019 | E201: COBE - COBERTURA | F201: m² | G201: =VLOOKUP(C201,'Comp SINAPI BA 07-2025 Onerado'!$B$11:$F$9696,4,FALSE) -> 24.29 | H201: 1.451 | I201: 35.24479 | K201: TRUE | L201: TRUE
A202: C | B202: SINAPI | C202: 89714 | D202: =VLOOKUP(C202,'Comp SINAPI BA 07-2025 Onerado'!$B$11:$F$9696,2,FALSE) -> TUBO PVC, SERIE NORMAL, ESGOTO PREDIAL, DN 100 MM, FORNECIDO E INSTALADO EM RAMAL DE DESCARGA OU RAMAL DE ESGOTO SANITÁRIO. AF_08/2022 | E202: INHI - INSTALAÇÕES HIDROS SANITÁRIAS | F202: M | G202: =VLOOKUP(C202,'Comp SINAPI BA 07-2025 Onerado'!$B$11:$F$9696,4,FALSE) -> 38.86 | H202: 0.1423 | I202: 5.529778 | K202: TRUE | L202: TRUE
A203: C | B203: SINAPI | C203: 89711 | D203: =VLOOKUP(C203,'Comp SINAPI BA 07-2025 Onerado'!$B$11:$F$9696,2,FALSE) -> TUBO PVC, SERIE NORMAL, ESGOTO PREDIAL, DN 40 MM, FORNECIDO E INSTALADO EM RAMAL DE DESCARGA OU RAMAL DE ESGOTO SANITÁRIO. AF_08/2022 | E203: INHI - INSTALAÇÕES HIDROS SANITÁRIAS | F203: M | G203: =VLOOKUP(C203,'Comp SINAPI BA 07-2025 Onerado'!$B$11:$F$9696,4,FALSE) -> 22.65 | H203: 0.0886 | I203: 2.00679 | K203: TRUE | L203: TRUE
... 5 more rows

Sheet Memorial de cálculo
A1: Ministério da Integração e do Desenvolvimento Regional
A2: Companhia de desenvolvimento dos Vales do São Francisco e do Parnaíba | I2: Quantitativos por Barragem
A4: MEMORIAL DE CÁLCULO | I4: Zabumbão
A5: =ZABUMBÃO!A5 -> OBRA: | B5: =ZABUMBÃO!B5:F5 -> Execução de manutenção e recuperação na barragem de Zabumbão, localizada em Paramirim no estado da Bahia. | D5: DESLOCAMENTO -SR para Barragem (km): | H5: 182 | I5: =H5 -> 182
A6: =ZABUMBÃO!A6 -> LOCAL: | B6: =ZABUMBÃO!B6 -> Paramirim - BA | D6: DESLOCAMENTO - Paramirim/BA para Barragem (km): | H6: 5.2 | I6: =H6 -> 5.2
A7: =ZABUMBÃO!A7 -> DATA BASE: | B7: =ZABUMBÃO!B7 -> 2025-08-01 | D7: VIA URBANA PAVIMENTADA - Paramirim/BA para Barragem (km): | H7: =H6-H8 -> 0 | I7: =I6-I8 -> 0
A8: =ZABUMBÃO!A8 -> PRAZO: | B8: =ZABUMBÃO!B8 -> 120 dias | D8: REVESTIMENTO PRIMÁRIO - Paramirim/BA para Barragem (km): | H8: 5.2 | I8: =H8 -> 5.2
A9: ITEM | B9: DESCRIÇÃO | C9: UNID. | D9: PARÂMETRO 1 | E9: PARÂMETRO 2 | F9: PARÂMETRO 3 | G9: PARÂMETRO 4 | H9: TOTAL
A11: =CPU!B10 -> CPU.01 | B11: =VLOOKUP(A11,CPU!$B$10:$G$5075,2,0) -> Administração Local | C11: =VLOOKUP(A11,CPU!$B$10:$G$5075,3,0) -> mês | D11: QUANT.PESSOAS | E11: HORAS DIÁRIA | F11: DIAS TRABALHADOS NO MÊS | G11: MESES | H11: 3
B12: =CPU!C15 -> Engenheiro Civil De Obra Pleno Com Encargos Complementares | C12: h | D12: 1 | E12: 1.5 | F12: =4*5 -> 20 | H12: =D12*E12*F12 -> 30
B13: =CPU!C16 -> Encarregado Geral De Obras Com Encargos Complementares | C13: mês | D13: 1 | G13: 0.8 | H13: =D13*G13 -> 0.8
B14: =CPU!C17 -> VIGIA - AN | C14: h | D14: 4 | E14: 12 | F14: 15 | H14: =D14*E14*F14 -> 720
B15: A escala de trabalho 12x36 para vigias noturnos consiste em trabalhar 12 horas seguidas e folgar 36 horas
A17: =CPU!B19 -> CPU.02 | B17: =VLOOKUP(A17,CPU!$B$10:$G$5075,2,0) -> Mobilização e desmobilização de instalação do canteiro | C17: =VLOOKUP(A17,CPU!$B$10:$G$5075,3,0) -> un | H17: 1
A18: 100946 | B18: =IF(I18="ca",VLOOKUP(A18,'Comp SINAPI BA 07-2025 Onerado'!B:C,2,0),VLOOKUP(A18,'Ins SINAPI BA 07-2025 Onerado'!B:C,2,0)) -> TRANSPORTE COM CAMINHÃO CARROCERIA 9T, EM VIA URBANA EM REVESTIMENTO PRIMÁRIO (UNIDADE: TXKM). AF_07/2020 | C18: =IF(I18="ca",VLOOKUP(A18,'Comp SINAPI BA 07-2025 Onerado'!B:D,3,0),VLOOKUP(A18,'Ins SINAPI BA 07-2025 Onerado'!B:D,3,0)) -> TXKM | H18: =$C$20*$D$20*$E$20 -> 52 | I18: ca
C19: T | D19: km | E19: N. viagens
C20: 5 | D20: =H8 -> 5.2 | E20: 2
A22: =CPU!B27 -> CPU.03 | B22: =VLOOKUP(A22,CPU!$B$10:$G$5075,2,0) -> Execução de canteiro de obras, inclusive, limpeza, refeitório, sanitários e central de formas | C22: =VLOOKUP(A22,CPU!$B$10:$G$5075,3,0) -> m2 | H22: =SUM(H23:H25) -> 28.5
B23: Área do Refeitório Em Canteiro De Obra | C23: m2 | D23: 1 | E23: 3 | F23: 2.5 | H23: =D23*E23*F23 -> 7.5
B24: Área do Sanitário Em Canteiro De Obra | C24: m2 | D24: 1 | E24: 4.5 | F24: 2 | H24: =D24*E24*F24 -> 9
B25: Área da Central de Fôrmas Em Canteiro De Obra | C25: m2 | D25: 1 | E25: 4 | F25: 3 | H25: =D25*E25*F25 -> 12
B26: Mao de obra | C26: m2 | D26: QUANT.PESSOAS | E26: RENDIMENTO (H/M2) | F26: m2 | G26: HORAS | H26: DIAS | I26: DIAS
B27: Carpinteiro | C27: h | D27: 2 | E27: =1.1155/D27 -> 0.55775 | F27: 1 | G27: =F27*(E27) -> 0.55775 | H27: =G27/8 -> 0.06971875 | I27: =$H$22*$E$27/8 -> 1.986984375
A29: =CPU!B38 -> CPU.04 | B29: =VLOOKUP(A29,CPU!$B$10:$G$5075,2,0) -> Limpeza de vegetação | C29: =VLOOKUP(A29,CPU!$B$10:$G$5075,3,0) -> m2 | I29: =ZABUMBÃO!F26 -> 52700
B30: Mao de obra | C30: m2 | D30: QUANT.PESSOAS | E30: RENDIMENTO (H/M2) | F30: m2 | G30: HORAS | H30: DIAS | I30: DIAS
A31: Enxada | B31: Servente | C31: h | D31: 4 | E31: =20/1000/D31 -> 0.005 | F31: 1 | G31: =F31*(E31) -> 0.005 | H31: =G31/8 -> 0.000625 | I31: =0.1*I29*$E$31/8 -> 3.29375
A32: Roçadeira | B32: Servente | C32: h | D32: 4 | E32: =(8/(0.3*10000))/D32 -> 0.0006666666667 | F32: 1 | G32: =F32*(E32) -> 0.0006666666667 | H32: =G32/8 -> 8.333333333e-05 | I32: =0.9*I29*$E$32/8 -> 3.9525
B33: Rendimento 400 m² por dia por servente para roçada com enaxada e 3000 m² com roçadeira
A34: =CPU!B49 -> CPU.05 | B34: =VLOOKUP(A34,CPU!$B$10:$G$5075,2,0) -> Corte de tronco e remoção de raiz | C34: =VLOOKUP(A34,CPU!$B$10:$G$5075,3,0) -> un | I34: =ZABUMBÃO!F27 -> 30
B35: Mão de obra | D35: QUANT.PESSOAS | E35: RENDIMENTO (H/un) | F35: un | G35: HORAS | H35: DIAS | I35: DIAS
B36: Servente | C36: h | D36: 2 | E36: =2.1685/D36 -> 1.08425 | F36: 1 | G36: =F36*(E36) -> 1.08425 | H36: =G36/8 -> 0.13553125 | I36: =I34*$E$36/8 -> 4.0659375
B37: Jardineiro | C37: h | D37: 1 | E37: =1.1535/D37 -> 1.1535 | F37: 1 | G37: =F37*(E37) -> 1.1535 | H37: =G37/8 -> 0.1441875 | I37: =I34*$E$37/8 -> 4.325625
A39: =CPU!B63 -> CPU.06 | B39: =VLOOKUP(A39,CPU!$B$10:$G$5075,2,0) -> Enrocamento c/ pedra de mão c/ fornecimento e assentamento | C39: =VLOOKUP(A39,CPU!$B$10:$G$5075,3,0) -> m3 | I39: =ZABUMBÃO!F45 -> 4
B40: Mao de obra | D40: QUANT.PESSOAS | E40: RENDIMENTO (H/M3) | F40: m3 | G40: HORAS | H40: DIAS | I40: DIAS
B41: Pedreiro | D41: 1 | E41: =0.2/D41 -> 0.2 | F41: 1 | G41: =F41*(E41) -> 0.2 | H41: =G41/8 -> 0.025 | I41: =I39*$E$41/8 -> 0.1
B42: Servente | D42: 1 | E42: =0.2/D42 -> 0.2 | F42: 1 | G42: =F42*(E42) -> 0.2 | H42: =G42/8 -> 0.025 | I42: =I39*$E$42/8 -> 0.1
A44: =CPU!B76 -> CPU.07 | B44: =VLOOKUP(A44,CPU!$B$10:$G$5075,2,0) -> Implantação de canaleta trapezoidal | C44: =VLOOKUP(A44,CPU!$B$10:$G$5075,3,0) -> m | I44: =ZABUMBÃO!F50 -> 527
B45: Mao de obra | D45: QUANT.PESSOAS | E45: RENDIMENTO (H/m) | F45: m | G45: HORAS | H45: DIAS | I45: DIAS
A46: concreto | B46: Pedreiro | D46: 1 | E46: =(1/(3.92899/0.23))/D46 -> 0.05853921746 | F46: 1 | G46: =F46*(E46) -> 0.05853921746 | H46: =G46/8 -> 0.007317402182 | I46: =$I$44*E46/8 -> 3.85627095
A47: concreto | B47: Servente | D47: 3 | E47: =(9/(3.92899/0.23))/D47 -> 0.1756176524 | F47: 1 | G47: =F47*(E47) -> 0.1756176524 | H47: =G47/8 -> 0.02195220655 | I47: 11.56881285
A48: escavação | B48: Servente | D48: 1 | E48: =1/(15.94/0.23)/D48 -> 0.01442910916 | F48: 1 | G48: 0.01442910916 | H48: 0.001803638645 | I48: 0.9505175659
A49: compactação | B49: Servente | D49: 1 | E49: =1/(4.66875/0.23)/D49 -> 0.04926372155 | F49: 1 | G49: 0.04926372155 | H49: 0.006157965194 | I49: 3.245247657
A50: argamassa | B50: Pedreiro | D50: 1 | E50: =(1/(4.22034/0.005*0.3))/D50 -> 0.003949128901 | F50: 1 | G50: =F50*(E50) -> 0.003949128901 | H50: =G50/8 -> 0.0004936411126 | I50: 0.2601488664
A51: argamassa | B51: Servente | D51: 3 | E51: =(8/(4.22034/0.005*0.3))/D51 -> 0.0105310104 | F51: 1 | G51: =F51*(E51) -> 0.0105310104 | H51: 0.0013163763 | I51: 0.6937303103
A52: guia de madeira | B52: Ajudante de carpinteiro | D52: 1 | E52: =1/100/D52 -> 0.01 | F52: 1 | G52: 0.01 | H52: 0.00125 | I52: 0.65875
A53: guia de madeira | B53: Carpinteiro | D53: 1 | E53: =1/100/D53 -> 0.01 | F53: 1 | G53: 0.01 | H53: 0.00125 | I53: 0.65875
A55: =CPU!B89 -> CPU.08 | B55: =VLOOKUP(A55,CPU!$B$10:$G$5075,2,0) -> Substituição de descida d’água tipo rápido para descida d'água de aterros em degraus - DAD 60-36 - areia e brita comerciais | C55: =VLOOKUP(A55,CPU!$B$10:$G$5075,3,0) -> m | I55: =ZABUMBÃO!F52 -> 70
B56: Mao de obra | D56: QUANT.PESSOAS | E56: RENDIMENTO (H/m) | F56: m | G56: HORAS | H56: DIAS | I56: DIAS
B57: Servente | D57: 3 | E57: =(9/(3.92899/0.3258))/D57 -> 0.2487662224 | F57: 1 | G57: =F57*(E57) -> 0.2487662224 | H57: =G57/8 -> 0.0310957778 | I57: =I55*$E$57/8 -> 2.176704446
B58: Pedreiro | D58: 1 | E58: =(1/(3.92899/0.3258))/D58 -> 0.08292207412 | F58: 1 | G58: =F58*(E58) -> 0.08292207412 | H58: =G58/8 -> 0.01036525927 | I58: =I55*$E$58/8 -> 0.7255681486
A60: =CPU!B98 -> CPU.09 | B60: =VLOOKUP(A60,CPU!$B$10:$G$5075,2,0) -> Entrada para descida d’água tipo EDA 01 B | C60: =VLOOKUP(A60,CPU!$B$10:$G$5075,3,0) -> un | I60: =ZABUMBÃO!F39 -> 8
B61: Mao de obra | D61: QUANT.PESSOAS | E61: RENDIMENTO (H/m3) | F61: m3 | G61: HORAS | H61: DIAS | I61: DIAS
A62: escavação | B62: Servente | D62: 3 | E62: =(1/0.5)/D62 -> 0.6666666667 | F62: 0.1939 | G62: =F62*(E62) -> 0.1292666667 | H62: =G62/8 -> 0.01615833333 | I62: =$I$60*E62/8 -> 0.6666666667
A63: apiloamento | B63: Servente | D63: 1 | E63: =(1/4.44444)/D63 -> 0.225000225 | F63: 1.9387 | G63: =F63*(E63) -> 0.4362079362 | H63: =G63/8 -> 0.05452599203 | I63: =$I$60*E63/8 -> 0.225000225
A64: forma | B64: Ajudante de carpinteiro | D64: 1 | E64: =(0.9/1)/D64 -> 0.9 | F64: 1.8172 | G64: =F64*(E64) -> 1.63548 | H64: =G64/8 -> 0.204435 | I64: 0.9
A65: forma | B65: Carpinteiro | D65: 1 | E65: =(0.9/1)/D65 -> 0.9 | F65: 1.8172 | G65: =F65*(E65) -> 1.63548 | H65: =G65/8 -> 0.204435 | I65: 0.9
A66: concreto | B66: Pedreiro | D66: 1 | E66: =(1/3.9289)/D66 -> 0.2545241671 | F66: 0.2746 | G66: =F66*(E66) -> 0.06989233628 | H66: =G66/8 -> 0.008736542035 | I66: =$I$60*E66/8 -> 0.2545241671
A67: concreto | B67: Servente | D67: 3 | E67: =(9/3.9289)/D67 -> 0.7635725012 | F67: 0.2746 | G67: =F67*(E67) -> 0.2096770088 | H67: =G67/8 -> 0.0262096261 | I67: =$I$60*E67/8 -> 0.7635725012
A69: =CPU!B105 -> CPU.10 | B69: =VLOOKUP(A69,CPU!$B$10:$G$5075,2,0) -> Plantio de vegetação para proteção de talude com hidrossemeadura, inclusive adubação e transporte | C69: =VLOOKUP(A69,CPU!$B$10:$G$5075,3,0) -> m2 | I69: =ZABUMBÃO!F62 -> 40
B70: Mao de obra | D70: QUANT.PESSOAS | E70: RENDIMENTO (H/m2) | F70: m2 | G70: HORAS | H70: DIAS | I70: DIAS
B71: Servente | D71: 3 | E71: =(8/415)/D71 -> 0.006425702811 | F71: 1 | G71: =F71*(E71) -> 0.006425702811 | H71: =G71/8 -> 0.0008032128514 | I71: =I69*$E$71/8 -> 0.03212851406
A73: =CPU!B114 -> CPU.11 | B73: =VLOOKUP(A73,CPU!$B$10:$G$5075,2,0) -> Recuperação de Caixa de passagem em concreto | C73: =VLOOKUP(A73,CPU!$B$10:$G$5075,3,0) -> m3 | I73: =ZABUMBÃO!F56 -> 4
B74: Mao de obra | D74: QUANT.PESSOAS | E74: RENDIMENTO (H/m3) | F74: m3 | G74: HORAS | H74: DIAS | I74: DIAS
B75: Servente | D75: 1 | E75: =2.5333/D75 -> 2.5333 | F75: 0.77 | G75: =F75*(E75) -> 1.950641 | H75: =G75/8 -> 0.243830125 | I75: =I73*$E$75/8 -> 1.26665
B76: Operador de betoneira | D76: 1 | E76: =1.6046/D76 -> 1.6046 | F76: 0.77 | G76: =F76*(E76) -> 1.235542 | H76: =G76/8 -> 0.15444275 | I76: =I73*$E$76/8 -> 0.8023
B77: Mao de obra | D77: QUANT.PESSOAS | E77: RENDIMENTO (H/m2) | F77: m2 | G77: HORAS | H77: DIAS | I77: DIAS
B78: Ajudante de carpinteiro | D78: 1 | E78: =0.005/D78 -> 0.005 | F78: 15.36 | G78: =F78*(E78) -> 0.0768 | H78: =G78/8 -> 0.0096 | I78: =I73*$E$78/8 -> 0.0025
B79: Carpinteiro | D79: 1 | E79: =0.005/D79 -> 0.005 | F79: 15.36 | G79: =F79*(E79) -> 0.0768 | H79: =G79/8 -> 0.0096 | I79: =I73*$E$79/8 -> 0.0025
A81: =CPU!B124 -> CPU.12 | B81: =VLOOKUP(A81,CPU!$B$10:$G$5075,2,0) -> Recomposição das erosões, inclusive, regularização da superfície e reaterro | C81: =VLOOKUP(A81,CPU!$B$10:$G$5075,3,0) -> m3 | I81: =ZABUMBÃO!F31 -> 172.27
B82: Mao de obra | D82: QUANT.PESSOAS | E82: RENDIMENTO (H/M3) | F82: m3 | G82: HORAS | H82: DIAS | I82: DIAS
B83: Servente | D83: 1 | E83: =(0.012+0.0356689)/D83 -> 0.0476689 | F83: 1 | G83: =F83*(E83) -> 0.0476689 | H83: =G83/8 -> 0.0059586125 | I83: =I81*$E$83/8 -> 1.026490175
B84: Motorista | D84: 1 | E84: =(0.0228+0.0153+0.004257)/D84 -> 0.042357 | F84: 1 | G84: =F84*(E84) -> 0.042357 | H84: =G84/8 -> 0.005294625 | I84: =I81*$E$84/8 -> 0.9121050488
B85: Operador de máquina | D85: 1 | E85: =(0.0096+0.0083+0.0045112+0.0104312)/D85 -> 0.0328424 | F85: 1 | G85: =F85*(E85) -> 0.0328424 | H85: =G85/8 -> 0.0041053 | I85: =I81*$E$85/8 -> 0.707220031
B86: rolo compactador + motoniveladora
A87: =CPU!B137 -> CPU.13 | B87: =VLOOKUP(A87,CPU!$B$10:$G$5075,2,0) -> Regularização e compactação da crista | C87: =VLOOKUP(A87,CPU!$B$10:$G$5075,3,0) -> m2 | I87: =ZABUMBÃO!F35 -> 3026
B88: Mao de obra | C88: m2 | D88: QUANT.PESSOAS | E88: RENDIMENTO (H/M2) | F88: m2 | G88: HORAS | H88: DIAS | I88: DIAS
B89: Servente | C89: h | D89: 2 | E89: =0.0086152/D89 -> 0.0043076 | F89: 1 | G89: =F89*(E89) -> 0.0043076 | H89: =G89/8 -> 0.00053845 | I89: =I87*$E$89/8 -> 1.6293497
A91: =CPU!B146 -> CPU.14 | B91: =VLOOKUP(A91,CPU!$B$10:$G$5075,2,0) -> Execução de Revestimento com BGTC | C91: =VLOOKUP(A91,CPU!$B$10:$G$5075,3,0) -> m3 | I91: =ZABUMBÃO!F41 -> 302.6
B92: Mao de obra | C92: m3 | D92: QUANT.PESSOAS | E92: RENDIMENTO (H/M3) | F92: m3 | G92: HORAS | H92: DIAS | I92: DIAS
B93: Servente | C93: h | D93: 1 | E93: =0.0365494/D93 -> 0.0365494 | F93: 1 | G93: =F93*(E93) -> 0.0365494 | H93: =G93/8 -> 0.004568675 | I93: =I91*$E$93/8 -> 1.382481055
A95: =CPU!B157 -> CPU.15 | B95: =VLOOKUP(A95,CPU!$B$10:$G$5075,2,0) -> Limpeza da superfície | C95: =VLOOKUP(A95,CPU!$B$10:$G$5075,3,0) -> m2 | I95: =ZABUMBÃO!F66+ZABUMBÃO!F73 -> 65
B96: Mao de obra | D96: QUANT.PESSOAS | E96: RENDIMENTO (H/m2) | F96: m2 | G96: HORAS | H96: DIAS
B97: Servente | D97: 1 | E97: =0.089/D97 -> 0.089 | F97: 1 | G97: =F97*(E97) -> 0.089 | H97: =G97/8 -> 0.011125 | I97: =I95*$E$97/8 -> 0.723125
A99: =CPU!B166 -> CPU.17 | B99: =VLOOKUP(A99,CPU!$B$10:$G$5075,2,0) -> Recuperação da descida d'água em degraus existentes | C99: =VLOOKUP(A99,CPU!$B$10:$G$5075,3,0) -> m3 | I99: =ZABUMBÃO!F53 -> 1
B100: Mao de obra | D100: QUANT.PESSOAS | E100: RENDIMENTO (H/m3) | F100: m3 | G100: HORAS | H100: DIAS
B101: Servente | D101: 1 | E101: =8.57/D101 -> 8.57 | F101: 1 | G101: =F101*(E101) -> 8.57 | H101: =G101/8 -> 1.07125 | I101: =I99*$E$101/8 -> 1.07125
A103: =CPU!B175 -> CPU.18 | B103: =VLOOKUP(A103,CPU!$B$10:$G$5075,2,0) -> Demolição e remoção de guias e sarjetas e/ou canaletas | C103: =VLOOKUP(A103,CPU!$B$10:$G$5075,3,0) -> m | I103: =ZABUMBÃO!F49 -> 595
B104: Mao de obra | D104: QUANT.PESSOAS | E104: RENDIMENTO (H/M) | F104: m | G104: HORAS | H104: DIAS | I104: DIAS
B105: Servente | D105: 2 | E105: =(0.1759)/D105 -> 0.08795 | F105: 1 | G105: =F105*(E105) -> 0.08795 | H105: =G105/8 -> 0.01099375 | I105: =$I$103*E105/8 -> 6.54128125
B106: Pedreiro | D106: 1 | E106: =(0.0772)/D106 -> 0.0772 | F106: 1 | G106: =F106*(E106) -> 0.0772 | H106: =G106/8 -> 0.00965 | I106: =$I$103*E106/8 -> 5.74175
A108: =CPU!B185 -> CPU.19 | B108: =VLOOKUP(A108,CPU!$B$10:$G$5075,2,0) -> Fornecimento e Assentamento de Guia (meio-fio) Pré-fabricado, dimensões 100X15X13X30 Cm (Comprimento X Base Inferior X Base Superior X Altura) | C108: =VLOOKUP(A108,CPU!$B$10:$G$5075,3,0) -> m | I108: =ZABUMBÃO!F38 -> 712
B109: Mao de obra | D109: QUANT.PESSOAS | E109: RENDIMENTO (H/M) | F109: m | G109: HORAS | H109: DIAS | I109: DIAS
B110: Servente | D110: 3 | E110: =(0.2296)/D110 -> 0.07653333333 | F110: 1 | G110: =F110*(E110) -> 0.07653333333 | H110: =G110/8 -> 0.009566666667 | I110: =$I$108*E110/8 -> 6.811466667
B111: Pedreiro | D111: 3 | E111: =(0.2296)/D111 -> 0.07653333333 | F111: 1 | G111: =F111*(E111) -> 0.07653333333 | H111: =G111/8 -> 0.009566666667 | I111: =$I$108*E111/8 -> 6.811466667
A113: =CPU!B202 -> CPU.21 | B113: =VLOOKUP(A113,CPU!$B$10:$G$5075,2,0) -> Tratamento De Junta De Dilatação | C113: =VLOOKUP(A113,CPU!$B$10:$G$5075,3,0) -> m | I113: =ZABUMBÃO!F74 -> 30
B114: Mao de obra | D114: QUANT.PESSOAS | E114: RENDIMENTO (H/M) | F114: m | G114: HORAS | H114: DIAS | I114: DIAS
B115: Servente | D115: 3 | E115: =1.3276/D115 -> 0.4425333333 | F115: 1 | G115: =F115*(E115) -> 0.4425333333 | H115: =G115/8 -> 0.05531666667 | I115: =$I$113*E115/8 -> 1.6595
B116: Pedreiro | D116: 1 | E116: =0.2687/D116 -> 0.2687 | F116: 1 | G116: =F116*(E116) -> 0.2687 | H116: =G116/8 -> 0.0335875 | I116: =$I$113*E116/8 -> 1.007625
A118: =CPU!B211 -> CPU.22 | B118: =VLOOKUP(A118,CPU!$B$10:$G$5075,2,0) -> Selagem de fissuras com resina epóxi | C118: =VLOOKUP(A118,CPU!$B$10:$G$5075,3,0) -> m | I118: =ZABUMBÃO!F67 -> 100
B119: Mao de obra | D119: QUANT.PESSOAS | E119: RENDIMENTO (H/M) | F119: m | G119: HORAS | H119: DIAS | I119: DIAS
B120: Servente | D120: 1 | E120: =(1/3.15846)/D120*0.3 -> 0.09498299804 | F120: 1 | G120: =F120*(E120) -> 0.09498299804 | H120: =G120/8 -> 0.01187287476 | I120: =$I$113*E120/8 -> 0.3561862427
A122: =CPU!B220 -> CPU.23 | B122: =VLOOKUP(A122,CPU!$B$10:$G$5075,2,0) -> Tratamento de fissuras secas com injeção de adesivo estrutural à base de resina epóxi de baixa viscosidade - fornecimento e aplicação mecanizada | C122: =VLOOKUP(A122,CPU!$B$10:$G$5075,3,0) -> m | I122: =ZABUMBÃO!F68 -> 100
B123: Mao de obra | D123: QUANT.PESSOAS | E123: RENDIMENTO (H/kg) | F123: kg | G123: HORAS | H123: DIAS | I123: DIAS
B124: Servente | D124: 1 | E124: =(3/7.78368)/D124 -> 0.3854218056 | F124: 0.25 | G124: =F124*(E124) -> 0.09635545141 | H124: =G124/8 -> 0.01204443143 | I124: =$I$122*E124*F124/8 -> 1.204443143
A126: =CPU!B230 -> CPU.24 | B126: =VLOOKUP(A126,CPU!$B$10:$G$5075,2,0) -> Tratamento para impermeabilização de fissuras com injeção de poliuretano | C126: =VLOOKUP(A126,CPU!$B$10:$G$5075,3,0) -> m | I126: =ZABUMBÃO!F69 -> 50
B127: Mao de obra | D127: QUANT.PESSOAS | E127: RENDIMENTO (H/kg) | F127: kg | G127: HORAS | H127: DIAS | I127: DIAS
B128: Servente | D128: 1 | E128: =0.5/D128 -> 0.5 | F128: 0.8 | G128: =F128*(E128) -> 0.4 | H128: =G128/8 -> 0.05 | I128: =$I$126*E128*F128/8 -> 2.5

Sheet CPU HOSPEDAGEM
B2: Engenharia Consultiva da Codevasf
B3: CPU - HOSPEDAGEM EQUIPE DE CAMPO (4 PESSOAS/MÊS) | D3: Código/Referencia
B4: ALUGUEL | C4: 3074.56 | D4: F020003334/EMBASA insumo
B5: =ZABUMBÃO!B5:F5 -> Execução de manutenção e recuperação na barragem de Zabumbão, localizada em Paramirim no estado da Bahia. | C5: =42.11*C16 -> 168.44 | D5: B8954/DNIT
B6: Material de limpeza e diarista | C6: =131.08+(123*8) -> 1115.08 | D6: 10563/ORSE - E200300131/EMBASA
B7: manutenção da casa alugada - Serviços Gerais/Vigia | C7: 2205.56 | D7: 41096/COMPESA
B8: Energia | C8: 180 | D8: 10555/ORSE
B9: Água | C9: 394.99 | D9: 10554/ORSE
B10: telefone/Internet | C10: =154.99+89 -> 243.99 | D10: 10557/10558/ORSE
B11: IPTU (mês) | C11: =(C4*0.5)/12 -> 128.1066667
B13: Custo Mensal: | C13: =SUM(C4:C12) -> 7510.726667
B14: Custo Mensal por pessoa: | C14: =C13/C16 -> 1877.681667
B15: Custo diário por pessoa: | C15: =C14/22 -> 85.34916667
B16: número de pessoas: | C16: 4
B17: Alimentação: | C17: 0 | D17: Tabela Diária Codevasf 2025
B19: Diária Total (alimentação + hospedagem): | C19: =C15+C17 -> 85.34916667

Sheet CPU-VEICULO_Serviços
D4: Veículo para serviço tipo pick-up, cabine dupla - 2.0 16V 4x4 diesel Aut. | J4: Veículo para serviço tipo pick-up, cabine dupla - 2.0 16V 4x4 diesel Aut. | U4: Veículo para serviço tipo pick-up, cabine dupla - 2.0 16V 4x4 diesel Aut. | AF4: Veículo para serviço tipo pick-up, cabine dupla - 2.0 16V 4x4 diesel Aut.
A5: Composição de Preços de Locação de Veículo tipo pick-up
B6: Data de atualização: | C6: 2025-08-18 | E6: CV | F6: Média | G6: Mediana | K6: CV | L6: Média | M6: Mediana | V6: CV | W6: Média | X6: Mediana
A7: CODEVASF | E7: =_xlfn.STDEV.S(E10:H10)/AVERAGE(E10:H10) -> 0.09461804749 | F7: =AVERAGE(E10:H10) -> 200477 | G7: =MEDIAN(E10:H10) -> 205565.5 | K7: =_xlfn.STDEV.S(L9:S9)/AVERAGE(L9:S9) -> 0.2049193683 | L7: =AVERAGE(L9:S9) -> 34.54857143 | M7: =MEDIAN(L9:S9) -> 30.91 | V7: =_xlfn.STDEV.S(W9:AD9)/AVERAGE(W9:AD9) -> 0.1241023561 | W7: =AVERAGE(W9:AD9) -> 499.0190625 | X7: =MEDIAN(W9:AD9) -> 499.45
A8: OBS: Preço sem BDI e sem motorista BDI= | E8: Preço FIPE | J8: PRODUTO | K8: MENOR (MÉDIA, MEDIANA) | L8: COT. 1 | M8: COT. 2 | N8: COT. 3 | O8: COT. 4 | P8: COT. 5 | Q8: COT. 6 | R8: COT. 7 | S8: COT. 8 | U8: PRODUTO | V8: MENOR (MÉDIA, MEDIANA) | W8: COT. 1 | X8: COT. 2 | Y8: COT. 3 | Z8: COT. 4 | AA8: COT. 5 | AB8: COT. 6 | AC8: COT. 7 | AD8: COT. 8
A9: Veículo para serviço tipo pick-up, cabine dupla - 2.0 16V 4x4 diesel Aut. | E9: Toro Ultra 2.0 16V 4x4 TB Diesel Aut. | F9: Toro Freedom 2.0 16V 4x4 TB Diesel Aut. | G9: Toro Volcano 2.0 16V 4x4 TB Diesel Aut. | H9: Toro Ranch 2.0 16V 4x4 TB Diesel Aut. | J9: LUBRIFICANTE 5W30 | K9: =SMALL(L7:M7,1) -> 30.91 | L9: 33.33 | M9: 26.9 | N9: 30.9 | O9: 30.9 | P9: 30.91 | Q9: 46 | R9: 42.9 | U9: Pneu 225/65 R17 | V9: =SMALL(W7:X7,1) -> 499.0190625 | W9: 499 | X9: 479.9 | Y9: 565.25 | Z9: 393.38 | AA9: 449.9 | AB9: =2059.44/4 -> 514.86 | AC9: =2359.85/4 -> 589.9625 | AD9: 499.9
B10: Custo Mensal (R$): | C10: =C51 -> 3097.8472 | E10: 215525 | F10: 175252 | G10: 196485 | H10: 214646
B11: Custo Diária (R$): | C11: =C10/22 -> 140.8112363
B12: Custo Horário (R$): | C12: =C10/176 -> 17.60140454
A13: A | B13: Depreciação mensal do equipamento
A14: A1 | B14: Preço de Aquisição | C14: =SMALL(F7:G7,1) -> 200477
A15: A2 | B15: Tempo previsto de vida útil (meses) | C15: 36
A16: A3 | B16: Previsão de recup. Na venda do bem usado | C16: 0.7
A17: A4 | B17: Custo mensal [A1-(A3xA1)]/A2 | C17: =(C14-(C16*C14))/C15 -> 1670.641667
A18: B | B18: Juros pelo Capital empregado
A19: B1 | B19: Taxa mensal de Juros * | C19: =POWER(1+C56,1/12)-1 -> 0.01171491692
A20: B2 | B20: Juros s/depreciação/aluguel (B1xA4) | C20: =C19*C17 -> 19.57142833
A21: C | B21: Conservação e manutenção ** | C21: 0.75
A22: C1 | B22: Taxa de gastos s/a deprec. Inc. seguros (%) | C22: =C21 -> 0.75 | AF22: PREÇO DO DIESEL | AG22: 6.06
A23: C2 | B23: Incidência mensal (C1xA4) | C23: =C22*C17 -> 1252.98125 | AF23: https://precos.petrobras.com.br/w/diesel/mg
A24: D | B24: Combustível
A25: D1 | B25: Média mensal de quilômetro por veículo | C25: ='Memorial de cálculo'!H6*2*22 -> 228.8
A26: D2 | B26: Preço do litro de combustível | C26: =AG22 -> 6.06
A27: D3 | B27: Quilômetros rodados com um litro combustivel | C27: 10
A28: D4 | B28: Combustivel (D1/D3)*D2 | C28: =(C25/C27)*C26 -> 138.6528
A29: E | B29: Lubrificantes
A30: E1 | B30: Quilometragem do Contrato (D1*12) | C30: =C25*36 -> 8236.8
A31: E2 | B31: Franquia por troca de óleo (km) | C31: 10000
A32: E3 | B32: Preço do litro de óleo | C32: =K9 -> 30.91
A33: E4 | B33: Quantidade de litros de óleo por troca | C33: 5
A34: E5 | B34: Quantidade de dias do Contrato | C34: =365*3 -> 1095
A35: E6 | B35: Lubrificantes E = (E1*E3*E4*30)/E2*E5 | C35: =(C30*C32*C33*30)/(C31*C34) -> 3.487664219
A36: F | B36: Pneus
A37: F1 | B37: Quilometragem do Contrato | C37: =C30 -> 8236.8
A38: F2 | B38: Vida do Pneu em quilômetros | C38: 45000
A39: F3 | B39: Quantidade de pneus | C39: 5
A40: F4 | B40: Preço do Pneu | C40: =V9 -> 499.0190625
A41: F5 | B41: Quantidade de dias do contrato | C41: =C34 -> 1095
A42: F6 | B42: Pneus = (F1*F3*F4*30)/(F2*F5) | C42: =(C37*C39*C40*30)/(C38*C41) -> 12.5123903
A43: G | B43: Motorista
A44: G1 | B44: Salário com encargos sociais | C44: 0
A45: H | B45: Custo Mensal
B46: Sem Motorista (A4+B2+C2+D4+E6+F6) | C46: =C17+C20+C23+C28+C35+C42 -> 3097.8472
B47: Com Motorista (A4+B2+C2+D4+E6+F6+G1) | C47: =C17+C20+C23+C28+C35+C42+C44 -> 3097.8472
A48: I | B48: Custo Direto p/ km Rodado
B49: Sem Motorista | C49: =C46/C25 -> 13.53954196
B50: Com Motorista | C50: =C47/C25 -> 13.53954196
A51: J | B51: Preço cobrado sem BDI | C51: =C46*(1+C8) -> 3097.8472
A52: J1 | B52: Sem Motorista | C52: =C51 -> 3097.8472
A53: J2 | B53: Com Motorista | C53: =C47 -> 3097.8472 | J53: https://www.google.com/search?q=lubrificante+5w30+1l&sa=X&sca_esv=c77f5342bf7e367a&tbm=shop&ei=e0uKZ-DcDNKp5OUPkOKj6QY&ved=0ahUKEwighoOy3_yKAxXSFLkGHRDxKG0Q4dUDCAg&uact=5&oq=lubrificante+5w30+1l&gs_lp=Egtwcm9kdWN0cy1jYyIUbHVicmlmaWNhbnRlIDV3MzAgMWxIgQ9Q4AlY8Q1wAHgAkAEAmAFroAGgA6oBAzEuM7gBA8gBAPgBAZgCAqAC0gHCAgUQABiABMICBhAAGAcYHsICBhAAGAgYHsICBhAAGBYYHpgDAIgGAZIHAzEuMaAHxQU&sclient=products-cc | U53: https://www.google.com/search?q=pneu+225%2F65+R17&sa=X&biw=1600&bih=757&tbm=shop&sxsrf=AJOqlzWsb-d4PS1_OUOEhKmRc2RbtSg3RQ%3A1677092596279&ei=9Gb2Y9K5ENTa5OUPvLykGA&ved=0ahUKEwjSg9Pj6Kn9AhVULbkGHTweCQMQ4dUDCAg&uact=5&oq=pneu+225%2F65+R17&gs_lcp=Cgtwcm9kdWN0cy1jYxADMgsIABCABBCxAxCDATIFCAAQgAQyBwgAEIAEEAoyBwgAEIAEEAoyBwgAEIAEEAoyBwgAEIAEEAoyBwgAEIAEEAoyBQgAEIAEMgcIABCABBAKMgcIABCABBAKOgQIIxAnOgQIABBDSgQIQRgAUABYoTJgqUBoAHAAeACAAdIFiAGUKZIBDTAuMi42LjIuMi4yLjGYAQCgAQHAAQE&sclient=products-cc
B55: OBSERVAÇÕES:
A56: * | B56: Calculado com base na taxa SELIC agosto/2025: | C56: 0.15
B57: Taxa de Juros Selic — Português (Brasil) (www.gov.br)
A58: ** | B58: Conservação e manutenção - é calculado com o uso de um coeficiente multiplicador "k", conforme tabela abaixo, sobre a
B59: depreciação mensal do equipamento (Item A da planilha de composição de preços). Os valores de K são fornecidos por
B60: fabricantes.
B61: Metodologia conforme a bibliografia "Como Preparar Orçamentos de Obras", 3 edição, Aldo Dórea Mattos, 2019.

Sheet CPU-VEICULO_Fiscalização
D1: Veículo para fiscalização tipo pick-up, cabine dupla - 2.0 16V 4x4 diesel Aut. | J1: Veículo para fiscalização tipo pick-up, cabine dupla - 2.0 16V 4x4 diesel Aut. | U1: Veículo para fiscalização tipo pick-up, cabine dupla - 2.0 16V 4x4 diesel Aut. | AF1: Veículo para fiscalização tipo pick-up, cabine dupla - 2.0 16V 4x4 diesel Aut.
A5: Composição de Preços de Locação de Veículo tipo pick-up
B6: Data de atualização: | C6: 2025-08-22 | E6: CV | F6: Média | G6: Mediana | K6: CV | L6: Média | M6: Mediana | V6: CV | W6: Média | X6: Mediana
A7: CODEVASF | E7: =_xlfn.STDEV.S(E10:H10)/AVERAGE(E10:H10) -> 0.09461804749 | F7: =AVERAGE(E10:H10) -> 200477 | G7: =MEDIAN(E10:H10) -> 205565.5 | K7: =_xlfn.STDEV.S(L9:S9)/AVERAGE(L9:S9) -> 0.2049193683 | L7: =AVERAGE(L9:S9) -> 34.54857143 | M7: =MEDIAN(L9:S9) -> 30.91 | V7: =_xlfn.STDEV.S(W9:AD9)/AVERAGE(W9:AD9) -> 0.1241023561 | W7: =AVERAGE(W9:AD9) -> 499.0190625 | X7: =MEDIAN(W9:AD9) -> 499.45
A8: OBS: Preço sem BDI e sem motorista BDI= | E8: Preço FIPE | J8: PRODUTO | K8: MENOR (MÉDIA, MEDIANA) | L8: COT. 1 | M8: COT. 2 | N8: COT. 3 | O8: COT. 4 | P8: COT. 5 | Q8: COT. 6 | R8: COT. 7 | S8: COT. 8 | U8: PRODUTO | V8: MENOR (MÉDIA, MEDIANA) | W8: COT. 1 | X8: COT. 2 | Y8: COT. 3 | Z8: COT. 4 | AA8: COT. 5 | AB8: COT. 6 | AC8: COT. 7 | AD8: COT. 8
A9: Veículo para fiscalização tipo pick-up, cabine dupla - 2.0 16V 4x4 diesel Aut. | E9: Toro Ultra 2.0 16V 4x4 TB Diesel Aut. | F9: Toro Freedom 2.0 16V 4x4 TB Diesel Aut. | G9: Toro Volcano 2.0 16V 4x4 TB Diesel Aut. | H9: Toro Ranch 2.0 16V 4x4 TB Diesel Aut. | J9: LUBRIFICANTE 5W30 | K9: =SMALL(L7:M7,1) -> 30.91 | L9: 33.33 | M9: 26.9 | N9: 30.9 | O9: 30.9 | P9: 30.91 | Q9: 46 | R9: 42.9 | U9: Pneu 225/65 R17 | V9: =SMALL(W7:X7,1) -> 499.0190625 | W9: 499 | X9: 479.9 | Y9: 565.25 | Z9: 393.38 | AA9: 449.9 | AB9: =2059.44/4 -> 514.86 | AC9: =2359.85/4 -> 589.9625 | AD9: 499.9
B10: Custo Mensal (R$): | C10: =C51 -> 8356.044253 | E10: 215525 | F10: 175252 | G10: 196485 | H10: 214646
B11: Custo Diária (R$): | C11: =C10/22 -> 379.8201933
B12: Custo Horário (R$): | C12: =C10/176 -> 47.47752417
A13: A | B13: Depreciação mensal do equipamento
A14: A1 | B14: Preço de Aquisição | C14: =SMALL(F7:G7,1) -> 200477
A15: A2 | B15: Tempo previsto de vida útil (meses) | C15: 36
A16: A3 | B16: Previsão de recup. Na venda do bem usado | C16: 0.7
A17: A4 | B17: Custo mensal [A1-(A3xA1)]/A2 | C17: =(C14-(C16*C14))/C15 -> 1670.641667
A18: B | B18: Juros pelo Capital empregado
A19: B1 | B19: Taxa mensal de Juros * | C19: =POWER(1+C56,1/12)-1 -> 0.01171491692
A20: B2 | B20: Juros s/depreciação/aluguel (B1xA4) | C20: =C19*C17 -> 19.57142833
A21: C | B21: Conservação e manutenção ** | C21: 0.75
A22: C1 | B22: Taxa de gastos s/a deprec. Inc. seguros (%) | C22: =C21 -> 0.75 | AF22: PREÇO DO DIESEL | AG22: 6.06
A23: C2 | B23: Incidência mensal (C1xA4) | C23: =C22*C17 -> 1252.98125 | AF23: https://precos.petrobras.com.br/w/diesel/mg
A24: D | B24: Combustível
A25: D1 | B25: Média mensal de quilômetro por veículo | C25: ='Memorial de cálculo'!H5*2*22 -> 8008
A26: D2 | B26: Preço do litro de combustível | C26: =AG22 -> 6.06
A27: D3 | B27: Quilômetros rodados com um litro combustivel | C27: 10
A28: D4 | B28: Combustivel (D1/D3)*D2 | C28: =(C25/C27)*C26 -> 4852.848
A29: E | B29: Lubrificantes
A30: E1 | B30: Quilometragem do Contrato (D1*12) | C30: =C25*36 -> 288288
A31: E2 | B31: Franquia por troca de óleo (km) | C31: 10000
A32: E3 | B32: Preço do litro de óleo | C32: =K9 -> 30.91
A33: E4 | B33: Quantidade de litros de óleo por troca | C33: 5
A34: E5 | B34: Quantidade de dias do Contrato | C34: =365*3 -> 1095
A35: E6 | B35: Lubrificantes E = (E1*E3*E4*30)/E2*E5 | C35: =(C30*C32*C33*30)/(C31*C34) -> 122.0682477
A36: F | B36: Pneus
A37: F1 | B37: Quilometragem do Contrato | C37: =C30 -> 288288
A38: F2 | B38: Vida do Pneu em quilômetros | C38: 45000
A39: F3 | B39: Quantidade de pneus | C39: 5
A40: F4 | B40: Preço do Pneu | C40: =V9 -> 499.0190625
A41: F5 | B41: Quantidade de dias do contrato | C41: =C34 -> 1095
A42: F6 | B42: Pneus = (F1*F3*F4*30)/(F2*F5) | C42: =(C37*C39*C40*30)/(C38*C41) -> 437.9336605
A43: G | B43: Motorista
A44: G1 | B44: Salário com encargos sociais | C44: 0
A45: H | B45: Custo Mensal
B46: Sem Motorista (A4+B2+C2+D4+E6+F6) | C46: =C17+C20+C23+C28+C35+C42 -> 8356.044253
B47: Com Motorista (A4+B2+C2+D4+E6+F6+G1) | C47: =C17+C20+C23+C28+C35+C42+C44 -> 8356.044253
A48: I | B48: Custo Direto p/ km Rodado
B49: Sem Motorista | C49: =C46/C25 -> 1.04346207
B50: Com Motorista | C50: =C47/C25 -> 1.04346207
A51: J | B51: Preço cobrado sem BDI | C51: =C46*(1+C8) -> 8356.044253
A52: J1 | B52: Sem Motorista | C52: =C51 -> 8356.044253
A53: J2 | B53: Com Motorista | C53: =C47 -> 8356.044253 | J53: https://www.google.com/search?q=lubrificante+5w30+1l&sa=X&sca_esv=c77f5342bf7e367a&tbm=shop&ei=e0uKZ-DcDNKp5OUPkOKj6QY&ved=0ahUKEwighoOy3_yKAxXSFLkGHRDxKG0Q4dUDCAg&uact=5&oq=lubrificante+5w30+1l&gs_lp=Egtwcm9kdWN0cy1jYyIUbHVicmlmaWNhbnRlIDV3MzAgMWxIgQ9Q4AlY8Q1wAHgAkAEAmAFroAGgA6oBAzEuM7gBA8gBAPgBAZgCAqAC0gHCAgUQABiABMICBhAAGAcYHsICBhAAGAgYHsICBhAAGBYYHpgDAIgGAZIHAzEuMaAHxQU&sclient=products-cc | U53: https://www.google.com/search?q=pneu+225%2F65+R17&sa=X&biw=1600&bih=757&tbm=shop&sxsrf=AJOqlzWsb-d4PS1_OUOEhKmRc2RbtSg3RQ%3A1677092596279&ei=9Gb2Y9K5ENTa5OUPvLykGA&ved=0ahUKEwjSg9Pj6Kn9AhVULbkGHTweCQMQ4dUDCAg&uact=5&oq=pneu+225%2F65+R17&gs_lcp=Cgtwcm9kdWN0cy1jYxADMgsIABCABBCxAxCDATIFCAAQgAQyBwgAEIAEEAoyBwgAEIAEEAoyBwgAEIAEEAoyBwgAEIAEEAoyBwgAEIAEEAoyBQgAEIAEMgcIABCABBAKMgcIABCABBAKOgQIIxAnOgQIABBDSgQIQRgAUABYoTJgqUBoAHAAeACAAdIFiAGUKZIBDTAuMi42LjIuMi4yLjGYAQCgAQHAAQE&sclient=products-cc
B55: OBSERVAÇÕES:
A56: * | B56: Calculado com base na taxa SELIC AGOSTO/2025: | C56: 0.15
B57: Taxa de Juros Selic — Português (Brasil) (www.gov.br)
A58: ** | B58: Conservação e manutenção - é calculado com o uso de um coeficiente multiplicador "k", conforme tabela abaixo, sobre a
B59: depreciação mensal do equipamento (Item A da planilha de composição de preços). Os valores de K são fornecidos por
B60: fabricantes.
B61: Metodologia conforme a bibliografia "Como Preparar Orçamentos de Obras", 3 edição, Aldo Dórea Mattos, 2019.

Sheet BDI serv
A1: =ZABUMBÃO!A1:I1 -> Ministério da Integração e do Desenvolvimento Regional
A2: =ZABUMBÃO!A2:I2 -> Companhia de Desenvolvimento dos Vales do São Francisco e do Parnaíba
A4: COMPOSIÇÃO DE BDI - SERVIÇOS - NÃO DESONERADO
A5: =ZABUMBÃO!A5 -> OBRA: | B5: =ZABUMBÃO!B5:F5 -> Execução de manutenção e recuperação na barragem de Zabumbão, localizada em Paramirim no estado da Bahia. | D5: BDI (serv.): | E5: =D23 -> 0.2321
A6: =ZABUMBÃO!A6 -> LOCAL: | B6: =ZABUMBÃO!B6 -> Paramirim - BA | D6: BDI (forn.): | E6: ='BDI forn'!E6 -> 0.1469
A7: =ZABUMBÃO!A7 -> DATA BASE: | B7: =ZABUMBÃO!B7 -> 2025-08-01
A8: =ZABUMBÃO!A8 -> PRAZO: | B8: =ZABUMBÃO!B8 -> 120 dias
A9: ITEM | B9: DESCRIÇÃO | C9: SIGLA | D9: % APLICADO | E9: REFERÊNCIA TCU (ACÓRDÃO Nº 2622/2013)
E10: 1º QUARTIL | F10: 2º QUARTIL | G10: 3º QUARTIL
A11: 1 | B11: ADMINISTRAÇÃO CENTRAL | C11: AC | D11: =E11 -> 0.04 | E11: 0.04 | F11: 0.0552 | G11: 0.0785
A12: 2 | B12: IMPOSTOS | C12: T | D12: =SUM(D13:D16) -> 0.0665
A13: 2.1 | B13: ISS (*) | D13: 0.03 | E13: - | F13: - | G13: -
A14: 2.2 | B14: PIS | D14: 0.0065 | E14: - | F14: - | G14: -
A15: 2.3 | B15: Cofins | D15: 0.03 | E15: - | F15: - | G15: -
A16: 2.4 | B16: Contribuição previdênciária sobre a receita bruta (CPRB) | E16: - | F16: - | G16: -
A17: 3 | B17: SEGURO, GARANTIA E RISCO | D17: =SUM(D18:D20) -> 0.0227
A18: 3.1 | B18: Seguro | C18: S | D18: =E18 -> 0.0081 | E18: 0.0081 | F18: 0.0122 | G18: 0.0199
A19: 3.2 | B19: Garantia | C19: G
A20: 3.3 | B20: Risco | C20: R | D20: =E20 -> 0.0146 | E20: 0.0146 | F20: 0.0232 | G20: 0.0316
A21: 4 | B21: DESPESAS FINANCEIRAS | C21: DF | D21: =F21 -> 0.0102 | E21: 0.0094 | F21: 0.0102 | G21: 0.01363
A22: 5 | B22: LUCRO | C22: L | D22: =E22 -> 0.0714 | E22: 0.0714 | F22: 0.084 | G22: 0.1043
B23: BDI ADOTADO: | D23: =ROUND(((((1+D11+D17)*(1+D21)*(1+D22))/(1-D12))-1),4) -> 0.2321
A24: Considerações: O BDI foi calculado através da seguinte fórmula, regulamentada pelo Acórdão Nº 2622/2013 – TCU.
H173: =SUM(H174:H177) -> 0
D177: mec | F177: 2 | G177: 128

Sheet BDI forn
A1: =ZABUMBÃO!A1:I1 -> Ministério da Integração e do Desenvolvimento Regional
A2: =ZABUMBÃO!A2:I2 -> Companhia de Desenvolvimento dos Vales do São Francisco e do Parnaíba
A4: COMPOSIÇÃO DE BDI - FORNECIMENTO - NÃO DESONERADO
A5: =ZABUMBÃO!A5 -> OBRA: | B5: =ZABUMBÃO!B5:F5 -> Execução de manutenção e recuperação na barragem de Zabumbão, localizada em Paramirim no estado da Bahia. | D5: BDI (serv.): | E5: ='BDI serv'!E5 -> 0.2321
A6: =ZABUMBÃO!A6 -> LOCAL: | B6: =ZABUMBÃO!B6 -> Paramirim - BA | D6: BDI (forn.): | E6: =D23 -> 0.1469
A7: =ZABUMBÃO!A7 -> DATA BASE: | B7: =ZABUMBÃO!B7 -> 2025-08-01
A8: =ZABUMBÃO!A8 -> PRAZO: | B8: =ZABUMBÃO!B8 -> 120 dias
A9: ITEM | B9: DESCRIÇÃO | C9: SIGLA | D9: % APLICADO | E9: REFERÊNCIA TCU (ACÓRDÃO Nº 2622/2013)
E10: 1º QUARTIL | F10: 2º QUARTIL | G10: 3º QUARTIL
A11: 1 | B11: ADMINISTRAÇÃO CENTRAL | C11: AC | D11: 0.03 | E11: 0.015 | F11: 0.0345 | G11: 0.0449
A12: 2 | B12: IMPOSTOS | C12: T | D12: =SUM(D13:D16) -> 0.0365
A13: 2.1 | B13: ISS (*) | E13: - | F13: - | G13: -
A14: 2.2 | B14: PIS | D14: 0.0065 | E14: - | F14: - | G14: -
A15: 2.3 | B15: Cofins | D15: 0.03 | E15: - | F15: - | G15: -
A16: 2.4 | B16: Contribuição previdênciária sobre a receita bruta (CPRB) | E16: - | F16: - | G16: -
A17: 3 | B17: SEGURO, GARANTIA E RISCO | D17: =SUM(D18:D20) -> 0.0086
A18: 3.1 | B18: Seguro | C18: S | D18: =E18 -> 0.003 | E18: 0.003 | F18: 0.0048 | G18: 0.0082
A19: 3.2 | B19: Garantia | C19: G
A20: 3.3 | B20: Risco | C20: R | D20: =E20 -> 0.0056 | E20: 0.0056 | F20: 0.0085 | G20: 0.0089
A21: 4 | B21: DESPESAS FINANCEIRAS | C21: DF | D21: =F21 -> 0.0085 | E21: 0.0085 | F21: 0.0085 | G21: 0.0111
A22: 5 | B22: LUCRO | C22: L | D22: 0.055 | E22: 0.035 | F22: 0.0511 | G22: 0.0622
B23: BDI ADOTADO: | D23: =ROUND(((((1+D11+D17)*(1+D21)*(1+D22))/(1-D12))-1),4) -> 0.1469
A24: Considerações: O BDI foi calculado através da seguinte fórmula, regulamentada pelo Acórdão Nº 2622/2013 – TCU.
H173: =SUM(H174:H177) -> 0
D177: mec | F177: 2 | G177: 128

Sheet Encargos Sociais
A1: Ministério da Integração e do Desenvolvimento Regional
A2: Companhia de Desenvolvimento dos Vales do São Francisco e do Parnaíba
A4: COMPOSIÇÃO DE ENCARGOS SOCIAIS SOBRE A MÃO DE OBRA
A5: =ZABUMBÃO!A5 -> OBRA: | B5: =ZABUMBÃO!B5:F5 -> Execução de manutenção e recuperação na barragem de Zabumbão, localizada em Paramirim no estado da Bahia.
A6: =ZABUMBÃO!A6 -> LOCAL: | B6: =ZABUMBÃO!B6 -> Paramirim - BA
A7: =ZABUMBÃO!A7 -> DATA BASE: | B7: =ZABUMBÃO!B7 -> 2025-08-01
A8: =ZABUMBÃO!A8 -> PRAZO: | B8: =ZABUMBÃO!B8 -> 120 dias
A10: MINAS GERAIS
A11: Encargos Sociais – Bahia VIGÊNCIA A PARTIR DE 01/2025
A12: ENCARGOS SOCIAIS SOBRE A MÃO DE OBRA
A13: CÓDIGO | B13: DESCRIÇÃO | C13: COM DESONERAÇÃO | E13: SEM DESONERAÇÃO
C14: HORISTA % | D14: MENSALISTA % | E14: HORISTA % | F14: MENSALISTA %
A15: GRUPO A
A16: A1 | B16: INSS | C16: 0.05 | D16: 0.05 | E16: 0.2 | F16: 0.2
A17: A2 | B17: SESI | C17: 0.015 | D17: 0.015 | E17: 0.015 | F17: 0.015
A18: A3 | B18: SENAI | C18: 0.01 | D18: 0.01 | E18: 0.01 | F18: 0.01
A19: A4 | B19: INCRA | C19: 0.002 | D19: 0.002 | E19: 0.002 | F19: 0.002
A20: A5 | B20: SEBRAE | C20: 0.006 | D20: 0.006 | E20: 0.006 | F20: 0.006
A21: A6 | B21: Salário Educação | C21: 0.025 | D21: 0.025 | E21: 0.025 | F21: 0.025
A22: A7 | B22: Seguro Contra Acidentes de Trabalho | C22: 0.03 | D22: 0.03 | E22: 0.03 | F22: 0.03
A23: A8 | B23: FGTS | C23: 0.08 | D23: 0.08 | E23: 0.08 | F23: 0.08
A24: A9 | B24: SECONCI | C24: 0 | D24: 0 | E24: 0 | F24: 0
A25: A | B25: Total | C25: =SUM(C16:C24) -> 0.218 | D25: =SUM(D16:D24) -> 0.218 | E25: =SUM(E16:E24) -> 0.368 | F25: =SUM(F16:F24) -> 0.368
A26: GRUPO B
A27: B1 | B27: Repouso Semanal Remunerado | C27: 0.1798 | D27: Não incide | E27: 0.1798 | F27: Não incide
A28: B2 | B28: Feriados | C28: 0.0397 | D28: Não incide | E28: 0.0397 | F28: Não incide
A29: B3 | B29: Auxílio - Enfermidade | C29: 0.0086 | D29: 0.0065 | E29: 0.0086 | F29: 0.0065
A30: B4 | B30: 13º Salário | C30: 0.1107 | D30: 0.0833 | E30: 0.1107 | F30: 0.0833
A31: B5 | B31: Licença Paternidade | C31: 0.0007 | D31: 0.0005 | E31: 0.0007 | F31: 0.0005
A32: B6 | B32: Faltas Justificadas | C32: 0.0074 | D32: 0.0056 | E32: 0.0074 | F32: 0.0056
A33: B7 | B33: Dias de Chuvas | C33: 0.0214 | D33: Não incide | E33: 0.0214 | F33: Não incide
A34: B8 | B34: Auxílio Acidente de Trabalho | C34: 0.001 | D34: 0.0007 | E34: 0.001 | F34: 0.0007
A35: B9 | B35: Férias Gozadas | C35: 0.1192 | D35: 0.0897 | E35: 0.1192 | F35: 0.0897
A36: B10 | B36: Salário Maternidade | C36: 0.0003 | D36: 0.0003 | E36: 0.0003 | F36: 0.0003
A37: B | B37: Total | C37: =SUM(C27:C36) -> 0.4888 | D37: =SUM(D27:D36) -> 0.1866 | E37: =SUM(E27:E36) -> 0.4888 | F37: =SUM(F27:F36) -> 0.1866
A38: GRUPO C
A39: C1 | B39: Aviso Prévio Indenizado | C39: 0.0549 | D39: 0.0413 | E39: 0.0549 | F39: 0.0413
A40: C2 | B40: Aviso Prévio Trabalhado | C40: 0.0013 | D40: 0.001 | E40: 0.0013 | F40: 0.001
A41: C3 | B41: Férias Indenizadas | C41: 0.0236 | D41: 0.0177 | E41: 0.0236 | F41: 0.0177
A42: C4 | B42: Depósito Rescisão Sem Justa Causa | C42: 0.0297 | D42: 0.0224 | E42: 0.0297 | F42: 0.0224
A43: C5 | B43: Indenização Adicional | C43: 0.0046 | D43: 0.0035 | E43: 0.0046 | F43: 0.0035
A44: C | B44: Total | C44: =SUM(C39:C43) -> 0.1141 | D44: =SUM(D39:D43) -> 0.0859 | E44: =SUM(E39:E43) -> 0.1141 | F44: =SUM(F39:F43) -> 0.0859
A45: GRUPO D
A46: D1 | B46: Reincidência de Grupo A sobre Grupo B | C46: 0.101 | D46: 0.0365 | E46: 0.1799 | F46: 0.0687
A47: D2 | B47: Reincidência de Grupo A sobre Aviso Prévio Trabalhado e Reincidência do FGTS sobre Aviso Prévio Indenizado | C47: 0.0047 | D47: 0.0035 | E47: 0.0049 | F47: 0.0037
A48: D | B48: Total | C48: =SUM(C46:C47) -> 0.1057 | D48: =SUM(D46:D47) -> 0.04 | E48: =SUM(E46:E47) -> 0.1848 | F48: =SUM(F46:F47) -> 0.0724
A49: TOTAL(A+B+C+D) | C49: =C25+C37+C44+C48 -> 0.9266 | D49: =D25+D37+D44+D48 -> 0.5305 | E49: =E25+E37+E44+E48 -> 1.1557 | F49: =F25+F37+F44+F48 -> 0.7129
A50: Fonte: Informação Dias de Chuva – INMET

Sheet Comp SINAPI BA 07-2025 Onerado
A1: SINAPI - Sistema Nacional de Pesquisa de Custos e Índices da Construção Civil
A2: RELATÓRIO DE CUSTOS DE COMPOSIÇÕES - ENCARGOS SOCIAIS SEM DESONERAÇÃO
A3: Mês de Referência: | B3: 07/2025 | D3: Encargos sociais sobre a mão de obra:
A4: Data de emissão: | B4: 12/08/2025 | D4: (SEM DESONERAÇÃO) | E4: BA
D5: Localidade | E5: SALVADOR
A6: Observação: | B6: %AS (porcentagem Atribuído São Paulo) corresponde a porcentagem do custo total da | D6: Horista | E6: 1.1557
B7: composição que foi obtida utilizando preços de insumos de São Paulo por indisponibilidade | D7: Mensalista | E7: 0.7129
B8: dos preços de insumos necessários à composição no estado em questão. Custo zerado (hífen)
B9: indica que pelo menos um dos itens da composição não tem custo/preço. | E9: BA
A10: Grupo | B10: Código da Composição | C10: Descrição | D10: Unidade | E10: Custo (R$) | F10: %AS
A11: Acessibilidade | B11: 104658 | C11: PISO PODOTÁTIL DE ALERTA OU DIRECIONAL, DE CONCRETO, ASSENTADO SOBRE ARGAMASSA. AF_03/2024 | D11: M2 | E11: 163.93 | F11: 0
A12: Acessibilidade | B12: 105002 | C12: RAMPA DE ACESSIBILIDADE EM CONCRETO MOLDADO IN LOCO, EM CALÇADA NOVA COM LARGURA MAIOR OU IGUAL À 3,00 M, FCK 25MPA, COM PISO PODOTÁTIL. AF_03/2024 | D12: UN | E12: 799.61 | F12: 0
A13: Acessibilidade | B13: 105004 | C13: RAMPA DE ACESSIBILIDADE EM CONCRETO MOLDADO IN LOCO, EM CALÇADA NOVA COM LARGURA MENOR À 3,00 M, FCK 25MPA, COM PISO PODOTÁTIL. AF_03/2024 | D13: M2 | E13: 136.7 | F13: 0
A14: Acessibilidade | B14: 105003 | C14: RAMPA DE ACESSIBILIDADE EM CONCRETO MOLDADO IN LOCO, EM CALÇADA PRÉ EXISTENTE COM LARGURA MAIOR OU IGUAL À 3,00 M, FCK 25MPA, COM PISO PODOTÁTIL. AF_03/2024 | D14: UN | E14: 1335.98 | F14: 0.0474
A15: Acessibilidade | B15: 105005 | C15: RAMPA DE ACESSIBILIDADE EM CONCRETO MOLDADO IN LOCO, EM CALÇADA PRÉ EXISTENTE COM LARGURA MENOR À 3,00 M, FCK 25MPA, COM PISO PODOTÁTIL. AF_03/2024 | D15: M2 | E15: 236.02 | F15: 0.0497
A16: Acessibilidade | B16: 105006 | C16: RAMPA DE ACESSIBILIDADE EM CONCRETO PRÉ MOLDADO, EM CALÇADA NOVA COM LARGURA MAIOR OU IGUAL À 3,00 M, FCK 25MPA, COM PISO PODOTÁTIL. AF_03/2024 | D16: UN | E16: 0
A17: Acessibilidade | B17: 104999 | C17: RAMPA DE ACESSIBILIDADE EM CONCRETO PRÉ MOLDADO, EM CALÇADA PRÉ EXISTENTE COM LARGURA MAIOR OU IGUAL À 3,00 M, FCK 25MPA, COM PISO PODOTÁTIL. AF_03/2024 | D17: UN | E17: 0
A18: Acessibilidade | B18: 105000 | C18: RAMPA DE ACESSIBILIDADE PARA ACESSO A EDIFICAÇÕES COM INCLINAÇÃO DE 8,33% EM CONCRETO MOLDADO IN LOCO, COM LARGURA DE 1,20M, FCK 25MPA, NÃO ARMADA, COM JUNTA A CADA 2M COM CORTE À SECO. AF_03/2024 | D18: M | E18: 1510.51 | F18: 0
A19: Acessibilidade | B19: 105001 | C19: RAMPA DE ACESSIBILIDADE PARA ACESSO A EDIFICAÇÕES COM INCLINAÇÃO DE 8,33% EM CONCRETO MOLDADO IN LOCO, COM LARGURA DE 1,50M, FCK 25MPA, NÃO ARMADA, COM JUNTA A CADA 2M COM CORTE À SECO. AF_03/2024 | D19: M | E19: 1546.23 | F19: 0
A20: Alvenaria Estrutural - Blocos Cerâmicos | B20: 89306 | C20: ALVENARIA ESTRUTURAL DE BLOCOS CERÂMICOS 14X19X29, (ESPESSURA DE 14 CM), UTILIZANDO COLHER DE PEDREIRO E ARGAMASSA DE ASSENTAMENTO COM PREPARO EM BETONEIRA. AF_03/2023 | D20: M2 | E20: 108.83 | F20: 0
A21: Alvenaria Estrutural - Blocos Cerâmicos | B21: 89307 | C21: ALVENARIA ESTRUTURAL DE BLOCOS CERÂMICOS 14X19X29, (ESPESSURA DE 14 CM), UTILIZANDO COLHER DE PEDREIRO E ARGAMASSA DE ASSENTAMENTO COM PREPARO MANUAL. AF_03/2023 | D21: M2 | E21: 109.89 | F21: 0
A22: Alvenaria Estrutural - Blocos Cerâmicos | B22: 89290 | C22: ALVENARIA ESTRUTURAL DE BLOCOS CERÂMICOS 14X19X29, (ESPESSURA DE 14 CM), UTILIZANDO PALHETA E ARGAMASSA DE ASSENTAMENTO COM PREPARO EM BETONEIRA. AF_03/2023 | D22: M2 | E22: 89.51 | F22: 0
A23: Alvenaria Estrutural - Blocos Cerâmicos | B23: 89291 | C23: ALVENARIA ESTRUTURAL DE BLOCOS CERÂMICOS 14X19X29, (ESPESSURA DE 14 CM), UTILIZANDO PALHETA E ARGAMASSA DE ASSENTAMENTO COM PREPARO MANUAL. AF_03/2023 | D23: M2 | E23: 90.3 | F23: 0
A24: Alvenaria Estrutural - Blocos Cerâmicos | B24: 89298 | C24: ALVENARIA ESTRUTURAL DE BLOCOS CERÂMICOS 14X19X39, (ESPESSURA DE 14 CM), UTILIZANDO COLHER DE PEDREIRO E ARGAMASSA DE ASSENTAMENTO COM PREPARO EM BETONEIRA. AF_03/2023 | D24: M2 | E24: 93.82 | F24: 0
A25: Alvenaria Estrutural - Blocos Cerâmicos | B25: 89299 | C25: ALVENARIA ESTRUTURAL DE BLOCOS CERÂMICOS 14X19X39, (ESPESSURA DE 14 CM), UTILIZANDO COLHER DE PEDREIRO E ARGAMASSA DE ASSENTAMENTO COM PREPARO MANUAL. AF_03/2023 | D25: M2 | E25: 94.77 | F25: 0
A26: Alvenaria Estrutural - Blocos Cerâmicos | B26: 89282 | C26: ALVENARIA ESTRUTURAL DE BLOCOS CERÂMICOS 14X19X39, (ESPESSURA DE 14 CM), UTILIZANDO PALHETA E ARGAMASSA DE ASSENTAMENTO COM PREPARO EM BETONEIRA. AF_03/2023 | D26: M2 | E26: 80.13 | F26: 0
A27: Alvenaria Estrutural - Blocos Cerâmicos | B27: 89283 | C27: ALVENARIA ESTRUTURAL DE BLOCOS CERÂMICOS 14X19X39, (ESPESSURA DE 14 CM), UTILIZANDO PALHETA E ARGAMASSA DE ASSENTAMENTO COM PREPARO MANUAL. AF_03/2023 | D27: M2 | E27: 80.84 | F27: 0
A28: Alvenaria Estrutural - Blocos de Concreto | B28: 89480 | C28: ALVENARIA DE BLOCOS DE CONCRETO ESTRUTURAL 14X19X29 CM (ESPESSURA 14 CM), FBK = 14 MPA, UTILIZANDO COLHER DE PEDREIRO. AF_10/2022 | D28: M2 | E28: 149.55 | F28: 0
A29: Alvenaria Estrutural - Blocos de Concreto | B29: 89464 | C29: ALVENARIA DE BLOCOS DE CONCRETO ESTRUTURAL 14X19X29 CM (ESPESSURA 14 CM), FBK = 14,0 MPA, UTILIZANDO PALHETA. AF_10/2022 | D29: M2 | E29: 126.07 | F29: 0
A30: Alvenaria Estrutural - Blocos de Concreto | B30: 89478 | C30: ALVENARIA DE BLOCOS DE CONCRETO ESTRUTURAL 14X19X29 CM (ESPESSURA 14 CM), FBK = 4,5 MPA, UTILIZANDO COLHER DE PEDREIRO. AF_10/2022 | D30: M2 | E30: 131.4 | F30: 0
A31: Alvenaria Estrutural - Blocos de Concreto | B31: 89462 | C31: ALVENARIA DE BLOCOS DE CONCRETO ESTRUTURAL 14X19X29 CM (ESPESSURA 14 CM), FBK = 4,5 MPA, UTILIZANDO PALHETA. AF_10/2022 | D31: M2 | E31: 108.93 | F31: 0
A32: Alvenaria Estrutural - Blocos de Concreto | B32: 104444 | C32: ALVENARIA DE BLOCOS DE CONCRETO ESTRUTURAL 14X19X29 CM (ESPESSURA 14 CM), FBK = 8 MPA, UTILIZANDO COLHER DE PEDREIRO. AF_10/2022 | D32: M2 | E32: 0
A33: Alvenaria Estrutural - Blocos de Concreto | B33: 104442 | C33: ALVENARIA DE BLOCOS DE CONCRETO ESTRUTURAL 14X19X29 CM (ESPESSURA 14 CM), FBK = 8 MPA, UTILIZANDO PALHETA. AF_10/2022 | D33: M2 | E33: 0
A34: Alvenaria Estrutural - Blocos de Concreto | B34: 89472 | C34: ALVENARIA DE BLOCOS DE CONCRETO ESTRUTURAL 14X19X39 CM (ESPESSURA 14 CM), FBK = 14 MPA, UTILIZANDO COLHER DE PEDREIRO. AF_10/2022 | D34: M2 | E34: 111.51 | F34: 0
A35: Alvenaria Estrutural - Blocos de Concreto | B35: 89455 | C35: ALVENARIA DE BLOCOS DE CONCRETO ESTRUTURAL 14X19X39 CM (ESPESSURA 14 CM), FBK = 14 MPA, UTILIZANDO PALHETA. AF_10/2022 | D35: M2 | E35: 96.63 | F35: 0
A36: Alvenaria Estrutural - Blocos de Concreto | B36: 89470 | C36: ALVENARIA DE BLOCOS DE CONCRETO ESTRUTURAL 14X19X39 CM (ESPESSURA 14 CM), FBK = 4,5 MPA, UTILIZANDO COLHER DE PEDREIRO. AF_10/2022 | D36: M2 | E36: 95.11 | F36: 0
A37: Alvenaria Estrutural - Blocos de Concreto | B37: 89453 | C37: ALVENARIA DE BLOCOS DE CONCRETO ESTRUTURAL 14X19X39 CM (ESPESSURA 14 CM), FBK = 4,5 MPA, UTILIZANDO PALHETA. AF_10/2022 | D37: M2 | E37: 81.26 | F37: 0
A38: Alvenaria Estrutural - Blocos de Concreto | B38: 104443 | C38: ALVENARIA DE BLOCOS DE CONCRETO ESTRUTURAL 14X19X39 CM (ESPESSURA 14 CM), FBK = 8 MPA, UTILIZANDO COLHER DE PEDREIRO. AF_10/2022 | D38: M2 | E38: 0
A39: Alvenaria Estrutural - Blocos de Concreto | B39: 104441 | C39: ALVENARIA DE BLOCOS DE CONCRETO ESTRUTURAL 14X19X39 CM (ESPESSURA 14 CM), FBK = 8 MPA, UTILIZANDO PALHETA. AF_10/2022 | D39: M2 | E39: 0
A40: Alvenaria de Vedação | B40: 103354 | C40: ALVENARIA DE VEDAÇÃO DE BLOCOS CERÂMICOS FURADOS NA HORIZONTAL DE 11,5X14X24 CM (ESPESSURA 11,5 CM) E ARGAMASSA DE ASSENTAMENTO COM PREPARO EM BETONEIRA. AF_12/2021 | D40: M2 | E40: 100.63 | F40: 0
A41: Alvenaria de Vedação | B41: 103355 | C41: ALVENARIA DE VEDAÇÃO DE BLOCOS CERÂMICOS FURADOS NA HORIZONTAL DE 11,5X14X24 CM (ESPESSURA 11,5 CM) E ARGAMASSA DE ASSENTAMENTO COM PREPARO MANUAL. AF_12/2021 | D41: M2 | E41: 101.39 | F41: 0
A42: Alvenaria de Vedação | B42: 103330 | C42: ALVENARIA DE VEDAÇÃO DE BLOCOS CERÂMICOS FURADOS NA HORIZONTAL DE 11,5X19X19 CM (ESPESSURA 11,5 CM) E ARGAMASSA DE ASSENTAMENTO COM PREPARO EM BETONEIRA. AF_12/2021 | D42: M2 | E42: 92.7 | F42: 0
A43: Alvenaria de Vedação | B43: 103331 | C43: ALVENARIA DE VEDAÇÃO DE BLOCOS CERÂMICOS FURADOS NA HORIZONTAL DE 11,5X19X19 CM (ESPESSURA 11,5 CM) E ARGAMASSA DE ASSENTAMENTO COM PREPARO MANUAL. AF_12/2021 | D43: M2 | E43: 93.42 | F43: 0
A44: Alvenaria de Vedação | B44: 103358 | C44: ALVENARIA DE VEDAÇÃO DE BLOCOS CERÂMICOS FURADOS NA HORIZONTAL DE 11,5X19X29 CM (ESPESSURA 11,5 CM) E ARGAMASSA DE ASSENTAMENTO COM PREPARO EM BETONEIRA. AF_12/2021 | D44: M2 | E44: 78.19 | F44: 0
A45: Alvenaria de Vedação | B45: 103359 | C45: ALVENARIA DE VEDAÇÃO DE BLOCOS CERÂMICOS FURADOS NA HORIZONTAL DE 11,5X19X29 CM (ESPESSURA 11,5 CM) E ARGAMASSA DE ASSENTAMENTO COM PREPARO MANUAL. AF_12/2021 | D45: M2 | E45: 78.81 | F45: 0
A46: Alvenaria de Vedação | B46: 103366 | C46: ALVENARIA DE VEDAÇÃO DE BLOCOS CERÂMICOS FURADOS NA HORIZONTAL DE 11,5X19X39 CM (ESPESSURA 11,5 CM) E ARGAMASSA DE ASSENTAMENTO COM PREPARO EM BETONEIRA. AF_12/2021 | D46: M2 | E46: 68.19 | F46: 0
A47: Alvenaria de Vedação | B47: 103367 | C47: ALVENARIA DE VEDAÇÃO DE BLOCOS CERÂMICOS FURADOS NA HORIZONTAL DE 11,5X19X39 CM (ESPESSURA 11,5 CM) E ARGAMASSA DE ASSENTAMENTO COM PREPARO MANUAL. AF_12/2021 | D47: M2 | E47: 68.74 | F47: 0
A48: Alvenaria de Vedação | B48: 103360 | C48: ALVENARIA DE VEDAÇÃO DE BLOCOS CERÂMICOS FURADOS NA HORIZONTAL DE 14X19X29 CM (ESPESSURA 14 CM) E ARGAMASSA DE ASSENTAMENTO COM PREPARO EM BETONEIRA. AF_12/2021 | D48: M2 | E48: 91.69 | F48: 0
A49: Alvenaria de Vedação | B49: 103361 | C49: ALVENARIA DE VEDAÇÃO DE BLOCOS CERÂMICOS FURADOS NA HORIZONTAL DE 14X19X29 CM (ESPESSURA 14 CM) E ARGAMASSA DE ASSENTAMENTO COM PREPARO MANUAL. AF_12/2021 | D49: M2 | E49: 92.47 | F49: 0
A50: Alvenaria de Vedação | B50: 103368 | C50: ALVENARIA DE VEDAÇÃO DE BLOCOS CERÂMICOS FURADOS NA HORIZONTAL DE 14X19X39 CM (ESPESSURA 14 CM) E ARGAMASSA DE ASSENTAMENTO COM PREPARO EM BETONEIRA. AF_12/2021 | D50: M2 | E50: 77.44 | F50: 0
A51: Alvenaria de Vedação | B51: 103369 | C51: ALVENARIA DE VEDAÇÃO DE BLOCOS CERÂMICOS FURADOS NA HORIZONTAL DE 14X19X39 CM (ESPESSURA 14 CM) E ARGAMASSA DE ASSENTAMENTO COM PREPARO MANUAL. AF_12/2021 | D51: M2 | E51: 78.14 | F51: 0
A52: Alvenaria de Vedação | B52: 103334 | C52: ALVENARIA DE VEDAÇÃO DE BLOCOS CERÂMICOS FURADOS NA HORIZONTAL DE 14X9X19 CM (ESPESSURA 14 CM, BLOCO DEITADO) E ARGAMASSA DE ASSENTAMENTO COM PREPARO EM BETONEIRA. AF_12/2021 | D52: M2 | E52: 163.55 | F52: 0
A53: Alvenaria de Vedação | B53: 103335 | C53: ALVENARIA DE VEDAÇÃO DE BLOCOS CERÂMICOS FURADOS NA HORIZONTAL DE 14X9X19 CM (ESPESSURA 14 CM, BLOCO DEITADO) E ARGAMASSA DE ASSENTAMENTO COM PREPARO MANUAL. AF_12/2021 | D53: M2 | E53: 164.89 | F53: 0
A54: Alvenaria de Vedação | B54: 103362 | C54: ALVENARIA DE VEDAÇÃO DE BLOCOS CERÂMICOS FURADOS NA HORIZONTAL DE 19X19X29 CM (ESPESSURA 19 CM) E ARGAMASSA DE ASSENTAMENTO COM PREPARO EM BETONEIRA. AF_12/2021 | D54: M2 | E54: 110.88 | F54: 0
A55: Alvenaria de Vedação | B55: 103363 | C55: ALVENARIA DE VEDAÇÃO DE BLOCOS CERÂMICOS FURADOS NA HORIZONTAL DE 19X19X29 CM (ESPESSURA 19 CM) E ARGAMASSA DE ASSENTAMENTO COM PREPARO MANUAL. AF_12/2021 | D55: M2 | E55: 111.75 | F55: 0
A56: Alvenaria de Vedação | B56: 103370 | C56: ALVENARIA DE VEDAÇÃO DE BLOCOS CERÂMICOS FURADOS NA HORIZONTAL DE 19X19X39 CM (ESPESSURA 19 CM) E ARGAMASSA DE ASSENTAMENTO COM PREPARO EM BETONEIRA. AF_12/2021 | D56: M2 | E56: 97.35 | F56: 0
A57: Alvenaria de Vedação | B57: 103371 | C57: ALVENARIA DE VEDAÇÃO DE BLOCOS CERÂMICOS FURADOS NA HORIZONTAL DE 19X19X39 CM (ESPESSURA 19 CM) E ARGAMASSA DE ASSENTAMENTO COM PREPARO MANUAL. AF_12/2021 | D57: M2 | E57: 98.14 | F57: 0
A58: Alvenaria de Vedação | B58: 103332 | C58: ALVENARIA DE VEDAÇÃO DE BLOCOS CERÂMICOS FURADOS NA HORIZONTAL DE 9X14X19 CM (ESPESSURA 9 CM) E ARGAMASSA DE ASSENTAMENTO COM PREPARO EM BETONEIRA. AF_12/2021 | D58: M2 | E58: 136.65 | F58: 0
A59: Alvenaria de Vedação | B59: 103333 | C59: ALVENARIA DE VEDAÇÃO DE BLOCOS CERÂMICOS FURADOS NA HORIZONTAL DE 9X14X19 CM (ESPESSURA 9 CM) E ARGAMASSA DE ASSENTAMENTO COM PREPARO MANUAL. AF_12/2021 | D59: M2 | E59: 137.43 | F59: 0
A60: Alvenaria de Vedação | B60: 103352 | C60: ALVENARIA DE VEDAÇÃO DE BLOCOS CERÂMICOS FURADOS NA HORIZONTAL DE 9X14X24 CM (ESPESSURA 9 CM) E ARGAMASSA DE ASSENTAMENTO COM PREPARO EM BETONEIRA. AF_12/2021 | D60: M2 | E60: 117.01 | F60: 0
A61: Alvenaria de Vedação | B61: 103353 | C61: ALVENARIA DE VEDAÇÃO DE BLOCOS CERÂMICOS FURADOS NA HORIZONTAL DE 9X14X24 CM (ESPESSURA 9 CM) E ARGAMASSA DE ASSENTAMENTO COM PREPARO MANUAL. AF_12/2021 | D61: M2 | E61: 117.72 | F61: 0
A62: Alvenaria de Vedação | B62: 103328 | C62: ALVENARIA DE VEDAÇÃO DE BLOCOS CERÂMICOS FURADOS NA HORIZONTAL DE 9X19X19 CM (ESPESSURA 9 CM) E ARGAMASSA DE ASSENTAMENTO COM PREPARO EM BETONEIRA. AF_12/2021 | D62: M2 | E62: 106.93 | F62: 0
A63: Alvenaria de Vedação | B63: 103329 | C63: ALVENARIA DE VEDAÇÃO DE BLOCOS CERÂMICOS FURADOS NA HORIZONTAL DE 9X19X19 CM (ESPESSURA 9 CM) E ARGAMASSA DE ASSENTAMENTO COM PREPARO MANUAL. AF_12/2021 | D63: M2 | E63: 107.6 | F63: 0
A64: Alvenaria de Vedação | B64: 103356 | C64: ALVENARIA DE VEDAÇÃO DE BLOCOS CERÂMICOS FURADOS NA HORIZONTAL DE 9X19X29 CM (ESPESSURA 9 CM) E ARGAMASSA DE ASSENTAMENTO COM PREPARO EM BETONEIRA. AF_12/2021 | D64: M2 | E64: 68.5 | F64: 0
A65: Alvenaria de Vedação | B65: 103357 | C65: ALVENARIA DE VEDAÇÃO DE BLOCOS CERÂMICOS FURADOS NA HORIZONTAL DE 9X19X29 CM (ESPESSURA 9 CM) E ARGAMASSA DE ASSENTAMENTO COM PREPARO MANUAL. AF_12/2021 | D65: M2 | E65: 69.07 | F65: 0
A66: Alvenaria de Vedação | B66: 103364 | C66: ALVENARIA DE VEDAÇÃO DE BLOCOS CERÂMICOS FURADOS NA HORIZONTAL DE 9X19X39 CM (ESPESSURA 9 CM) E ARGAMASSA DE ASSENTAMENTO COM PREPARO EM BETONEIRA. AF_12/2021 | D66: M2 | E66: 57.08 | F66: 0
A67: Alvenaria de Vedação | B67: 103365 | C67: ALVENARIA DE VEDAÇÃO DE BLOCOS CERÂMICOS FURADOS NA HORIZONTAL DE 9X19X39 CM (ESPESSURA 9 CM) E ARGAMASSA DE ASSENTAMENTO COM PREPARO MANUAL. AF_12/2021 | D67: M2 | E67: 57.27 | F67: 0
A68: Alvenaria de Vedação | B68: 103350 | C68: ALVENARIA DE VEDAÇÃO DE BLOCOS CERÂMICOS FURADOS NA HORIZONTAL DE 9X9X19 CM (ESPESSURA 9 CM) E ARGAMASSA DE ASSENTAMENTO COM PREPARO EM BETONEIRA. AF_12/2021 | D68: M2 | E68: 198.04 | F68: 0
A69: Alvenaria de Vedação | B69: 103351 | C69: ALVENARIA DE VEDAÇÃO DE BLOCOS CERÂMICOS FURADOS NA HORIZONTAL DE 9X9X19 CM (ESPESSURA 9 CM) E ARGAMASSA DE ASSENTAMENTO COM PREPARO MANUAL. AF_12/2021 | D69: M2 | E69: 199.03 | F69: 0
A70: Alvenaria de Vedação | B70: 103344 | C70: ALVENARIA DE VEDAÇÃO DE BLOCOS CERÂMICOS FURADOS NA VERTICAL DE 11,5X19X29 CM (ESPESSURA 11,5 CM) E ARGAMASSA DE ASSENTAMENTO COM PREPARO EM BETONEIRA. AF_12/2021 | D70: M2 | E70: 92.35 | F70: 0
A71: Alvenaria de Vedação | B71: 103345 | C71: ALVENARIA DE VEDAÇÃO DE BLOCOS CERÂMICOS FURADOS NA VERTICAL DE 11,5X19X29 CM (ESPESSURA 11,5 CM) E ARGAMASSA DE ASSENTAMENTO COM PREPARO MANUAL. AF_12/2021 | D71: M2 | E71: 93.24 | F71: 0
A72: Alvenaria de Vedação | B72: 103348 | C72: ALVENARIA DE VEDAÇÃO DE BLOCOS CERÂMICOS FURADOS NA VERTICAL DE 11,5X19X39 CM (ESPESSURA 11,5 CM) E ARGAMASSA DE ASSENTAMENTO COM PREPARO EM BETONEIRA. AF_12/2021 | D72: M2 | E72: 77.81 | F72: 0
A73: Alvenaria de Vedação | B73: 103349 | C73: ALVENARIA DE VEDAÇÃO DE BLOCOS CERÂMICOS FURADOS NA VERTICAL DE 11,5X19X39 CM (ESPESSURA 11,5 CM) E ARGAMASSA DE ASSENTAMENTO COM PREPARO MANUAL. AF_12/2021 | D73: M2 | E73: 78.62 | F73: 0
A74: Alvenaria de Vedação | B74: 103346 | C74: ALVENARIA DE VEDAÇÃO DE BLOCOS CERÂMICOS FURADOS NA VERTICAL DE 14X19X29 CM (ESPESSURA 14 CM) E ARGAMASSA DE ASSENTAMENTO COM PREPARO EM BETONEIRA. AF_12/2021 | D74: M2 | E74: 102.8 | F74: 0
A75: Alvenaria de Vedação | B75: 103347 | C75: ALVENARIA DE VEDAÇÃO DE BLOCOS CERÂMICOS FURADOS NA VERTICAL DE 14X19X29 CM (ESPESSURA 14 CM) E ARGAMASSA DE ASSENTAMENTO COM PREPARO MANUAL. AF_12/2021 | D75: M2 | E75: 103.76 | F75: 0
A76: Alvenaria de Vedação | B76: 103324 | C76: ALVENARIA DE VEDAÇÃO DE BLOCOS CERÂMICOS FURADOS NA VERTICAL DE 14X19X39 CM (ESPESSURA 14 CM) E ARGAMASSA DE ASSENTAMENTO COM PREPARO EM BETONEIRA. AF_12/2021 | D76: M2 | E76: 88.03 | F76: 0
A77: Alvenaria de Vedação | B77: 103325 | C77: ALVENARIA DE VEDAÇÃO DE BLOCOS CERÂMICOS FURADOS NA VERTICAL DE 14X19X39 CM (ESPESSURA 14 CM) E ARGAMASSA DE ASSENTAMENTO COM PREPARO MANUAL. AF_12/2021 | D77: M2 | E77: 88.9 | F77: 0
A78: Alvenaria de Vedação | B78: 103326 | C78: ALVENARIA DE VEDAÇÃO DE BLOCOS CERÂMICOS FURADOS NA VERTICAL DE 19X19X39 CM (ESPESSURA 19 CM) E ARGAMASSA DE ASSENTAMENTO COM PREPARO EM BETONEIRA. AF_12/2021 | D78: M2 | E78: 103.59 | F78: 0
A79: Alvenaria de Vedação | B79: 103327 | C79: ALVENARIA DE VEDAÇÃO DE BLOCOS CERÂMICOS FURADOS NA VERTICAL DE 19X19X39 CM (ESPESSURA 19 CM) E ARGAMASSA DE ASSENTAMENTO COM PREPARO MANUAL. AF_12/2021 | D79: M2 | E79: 104.61 | F79: 0
A80: Alvenaria de Vedação | B80: 103322 | C80: ALVENARIA DE VEDAÇÃO DE BLOCOS CERÂMICOS FURADOS NA VERTICAL DE 9X19X39 CM (ESPESSURA 9 CM) E ARGAMASSA DE ASSENTAMENTO COM PREPARO EM BETONEIRA. AF_12/2021 | D80: M2 | E80: 65.91 | F80: 0
A81: Alvenaria de Vedação | B81: 103323 | C81: ALVENARIA DE VEDAÇÃO DE BLOCOS CERÂMICOS FURADOS NA VERTICAL DE 9X19X39 CM (ESPESSURA 9 CM) E ARGAMASSA DE ASSENTAMENTO COM PREPARO MANUAL. AF_12/2021 | D81: M2 | E81: 66.67 | F81: 0
A82: Alvenaria de Vedação | B82: 103338 | C82: ALVENARIA DE VEDAÇÃO DE BLOCOS VAZADOS DE CONCRETO APARENTE DE 14X19X39 CM (ESPESSURA 14 CM) E ARGAMASSA DE ASSENTAMENTO COM PREPARO EM BETONEIRA. AF_12/2021 | D82: M2 | E82: 112.48 | F82: 0
A83: Alvenaria de Vedação | B83: 103339 | C83: ALVENARIA DE VEDAÇÃO DE BLOCOS VAZADOS DE CONCRETO APARENTE DE 14X19X39 CM (ESPESSURA 14 CM) E ARGAMASSA DE ASSENTAMENTO COM PREPARO MANUAL. AF_12/2021 | D83: M2 | E83: 113.23 | F83: 0
A84: Alvenaria de Vedação | B84: 103340 | C84: ALVENARIA DE VEDAÇÃO DE BLOCOS VAZADOS DE CONCRETO APARENTE DE 19X19X39 CM (ESPESSURA 19 CM) E ARGAMASSA DE ASSENTAMENTO COM PREPARO EM BETONEIRA. AF_12/2021 | D84: M2 | E84: 134.82 | F84: 0
A85: Alvenaria de Vedação | B85: 103341 | C85: ALVENARIA DE VEDAÇÃO DE BLOCOS VAZADOS DE CONCRETO APARENTE DE 19X19X39 CM (ESPESSURA 19 CM) E ARGAMASSA DE ASSENTAMENTO COM PREPARO MANUAL. AF_12/2021 | D85: M2 | E85: 135.76 | F85: 0
A86: Alvenaria de Vedação | B86: 103336 | C86: ALVENARIA DE VEDAÇÃO DE BLOCOS VAZADOS DE CONCRETO APARENTE DE 9X19X39 CM (ESPESSURA 9 CM) E ARGAMASSA DE ASSENTAMENTO COM PREPARO EM BETONEIRA. AF_12/2021 | D86: M2 | E86: 85.27 | F86: 0
A87: Alvenaria de Vedação | B87: 103337 | C87: ALVENARIA DE VEDAÇÃO DE BLOCOS VAZADOS DE CONCRETO APARENTE DE 9X19X39 CM (ESPESSURA 9 CM) E ARGAMASSA DE ASSENTAMENTO COM PREPARO MANUAL. AF_12/2021 | D87: M2 | E87: 85.91 | F87: 0
A88: Alvenaria de Vedação | B88: 103342 | C88: ALVENARIA DE VEDAÇÃO DE BLOCOS VAZADOS DE CONCRETO DE 14X19X29 CM (ESPESSURA 14 CM) E ARGAMASSA DE ASSENTAMENTO COM PREPARO EM BETONEIRA. AF_12/2021 | D88: M2 | E88: 112.73 | F88: 0
A89: Alvenaria de Vedação | B89: 103343 | C89: ALVENARIA DE VEDAÇÃO DE BLOCOS VAZADOS DE CONCRETO DE 14X19X29 CM (ESPESSURA 14 CM) E ARGAMASSA DE ASSENTAMENTO COM PREPARO MANUAL. AF_12/2021 | D89: M2 | E89: 113.56 | F89: 0
A90: Alvenaria de Vedação | B90: 103318 | C90: ALVENARIA DE VEDAÇÃO DE BLOCOS VAZADOS DE CONCRETO DE 14X19X39 CM (ESPESSURA 14 CM) E ARGAMASSA DE ASSENTAMENTO COM PREPARO EM BETONEIRA. AF_12/2021 | D90: M2 | E90: 97.14 | F90: 0
A91: Alvenaria de Vedação | B91: 103319 | C91: ALVENARIA DE VEDAÇÃO DE BLOCOS VAZADOS DE CONCRETO DE 14X19X39 CM (ESPESSURA 14 CM) E ARGAMASSA DE ASSENTAMENTO COM PREPARO MANUAL. AF_12/2021 | D91: M2 | E91: 97.89 | F91: 0
A92: Alvenaria de Vedação | B92: 103320 | C92: ALVENARIA DE VEDAÇÃO DE BLOCOS VAZADOS DE CONCRETO DE 19X19X39 CM (ESPESSURA 19 CM) E ARGAMASSA DE ASSENTAMENTO COM PREPARO EM BETONEIRA. AF_12/2021 | D92: M2 | E92: 115.87 | F92: 0
A93: Alvenaria de Vedação | B93: 103321 | C93: ALVENARIA DE VEDAÇÃO DE BLOCOS VAZADOS DE CONCRETO DE 19X19X39 CM (ESPESSURA 19 CM) E ARGAMASSA DE ASSENTAMENTO COM PREPARO MANUAL. AF_12/2021 | D93: M2 | E93: 116.81 | F93: 0
A94: Alvenaria de Vedação | B94: 103316 | C94: ALVENARIA DE VEDAÇÃO DE BLOCOS VAZADOS DE CONCRETO DE 9X19X39 CM (ESPESSURA 9 CM) E ARGAMASSA DE ASSENTAMENTO COM PREPARO EM BETONEIRA. AF_12/2021 | D94: M2 | E94: 74.53 | F94: 0
A95: Alvenaria de Vedação | B95: 103317 | C95: ALVENARIA DE VEDAÇÃO DE BLOCOS VAZADOS DE CONCRETO DE 9X19X39 CM (ESPESSURA 9 CM) E ARGAMASSA DE ASSENTAMENTO COM PREPARO MANUAL. AF_12/2021 | D95: M2 | E95: 75.17 | F95: 0
A96: Alvenarias Diversas | B96: 101166 | C96: ALVENARIA DE EMBASAMENTO COM BLOCO ESTRUTURAL DE CERÂMICA, DE 14X19X29CM E ARGAMASSA DE ASSENTAMENTO COM PREPARO EM BETONEIRA. AF_05/2020 | D96: M3 | E96: 749.51 | F96: 0
A97: Alvenarias Diversas | B97: 101165 | C97: ALVENARIA DE EMBASAMENTO COM BLOCO ESTRUTURAL DE CONCRETO, DE 14X19X29CM E ARGAMASSA DE ASSENTAMENTO COM PREPARO EM BETONEIRA. AF_05/2020 | D97: M3 | E97: 975.38 | F97: 0
A98: Alvenarias Diversas | B98: 101163 | C98: ALVENARIA DE VEDAÇÃO COM BLOCO DE VIDRO VAZADO, TIPO VENEZIANA, DE 6X20X20CM E ARGAMASSA DE ASSENTAMENTO COM PREPARO EM BETONEIRA. AF_05/2020 | D98: M2 | E98: 930.42 | F98: 0
A99: Alvenarias Diversas | B99: 101164 | C99: ALVENARIA DE VEDAÇÃO COM BLOCO DE VIDRO, TIPO CANELADO, DE 8X19X19CM E ARGAMASSA DE ASSENTAMENTO COM PREPARO EM BETONEIRA. AF_05/2020 | D99: M2 | E99: 944.55 | F99: 0
A100: Alvenarias Diversas | B100: 101162 | C100: ALVENARIA DE VEDAÇÃO COM ELEMENTO VAZADO DE CERÂMICA (COBOGÓ) DE 7X20X20CM E ARGAMASSA DE ASSENTAMENTO COM PREPARO EM BETONEIRA. AF_05/2020 | D100: M2 | E100: 174.18 | F100: 0
A101: Alvenarias Diversas | B101: 101161 | C101: ALVENARIA DE VEDAÇÃO COM ELEMENTO VAZADO DE CONCRETO (COBOGÓ) DE 7X50X50CM E ARGAMASSA DE ASSENTAMENTO COM PREPARO EM BETONEIRA. AF_05/2020 | D101: M2 | E101: 214.1 | F101: 0
A102: Alvenarias Diversas | B102: 101160 | C102: ALVENARIA DE VEDAÇÃO DE BLOCO DE SOLO-CIMENTO (TIJOLO ECOLÓGICO) DE 7X15X30CM (ESPESSURA 15CM). AF_05/2020 | D102: M2 | E102: 0
A103: Alvenarias Diversas | B103: 101159 | C103: ALVENARIA DE VEDAÇÃO DE BLOCOS CERÂMICOS MACIÇOS DE 5X10X20CM (ESPESSURA 10CM) E ARGAMASSA DE ASSENTAMENTO COM PREPARO EM BETONEIRA. AF_05/2020 | D103: M2 | E103: 155.06 | F103: 0
A104: Alvenarias Diversas | B104: 101154 | C104: ALVENARIA DE VEDAÇÃO DE BLOCOS DE CONCRETO CELULAR DE 10X30X60CM (ESPESSURA 10CM) E ARGAMASSA DE ASSENTAMENTO COM PREPARO EM BETONEIRA. AF_05/2020 | D104: M2 | E104: 138.03 | F104: 0.638
A105: Alvenarias Diversas | B105: 101155 | C105: ALVENARIA DE VEDAÇÃO DE BLOCOS DE CONCRETO CELULAR DE 15X30X60CM (ESPESSURA 15CM) E ARGAMASSA DE ASSENTAMENTO COM PREPARO EM BETONEIRA. AF_05/2020 | D105: M2 | E105: 192.3 | F105: 0.6726
A106: Alvenarias Diversas | B106: 101156 | C106: ALVENARIA DE VEDAÇÃO DE BLOCOS DE CONCRETO CELULAR DE 20X30X60CM (ESPESSURA 20CM) E ARGAMASSA DE ASSENTAMENTO COM PREPARO EM BETONEIRA. AF_05/2020 | D106: M2 | E106: 280.53 | F106: 0.7063
A107: Alvenarias Diversas | B107: 101158 | C107: ALVENARIA DE VEDAÇÃO DE BLOCOS DE GESSO DE 10X50X66CM (ESPESSURA 10CM). AF_05/2020 | D107: M2 | E107: 84.02 | F107: 0
A108: Alvenarias Diversas | B108: 101157 | C108: ALVENARIA DE VEDAÇÃO DE BLOCOS DE GESSO DE 7X50X66CM (ESPESSURA 7CM). AF_05/2020 | D108: M2 | E108: 64.72 | F108: 0
A109: Argamassas | B109: 87382 | C109: ARGAMASSA INDUSTRIALIZADA MULTIUSO PARA REVESTIMENTOS E ASSENTAMENTO DA ALVENARIA, PREPARO COM MISTURADOR DE EIXO HORIZONTAL DE 160 KG. AF_08/2019 | D109: M3 | E109: 1881.97 | F109: 0
A110: Argamassas | B110: 87383 | C110: ARGAMASSA INDUSTRIALIZADA MULTIUSO PARA REVESTIMENTOS E ASSENTAMENTO DA ALVENARIA, PREPARO COM MISTURADOR DE EIXO HORIZONTAL DE 300 KG. AF_08/2019 | D110: M3 | E110: 1859.79 | F110: 0
A111: Argamassas | B111: 87384 | C111: ARGAMASSA INDUSTRIALIZADA MULTIUSO PARA REVESTIMENTOS E ASSENTAMENTO DA ALVENARIA, PREPARO COM MISTURADOR DE EIXO HORIZONTAL DE 600 KG. AF_08/2019 | D111: M3 | E111: 1827.48 | F111: 0
A112: Argamassas | B112: 87398 | C112: ARGAMASSA INDUSTRIALIZADA MULTIUSO PARA REVESTIMENTOS E ASSENTAMENTO DA ALVENARIA, PREPARO MANUAL. AF_08/2019 | D112: M3 | E112: 2045.61 | F112: 0
A113: Argamassas | B113: 87395 | C113: ARGAMASSA INDUSTRIALIZADA PARA CHAPISCO COLANTE, PREPARO COM MISTURADOR DE EIXO HORIZONTAL DE 160 KG. AF_08/2019 | D113: M3 | E113: 3629.39 | F113: 0
A114: Argamassas | B114: 87396 | C114: ARGAMASSA INDUSTRIALIZADA PARA CHAPISCO COLANTE, PREPARO COM MISTURADOR DE EIXO HORIZONTAL DE 300 KG. AF_08/2019 | D114: M3 | E114: 3629.99 | F114: 0
A115: Argamassas | B115: 87397 | C115: ARGAMASSA INDUSTRIALIZADA PARA CHAPISCO COLANTE, PREPARO COM MISTURADOR DE EIXO HORIZONTAL DE 600 KG. AF_08/2019 | D115: M3 | E115: 3622.14 | F115: 0
A116: Argamassas | B116: 87402 | C116: ARGAMASSA INDUSTRIALIZADA PARA CHAPISCO COLANTE, PREPARO MANUAL. AF_08/2019 | D116: M3 | E116: 3835.9 | F116: 0
A117: Argamassas | B117: 87391 | C117: ARGAMASSA INDUSTRIALIZADA PARA CHAPISCO ROLADO, PREPARO COM MISTURADOR DE EIXO HORIZONTAL DE 160 KG. AF_08/2019 | D117: M3 | E117: 5701.66 | F117: 0
A118: Argamassas | B118: 87393 | C118: ARGAMASSA INDUSTRIALIZADA PARA CHAPISCO ROLADO, PREPARO COM MISTURADOR DE EIXO HORIZONTAL DE 300 KG. AF_08/2019 | D118: M3 | E118: 5730.1 | F118: 0
A119: Argamassas | B119: 87394 | C119: ARGAMASSA INDUSTRIALIZADA PARA CHAPISCO ROLADO, PREPARO COM MISTURADOR DE EIXO HORIZONTAL DE 600 KG. AF_08/2019 | D119: M3 | E119: 5748.83 | F119: 0
A120: Argamassas | B120: 87401 | C120: ARGAMASSA INDUSTRIALIZADA PARA CHAPISCO ROLADO, PREPARO MANUAL. AF_08/2019 | D120: M3 | E120: 5950.6 | F120: 0
A121: Argamassas | B121: 87407 | C121: ARGAMASSA INDUSTRIALIZADA PARA REVESTIMENTOS, MISTURA E PROJEÇÃO DE 1,5 M³/H DE ARGAMASSA. AF_08/2019 | D121: M3 | E121: 1917.18 | F121: 0
A122: Argamassas | B122: 87408 | C122: ARGAMASSA INDUSTRIALIZADA PARA REVESTIMENTOS, MISTURA E PROJEÇÃO DE 2 M³/H DE ARGAMASSA. AF_08/2019 | D122: M3 | E122: 1884.38 | F122: 0
A123: Argamassas | B123: 87404 | C123: ARGAMASSA PARA REVESTIMENTO DECORATIVO MONOCAMADA (MONOCAPA), MISTURA E PROJEÇÃO DE 1,5 M3/H DE ARGAMASSA. AF_08/2019 | D123: M3 | E123: 5343.65 | F123: 0
A124: Argamassas | B124: 87405 | C124: ARGAMASSA PARA REVESTIMENTO DECORATIVO MONOCAMADA (MONOCAPA), MISTURA E PROJEÇÃO DE 2 M3/H DE ARGAMASSA. AF_08/2019 | D124: M3 | E124: 5325.48 | F124: 0
A125: Argamassas | B125: 87388 | C125: ARGAMASSA PARA REVESTIMENTO DECORATIVO MONOCAMADA (MONOCAPA), PREPARO COM MISTURADOR DE EIXO HORIZONTAL DE 160 KG. AF_08/2019 | D125: M3 | E125: 5107.74 | F125: 0
A126: Argamassas | B126: 87389 | C126: ARGAMASSA PARA REVESTIMENTO DECORATIVO MONOCAMADA (MONOCAPA), PREPARO COM MISTURADOR DE EIXO HORIZONTAL DE 300 KG. AF_08/2019 | D126: M3 | E126: 5107.35 | F126: 0
A127: Argamassas | B127: 87390 | C127: ARGAMASSA PARA REVESTIMENTO DECORATIVO MONOCAMADA (MONOCAPA), PREPARO COM MISTURADOR DE EIXO HORIZONTAL DE 600 KG. AF_08/2019 | D127: M3 | E127: 5108.91 | F127: 0
A128: Argamassas | B128: 87385 | C128: ARGAMASSA PRONTA PARA CONTRAPISO, PREPARO COM MISTURADOR DE EIXO HORIZONTAL DE 160 KG. AF_08/2019 | D128: M3 | E128: 2208.85 | F128: 0
A129: Argamassas | B129: 87386 | C129: ARGAMASSA PRONTA PARA CONTRAPISO, PREPARO COM MISTURADOR DE EIXO HORIZONTAL DE 300 KG. AF_08/2019 | D129: M3 | E129: 2175.34 | F129: 0
A130: Argamassas | B130: 87387 | C130: ARGAMASSA PRONTA PARA CONTRAPISO, PREPARO COM MISTURADOR DE EIXO HORIZONTAL DE 600 KG. AF_08/2019 | D130: M3 | E130: 2142.46 | F130: 0
A131: Argamassas | B131: 87399 | C131: ARGAMASSA PRONTA PARA CONTRAPISO, PREPARO MANUAL. AF_08/2019 | D131: M3 | E131: 2362.52 | F131: 0
A132: Argamassas | B132: 88627 | C132: ARGAMASSA TRAÇO 1:0,5:4,5 (EM VOLUME DE CIMENTO, CAL E AREIA MÉDIA ÚMIDA) PARA ASSENTAMENTO DE ALVENARIA, PREPARO MANUAL. AF_08/2019 | D132: M3 | E132: 759.2 | F132: 0
A133: Argamassas | B133: 100463 | C133: ARGAMASSA TRAÇO 1:0,5:4,5 (EM VOLUME DE CIMENTO, CAL E AREIA MÉDIA ÚMIDA), PREPARO MECÂNICO COM BETONEIRA 250 L. AF_08/2019 | D133: M3 | E133: 0
A134: Argamassas | B134: 88626 | C134: ARGAMASSA TRAÇO 1:0,5:4,5 (EM VOLUME DE CIMENTO, CAL E AREIA MÉDIA ÚMIDA), PREPARO MECÂNICO COM BETONEIRA 400 L. AF_08/2019 | D134: M3 | E134: 706.32 | F134: 0
A135: Argamassas | B135: 100488 | C135: ARGAMASSA TRAÇO 1:0,5:4,5 (EM VOLUME DE CIMENTO, CAL E AREIA MÉDIA ÚMIDA), PREPARO MECÂNICO COM BETONEIRA 600 L. AF_08/2019 | D135: M3 | E135: 674.71 | F135: 0
A136: Argamassas | B136: 100464 | C136: ARGAMASSA TRAÇO 1:0,5:4,5 (EM VOLUME DE CIMENTO, CAL E AREIA MÉDIA ÚMIDA), PREPARO MECÂNICO COM MISTURADOR DE EIXO HORIZONTAL DE 160 KG. AF_08/2019 | D136: M3 | E136: 757.08 | F136: 0
A137: Argamassas | B137: 100465 | C137: ARGAMASSA TRAÇO 1:0,5:4,5 (EM VOLUME DE CIMENTO, CAL E AREIA MÉDIA ÚMIDA), PREPARO MECÂNICO COM MISTURADOR DE EIXO HORIZONTAL DE 300 KG. AF_08/2019 | D137: M3 | E137: 685.69 | F137: 0
A138: Argamassas | B138: 100466 | C138: ARGAMASSA TRAÇO 1:0,5:4,5 (EM VOLUME DE CIMENTO, CAL E AREIA MÉDIA ÚMIDA), PREPARO MECÂNICO COM MISTURADOR DE EIXO HORIZONTAL DE 600 KG. AF_08/2019 | D138: M3 | E138: 641.33 | F138: 0
A139: Argamassas | B139: 87368 | C139: ARGAMASSA TRAÇO 1:1,5:7,5 (EM VOLUME DE CIMENTO, CAL E AREIA MÉDIA ÚMIDA) PARA EMBOÇO/MASSA ÚNICA/ASSENTAMENTO DE ALVENARIA DE VEDAÇÃO, PREPARO MANUAL. AF_08/2019 | D139: M3 | E139: 816.71 | F139: 0
A140: Argamassas | B140: 100450 | C140: ARGAMASSA TRAÇO 1:1,5:7,5 (EM VOLUME DE CIMENTO, CAL E AREIA MÉDIA ÚMIDA) PARA EMBOÇO/MASSA ÚNICA/ASSENTAMENTO DE ALVENARIA DE VEDAÇÃO, PREPARO MECÂNICO COM BETONEIRA 250 L. AF_08/2019 | D140: M3 | E140: 0
A141: Argamassas | B141: 87289 | C141: ARGAMASSA TRAÇO 1:1,5:7,5 (EM VOLUME DE CIMENTO, CAL E AREIA MÉDIA ÚMIDA) PARA EMBOÇO/MASSA ÚNICA/ASSENTAMENTO DE ALVENARIA DE VEDAÇÃO, PREPARO MECÂNICO COM BETONEIRA 400 L. AF_08/2019 | D141: M3 | E141: 752.39 | F141: 0
A142: Argamassas | B142: 87290 | C142: ARGAMASSA TRAÇO 1:1,5:7,5 (EM VOLUME DE CIMENTO, CAL E AREIA MÉDIA ÚMIDA) PARA EMBOÇO/MASSA ÚNICA/ASSENTAMENTO DE ALVENARIA DE VEDAÇÃO, PREPARO MECÂNICO COM BETONEIRA 600 L. AF_08/2019 | D142: M3 | E142: 718.77 | F142: 0
A143: Argamassas | B143: 87333 | C143: ARGAMASSA TRAÇO 1:1,5:7,5 (EM VOLUME DE CIMENTO, CAL E AREIA MÉDIA ÚMIDA) PARA EMBOÇO/MASSA ÚNICA/ASSENTAMENTO DE ALVENARIA DE VEDAÇÃO, PREPARO MECÂNICO COM MISTURADOR DE EIXO HORIZONTAL DE 300 KG. AF_08/2019 | D143: M3 | E143: 763.51 | F143: 0
A144: Argamassas | B144: 87334 | C144: ARGAMASSA TRAÇO 1:1,5:7,5 (EM VOLUME DE CIMENTO, CAL E AREIA MÉDIA ÚMIDA) PARA EMBOÇO/MASSA ÚNICA/ASSENTAMENTO DE ALVENARIA DE VEDAÇÃO, PREPARO MECÂNICO COM MISTURADOR DE EIXO HORIZONTAL DE 600 KG. AF_08/2019 | D144: M3 | E144: 685.53 | F144: 0
A145: Argamassas | B145: 105515 | C145: ARGAMASSA TRAÇO 1:1,93 (EM VOLUME DE CIMENTO E AREIA MÉDIA ÚMIDA), FCK 20MPA, PREPARO MECÂNICO COM MISTURADOR DUPLO HORIZONTAL DE ALTA TURBULÊNCIA. AF_03/2020 | D145: M3 | E145: 956.43 | F145: 0
A146: Argamassas | B146: 87367 | C146: ARGAMASSA TRAÇO 1:1:6 (EM VOLUME DE CIMENTO, CAL E AREIA MÉDIA ÚMIDA) PARA EMBOÇO/MASSA ÚNICA/ASSENTAMENTO DE ALVENARIA DE VEDAÇÃO, PREPARO MANUAL. AF_08/2019 | D146: M3 | E146: 823.56 | F146: 0
A147: Argamassas | B147: 100449 | C147: ARGAMASSA TRAÇO 1:1:6 (EM VOLUME DE CIMENTO, CAL E AREIA MÉDIA ÚMIDA) PARA EMBOÇO/MASSA ÚNICA/ASSENTAMENTO DE ALVENARIA DE VEDAÇÃO, PREPARO MECÂNICO COM BETONEIRA 250 L. AF_08/2019 | D147: M3 | E147: 0
A148: Argamassas | B148: 87286 | C148: ARGAMASSA TRAÇO 1:1:6 (EM VOLUME DE CIMENTO, CAL E AREIA MÉDIA ÚMIDA) PARA EMBOÇO/MASSA ÚNICA/ASSENTAMENTO DE ALVENARIA DE VEDAÇÃO, PREPARO MECÂNICO COM BETONEIRA 400 L. AF_08/2019 | D148: M3 | E148: 768.26 | F148: 0
A149: Argamassas | B149: 87287 | C149: ARGAMASSA TRAÇO 1:1:6 (EM VOLUME DE CIMENTO, CAL E AREIA MÉDIA ÚMIDA) PARA EMBOÇO/MASSA ÚNICA/ASSENTAMENTO DE ALVENARIA DE VEDAÇÃO, PREPARO MECÂNICO COM BETONEIRA 600 L. AF_08/2019 | D149: M3 | E149: 716.46 | F149: 0
A150: Argamassas | B150: 87331 | C150: ARGAMASSA TRAÇO 1:1:6 (EM VOLUME DE CIMENTO, CAL E AREIA MÉDIA ÚMIDA) PARA EMBOÇO/MASSA ÚNICA/ASSENTAMENTO DE ALVENARIA DE VEDAÇÃO, PREPARO MECÂNICO COM MISTURADOR DE EIXO HORIZONTAL DE 300 KG. AF_08/2019 | D150: M3 | E150: 808.77 | F150: 0
A151: Argamassas | B151: 87332 | C151: ARGAMASSA TRAÇO 1:1:6 (EM VOLUME DE CIMENTO, CAL E AREIA MÉDIA ÚMIDA) PARA EMBOÇO/MASSA ÚNICA/ASSENTAMENTO DE ALVENARIA DE VEDAÇÃO, PREPARO MECÂNICO COM MISTURADOR DE EIXO HORIZONTAL DE 600 KG. AF_08/2019 | D151: M3 | E151: 686.56 | F151: 0
A152: Argamassas | B152: 87369 | C152: ARGAMASSA TRAÇO 1:2:8 (EM VOLUME DE CIMENTO, CAL E AREIA MÉDIA ÚMIDA) PARA EMBOÇO/MASSA ÚNICA/ASSENTAMENTO DE ALVENARIA DE VEDAÇÃO, PREPARO MANUAL. AF_08/2019 | D152: M3 | E152: 845.82 | F152: 0
A153: Argamassas | B153: 100451 | C153: ARGAMASSA TRAÇO 1:2:8 (EM VOLUME DE CIMENTO, CAL E AREIA MÉDIA ÚMIDA) PARA EMBOÇO/MASSA ÚNICA/ASSENTAMENTO DE ALVENARIA DE VEDAÇÃO, PREPARO MECÂNICO COM BETONEIRA 250 L. AF_08/2019 | D153: M3 | E153: 0
A154: Argamassas | B154: 87292 | C154: ARGAMASSA TRAÇO 1:2:8 (EM VOLUME DE CIMENTO, CAL E AREIA MÉDIA ÚMIDA) PARA EMBOÇO/MASSA ÚNICA/ASSENTAMENTO DE ALVENARIA DE VEDAÇÃO, PREPARO MECÂNICO COM BETONEIRA 400 L. AF_08/2019 | D154: M3 | E154: 772.19 | F154: 0
A155: Argamassas | B155: 87335 | C155: ARGAMASSA TRAÇO 1:2:8 (EM VOLUME DE CIMENTO, CAL E AREIA MÉDIA ÚMIDA) PARA EMBOÇO/MASSA ÚNICA/ASSENTAMENTO DE ALVENARIA DE VEDAÇÃO, PREPARO MECÂNICO COM MISTURADOR DE EIXO HORIZONTAL DE 300 KG. AF_08/2019 | D155: M3 | E155: 749.35 | F155: 0
A156: Argamassas | B156: 87336 | C156: ARGAMASSA TRAÇO 1:2:8 (EM VOLUME DE CIMENTO, CAL E AREIA MÉDIA ÚMIDA) PARA EMBOÇO/MASSA ÚNICA/ASSENTAMENTO DE ALVENARIA DE VEDAÇÃO, PREPARO MECÂNICO COM MISTURADOR DE EIXO HORIZONTAL DE 600 KG. AF_08/2019 | D156: M3 | E156: 713.92 | F156: 0
A157: Argamassas | B157: 87370 | C157: ARGAMASSA TRAÇO 1:2:9 (EM VOLUME DE CIMENTO, CAL E AREIA MÉDIA ÚMIDA) PARA EMBOÇO/MASSA ÚNICA/ASSENTAMENTO DE ALVENARIA DE VEDAÇÃO, PREPARO MANUAL. AF_08/2019 | D157: M3 | E157: 814.63 | F157: 0
A158: Argamassas | B158: 100452 | C158: ARGAMASSA TRAÇO 1:2:9 (EM VOLUME DE CIMENTO, CAL E AREIA MÉDIA ÚMIDA) PARA EMBOÇO/MASSA ÚNICA/ASSENTAMENTO DE ALVENARIA DE VEDAÇÃO, PREPARO MECÂNICO COM BETONEIRA 250 L. AF_08/2019 | D158: M3 | E158: 0
A159: Argamassas | B159: 88715 | C159: ARGAMASSA TRAÇO 1:2:9 (EM VOLUME DE CIMENTO, CAL E AREIA MÉDIA ÚMIDA) PARA EMBOÇO/MASSA ÚNICA/ASSENTAMENTO DE ALVENARIA DE VEDAÇÃO, PREPARO MECÂNICO COM BETONEIRA 400 L. AF_08/2019 | D159: M3 | E159: 729.59 | F159: 0
A160: Argamassas | B160: 87294 | C160: ARGAMASSA TRAÇO 1:2:9 (EM VOLUME DE CIMENTO, CAL E AREIA MÉDIA ÚMIDA) PARA EMBOÇO/MASSA ÚNICA/ASSENTAMENTO DE ALVENARIA DE VEDAÇÃO, PREPARO MECÂNICO COM BETONEIRA 600 L. AF_08/2019 | D160: M3 | E160: 725.62 | F160: 0
A161: Argamassas | B161: 87337 | C161: ARGAMASSA TRAÇO 1:2:9 (EM VOLUME DE CIMENTO, CAL E AREIA MÉDIA ÚMIDA) PARA EMBOÇO/MASSA ÚNICA/ASSENTAMENTO DE ALVENARIA DE VEDAÇÃO, PREPARO MECÂNICO COM MISTURADOR DE EIXO HORIZONTAL DE 300 KG. AF_08/2019 | D161: M3 | E161: 746.97 | F161: 0
A162: Argamassas | B162: 100487 | C162: ARGAMASSA TRAÇO 1:2:9 (EM VOLUME DE CIMENTO, CAL E AREIA MÉDIA ÚMIDA) PARA EMBOÇO/MASSA ÚNICA/ASSENTAMENTO DE ALVENARIA DE VEDAÇÃO, PREPARO MECÂNICO COM MISTURADOR DE EIXO HORIZONTAL DE 600 KG. AF_08/2019 | D162: M3 | E162: 676.34 | F162: 0
A163: Argamassas | B163: 87380 | C163: ARGAMASSA TRAÇO 1:3 (EM VOLUME DE CIMENTO E AREIA GROSSA ÚMIDA) COM ADIÇÃO DE EMULSÃO POLIMÉRICA PARA CHAPISCO ROLADO, PREPARO MANUAL. AF_08/2019 | D163: M3 | E163: 3923.89 | F163: 0
A164: Argamassas | B164: 100461 | C164: ARGAMASSA TRAÇO 1:3 (EM VOLUME DE CIMENTO E AREIA GROSSA ÚMIDA) COM ADIÇÃO DE EMULSÃO POLIMÉRICA PARA CHAPISCO ROLADO, PREPARO MECÂNICO COM BETONEIRA 250 L. AF_08/2019 | D164: M3 | E164: 0
A165: Argamassas | B165: 87322 | C165: ARGAMASSA TRAÇO 1:3 (EM VOLUME DE CIMENTO E AREIA GROSSA ÚMIDA) COM ADIÇÃO DE EMULSÃO POLIMÉRICA PARA CHAPISCO ROLADO, PREPARO MECÂNICO COM BETONEIRA 400 L. AF_08/2019 | D165: M3 | E165: 3886.66 | F165: 0
A166: Argamassas | B166: 87323 | C166: ARGAMASSA TRAÇO 1:3 (EM VOLUME DE CIMENTO E AREIA GROSSA ÚMIDA) COM ADIÇÃO DE EMULSÃO POLIMÉRICA PARA CHAPISCO ROLADO, PREPARO MECÂNICO COM BETONEIRA 600 L. AF_08/2019 | D166: M3 | E166: 3858.12 | F166: 0
A167: Argamassas | B167: 87360 | C167: ARGAMASSA TRAÇO 1:3 (EM VOLUME DE CIMENTO E AREIA GROSSA ÚMIDA) COM ADIÇÃO DE EMULSÃO POLIMÉRICA PARA CHAPISCO ROLADO, PREPARO MECÂNICO COM MISTURADOR DE EIXO HORIZONTAL DE 160 KG. AF_08/2019 | D167: M3 | E167: 3883.51 | F167: 0
A168: Argamassas | B168: 87361 | C168: ARGAMASSA TRAÇO 1:3 (EM VOLUME DE CIMENTO E AREIA GROSSA ÚMIDA) COM ADIÇÃO DE EMULSÃO POLIMÉRICA PARA CHAPISCO ROLADO, PREPARO MECÂNICO COM MISTURADOR DE EIXO HORIZONTAL DE 300 KG. AF_08/2019 | D168: M3 | E168: 3789.33 | F168: 0
A169: Argamassas | B169: 87362 | C169: ARGAMASSA TRAÇO 1:3 (EM VOLUME DE CIMENTO E AREIA GROSSA ÚMIDA) COM ADIÇÃO DE EMULSÃO POLIMÉRICA PARA CHAPISCO ROLADO, PREPARO MECÂNICO COM MISTURADOR DE EIXO HORIZONTAL DE 600 KG. AF_08/2019 | D169: M3 | E169: 3760.64 | F169: 0
A170: Argamassas | B170: 87377 | C170: ARGAMASSA TRAÇO 1:3 (EM VOLUME DE CIMENTO E AREIA GROSSA ÚMIDA) PARA CHAPISCO CONVENCIONAL, PREPARO MANUAL. AF_08/2019 | D170: M3 | E170: 739.87 | F170: 0
A171: Argamassas | B171: 100458 | C171: ARGAMASSA TRAÇO 1:3 (EM VOLUME DE CIMENTO E AREIA GROSSA ÚMIDA) PARA CHAPISCO CONVENCIONAL, PREPARO MECÂNICO COM BETONEIRA 250 L. AF_08/2019 | D171: M3 | E171: 0
A172: Argamassas | B172: 87313 | C172: ARGAMASSA TRAÇO 1:3 (EM VOLUME DE CIMENTO E AREIA GROSSA ÚMIDA) PARA CHAPISCO CONVENCIONAL, PREPARO MECÂNICO COM BETONEIRA 400 L. AF_08/2019 | D172: M3 | E172: 655.2 | F172: 0
A173: Argamassas | B173: 87314 | C173: ARGAMASSA TRAÇO 1:3 (EM VOLUME DE CIMENTO E AREIA GROSSA ÚMIDA) PARA CHAPISCO CONVENCIONAL, PREPARO MECÂNICO COM BETONEIRA 600 L. AF_08/2019 | D173: M3 | E173: 625.2 | F173: 0
A174: Argamassas | B174: 87352 | C174: ARGAMASSA TRAÇO 1:3 (EM VOLUME DE CIMENTO E AREIA GROSSA ÚMIDA) PARA CHAPISCO CONVENCIONAL, PREPARO MECÂNICO COM MISTURADOR DE EIXO HORIZONTAL DE 160 KG. AF_08/2019 | D174: M3 | E174: 806.9 | F174: 0
A175: Argamassas | B175: 87353 | C175: ARGAMASSA TRAÇO 1:3 (EM VOLUME DE CIMENTO E AREIA GROSSA ÚMIDA) PARA CHAPISCO CONVENCIONAL, PREPARO MECÂNICO COM MISTURADOR DE EIXO HORIZONTAL DE 300 KG. AF_08/2019 | D175: M3 | E175: 667.15 | F175: 0
A176: Argamassas | B176: 87354 | C176: ARGAMASSA TRAÇO 1:3 (EM VOLUME DE CIMENTO E AREIA GROSSA ÚMIDA) PARA CHAPISCO CONVENCIONAL, PREPARO MECÂNICO COM MISTURADOR DE EIXO HORIZONTAL DE 600 KG. AF_08/2019 | D176: M3 | E176: 593.91 | F176: 0
A177: Argamassas | B177: 100480 | C177: ARGAMASSA TRAÇO 1:3 (EM VOLUME DE CIMENTO E AREIA MÉDIA ÚMIDA) COM ADIÇÃO DE IMPERMEABILIZANTE, PREPARO MANUAL. AF_08/2019 | D177: M3 | E177: 891.06 | F177: 0
A178: Argamassas | B178: 100476 | C178: ARGAMASSA TRAÇO 1:3 (EM VOLUME DE CIMENTO E AREIA MÉDIA ÚMIDA) COM ADIÇÃO DE IMPERMEABILIZANTE, PREPARO MECÂNICO COM BETONEIRA 250 L. AF_08/2019 | D178: M3 | E178: 0
A179: Argamassas | B179: 100475 | C179: ARGAMASSA TRAÇO 1:3 (EM VOLUME DE CIMENTO E AREIA MÉDIA ÚMIDA) COM ADIÇÃO DE IMPERMEABILIZANTE, PREPARO MECÂNICO COM BETONEIRA 400 L. AF_08/2019 | D179: M3 | E179: 831.28 | F179: 0
A180: Argamassas | B180: 100491 | C180: ARGAMASSA TRAÇO 1:3 (EM VOLUME DE CIMENTO E AREIA MÉDIA ÚMIDA) COM ADIÇÃO DE IMPERMEABILIZANTE, PREPARO MECÂNICO COM BETONEIRA 600 L. AF_08/2019 | D180: M3 | E180: 813.54 | F180: 0
A181: Argamassas | B181: 100477 | C181: ARGAMASSA TRAÇO 1:3 (EM VOLUME DE CIMENTO E AREIA MÉDIA ÚMIDA) COM ADIÇÃO DE IMPERMEABILIZANTE, PREPARO MECÂNICO COM MISTURADOR DE EIXO HORIZONTAL DE 160 KG. AF_08/2019 | D181: M3 | E181: 955.07 | F181: 0
A182: Argamassas | B182: 100478 | C182: ARGAMASSA TRAÇO 1:3 (EM VOLUME DE CIMENTO E AREIA MÉDIA ÚMIDA) COM ADIÇÃO DE IMPERMEABILIZANTE, PREPARO MECÂNICO COM MISTURADOR DE EIXO HORIZONTAL DE 300 KG. AF_08/2019 | D182: M3 | E182: 814.29 | F182: 0
A183: Argamassas | B183: 100479 | C183: ARGAMASSA TRAÇO 1:3 (EM VOLUME DE CIMENTO E AREIA MÉDIA ÚMIDA) COM ADIÇÃO DE IMPERMEABILIZANTE, PREPARO MECÂNICO COM MISTURADOR DE EIXO HORIZONTAL DE 600 KG. AF_08/2019 | D183: M3 | E183: 773.23 | F183: 0
A184: Argamassas | B184: 87372 | C184: ARGAMASSA TRAÇO 1:3 (EM VOLUME DE CIMENTO E AREIA MÉDIA ÚMIDA) PARA CONTRAPISO, PREPARO MANUAL. AF_08/2019 | D184: M3 | E184: 909.66 | F184: 0
A185: Argamassas | B185: 100453 | C185: ARGAMASSA TRAÇO 1:3 (EM VOLUME DE CIMENTO E AREIA MÉDIA ÚMIDA) PARA CONTRAPISO, PREPARO MECÂNICO COM BETONEIRA 250 L. AF_08/2019 | D185: M3 | E185: 0
A186: Argamassas | B186: 87298 | C186: ARGAMASSA TRAÇO 1:3 (EM VOLUME DE CIMENTO E AREIA MÉDIA ÚMIDA) PARA CONTRAPISO, PREPARO MECÂNICO COM BETONEIRA 400 L. AF_08/2019 | D186: M3 | E186: 820.07 | F186: 0
A187: Argamassas | B187: 87299 | C187: ARGAMASSA TRAÇO 1:3 (EM VOLUME DE CIMENTO E AREIA MÉDIA ÚMIDA) PARA CONTRAPISO, PREPARO MECÂNICO COM BETONEIRA 600 L. AF_08/2019 | D187: M3 | E187: 559.17 | F187: 0
A188: Argamassas | B188: 87339 | C188: ARGAMASSA TRAÇO 1:3 (EM VOLUME DE CIMENTO E AREIA MÉDIA ÚMIDA) PARA CONTRAPISO, PREPARO MECÂNICO COM MISTURADOR DE EIXO HORIZONTAL DE 160 KG. AF_08/2019 | D188: M3 | E188: 1051.36 | F188: 0
A189: Argamassas | B189: 87340 | C189: ARGAMASSA TRAÇO 1:3 (EM VOLUME DE CIMENTO E AREIA MÉDIA ÚMIDA) PARA CONTRAPISO, PREPARO MECÂNICO COM MISTURADOR DE EIXO HORIZONTAL DE 300 KG. AF_08/2019 | D189: M3 | E189: 823.92 | F189: 0
A190: Argamassas | B190: 87341 | C190: ARGAMASSA TRAÇO 1:3 (EM VOLUME DE CIMENTO E AREIA MÉDIA ÚMIDA) PARA CONTRAPISO, PREPARO MECÂNICO COM MISTURADOR DE EIXO HORIZONTAL DE 600 KG. AF_08/2019 | D190: M3 | E190: 757.12 | F190: 0
A191: Argamassas | B191: 88629 | C191: ARGAMASSA TRAÇO 1:3 (EM VOLUME DE CIMENTO E AREIA MÉDIA ÚMIDA), PREPARO MANUAL. AF_08/2019 | D191: M3 | E191: 744.91 | F191: 0
A192: Argamassas | B192: 100467 | C192: ARGAMASSA TRAÇO 1:3 (EM VOLUME DE CIMENTO E AREIA MÉDIA ÚMIDA), PREPARO MECÂNICO COM BETONEIRA 250 L. AF_08/2019 | D192: M3 | E192: 0
A193: Argamassas | B193: 88628 | C193: ARGAMASSA TRAÇO 1:3 (EM VOLUME DE CIMENTO E AREIA MÉDIA ÚMIDA), PREPARO MECÂNICO COM BETONEIRA 400 L. AF_08/2019 | D193: M3 | E193: 678.66 | F193: 0
A194: Argamassas | B194: 100489 | C194: ARGAMASSA TRAÇO 1:3 (EM VOLUME DE CIMENTO E AREIA MÉDIA ÚMIDA), PREPARO MECÂNICO COM BETONEIRA 600 L. AF_08/2019 | D194: M3 | E194: 661.03 | F194: 0
A195: Argamassas | B195: 100468 | C195: ARGAMASSA TRAÇO 1:3 (EM VOLUME DE CIMENTO E AREIA MÉDIA ÚMIDA), PREPARO MECÂNICO COM MISTURADOR DE EIXO HORIZONTAL DE 160 KG. AF_08/2019 | D195: M3 | E195: 861.1 | F195: 0
A196: Argamassas | B196: 100469 | C196: ARGAMASSA TRAÇO 1:3 (EM VOLUME DE CIMENTO E AREIA MÉDIA ÚMIDA), PREPARO MECÂNICO COM MISTURADOR DE EIXO HORIZONTAL DE 300 KG. AF_08/2019 | D196: M3 | E196: 665.13 | F196: 0
A197: Argamassas | B197: 100470 | C197: ARGAMASSA TRAÇO 1:3 (EM VOLUME DE CIMENTO E AREIA MÉDIA ÚMIDA), PREPARO MECÂNICO COM MISTURADOR DE EIXO HORIZONTAL DE 600 KG. AF_08/2019 | D197: M3 | E197: 613.72 | F197: 0
A198: Argamassas | B198: 87371 | C198: ARGAMASSA TRAÇO 1:3:12 (EM VOLUME DE CIMENTO, CAL E AREIA MÉDIA ÚMIDA) PARA EMBOÇO/MASSA ÚNICA/ASSENTAMENTO DE ALVENARIA DE VEDAÇÃO, PREPARO MANUAL. AF_08/2019 | D198: M3 | E198: 810.59 | F198: 0
A199: Argamassas | B199: 87295 | C199: ARGAMASSA TRAÇO 1:3:12 (EM VOLUME DE CIMENTO, CAL E AREIA MÉDIA ÚMIDA) PARA EMBOÇO/MASSA ÚNICA/ASSENTAMENTO DE ALVENARIA DE VEDAÇÃO, PREPARO MECÂNICO COM BETONEIRA 400 L. AF_08/2019 | D199: M3 | E199: 780.23 | F199: 0
A200: Argamassas | B200: 87296 | C200: ARGAMASSA TRAÇO 1:3:12 (EM VOLUME DE CIMENTO, CAL E AREIA MÉDIA ÚMIDA) PARA EMBOÇO/MASSA ÚNICA/ASSENTAMENTO DE ALVENARIA DE VEDAÇÃO, PREPARO MECÂNICO COM BETONEIRA 600 L. AF_08/2019 | D200: M3 | E200: 711.58 | F200: 0
... 9533 more rows

Sheet Ins SINAPI BA 07-2025 Onerado
A1: SINAPI - Sistema Nacional de Pesquisa de Custos e Índices da Construção Civil
A2: RELATÓRIO DE PREÇOS DE INSUMOS - ENGARGOS SOCIAIS SEM DESONERAÇÃO
A3: Mês de Referência: | B3: 07/2025 | E3: Encargos sociais sobre a mão de obra:
A4: Data de emissão: | B4: 12/08/2025 | E4: (SEM DESONERAÇÃO) | F4: BA
E5: Localidade | F5: SALVADOR
A6: Origem de preço: | B6: C = COLETADO | C6: CR = COEFICIENTE DE REPRESENTATIVIDADE | E6: Horista | F6: 1.1557
A7: Preço em branco para determinado estado significa que não houve coleta mínima de preços no mês de referência | E7: Mensalista | F7: 0.7129
A9: Acessar Fichas de Especificação Técnico dos Insumos | E9: Preços Medianos (R$):
A10: Classificação | B10: Código do Insumo | C10: Descrição do Insumo | D10: Unidade | E10: Origem de Preço | F10: BA
A11: SERVIÇOS | B11: 45333 | C11: ABERTURA PARA ENCAIXE DE CUBA OU LAVATORIO EM BANCADA DE MARMORE/ GRANITO OU OUTRO TIPO DE PEDRA NATURAL | D11: UN | E11: CR | F11: 113.72
A12: MATERIAL | B12: 11270 | C12: ABRACADEIRA DE LATAO PARA FIXACAO DE CABO PARA-RAIO, DIMENSOES 32 X 24 X 24 MM | D12: UN | E12: CR | F12: 3
A13: MATERIAL | B13: 412 | C13: ABRACADEIRA DE NYLON PARA AMARRACAO DE CABOS, COMPRIMENTO DE *230* X *7,6* MM | D13: UN | E13: CR | F13: 1.08
A14: MATERIAL | B14: 414 | C14: ABRACADEIRA DE NYLON PARA AMARRACAO DE CABOS, COMPRIMENTO DE 100 X 2,5 MM | D14: UN | E14: CR | F14: 0.06
A15: MATERIAL | B15: 410 | C15: ABRACADEIRA DE NYLON PARA AMARRACAO DE CABOS, COMPRIMENTO DE 150 X *3,6* MM | D15: UN | E15: CR | F15: 0.16
A16: MATERIAL | B16: 411 | C16: ABRACADEIRA DE NYLON PARA AMARRACAO DE CABOS, COMPRIMENTO DE 200 X *4,6* MM | D16: UN | E16: C | F16: 0.21
A17: MATERIAL | B17: 408 | C17: ABRACADEIRA DE NYLON PARA AMARRACAO DE CABOS, COMPRIMENTO DE 390 X *4,6* MM | D17: UN | E17: CR | F17: 1.04
A18: MATERIAL | B18: 39131 | C18: ABRACADEIRA EM ACO PARA AMARRACAO DE ELETRODUTOS, TIPO D, COM 1 1/2" E CUNHA DE FIXACAO | D18: UN | E18: CR | F18: 3.86
A19: MATERIAL | B19: 394 | C19: ABRACADEIRA EM ACO PARA AMARRACAO DE ELETRODUTOS, TIPO D, COM 1 1/2" E PARAFUSO DE FIXACAO | D19: UN | E19: CR | F19: 3.91
A20: MATERIAL | B20: 39130 | C20: ABRACADEIRA EM ACO PARA AMARRACAO DE ELETRODUTOS, TIPO D, COM 1 1/4" E CUNHA DE FIXACAO | D20: UN | E20: CR | F20: 3.52
A21: MATERIAL | B21: 395 | C21: ABRACADEIRA EM ACO PARA AMARRACAO DE ELETRODUTOS, TIPO D, COM 1 1/4" E PARAFUSO DE FIXACAO | D21: UN | E21: CR | F21: 3.76
A22: MATERIAL | B22: 39129 | C22: ABRACADEIRA EM ACO PARA AMARRACAO DE ELETRODUTOS, TIPO D, COM 1" E CUNHA DE FIXACAO | D22: UN | E22: CR | F22: 2.17
A23: MATERIAL | B23: 393 | C23: ABRACADEIRA EM ACO PARA AMARRACAO DE ELETRODUTOS, TIPO D, COM 1" E PARAFUSO DE FIXACAO | D23: UN | E23: C | F23: 2.27
A24: MATERIAL | B24: 39127 | C24: ABRACADEIRA EM ACO PARA AMARRACAO DE ELETRODUTOS, TIPO D, COM 1/2" E CUNHA DE FIXACAO | D24: UN | E24: CR | F24: 1.85
A25: MATERIAL | B25: 392 | C25: ABRACADEIRA EM ACO PARA AMARRACAO DE ELETRODUTOS, TIPO D, COM 1/2" E PARAFUSO DE FIXACAO | D25: UN | E25: CR | F25: 1.9
A26: MATERIAL | B26: 39133 | C26: ABRACADEIRA EM ACO PARA AMARRACAO DE ELETRODUTOS, TIPO D, COM 2 1/2" E CUNHA DE FIXACAO | D26: UN | E26: CR | F26: 5.07
A27: MATERIAL | B27: 397 | C27: ABRACADEIRA EM ACO PARA AMARRACAO DE ELETRODUTOS, TIPO D, COM 2 1/2" E PARAFUSO DE FIXACAO | D27: UN | E27: CR | F27: 5.6
A28: MATERIAL | B28: 39132 | C28: ABRACADEIRA EM ACO PARA AMARRACAO DE ELETRODUTOS, TIPO D, COM 2" E CUNHA DE FIXACAO | D28: UN | E28: CR | F28: 4.05
A29: MATERIAL | B29: 396 | C29: ABRACADEIRA EM ACO PARA AMARRACAO DE ELETRODUTOS, TIPO D, COM 2" E PARAFUSO DE FIXACAO | D29: UN | E29: CR | F29: 4.34
A30: MATERIAL | B30: 39135 | C30: ABRACADEIRA EM ACO PARA AMARRACAO DE ELETRODUTOS, TIPO D, COM 3 1/2" E CUNHA DE FIXACAO | D30: UN | E30: CR | F30: 8.11
A31: MATERIAL | B31: 39134 | C31: ABRACADEIRA EM ACO PARA AMARRACAO DE ELETRODUTOS, TIPO D, COM 3" E CUNHA DE FIXACAO | D31: UN | E31: CR | F31: 6.76
A32: MATERIAL | B32: 398 | C32: ABRACADEIRA EM ACO PARA AMARRACAO DE ELETRODUTOS, TIPO D, COM 3" E PARAFUSO DE FIXACAO | D32: UN | E32: CR | F32: 6.23
A33: MATERIAL | B33: 39128 | C33: ABRACADEIRA EM ACO PARA AMARRACAO DE ELETRODUTOS, TIPO D, COM 3/4" E CUNHA DE FIXACAO | D33: UN | E33: CR | F33: 2.02
A34: MATERIAL | B34: 400 | C34: ABRACADEIRA EM ACO PARA AMARRACAO DE ELETRODUTOS, TIPO D, COM 3/4" E PARAFUSO DE FIXACAO | D34: UN | E34: CR | F34: 1.98
A35: MATERIAL | B35: 39125 | C35: ABRACADEIRA EM ACO PARA AMARRACAO DE ELETRODUTOS, TIPO D, COM 3/8" E PARAFUSO DE FIXACAO | D35: UN | E35: CR | F35: 2.02
A36: MATERIAL | B36: 39126 | C36: ABRACADEIRA EM ACO PARA AMARRACAO DE ELETRODUTOS, TIPO D, COM 4" E CUNHA DE FIXACAO | D36: UN | E36: CR | F36: 9.12
A37: MATERIAL | B37: 399 | C37: ABRACADEIRA EM ACO PARA AMARRACAO DE ELETRODUTOS, TIPO D, COM 4" E PARAFUSO DE FIXACAO | D37: UN | E37: CR | F37: 8.04
A38: MATERIAL | B38: 39158 | C38: ABRACADEIRA EM ACO PARA AMARRACAO DE ELETRODUTOS, TIPO ECONOMICA (GOTA), COM 8" | D38: UN | E38: CR | F38: 21.58
A39: MATERIAL | B39: 39141 | C39: ABRACADEIRA EM ACO PARA AMARRACAO DE ELETRODUTOS, TIPO U SIMPLES, COM 1 1/2" | D39: UN | E39: CR | F39: 1.56
A40: MATERIAL | B40: 39140 | C40: ABRACADEIRA EM ACO PARA AMARRACAO DE ELETRODUTOS, TIPO U SIMPLES, COM 1 1/4" | D40: UN | E40: CR | F40: 1.42
A41: MATERIAL | B41: 39139 | C41: ABRACADEIRA EM ACO PARA AMARRACAO DE ELETRODUTOS, TIPO U SIMPLES, COM 1" | D41: UN | E41: CR | F41: 1.18
A42: MATERIAL | B42: 39137 | C42: ABRACADEIRA EM ACO PARA AMARRACAO DE ELETRODUTOS, TIPO U SIMPLES, COM 1/2" | D42: UN | E42: CR | F42: 0.82
A43: MATERIAL | B43: 39143 | C43: ABRACADEIRA EM ACO PARA AMARRACAO DE ELETRODUTOS, TIPO U SIMPLES, COM 2 1/2" | D43: UN | E43: CR | F43: 3.23
A44: MATERIAL | B44: 39142 | C44: ABRACADEIRA EM ACO PARA AMARRACAO DE ELETRODUTOS, TIPO U SIMPLES, COM 2" | D44: UN | E44: CR | F44: 2.31
A45: MATERIAL | B45: 39144 | C45: ABRACADEIRA EM ACO PARA AMARRACAO DE ELETRODUTOS, TIPO U SIMPLES, COM 3" | D45: UN | E45: CR | F45: 3.76
A46: MATERIAL | B46: 39138 | C46: ABRACADEIRA EM ACO PARA AMARRACAO DE ELETRODUTOS, TIPO U SIMPLES, COM 3/4" | D46: UN | E46: CR | F46: 0.86
A47: MATERIAL | B47: 39136 | C47: ABRACADEIRA EM ACO PARA AMARRACAO DE ELETRODUTOS, TIPO U SIMPLES, COM 3/8" | D47: UN | E47: CR | F47: 0.57
A48: MATERIAL | B48: 39145 | C48: ABRACADEIRA EM ACO PARA AMARRACAO DE ELETRODUTOS, TIPO U SIMPLES, COM 4" | D48: UN | E48: CR | F48: 6.2
A49: MATERIAL | B49: 12615 | C49: ABRACADEIRA PVC, PARA CALHA PLUVIAL, DIAMETRO ENTRE *80 E 100* MM, PARA DRENAGEM PLUVIAL PREDIAL | D49: UN | E49: CR | F49: 10.62
A50: MATERIAL | B50: 11927 | C50: ABRACADEIRA, GALVANIZADA/ZINCADA, ROSCA SEM FIM, PARAFUSO INOX, LARGURA FITA *12,6 A *14 MM, D = 2" A 2 1/2" | D50: UN | E50: CR | F50: 8.95
A51: MATERIAL | B51: 11928 | C51: ABRACADEIRA, GALVANIZADA/ZINCADA, ROSCA SEM FIM, PARAFUSO INOX, LARGURA FITA *12,6 A *14 MM, D = 3" A 3 3/4" | D51: UN | E51: CR | F51: 10.26
A52: MATERIAL | B52: 11929 | C52: ABRACADEIRA, GALVANIZADA/ZINCADA, ROSCA SEM FIM, PARAFUSO INOX, LARGURA FITA *12,6 A *14 MM, D = 4" A 4 3/4" | D52: UN | E52: CR | F52: 15.86
A53: MATERIAL | B53: 36801 | C53: ACABAMENTO DE METAL CROMADO PARA REGISTRO PEQUENO, DE PAREDE, 1/2" OU 3/4" | D53: UN | E53: CR | F53: 41.78
A54: MATERIAL | B54: 36246 | C54: ACABAMENTO SIMPLES/CONVENCIONAL PARA FORRO PVC, TIPO "U" OU "C", COR BRANCA, COMPRIMENTO 6 M | D54: M | E54: CR | F54: 3.84
A55: MATERIAL | B55: 37600 | C55: ACESSORIO DE LIGACAO NAO ELETRICO PARA CARGAS EXPLOSIVAS, TUBO DE 6 M | D55: UN | E55: CR
A56: MATERIAL | B56: 37599 | C56: ACESSORIO INICIADOR NAO ELETRICO, TUBO DE 6 M, TEMPO DE RETARDO DE *160* MS | D56: UN | E56: CR
A57: MATERIAL | B57: 1 | C57: ACETILENO - RECARGA DE GAS PARA CILINDRO (NAO INCLUI TROCA/MANUTENCAO DO CILINDRO) | D57: KG | E57: C | F57: 152.5
A58: MATERIAL | B58: 3 | C58: ACIDO CLORIDRICO / ACIDO MURIATICO, DILUICAO 10% A 12% PARA USO EM LIMPEZA | D58: L | E58: CR | F58: 16.01
A59: MATERIAL | B59: 43054 | C59: ACO CA-25, 10,0 MM, OU 12,5 MM, OU 16,0 MM, OU 20,0 MM, OU 25,0 MM, VERGALHAO | D59: KG | E59: CR | F59: 7.37
A60: MATERIAL | B60: 42402 | C60: ACO CA-25, 16,0 MM, BARRA DE TRANSFERENCIA | D60: KG | E60: CR | F60: 7.04
A61: MATERIAL | B61: 42403 | C61: ACO CA-25, 20,0 MM, BARRA DE TRANSFERENCIA | D61: KG | E61: CR | F61: 9.03
A62: MATERIAL | B62: 42404 | C62: ACO CA-25, 25,0 MM, BARRA DE TRANSFERENCIA | D62: KG | E62: CR | F62: 8.98
A63: MATERIAL | B63: 42405 | C63: ACO CA-25, 32,0 MM, BARRA DE TRANSFERENCIA | D63: KG | E63: CR | F63: 9.57
A64: MATERIAL | B64: 34341 | C64: ACO CA-25, 32,0 MM, VERGALHAO | D64: KG | E64: CR | F64: 8.3
A65: MATERIAL | B65: 43053 | C65: ACO CA-25, 6,3 MM OU 8,0 MM, VERGALHAO | D65: KG | E65: CR | F65: 6.58
A66: MATERIAL | B66: 43058 | C66: ACO CA-50, 10,0 MM, OU 12,5 MM, OU 16,0 MM, OU 20,0 MM, DOBRADO E CORTADO | D66: KG | E66: CR | F66: 6.82
A67: MATERIAL | B67: 34 | C67: ACO CA-50, 10,0 MM, VERGALHAO | D67: KG | E67: CR | F67: 6.86
A68: MATERIAL | B68: 43055 | C68: ACO CA-50, 12,5 MM OU 16,0 MM, VERGALHAO | D68: KG | E68: C | F68: 5.94
A69: MATERIAL | B69: 43056 | C69: ACO CA-50, 20,0 MM OU 25,0 MM, VERGALHAO | D69: KG | E69: CR | F69: 6.85
A70: MATERIAL | B70: 43057 | C70: ACO CA-50, 32,0 MM, VERGALHAO | D70: KG | E70: CR | F70: 7.52
A71: MATERIAL | B71: 34449 | C71: ACO CA-50, 6,3 MM, DOBRADO E CORTADO | D71: KG | E71: CR | F71: 8.04
A72: MATERIAL | B72: 32 | C72: ACO CA-50, 6,3 MM, VERGALHAO | D72: KG | E72: CR | F72: 7.23
A73: MATERIAL | B73: 33 | C73: ACO CA-50, 8,0 MM, VERGALHAO | D73: KG | E73: CR | F73: 7.27
A74: MATERIAL | B74: 43061 | C74: ACO CA-60, 4,2 MM OU 5,0 MM, DOBRADO E CORTADO | D74: KG | E74: CR | F74: 6.8
A75: MATERIAL | B75: 43059 | C75: ACO CA-60, 4,2 MM, OU 5,0 MM, OU 6,0 MM, OU 7,0 MM, VERGALHAO | D75: KG | E75: CR | F75: 6.49
A76: MATERIAL | B76: 43062 | C76: ACO CA-60, 6,0 MM OU 7,0 MM, DOBRADO E CORTADO | D76: KG | E76: CR | F76: 7.19
A77: MATERIAL | B77: 43060 | C77: ACO CA-60, 8,0 MM OU 9,5 MM, VERGALHAO | D77: KG | E77: CR | F77: 5.65
A78: MATERIAL | B78: 40410 | C78: ACOPLAMENTO RIGIDO EM FERRO FUNDIDO PARA SISTEMA DE TUBULACAO RANHURADA, DN 50 MM (2") | D78: UN | E78: C | F78: 40
A79: MATERIAL | B79: 40411 | C79: ACOPLAMENTO RIGIDO EM FERRO FUNDIDO PARA SISTEMA DE TUBULACAO RANHURADA, DN 65 MM (2 1/2") | D79: UN | E79: CR | F79: 43.41
A80: MATERIAL | B80: 40412 | C80: ACOPLAMENTO RIGIDO EM FERRO FUNDIDO PARA SISTEMA DE TUBULACAO RANHURADA, DN 80 MM (3") | D80: UN | E80: CR | F80: 48.72
A81: MATERIAL | B81: 44254 | C81: ADAPTADOR CPVC, ROSCAVEL, COM FLANGES E ANEL DE VEDACAO, 15 MM, CAIXA D'AGUA PARA AGUA QUENTE | D81: UN | E81: CR | F81: 28.3
A82: MATERIAL | B82: 44255 | C82: ADAPTADOR CPVC, ROSCAVEL, COM FLANGES E ANEL DE VEDACAO, 22 MM, CAIXA D'AGUA PARA AGUA QUENTE | D82: UN | E82: CR | F82: 31.37
A83: MATERIAL | B83: 44256 | C83: ADAPTADOR CPVC, ROSCAVEL, COM FLANGES E ANEL DE VEDACAO, 28 MM, CAIXA D'AGUA PARA AGUA QUENTE | D83: UN | E83: CR | F83: 35.43
A84: MATERIAL | B84: 44257 | C84: ADAPTADOR CPVC, ROSCAVEL, COM FLANGES E ANEL DE VEDACAO, 35 MM, CAIXA D'AGUA PARA AGUA QUENTE | D84: UN | E84: CR | F84: 56.05
A85: MATERIAL | B85: 44258 | C85: ADAPTADOR CPVC, ROSCAVEL, COM FLANGES E ANEL DE VEDACAO, 42 MM, CAIXA D'AGUA PARA AGUA QUENTE | D85: UN | E85: CR | F85: 64.05
A86: MATERIAL | B86: 44259 | C86: ADAPTADOR CPVC, ROSCAVEL, COM FLANGES E ANEL DE VEDACAO, 54 MM, CAIXA D'AGUA PARA AGUA QUENTE | D86: UN | E86: CR | F86: 87.92
A87: MATERIAL | B87: 37997 | C87: ADAPTADOR CPVC, SOLDAVEL, 15 MM, PARA AGUA QUENTE | D87: UN | E87: CR | F87: 16.86
A88: MATERIAL | B88: 37998 | C88: ADAPTADOR CPVC, SOLDAVEL, 22 MM, PARA AGUA QUENTE | D88: UN | E88: CR | F88: 22.57
A89: MATERIAL | B89: 55 | C89: ADAPTADOR DE COMPRESSAO EM POLIPROPILENO (PP), PARA TUBO EM PEAD, 20 MM X 1/2", PARA LIGACAO PREDIAL DE AGUA (NTS 179) | D89: UN | E89: C
A90: MATERIAL | B90: 61 | C90: ADAPTADOR DE COMPRESSAO EM POLIPROPILENO (PP), PARA TUBO EM PEAD, 20 MM X 3/4", PARA LIGACAO PREDIAL DE AGUA (NTS 179) | D90: UN | E90: CR
A91: MATERIAL | B91: 62 | C91: ADAPTADOR DE COMPRESSAO EM POLIPROPILENO (PP), PARA TUBO EM PEAD, 32 MM X 1", PARA LIGACAO PREDIAL DE AGUA (NTS 179) | D91: UN | E91: CR
A92: MATERIAL | B92: 10899 | C92: ADAPTADOR EM LATAO, ENGATE RAPIDO 2 1/2" X ROSCA INTERNA 5 FIOS 2 1/2", PARA INSTALACAO PREDIAL DE COMBATE A INCENDIO | D92: UN | E92: CR | F92: 118.28
A93: MATERIAL | B93: 10900 | C93: ADAPTADOR EM LATAO, ENGATE RAPIDO1 1/2" X ROSCA INTERNA 5 FIOS 2 1/2", PARA INSTALACAO PREDIAL DE COMBATE A INCENDIO | D93: UN | E93: CR | F93: 92.57
A94: MATERIAL | B94: 47 | C94: ADAPTADOR PVC PBA, BOLSA/ROSCA, JE, DN 100 / DE 110 MM | D94: UN | E94: CR | F94: 53.29
A95: MATERIAL | B95: 48 | C95: ADAPTADOR PVC PBA, BOLSA/ROSCA, JE, DN 50 / DE 60 MM | D95: UN | E95: CR | F95: 13.9
A96: MATERIAL | B96: 46 | C96: ADAPTADOR PVC PBA, BOLSA/ROSCA, JE, DN 75 / DE 85 MM | D96: UN | E96: CR | F96: 31.16
A97: MATERIAL | B97: 52 | C97: ADAPTADOR PVC PBA, PONTA/ROSCA, JE, DN 50 / DE 60 MM | D97: UN | E97: CR | F97: 10.56
A98: MATERIAL | B98: 43 | C98: ADAPTADOR PVC PBA, PONTA/ROSCA, JE, DN 75 / DE 85 MM | D98: UN | E98: CR | F98: 35.64
A99: MATERIAL | B99: 103 | C99: ADAPTADOR PVC SOLDAVEL CURTO COM BOLSA E ROSCA, 110 MM X 4", PARA AGUA FRIA | D99: UN | E99: CR | F99: 38.01
A100: MATERIAL | B100: 107 | C100: ADAPTADOR PVC SOLDAVEL CURTO COM BOLSA E ROSCA, 20 MM X 1/2", PARA AGUA FRIA | D100: UN | E100: CR | F100: 0.71
A101: MATERIAL | B101: 65 | C101: ADAPTADOR PVC SOLDAVEL CURTO COM BOLSA E ROSCA, 25 MM X 3/4", PARA AGUA FRIA | D101: UN | E101: CR | F101: 0.78
A102: MATERIAL | B102: 108 | C102: ADAPTADOR PVC SOLDAVEL CURTO COM BOLSA E ROSCA, 32 MM X 1", PARA AGUA FRIA | D102: UN | E102: CR | F102: 1.57
A103: MATERIAL | B103: 110 | C103: ADAPTADOR PVC SOLDAVEL CURTO COM BOLSA E ROSCA, 40 MM X 1 1/2", PARA AGUA FRIA | D103: UN | E103: CR | F103: 5.47
A104: MATERIAL | B104: 109 | C104: ADAPTADOR PVC SOLDAVEL CURTO COM BOLSA E ROSCA, 40 MM X 1 1/4", PARA AGUA FRIA | D104: UN | E104: CR | F104: 3.26
A105: MATERIAL | B105: 111 | C105: ADAPTADOR PVC SOLDAVEL CURTO COM BOLSA E ROSCA, 50 MM X 1 1/4", PARA AGUA FRIA | D105: UN | E105: CR | F105: 7.4
A106: MATERIAL | B106: 112 | C106: ADAPTADOR PVC SOLDAVEL CURTO COM BOLSA E ROSCA, 50 MM X1 1/2", PARA AGUA FRIA | D106: UN | E106: CR | F106: 3.92
A107: MATERIAL | B107: 113 | C107: ADAPTADOR PVC SOLDAVEL CURTO COM BOLSA E ROSCA, 60 MM X 2", PARA AGUA FRIA | D107: UN | E107: CR | F107: 9.82
A108: MATERIAL | B108: 104 | C108: ADAPTADOR PVC SOLDAVEL CURTO COM BOLSA E ROSCA, 75 MM X 2 1/2", PARA AGUA FRIA | D108: UN | E108: CR | F108: 17.08
A109: MATERIAL | B109: 102 | C109: ADAPTADOR PVC SOLDAVEL CURTO COM BOLSA E ROSCA, 85 MM X 3", PARA AGUA FRIA | D109: UN | E109: CR | F109: 23.55
A110: MATERIAL | B110: 95 | C110: ADAPTADOR PVC SOLDAVEL, COM FLANGE E ANEL DE VEDACAO, 20 MM X 1/2", PARA CAIXA D'AGUA | D110: UN | E110: CR | F110: 9.95
A111: MATERIAL | B111: 96 | C111: ADAPTADOR PVC SOLDAVEL, COM FLANGE E ANEL DE VEDACAO, 25 MM X 3/4", PARA CAIXA D'AGUA | D111: UN | E111: CR | F111: 10.83
A112: MATERIAL | B112: 97 | C112: ADAPTADOR PVC SOLDAVEL, COM FLANGE E ANEL DE VEDACAO, 32 MM X 1", PARA CAIXA D'AGUA | D112: UN | E112: CR | F112: 16.29
A113: MATERIAL | B113: 98 | C113: ADAPTADOR PVC SOLDAVEL, COM FLANGE E ANEL DE VEDACAO, 40 MM X 1 1/4", PARA CAIXA D'AGUA | D113: UN | E113: CR | F113: 24.38
A114: MATERIAL | B114: 99 | C114: ADAPTADOR PVC SOLDAVEL, COM FLANGE E ANEL DE VEDACAO, 50 MM X 1 1/2", PARA CAIXA D'AGUA | D114: UN | E114: CR | F114: 23.05
A115: MATERIAL | B115: 60 | C115: ADAPTADOR PVC, COM REGISTRO, PARA PEAD, 20 MM X 3/4", PARA LIGACAO PREDIAL DE AGUA | D115: UN | E115: CR
A116: MATERIAL | B116: 72 | C116: ADAPTADOR PVC, ROSCAVEL, COM FLANGES E ANEL DE VEDACAO, 1 1/2", PARA CAIXA D'AGUA | D116: UN | E116: CR | F116: 44.2
A117: MATERIAL | B117: 71 | C117: ADAPTADOR PVC, ROSCAVEL, COM FLANGES E ANEL DE VEDACAO, 1", PARA CAIXA D'AGUA | D117: UN | E117: CR | F117: 27.3
A118: MATERIAL | B118: 67 | C118: ADAPTADOR PVC, ROSCAVEL, COM FLANGES E ANEL DE VEDACAO, 1/2", PARA CAIXA D'AGUA | D118: UN | E118: CR | F118: 14.29
A119: MATERIAL | B119: 73 | C119: ADAPTADOR PVC, ROSCAVEL, COM FLANGES E ANEL DE VEDACAO, 3/4", PARA CAIXA D'AGUA | D119: UN | E119: CR | F119: 13.67
A120: MATERIAL | B120: 100 | C120: ADAPTADOR PVC, SOLDAVEL, COM FLANGES E ANEL DE VEDACAO, 60 MM X 2", PARA CAIXA D'AGUA | D120: UN | E120: CR | F120: 40.27
A121: MATERIAL | B121: 75 | C121: ADAPTADOR PVC, SOLDAVEL, COM FLANGES LIVRES, 110 MM X 4", PARA CAIXA D'AGUA | D121: UN | E121: CR | F121: 234.77
A122: MATERIAL | B122: 83 | C122: ADAPTADOR PVC, SOLDAVEL, COM FLANGES LIVRES, 75 MM X 2 1/2", PARA CAIXA D'AGUA | D122: UN | E122: CR | F122: 187.69
A123: MATERIAL | B123: 74 | C123: ADAPTADOR PVC, SOLDAVEL, COM FLANGES LIVRES, 85 MM X 3", PARA CAIXA D'AGUA | D123: UN | E123: CR | F123: 268.34
A124: MATERIAL | B124: 106 | C124: ADAPTADOR PVC, SOLDAVEL, LONGO, COM FLANGE LIVRE, 110 MM X 4", PARA CAIXA D'AGUA | D124: UN | E124: CR | F124: 339.33
A125: MATERIAL | B125: 88 | C125: ADAPTADOR PVC, SOLDAVEL, LONGO, COM FLANGE LIVRE, 32 MM X 1", PARA CAIXA D'AGUA | D125: UN | E125: CR | F125: 9.53
A126: MATERIAL | B126: 82 | C126: ADAPTADOR PVC, SOLDAVEL, LONGO, COM FLANGE LIVRE, 75 MM X 2 1/2", PARA CAIXA D'AGUA | D126: UN | E126: CR | F126: 178.57
A127: MATERIAL | B127: 105 | C127: ADAPTADOR PVC, SOLDAVEL, LONGO, COM FLANGE LIVRE, 85 MM X 3", PARA CAIXA D'AGUA | D127: UN | E127: CR | F127: 253.03
A128: MATERIAL | B128: 39719 | C128: ADESIVO / COLA DE CONTATO LIQUIDO, A BASE DE RESINAS, PARA COLAGEM DE ESPUMA PARA ISOLAMENTO TERMICO FLEXIVEL | D128: L | E128: CR | F128: 162.12
A129: MATERIAL | B129: 3410 | C129: ADESIVO / COLA PARA EPS (ISOPOR) E OUTROS MATERIAIS | D129: KG | E129: CR | F129: 36.47
A130: MATERIAL | B130: 4791 | C130: ADESIVO ACRILICO DE BASE AQUOSA / COLA DE CONTATO | D130: KG | E130: CR | F130: 44.63
A131: MATERIAL | B131: 157 | C131: ADESIVO ESTRUTURAL A BASE DE RESINA EPOXI PARA INJECAO EM TRINCAS, BICOMPONENTE, BAIXA VISCOSIDADE | D131: KG | E131: CR | F131: 145.29
A132: MATERIAL | B132: 156 | C132: ADESIVO ESTRUTURAL A BASE DE RESINA EPOXI, BICOMPONENTE, FLUIDO | D132: KG | E132: CR | F132: 51.73
A133: MATERIAL | B133: 131 | C133: ADESIVO ESTRUTURAL A BASE DE RESINA EPOXI, BICOMPONENTE, PASTOSO (TIXOTROPICO) | D133: KG | E133: CR | F133: 44.24
A134: MATERIAL | B134: 21114 | C134: ADESIVO PARA TUBOS CPVC, *75* G | D134: UN | E134: CR | F134: 31.96
A135: MATERIAL | B135: 119 | C135: ADESIVO PLASTICO PARA PVC, BISNAGA COM 75 GR | D135: UN | E135: C | F135: 8.1
A136: MATERIAL | B136: 122 | C136: ADESIVO PLASTICO PARA PVC, FRASCO COM *850* GR | D136: UN | E136: CR | F136: 62.32
A137: MATERIAL | B137: 20080 | C137: ADESIVO PLASTICO PARA PVC, FRASCO COM 175 GR | D137: UN | E137: CR | F137: 20.34
A138: MATERIAL | B138: 124 | C138: ADITIVO ACELERADOR DE PEGA E ENDURECIMENTO PARA ARGAMASSAS E CONCRETOS, LIQUIDO E ISENTO DE CLORETOS | D138: L | E138: CR | F138: 17.06
A139: MATERIAL | B139: 7334 | C139: ADITIVO ADESIVO LIQUIDO PARA ARGAMASSAS DE REVESTIMENTOS CIMENTICIOS | D139: L | E139: CR | F139: 17.36
A140: MATERIAL | B140: 45146 | C140: ADITIVO IMPERMEABILIZANTE CRISTALIZANTE PARA CONCRETO | D140: KG | E140: CR | F140: 32.71
A141: MATERIAL | B141: 123 | C141: ADITIVO IMPERMEABILIZANTE DE PEGA NORMAL PARA ARGAMASSAS E CONCRETOS SEM ARMACAO, LIQUIDO E ISENTO DE CLORETOS | D141: L | E141: C | F141: 6.98
A142: MATERIAL | B142: 127 | C142: ADITIVO IMPERMEABILIZANTE DE PEGA ULTRARRAPIDA, LIQUIDO E ISENTO DE CLORETOS | D142: L | E142: CR | F142: 16.66
A143: MATERIAL | B143: 133 | C143: ADITIVO LIQUIDO INCORPORADOR DE AR PARA CONCRETO E ARGAMASSA, LIQUIDO E ISENTO DE CLORETOS | D143: L | E143: CR | F143: 6.92
A144: MATERIAL | B144: 43617 | C144: ADITIVO PLASTIFICANTE E ESTABILIZADOR PARA ARGAMASSAS DE ASSENTAMENTO E REBOCO, LIQUIDO E ISENTO DE CLORETOS | D144: L | E144: CR | F144: 7.73
A145: MATERIAL | B145: 132 | C145: ADITIVO PLASTIFICANTE RETARDADOR DE PEGA E REDUTOR DE AGUA PARA CONCRETO, LIQUIDO E ISENTO DE CLORETOS | D145: L | E145: CR | F145: 7.17
A146: MATERIAL | B146: 43618 | C146: ADITIVO SUPERPLASTIFICANTE DE PEGA NORMAL PARA CONCRETO, LIQUIDO E ISENTO DE CLORETOS | D146: KG | E146: CR | F146: 18.06
A147: MATERIAL | B147: 37476 | C147: ADUELA/ GALERIA PRE-MOLDADA DE CONCRETO ARMADO, SECAO QUADRADA INTERNA DE 1,50 X 1,50 M (L X A), MISULA DE 20 X 20 CM, C = 1,00 M, ESPESSURA MIN = 15 CM, TB-45 E FCK DO CONCRETO = 30 MPA | D147: UN | E147: CR | F147: 3926.72
A148: MATERIAL | B148: 37478 | C148: ADUELA/ GALERIA PRE-MOLDADA DE CONCRETO ARMADO, SECAO RETANGULAR INTERNA DE 2,00 X 2,00 M (L X A), MISULA DE 20 X 20 CM, C = 1,00 M, ESPESSURA MIN = 15 CM, TB-45 E FCK DO CONCRETO = 30 MPA | D148: UN | E148: CR | F148: 4918.31
A149: MATERIAL | B149: 37477 | C149: ADUELA/ GALERIA PRE-MOLDADA DE CONCRETO ARMADO, SECAO RETANGULAR INTERNA DE 2,50 X 2,50 M (L X A), MISULA DE 20 X 20 CM, C = 1,00 M, ESPESSURA MIN = 15 CM, TB-45 E FCK DO CONCRETO = 30 MPA | D149: UN | E149: CR | F149: 6663.52
A150: MATERIAL | B150: 37479 | C150: ADUELA/ GALERIA PRE-MOLDADA DE CONCRETO ARMADO, SECAO RETANGULAR INTERNA DE 3,00 X 3,00 M (L X A), MISULA DE 20 X 20 CM, C = 1.00 M, ESPESSURA MIN = 20 CM, TB-45 E FCK DO CONCRETO = 30 MPA | D150: UN | E150: CR | F150: 7903.02
A151: MATERIAL | B151: 4319 | C151: AFASTADOR PARA TELHA DE FIBROCIMENTO CANALETE 90 OU KALHETAO | D151: UN | E151: CR | F151: 1.67
A152: MATERIAL | B152: 42409 | C152: AGENTE DE CURA, PROTETOR DA EVAPORACAO DA AGUA DE HIDRATACAO DO CONCRETO | D152: KG | E152: CR | F152: 11.37
A153: MATERIAL | B153: 40553 | C153: AGREGADO RECICLADO, TIPO RACHAO RECICLADO CINZA, CLASSE A | D153: M3 | E153: C
A154: MAO DE OBRA | B154: 6114 | C154: AJUDANTE DE ARMADOR (HORISTA) | D154: H | E154: CR | F154: 15.97
A155: MAO DE OBRA | B155: 40912 | C155: AJUDANTE DE ARMADOR (MENSALISTA) | D155: MES | E155: CR | F155: 2795.12
A156: MAO DE OBRA | B156: 247 | C156: AJUDANTE DE ELETRICISTA (HORISTA) | D156: H | E156: CR | F156: 15.97
A157: MAO DE OBRA | B157: 40919 | C157: AJUDANTE DE ELETRICISTA (MENSALISTA) | D157: MES | E157: CR | F157: 2795.12
A158: MAO DE OBRA | B158: 44499 | C158: AJUDANTE DE ESTRUTURAS METALICAS (HORISTA) | D158: H | E158: CR | F158: 15.97
A159: MAO DE OBRA | B159: 40984 | C159: AJUDANTE DE ESTRUTURAS METALICAS (MENSALISTA) | D159: MES | E159: CR | F159: 2795.12
A160: MAO DE OBRA | B160: 248 | C160: AJUDANTE DE OPERACAO EM GERAL (HORISTA) | D160: H | E160: CR | F160: 16.81
A161: MAO DE OBRA | B161: 41086 | C161: AJUDANTE DE OPERACAO EM GERAL (MENSALISTA) | D161: MES | E161: CR | F161: 2942.55
A162: MAO DE OBRA | B162: 34466 | C162: AJUDANTE DE PINTOR (HORISTA) | D162: H | E162: CR | F162: 15.97
A163: MAO DE OBRA | B163: 41083 | C163: AJUDANTE DE PINTOR (MENSALISTA) | D163: MES | E163: CR | F163: 2795.12
A164: MAO DE OBRA | B164: 252 | C164: AJUDANTE DE SERRALHEIRO (HORISTA) | D164: H | E164: CR | F164: 15.97
A165: MAO DE OBRA | B165: 40909 | C165: AJUDANTE DE SERRALHEIRO (MENSALISTA) | D165: MES | E165: CR | F165: 2795.12
A166: MAO DE OBRA | B166: 242 | C166: AJUDANTE ESPECIALIZADO (HORISTA) | D166: H | E166: CR | F166: 16.81
A167: MAO DE OBRA | B167: 41085 | C167: AJUDANTE ESPECIALIZADO (MENSALISTA) | D167: MES | E167: CR | F167: 2942.55
A168: MATERIAL | B168: 427 | C168: ALCA PREFORMADA DE CONTRA POSTE, EM ACO GALVANIZADO, PARA CABO 3/16", COMPRIMENTO *860* MM | D168: UN | E168: CR | F168: 12.99
A169: MATERIAL | B169: 417 | C169: ALCA PREFORMADA DE DISTRIBUICAO, EM ACO GALVANIZADO, PARA CABO DE ALUMINIO DIAMETRO 16 A 25 MM | D169: UN | E169: CR | F169: 6.12
A170: MATERIAL | B170: 11273 | C170: ALCA PREFORMADA DE DISTRIBUICAO, EM ACO GALVANIZADO, PARA CONDUTORES DE ALUMINIO AWG 1/0 (CAA 6/1 OU CA 7 FIOS) | D170: UN | E170: CR | F170: 19
A171: MATERIAL | B171: 11272 | C171: ALCA PREFORMADA DE DISTRIBUICAO, EM ACO GALVANIZADO, PARA CONDUTORES DE ALUMINIO AWG 2 (CAA 6/1 OU CA 7 FIOS) | D171: UN | E171: CR | F171: 11.47
A172: MATERIAL | B172: 11275 | C172: ALCA PREFORMADA DE SERVICO, EM ACO GALVANIZADO, PARA CONDUTORES DE ALUMINIO AWG 4 (CAA 6/1) | D172: UN | E172: CR | F172: 4.6
A173: MATERIAL | B173: 11274 | C173: ALCA PREFORMADA DE SERVICO, EM ACO GALVANIZADO, PARA CONDUTORES DE ALUMINIO AWG 6 (CAA 6/1) | D173: UN | E173: CR | F173: 3.51
A174: MATERIAL | B174: 45250 | C174: ALICATE BICO LONGO (MEIA CANA) 6", COM ISOLAMENTO ATE 1000 V | D174: UN | E174: CR | F174: 30.22
A175: MATERIAL | B175: 38470 | C175: ALICATE DE CORTE DIAGONAL 6" COM ISOLAMENTO | D175: UN | E175: CR | F175: 30.94
A176: MATERIAL | B176: 38547 | C176: ALICATE DE CRIMPAR RJ11, RJ12 E RJ45, COM CATRACA | D176: UN | E176: CR | F176: 205.38
A177: MATERIAL | B177: 38467 | C177: ALICATE DE PRESSAO 11" PARA SOLDA, TIPO C | D177: UN | E177: CR | F177: 201.27
A178: MATERIAL | B178: 38468 | C178: ALICATE DE PRESSAO 11" PARA SOLDA, TIPO U | D178: UN | E178: CR | F178: 251.24
A179: MATERIAL | B179: 38469 | C179: ALICATE DE PRESSAO PARA SOLDA DE CHAPA 18" | D179: UN | E179: CR | F179: 196.1
A180: MATERIAL | B180: 45197 | C180: ALICATE DESENCAPADOR AUTOMATICO 8" | D180: UN | E180: CR | F180: 156.4
A181: MATERIAL | B181: 38471 | C181: ALICATE PARA ANEIS DE PISTAO, CAPACIDADE *50* A 100 MM | D181: UN | E181: CR | F181: 209.74
A182: MATERIAL | B182: 45206 | C182: ALICATE PROFISSIONAL 8", UNIVERSAL, COM ISOLAMENTO ATE 1000 V | D182: UN | E182: CR | F182: 41.44
A183: MATERIAL | B183: 37370 | C183: ALIMENTACAO - HORISTA (COLETADO CAIXA - ENCARGOS COMPLEMENTARES) | D183: H | E183: C | F183: 4.52
A184: MATERIAL | B184: 40862 | C184: ALIMENTACAO - MENSALISTA (COLETADO CAIXA - ENCARGOS COMPLEMENTARES) | D184: MES | E184: C | F184: 851.95
A185: EQUIPAMENTO (AQUISIÇÃO) | B185: 10658 | C185: ALISADORA DE CONCRETO COM MOTOR A GASOLINA DE 5,5 HP, PESO COM MOTOR DE 78 KG, 4 PAS | D185: UN | E185: C
A186: MAO DE OBRA | B186: 253 | C186: ALMOXARIFE (HORISTA) | D186: H | E186: C | F186: 29.44
A187: MAO DE OBRA | B187: 40809 | C187: ALMOXARIFE (MENSALISTA) | D187: MES | E187: CR | F187: 5147.6
A188: MATERIAL | B188: 42428 | C188: ALONGADOR COM TRES ALTURAS, EM TUBO DE ACO CARBONO, PINTURA NO PROCESSO ELETROSTATICO - EQUIPAMENTO DE GINASTICA PARA ACADEMIA AO AR LIVRE / ACADEMIA DA TERCEIRA IDADE - ATI | D188: UN | E188: C
A189: MATERIAL | B189: 301 | C189: ANEL BORRACHA PARA TUBO ESGOTO PREDIAL, DN 100 MM (NBR 5688) | D189: UN | E189: C | F189: 3.26
A190: MATERIAL | B190: 296 | C190: ANEL BORRACHA PARA TUBO ESGOTO PREDIAL, DN 50 MM (NBR 5688) | D190: UN | E190: CR | F190: 1.84
A191: MATERIAL | B191: 297 | C191: ANEL BORRACHA PARA TUBO ESGOTO PREDIAL, DN 75 MM (NBR 5688) | D191: UN | E191: CR | F191: 2.71
A192: MATERIAL | B192: 299 | C192: ANEL BORRACHA, DN 100 MM, PARA TUBO SERIE REFORCADA ESGOTO PREDIAL | D192: UN | E192: CR | F192: 3.82
A193: MATERIAL | B193: 300 | C193: ANEL BORRACHA, DN 150 MM, PARA TUBO SERIE REFORCADA ESGOTO PREDIAL | D193: UN | E193: CR | F193: 13.23
A194: MATERIAL | B194: 20085 | C194: ANEL BORRACHA, DN 50 MM, PARA TUBO SERIE REFORCADA ESGOTO PREDIAL | D194: UN | E194: CR | F194: 2.42
A195: MATERIAL | B195: 298 | C195: ANEL BORRACHA, DN 75 MM, PARA TUBO SERIE REFORCADA ESGOTO PREDIAL | D195: UN | E195: CR | F195: 2.94
A196: MATERIAL | B196: 311 | C196: ANEL BORRACHA, PARA TUBO PVC DEFOFO, DN 100 MM (NBR 7665) | D196: UN | E196: CR | F196: 10.91
A197: MATERIAL | B197: 318 | C197: ANEL BORRACHA, PARA TUBO PVC DEFOFO, DN 150 MM (NBR 7665) | D197: UN | E197: CR | F197: 21.98
A198: MATERIAL | B198: 319 | C198: ANEL BORRACHA, PARA TUBO PVC DEFOFO, DN 200 MM (NBR 7665) | D198: UN | E198: CR | F198: 34.46
A199: MATERIAL | B199: 303 | C199: ANEL BORRACHA, PARA TUBO PVC, REDE COLETOR ESGOTO, DN 100 MM (NBR 7362) | D199: UN | E199: CR | F199: 3.61
A200: MATERIAL | B200: 305 | C200: ANEL BORRACHA, PARA TUBO PVC, REDE COLETOR ESGOTO, DN 150 MM (NBR 7362) | D200: UN | E200: CR | F200: 11.36
A201: MATERIAL | B201: 306 | C201: ANEL BORRACHA, PARA TUBO PVC, REDE COLETOR ESGOTO, DN 200 MM (NBR 7362) | D201: UN | E201: CR | F201: 17.23
... 4702 more rows
